Workbook

Sheet Resumo
B7: Objeto do Fundo: | O7: Patrimônio Líquido:
B8: O objeto do Fundo é o investimento em empreendimentos imobiliários, primordialmente, por meio da aquisição dos seguintes Ativos-Alvo: (i) Certificado de Recebíveis Imobiliários ("CRIs"); (ii) Letras Hipotecárias ("LH's"); (iii) Letras de Crédito Imobiliário ("LCI's"); (iv) Letras Imobiliárias Garantidas ("LIG's"); (v) Cotas de outros FIIs. | O8: 131094927.8
O10: Cota Patrimonial
O11: 90.17031764
B12: Características do Fundo:
B13: Nome: | C13: Galapagos Recebíveis – Fundo de Investimento Imobiliário | O13: Cota Mercado
B14: CNPJ: | C14: 38.293.897/0001-61 | O14: 67.5
B15: Gestora: | C15: Galapagos Capital Investimento e Participações Ltda
B16: CNPJ Gestor: | C16: 32.706.879/0001-88 | O16: Último Dividendo
B17: Administrador: | C17: BTG Pactual Serviços Financeiros S.A. DTVM | O17: 0.85
B18: Ticker B3: | C18: GCRI11
O19: ADTV (Média Móvel 15 dias)
B20: Custos do Fundo | O20: 290593.4777
B21: Taxa de Administração: | D21: 0,20% do Patrimônio Líquido (Mín. 20.000)
B22: Taxa de Gestão: | D22: 0,80% do Patrimônio Líquido | O22: Número de Cotistas
B23: Taxa de Escrituração: | D23: 0,05% do Patrimônio Líquido (Mín. 5.000) | O23: 4151
B24: Taxa de Performance: | D24: 20% sobre o que exceder IPCA + Yield do IMAB-5
B26: Data de Início: | E26: Cadastre em nosso mailing através do link:
B27: 2020-12-15 | E27: Clique aqui
B29: Disclaimer
B30: A Galapagos Capital Investimentos e Participações (“Galapagos”) não comercializa nem distribui cotas de fundos de investimento ou qualquer outro ativo financeiro. Este documento foi elaborado pela Galapagos com finalidade meramente informativa, não caracterizando de nenhuma forma oferta ou solicitação de investimento. A Galapagos não se responsabiliza por qualquer decisão do investidor, nem por ato praticado por profissionais por ele consultados. Apesar da diligência na obtenção e na elaboração das informações apresentadas, a Galapagos não se responsabiliza pela publicação acidental de informações incorretas, nem tampouco por decisões de investimento tomadas com base nas informações contidas neste documento. Rentabilidade passada não representa garantia de rentabilidade futura. Fundos de Investimento não contam com garantia do administrador, Gestor, de qualquer mecanismo de seguro ou do Fundo Garantidor de Crédito. Leia o prospecto e o regulamento antes de investir. A rentabilidade divulgada não é líquida de impostos. É recomendada a leitura cuidadosa do formulário de informações complementares, lâmina de informações essenciais e do regulamento do fundo de investimento pelo investidor ao aplicar seus recursos. Os investidores devem estar preparados para aceitar os riscos inerentes aos diversos mercados em que os fundos de investimento atuam e, consequentemente, possíveis variações no patrimônio investido. Nada aqui contido é, ou deve ser entendido como, uma promessa ou representação do passado ou do futuro. A rentabilidade obtida no passado não representa garantia de rentabilidade futura. O Administrador não se responsabiliza por erros ou omissões neste material, bem como pelo uso das informações nele contidas.

Sheet DRE
B7: Demonstrações de Resultado
B9: DRE Gerencial (R$) | E9: 2020-12-01 | F9: 2020 | H9: 2021-01-01 | I9: 2021-02-01 | J9: 2021-03-01 | K9: 2021-04-01 | L9: 2021-05-01 | M9: 2021-06-01 | N9: 2021-07-01 | O9: 2021-08-01 | P9: 2021-09-01 | Q9: 2021-10-01 | R9: 2021-11-01 | S9: 2021-12-01 | T9: 2021 | V9: 2022-01-01 | W9: 2022-02-01 | X9: 2022-03-01 | Y9: 2022-04-01 | Z9: 2022-05-01 | AA9: 2022-06-01 | AB9: 2022-07-01 | AC9: 2022-08-01 | AD9: 2022-09-01 | AE9: 2022-10-01 | AF9: 2022-11-01 | AG9: 2022-12-01 | AH9: 2022 | AJ9: 2023-01-01 | AK9: 2023-02-01 | AL9: 2023-03-01 | AM9: 2023-04-01 | AN9: 2023-05-01 | AO9: 2023-06-01 | AP9: 2023-07-01 | AQ9: 2023-08-01 | AR9: 2023-09-01 | AS9: 2023-10-01 | AT9: 2023-11-01 | AU9: 2023-12-01 | AV9: 2023 | AX9: 2024-01-01 | AY9: 2024-02-01 | AZ9: 2024-03-01 | BA9: 2024-04-01 | BB9: 2024-05-01 | BC9: 2024-06-01 | BD9: 2024-07-01 | BE9: 2024-08-01 | BF9: 2024-09-01 | BG9: 2024-10-01 | BH9: =EDATE(BG9,1) -> 2024-11-01 | BI9: =EDATE(BH9,1) -> 2024-12-01 | BJ9: 2024 | BL9: =EDATE(BI9,1) -> 2025-01-01 | BM9: =EDATE(BL9,1) -> 2025-02-01 | BN9: 2025-03-01 | BO9: 2025-04-01 | BP9: 2025-05-01 | BQ9: 2025-06-01 | BR9: 2025-07-01 | BS9: =EDATE(BR9,1) -> 2025-08-01 | BT9: =EDATE(BS9,1) -> 2025-09-01 | BU9: =EDATE(BT9,1) -> 2025-10-01 | BV9: 2025-11-01 | BW9: 2025-12-01 | BX9: 2025 | BZ9: =EDATE(BW9,1) -> 2026-01-01 | CA9: =EDATE(BZ9,1) -> 2026-02-01 | CB9: =EDATE(CA9,1) -> 2026-03-01 | CC9: 2026
B10: Receitas
B11: Juros (CRI) | E11: =SUM(E12:E48) -> 61138.25227 | F11: =SUM(E11) -> 61138.25227 | H11: =SUM(H12:H48) -> 108872.1694 | I11: =SUM(I12:I48) -> 210097.4521 | J11: 329639.7251 | K11: 400995.1349 | L11: 409323.0733 | M11: 520731.5757 | N11: 609390.9789 | O11: 535817.8633 | P11: 686931.906 | Q11: 683957.9803 | R11: =SUM(R12:R48) -> 944795.5646 | S11: =SUM(S12:S48) -> 717936.5552 | T11: =SUM(H11:S11) -> 6158489.979 | V11: =SUM(V12:V48) -> 767531.8143 | W11: 740567.0897 | X11: 809007.3913 | Y11: 738851.7827 | Z11: 706072.4534 | AA11: 697037.8604 | AB11: 834061.9947 | AC11: 841372.1527 | AD11: =SUM(AD12:AD48) -> 911976.4302 | AE11: =SUM(AE12:AE48) -> 905859.6444 | AF11: =SUM(AF12:AF48) -> 1169443.457 | AG11: =SUM(AG12:AG48) -> 879887.9807 | AH11: =SUM(V11:AG11) -> 10001670.05 | AJ11: =SUM(AJ12:AJ56) -> 961267.9747 | AK11: 840301.791 | AL11: 993936.5331 | AM11: 891092.2034 | AN11: 823639.564 | AO11: 896648.6416 | AP11: 1057919.363 | AQ11: 892314.7459 | AR11: 969841.8829 | AS11: 934410.3151 | AT11: 1233550.24 | AU11: 909629.0494 | AV11: =SUM(AJ11:AU11) -> 11404552.3 | AX11: =SUM(AX12:AX56) -> 917135.3263 | AY11: =SUM(AY12:AY56) -> 968519.187 | AZ11: =SUM(AZ12:AZ70) -> 859875.8238 | BA11: 783061.682 | BB11: 757347.0324 | BC11: 740657.7117 | BD11: 930096.4231 | BE11: 819032.023 | BF11: =SUM(BF12:BF70) -> 708923.0022 | BG11: =SUM(BG12:BG70) -> 1702615.107 | BH11: =SUM(BH12:BH70) -> 926648.7428 | BI11: =SUM(BI12:BI70) -> 928572.1 | BJ11: =SUM(AX11:BI11) -> 11042484.16 | BL11: =SUM(BL12:BL70) -> 940941.223 | BM11: 969499.3394 | BN11: 875608.8143 | BO11: 873478.739 | BP11: 854278.3476 | BQ11: 898917.7698 | BR11: =SUM(BR12:BR70) -> 861760.7338 | BS11: =SUM(BS12:BS73) -> 924707.9508 | BT11: =SUM(BT12:BT73) -> 878998.3077 | BU11: =SUM(BU12:BU73) -> 787595.225 | BV11: =SUM(BV12:BV73) -> 912962.5812 | BW11: =SUM(BW12:BW73) -> 1017830.37 | BX11: =SUM(BL11:BW11) -> 10796579.4 | BZ11: =SUM(BZ12:BZ73) -> 857059.7827 | CA11: =SUM(CA12:CA73) -> 786669.6546 | CB11: =SUM(CB12:CB73) -> 699664.2362 | CC11: =SUM(BZ11:CB11) -> 2343393.674
B12: 19K1124486 | E12: 0 | F12: =SUM(E12) -> 0 | H12: 6534.78 | I12: 23795.64 | J12: 18611.94 | K12: 23555.68 | L12: 23434.76 | M12: 28507.02 | N12: 29146.46 | O12: 31694.37 | P12: 46954.16 | Q12: 44936.86 | R12: 51928.3 | S12: 56639.53 | T12: =SUM(H12:S12) -> 385739.5 | V12: 70694.49 | W12: 78693.22 | X12: 66222.81 | Y12: 79705.81 | Z12: 77526.56 | AA12: 0 | AB12: 176477.24 | AC12: 97050.91 | AD12: 88383.35 | AE12: 86449.34 | AF12: 86449.34 | AG12: 86110.12 | AH12: 993763.19 | AJ12: 88065.15 | AK12: 0 | AL12: 177050.38 | AM12: 86514.45 | AN12: 0 | AO12: 0 | AP12: 182012.31 | AQ12: 0 | AR12: 42803.91 | AS12: 21711.19 | AT12: 11675.42 | AU12: 15266.88 | AV12: =SUM(AJ12:AU12) -> 625099.69 | AX12: 9179.16 | AY12: 101081.62 | AZ12: 10334.41 | BA12: 0 | BB12: 20666.13 | BC12: 9727.4 | BD12: 194546.65 | BE12: 82489.42 | BF12: 0 | BG12: 822715.58 | BH12: 79935.23 | BI12: 76535.47 | BJ12: =SUM(AX12:BI12) -> 1407211.07 | BL12: 85746.52 | BM12: 87567.64 | BN12: 77564.26 | BO12: 102105.6 | BP12: 81159.86 | BQ12: 101543.64 | BR12: 97203.13 | BS12: 97598.69 | BT12: 106981.76 | BU12: 101940.69 | BV12: 97267.02 | BW12: 97730.01 | BX12: =SUM(BL12:BW12) -> 1134408.82 | BZ12: 92217.13 | CA12: 107107.48 | CB12: 82830.83 | CC12: 282155.44
B13: 20C0818565 | E13: 0 | F13: 0 | H13: 18953.44 | I13: 21284.18 | J13: 16246.6 | K13: 18837.01 | L13: 19951.8 | M13: 21313.53 | N13: 21946.41 | O13: 24235.55 | P13: 23564.52 | Q13: 53643.95 | R13: 56818.38 | S13: 53839.58 | T13: 350634.95 | V13: 69546.87 | W13: 65659.79 | X13: 56147.36 | Y13: 68770.07 | Z13: 61459.22 | AA13: 64983.45 | AB13: 63253.52 | AC13: 66955.35 | AD13: 59475.43 | AE13: 56458.36 | AF13: 50866.86 | AG13: 47961.09 | AH13: =SUM(V13:AG13) -> 731537.37 | AJ13: 51855.31 | AK13: 44264.64 | AL13: 35264.73 | AM13: 41725.03 | AN13: 44679.51 | AO13: 0 | AP13: 0 | AQ13: 0 | AR13: 0 | AS13: 0 | AT13: 0 | AU13: 0 | AV13: 217789.22 | AX13: 0 | AY13: 0 | AZ13: 0 | BA13: 0 | BB13: 0 | BC13: 0 | BD13: 0 | BE13: 0 | BF13: 0 | BG13: 0 | BH13: 0 | BI13: 0 | BJ13: 0 | BL13: 0 | BM13: 0 | BN13: 0 | BO13: 0 | BP13: 0 | BQ13: 0 | BR13: 0 | BS13: 0 | BT13: 0 | BU13: 0 | BV13: 0 | BW13: 0 | BX13: 0 | BZ13: 0 | CA13: 0 | CB13: 0 | CC13: 0
B14: 20H0734994 | E14: 0 | F14: 0 | H14: 0 | I14: 0 | J14: 0 | K14: 35439.97 | L14: 34906.75 | M14: 41556.91 | N14: 72436.71 | O14: 11788.02 | P14: 39667.5 | Q14: 37625.41 | R14: 42816.43 | S14: 46100.19 | T14: 362337.89 | V14: 50963.03 | W14: 56764.48 | X14: 131944.84 | Y14: 0 | Z14: 0 | AA14: 0 | AB14: 0 | AC14: 0 | AD14: 0 | AE14: 0 | AF14: 0 | AG14: 0 | AH14: 239672.35 | AJ14: 0 | AK14: 0 | AL14: 0 | AM14: 0 | AN14: 0 | AO14: 0 | AP14: 0 | AQ14: 0 | AR14: 0 | AS14: 0 | AT14: 0 | AU14: 0 | AV14: 0 | AX14: 0 | AY14: 0 | AZ14: 0 | BA14: 0 | BB14: 0 | BC14: 0 | BD14: 0 | BE14: 0 | BF14: 0 | BG14: 0 | BH14: 0 | BI14: 0 | BJ14: 0 | BL14: 0 | BM14: 0 | BN14: 0 | BO14: 0 | BP14: 0 | BQ14: 0 | BR14: 0 | BS14: 0 | BT14: 0 | BU14: 0 | BV14: 0 | BW14: 0 | BX14: 0 | BZ14: 0 | CA14: 0 | CB14: 0 | CC14: 0
B15: 17C0868823 | E15: 0 | F15: 0 | H15: 0 | I15: 0 | J15: 0 | K15: 0 | L15: 0 | M15: 0 | N15: 0 | O15: 0 | P15: 0 | Q15: 0 | R15: 243796.6569 | S15: 0 | T15: 243796.6569 | V15: 0 | W15: 0 | X15: 0 | Y15: 0 | Z15: 0 | AA15: 0 | AB15: 0 | AC15: 0 | AD15: 0 | AE15: 0 | AF15: 274928.3632 | AG15: 0 | AH15: 274928.3632 | AJ15: 0 | AK15: 0 | AL15: 0 | AM15: 0 | AN15: 0 | AO15: 0 | AP15: 0 | AQ15: 0 | AR15: 0 | AS15: 0 | AT15: 274483.4636 | AU15: 0 | AV15: 274483.4636 | AX15: 0 | AY15: 0 | AZ15: 0 | BA15: 0 | BB15: 0 | BC15: 0 | BD15: 0 | BE15: 0 | BF15: 0 | BG15: 0 | BH15: 0 | BI15: 0 | BJ15: 0 | BL15: 0 | BM15: 0 | BN15: 0 | BO15: 0 | BP15: 0 | BQ15: 0 | BR15: 0 | BS15: 0 | BT15: 0 | BU15: 0 | BV15: 0 | BW15: 0 | BX15: 0 | BZ15: 0 | CA15: 0 | CB15: 0 | CC15: 0
B16: 19F0260732 | E16: 47477.36732 | F16: 47477.36732 | H16: 49486.5249 | I16: 46598.48088 | J16: 42645.13156 | K16: 47345.63361 | L16: 42907.44719 | M16: 981.5302109 | N16: 952.7226461 | O16: 19362.09 | P16: 0 | Q16: 0 | R16: 0 | S16: 0 | T16: 250279.561 | V16: 0 | W16: 0 | X16: 0 | Y16: 0 | Z16: 0 | AA16: 0 | AB16: 0 | AC16: 0 | AD16: 0 | AE16: 0 | AF16: 0 | AG16: 0 | AH16: 0 | AJ16: 0 | AK16: 0 | AL16: 0 | AM16: 0 | AN16: 0 | AO16: 0 | AP16: 0 | AQ16: 0 | AR16: 0 | AS16: 0 | AT16: 0 | AU16: 0 | AV16: 0 | AX16: 0 | AY16: 0 | AZ16: 0 | BA16: 0 | BB16: 0 | BC16: 0 | BD16: 0 | BE16: 0 | BF16: 0 | BG16: 0 | BH16: 0 | BI16: 0 | BJ16: 0 | BL16: 0 | BM16: 0 | BN16: 0 | BO16: 0 | BP16: 0 | BQ16: 0 | BR16: 0 | BS16: 0 | BT16: 0 | BU16: 0 | BV16: 0 | BW16: 0 | BX16: 0 | BZ16: 0 | CA16: 0 | CB16: 0 | CC16: 0
B17: 20F0165468 | E17: 0 | F17: 0 | H17: 20582.2602 | I17: 20409.87581 | J17: 18518.51236 | K17: 20563.61277 | L17: 19875.57816 | M17: 20558.57301 | N17: 19953.91719 | O17: 20793.47762 | P17: 20903.68425 | Q17: 20420.34791 | R17: 21200.89928 | S17: 20751.71706 | T17: 244532.4556 | V17: 21714.89765 | W17: 21921.20417 | X17: 19934.89745 | Y17: 22200.46483 | Z17: 21697.90468 | AA17: 22787.99462 | AB17: 22283.14945 | AC17: 23137.79205 | AD17: 23292.82862 | AE17: 22537.89361 | AF17: 23292.82862 | AG17: 22670.88485 | AH17: 267472.7406 | AJ17: 23526.32951 | AK17: 23672.1853 | AL17: 22073.77253 | AM17: 23997.5362 | AN17: 23384.62928 | AO17: 24315.35482 | AP17: 0 | AQ17: 0 | AR17: 0 | AS17: 0 | AT17: 0 | AU17: 0 | AV17: 140969.8076 | AX17: 0 | AY17: 0 | AZ17: 0 | BA17: 0 | BB17: 0 | BC17: 0 | BD17: 0 | BE17: 0 | BF17: 0 | BG17: 25008.88 | BH17: 0 | BI17: 41730.72 | BJ17: 66739.6 | BL17: 0 | BM17: 19424.88643 | BN17: 8887.110106 | BO17: 0 | BP17: 21965.15726 | BQ17: 0 | BR17: 0 | BS17: 8059.247664 | BT17: 0 | BU17: 0 | BV17: 0 | BW17: 0 | BX17: 58336.40146 | BZ17: 0 | CA17: 0 | CB17: 0 | CC17: 0
B18: 19D1329253 | E18: 0 | F18: 0 | H18: 0 | I18: 45127.29718 | J18: 66215.63 | K18: 53058.17846 | L18: 36849.04626 | M18: 42183 | N18: 36654.68 | O18: 33271.75336 | P18: 36776.86884 | Q18: 29935.92259 | R18: 28273.79 | S18: 22826.0086 | T18: 431172.1753 | V18: 29257.221 | W18: 29063.92142 | X18: 28798.58305 | Y18: 28954.10381 | Z18: 37853.07436 | AA18: 21058.20243 | AB18: 26367.76011 | AC18: 23814.67729 | AD18: 21663.56029 | AE18: 19443.92376 | AF18: 18345.74485 | AG18: 18135.83371 | AH18: 302756.6061 | AJ18: 17885.00424 | AK18: 17662.61982 | AL18: 20484.52445 | AM18: 17028.39305 | AN18: 16629.62509 | AO18: 15705.21925 | AP18: 15069.01395 | AQ18: 14389.87329 | AR18: 13743.43652 | AS18: 13134.0214 | AT18: 12680.4669 | AU18: 12222.01051 | AV18: 186634.2085 | AX18: 11765.98837 | AY18: 11338.88054 | AZ18: 10891.44505 | BA18: 10482.65779 | BB18: 9999.453194 | BC18: 9535.5748 | BD18: 9075.25592 | BE18: 8589.074413 | BF18: 8114.544062 | BG18: 7605.86753 | BH18: 7130.039146 | BI18: 6520.42 | BJ18: 111049.2008 | BL18: 6169.647045 | BM18: 5684.919251 | BN18: 5176.377235 | BO18: 4719.771965 | BP18: 0 | BQ18: 3707.37 | BR18: 3186.007102 | BS18: 2661.377159 | BT18: 5798.419968 | BU18: 1599.211034 | BV18: 0 | BW18: 536.11 | BX18: 39239.21076 | BZ18: 0 | CA18: 0 | CB18: 0 | CC18: 0
B19: 18J0673053 | E19: 0 | F19: 0 | H19: 0 | I19: 12991.96866 | J19: 24999.97 | K19: 0 | L19: 0 | M19: 0 | N19: 0 | O19: 0 | P19: 0 | Q19: 0 | R19: 0 | S19: 0 | T19: 37991.93866 | V19: 0 | W19: 0 | X19: 0 | Y19: 0 | Z19: 0 | AA19: 0 | AB19: 0 | AC19: 0 | AD19: 0 | AE19: 0 | AF19: 0 | AG19: 0 | AH19: 0 | AJ19: 0 | AK19: 0 | AL19: 0 | AM19: 0 | AN19: 0 | AO19: 0 | AP19: 0 | AQ19: 0 | AR19: 0 | AS19: 0 | AT19: 0 | AU19: 0 | AV19: 0 | AX19: 0 | AY19: 0 | AZ19: 0 | BA19: 0 | BB19: 0 | BC19: 0 | BD19: 0 | BE19: 0 | BF19: 0 | BG19: 0 | BH19: 0 | BI19: 0 | BJ19: 0 | BL19: 0 | BM19: 0 | BN19: 0 | BO19: 0 | BP19: 0 | BQ19: 0 | BR19: 0 | BS19: 0 | BT19: 0 | BU19: 0 | BV19: 0 | BW19: 0 | BX19: 0 | BZ19: 0 | CA19: 0 | CB19: 0 | CC19: 0
B20: 20G0754279 | E20: 0 | F20: 0 | H20: 0 | I20: 15663.99047 | J20: 20746.6463 | K20: 23537.6965 | L20: 22709.36398 | M20: 23951.08883 | N20: 23029.95042 | O20: 24146.66 | P20: 23673.57232 | Q20: 23081.99235 | R20: 23818.73132 | S20: 23314.9669 | T20: 247674.6594 | V20: 24242.48245 | W20: 24016.23098 | X20: 21651.25325 | Y20: 24079.04618 | Z20: 23410.45528 | AA20: 24585.65301 | AB20: 24041.89167 | AC20: 19963.38151 | AD20: 19960.48641 | AE20: 19244.76272 | AF20: 19830.95392 | AG20: 17617.09592 | AH20: 262643.6933 | AJ20: 43469.52111 | AK20: 18394.49105 | AL20: 100574.9916 | AM20: 17193.45189 | AN20: 13863.93298 | AO20: 13592.15328 | AP20: 12898.52852 | AQ20: 13319.41719 | AR20: 13023.89171 | AS20: 12837.18103 | AT20: 15098.24646 | AU20: 0 | AV20: 274265.8068 | AX20: 24887.52 | AY20: 10173.56 | AZ20: 19351.76 | BA20: 23449.42 | BB20: 22691.57 | BC20: 20738.7 | BD20: 22812.1 | BE20: 22857.88 | BF20: 19567.82 | BG20: 19340.46 | BH20: 18457.88 | BI20: 16015.13 | BJ20: 240343.8 | BL20: 18748.29 | BM20: 19147.82 | BN20: 15756.79 | BO20: 20701.5 | BP20: 17410.1 | BQ20: 19682.42 | BR20: 19314.26 | BS20: 19778.89 | BT20: 17993.76 | BU20: 17375.83 | BV20: 16579.2 | BW20: 16513.69 | BX20: 219002.55 | BZ20: 16513.69 | CA20: 0 | CB20: 0 | CC20: 16513.69
B21: 16H0268853 | E21: 0 | F21: 0 | H21: 0 | I21: 12084.85389 | J21: 58764.43 | K21: 0 | L21: 0 | M21: 0 | N21: 0 | O21: 0 | P21: 0 | Q21: 0 | R21: 0 | S21: 0 | T21: 70849.28389 | V21: 0 | W21: 0 | X21: 0 | Y21: 0 | Z21: 0 | AA21: 0 | AB21: 0 | AC21: 0 | AD21: 0 | AE21: 0 | AF21: 0 | AG21: 0 | AH21: 0 | AJ21: 0 | AK21: 0 | AL21: 0 | AM21: 0 | AN21: 0 | AO21: 0 | AP21: 0 | AQ21: 0 | AR21: 0 | AS21: 0 | AT21: 0 | AU21: 0 | AV21: 0 | AX21: 0 | AY21: 0 | AZ21: 0 | BA21: 0 | BB21: 0 | BC21: 0 | BD21: 0 | BE21: 0 | BF21: 0 | BG21: 0 | BH21: 0 | BI21: 0 | BJ21: 0 | BL21: 0 | BM21: 0 | BN21: 0 | BO21: 0 | BP21: 0 | BQ21: 0 | BR21: 0 | BS21: 0 | BT21: 0 | BU21: 0 | BV21: 0 | BW21: 0 | BX21: 0 | BZ21: 0 | CA21: 0 | CB21: 0 | CC21: 0
B22: 19I0755306 | E22: 0 | F22: 0 | H22: 0 | I22: 0 | J22: 0 | K22: 0 | L22: 24140.63475 | M22: 0 | N22: 16992.76161 | O22: 0 | P22: 0 | Q22: 0 | R22: 0 | S22: 0 | T22: 41133.39636 | V22: 0 | W22: 0 | X22: 0 | Y22: 0 | Z22: 0 | AA22: 0 | AB22: 0 | AC22: 0 | AD22: 0 | AE22: 0 | AF22: 0 | AG22: 0 | AH22: 0 | AJ22: 0 | AK22: 0 | AL22: 0 | AM22: 0 | AN22: 0 | AO22: 0 | AP22: 0 | AQ22: 0 | AR22: 0 | AS22: 0 | AT22: 0 | AU22: 0 | AV22: 0 | AX22: 0 | AY22: 0 | AZ22: 0 | BA22: 0 | BB22: 0 | BC22: 0 | BD22: 0 | BE22: 0 | BF22: 0 | BG22: 0 | BH22: 0 | BI22: 0 | BJ22: 0 | BL22: 0 | BM22: 0 | BN22: 0 | BO22: 0 | BP22: 0 | BQ22: 0 | BR22: 0 | BS22: 0 | BT22: 0 | BU22: 0 | BV22: 0 | BW22: 0 | BX22: 0 | BZ22: 0 | CA22: 0 | CB22: 0 | CC22: 0
B23: 21C0122941 | E23: 0 | F23: 0 | H23: 0 | I23: 0 | J23: 46093.14 | K23: 95220.88977 | L23: 84184.57111 | M23: 81234.30422 | N23: 72550.96643 | O23: 46346.18499 | P23: 40318.34146 | Q23: 31931.62807 | R23: 30076.8296 | S23: 26211.74838 | T23: 554168.604 | V23: 25923.20961 | W23: 0 | X23: 45115.99137 | Y23: 21453.13581 | Z23: 19489.82057 | AA23: 18969.58411 | AB23: 0 | AC23: 0 | AD23: 0 | AE23: 0 | AF23: 0 | AG23: 0 | AH23: 130951.7415 | AJ23: 0 | AK23: 0 | AL23: 0 | AM23: 0 | AN23: 0 | AO23: 0 | AP23: 0 | AQ23: 0 | AR23: 0 | AS23: 0 | AT23: 0 | AU23: 0 | AV23: 0 | AX23: 0 | AY23: 0 | AZ23: 0 | BA23: 0 | BB23: 0 | BC23: 0 | BD23: 0 | BE23: 0 | BF23: 0 | BG23: 0 | BH23: 0 | BI23: 0 | BJ23: 0 | BL23: 0 | BM23: 0 | BN23: 0 | BO23: 0 | BP23: 0 | BQ23: 0 | BR23: 0 | BS23: 0 | BT23: 0 | BU23: 0 | BV23: 0 | BW23: 0 | BX23: 0 | BZ23: 0 | CA23: 0 | CB23: 0 | CC23: 0
B24: 21E0517062 | E24: 0 | F24: 0 | H24: 0 | I24: 0 | J24: 0 | K24: 0 | L24: 0 | M24: 0 | N24: 24407.38825 | O24: 24385.33061 | P24: 24537.36364 | Q24: 24590.99223 | R24: 24762.09094 | S24: 24647.28997 | T24: 147330.4556 | V24: 19289.12732 | W24: 0 | X24: 16348.99 | Y24: 0 | Z24: 0 | AA24: 4332.57 | AB24: 18110.38 | AC24: 0 | AD24: 0 | AE24: 17274.25 | AF24: 4227.27 | AG24: 7756.32 | AH24: 87338.90732 | AJ24: 13071.12 | AK24: 5645.73 | AL24: 13234.51 | AM24: 15098.05 | AN24: 12558.83 | AO24: 13253.19 | AP24: 14504.56 | AQ24: 13772.88 | AR24: 3593.07 | AS24: 17134.2 | AT24: 70811.12 | AU24: 13420.1 | AV24: 206097.36 | AX24: 0 | AY24: 16349.6 | AZ24: 0 | BA24: 0 | BB24: 0 | BC24: 0 | BD24: 0 | BE24: 0 | BF24: 0 | BG24: 0 | BH24: 0 | BI24: 0 | BJ24: 16349.6 | BL24: 0 | BM24: 0 | BN24: 0 | BO24: 0 | BP24: 0 | BQ24: 0 | BR24: 0 | BS24: 0 | BT24: 0 | BU24: 0 | BV24: 0 | BW24: 0 | BX24: 0 | BZ24: 0 | CA24: 0 | CB24: 0 | CC24: 0
B25: 21E0466562 | E25: 0 | F25: 0 | H25: 0 | I25: 0 | J25: 0 | K25: 0 | L25: 0 | M25: 145971.1868 | N25: 175754.0544 | O25: 183148.4445 | P25: 182439.1643 | Q25: 178221.2379 | R25: 185792.9579 | S25: 181687.6368 | T25: 1233014.683 | V25: 190120.1043 | W25: 189678.5596 | X25: 172492.8453 | Y25: 191741.9305 | Z25: 186789.852 | AA25: 196173.5756 | AB25: 190793.4497 | AC25: 198110.6028 | AD25: 197821.4476 | AE25: 190100.48 | AF25: 192624.81 | AG25: 183835.9965 | AH25: 2280283.654 | AJ25: 190596.0563 | AK25: 191777.6914 | AL25: 173963.2161 | AM25: 194310.3969 | AN25: 186996.88 | AO25: 204330.37 | AP25: 185412.2576 | AQ25: 191460.06 | AR25: 191689.6964 | AS25: 185904.0783 | AT25: 196744.095 | AU25: 186834.8115 | AV25: 2280019.61 | AX25: 198096.4662 | AY25: 202261.5877 | AZ25: 0 | BA25: 0 | BB25: 0 | BC25: 0 | BD25: 0 | BE25: 0 | BF25: 0 | BG25: 0 | BH25: 0 | BI25: 0 | BJ25: 400358.0539 | BL25: 0 | BM25: 0 | BN25: 0 | BO25: 0 | BP25: 0 | BQ25: 0 | BR25: 0 | BS25: 0 | BT25: 0 | BU25: 0 | BV25: 0 | BW25: 0 | BX25: 0 | BZ25: 0 | CA25: 0 | CB25: 0 | CC25: 0
B26: 20L0871127 | E26: 0 | F26: 0 | H26: 0 | I26: 0 | J26: 0 | K26: 0 | L26: 0 | M26: 57101.33875 | N26: 56753.42026 | O26: 56392.18476 | P26: 56039.95914 | Q26: 55685.56234 | R26: 55318.03788 | S26: 54959.24484 | T26: 392249.748 | V26: 54587.44291 | W26: 63867.03701 | X26: 63586.02204 | Y26: 63116.3121 | Z26: 62681.31448 | AA26: 62231.32532 | AB26: 61790.91423 | AC26: 61335.63877 | AD26: 60889.79002 | AE26: 60441.21493 | AF26: 59977.99346 | AG26: 59523.8401 | AH26: 734028.8454 | AJ26: 59055.20891 | AK26: 64341.74686 | AL26: 61459.44644 | AM26: 60933.35358 | AN26: 60440.34181 | AO26: 59932.46162 | AP26: 59433.40401 | AQ26: 58919.5428 | AR26: 58414.30772 | AS26: 57905.98642 | AT26: 57383.15327 | AU26: 56868.54115 | AV26: 715087.4946 | AX26: 56339.54998 | AY26: 54042.86587 | AZ26: 53687.91232 | BA26: 53157.09994 | BB26: 52644.24024 | BC26: 52117.85048 | BD26: 51598.65245 | BE26: 51066.10276 | BF26: 50540.47936 | BG26: 50011.67433 | BH26: 49469.79784 | BI26: 47924.56 | BJ26: 622600.7856 | BL26: 48386.17427 | BM26: 50972.22835 | BN26: 50553.8483 | BO26: 49940.52901 | BP26: 49353.32827 | BQ26: 48752.84632 | BR26: 48158.40287 | BS26: 47550.88462 | BT26: 46949.12817 | BU26: 46343.71917 | BV26: 45725.49395 | BW26: 45112.63516 | BX26: 577799.2184 | BZ26: 44497.03252 | CA26: 43406.51102 | CB26: 42949.65749 | CC26: 130853.201
B27: 20I0905816 | E27: 0 | F27: 0 | H27: 0 | I27: 0 | J27: 6806.901117 | K27: 10243.42 | L27: 9815.004539 | M27: 10141.88264 | N27: 9757.215535 | O27: 10078.31468 | P27: 10041.50725 | Q27: 9654.723648 | R27: 10005.19176 | S27: 9734.876146 | T27: 96279.03732 | V27: 10122.57815 | W27: 10149.01036 | X27: 9170.230835 | Y27: 10132.28368 | Z27: 9783.097343 | AA27: 10144.84998 | AB27: 9792.217668 | AC27: 10030.44341 | AD27: 9888.994137 | AE27: 9395.900556 | AF27: 9504.283112 | AG27: 9137.677387 | AH27: =SUM(V27:AG27) -> 117251.5666 | AJ27: 9355.589566 | AK27: 9280.172386 | AL27: 8161.209452 | AM27: 8819.755583 | AN27: 8308.66058 | AO27: 8336.381537 | AP27: 7382.98343 | AQ27: 7097.490014 | AR27: 6497.88785 | AS27: 5863.02103 | AT27: 5324.978802 | AU27: 4744.14931 | AV27: 89172.27954 | AX27: 4030.540802 | AY27: 3501.017691 | AZ27: 2037.108072 | BA27: 1521.447139 | BB27: 973.4312309 | BC27: 656.4498733 | BD27: 0 | BE27: 0 | BF27: 0 | BG27: 0 | BH27: 0 | BI27: 0 | BJ27: 12719.99481 | BL27: 0 | BM27: 0 | BN27: 0 | BO27: 0 | BP27: 0 | BQ27: 0 | BR27: 0 | BS27: 0 | BT27: 0 | BU27: 0 | BV27: 0 | BW27: 0 | BX27: 0 | BZ27: 0 | CA27: 0 | CB27: 0 | CC27: 0
B28: 21H0001650 | E28: 0 | F28: 0 | H28: 0 | I28: 0 | J28: 0 | K28: 0 | L28: 0 | M28: 0 | N28: 0 | O28: 0 | P28: 64714.08261 | Q28: 62920.84404 | R28: 57753.20664 | S28: 56335.9435 | T28: 241724.0768 | V28: 58676.8414 | W28: 58986.64703 | X28: 50989.86103 | Y28: 56497.45205 | Z28: 55015.47956 | AA28: 42219.96963 | AB28: 40672.81452 | AC28: 40532.69316 | AD28: 39784.91647 | AE28: 37901.33319 | AF28: 38379.01958 | AG28: 36928.30096 | AH28: 556585.3286 | AJ28: 37638.26737 | AK28: 36881.55798 | AL28: 33185.37093 | AM28: 36202.32382 | AN28: 34290.82382 | AO28: 35056.6267 | AP28: 32749.78342 | AQ28: 33171.24167 | AR28: 32644.35751 | AS28: 31300.7731 | AT28: 31329.69061 | AU28: 29956.96563 | AV28: 404407.7826 | AX28: 30734.5048 | AY28: 30516.83715 | AZ28: 27539.86373 | BA28: 28995.1145 | BB28: 27653.67256 | BC28: 26971.69202 | BD28: 25577.1093 | BE28: 26106.25676 | BF28: 24497.07889 | BG28: 22874.70368 | BH28: 23318.0887 | BI28: 20226.67 | BJ28: 315011.5921 | BL28: 20001.03717 | BM28: 19771.09828 | BN28: 17275.89168 | BO28: 17410.15233 | BP28: 16499.58588 | BQ28: 16771.66352 | BR28: 15479.50532 | BS28: 15582.49538 | BT28: 15096.42587 | BU28: 14036.74476 | BV28: 14243.55004 | BW28: 13503.52232 | BX28: 195671.6726 | BZ28: 13829.74073 | CA28: 13711.90607 | CB28: 11986.62299 | CC28: 39528.26979
B29: 21E0750441 | E29: 0 | F29: 0 | H29: 0 | I29: 0 | J29: 0 | K29: 0 | L29: 0 | M29: 0 | N29: 0 | O29: 0 | P29: 38620.95124 | Q29: 36688.32146 | R29: 37082.39029 | S29: 35427.53333 | T29: 147819.1963 | V29: 36357.44142 | W29: 35858.13769 | X29: 32436.41634 | Y29: 35631.42325 | Z29: 34270.87998 | AA29: 35653.18708 | AB29: 34486.8659 | AC29: 35137.67833 | AD29: 34618.05256 | AE29: 33056.81029 | AF29: 33615.09443 | AG29: 32498.53903 | AH29: 413620.5263 | AJ29: 33253.39805 | AK29: 32555.33552 | AL29: 29028.80581 | AM29: 31728.32487 | AN29: 30081.6834 | AO29: 30563.77931 | AP29: 29045.97833 | AQ29: 29359.11977 | AR29: 28971.55113 | AS29: 27542.88633 | AT29: 28072.57503 | AU29: 26740.6614 | AV29: 356944.099 | AX29: 27139.73708 | AY29: 26815.50507 | AZ29: 0 | BA29: 0 | BB29: 0 | BC29: 0 | BD29: 0 | BE29: 0 | BF29: 0 | BG29: 0 | BH29: 0 | BI29: 0 | BJ29: 53955.24215 | BL29: 0 | BM29: 0 | BN29: 0 | BO29: 0 | BP29: 0 | BQ29: 0 | BR29: 0 | BS29: 0 | BT29: 0 | BU29: 0 | BV29: 0 | BW29: 0 | BX29: 0 | BZ29: 0 | CA29: 0 | CB29: 0 | CC29: 0
B30: 21H0001651 | E30: 0 | F30: 0 | H30: 0 | I30: 0 | J30: 0 | K30: 0 | L30: 0 | M30: 0 | N30: 0 | O30: 0 | P30: 31112.1542 | Q30: 26504.11021 | R30: 29352.19105 | S30: 30548.58443 | T30: 117517.0399 | V30: 27889.33342 | W30: 29979.87518 | X30: 25913.62074 | Y30: 28718.43568 | Z30: 0 | AA30: 29647.14921 | AB30: 0 | AC30: 0 | AD30: 0 | AE30: 0 | AF30: 0 | AG30: 0 | AH30: 142148.4142 | AJ30: 0 | AK30: 0 | AL30: 0 | AM30: 0 | AN30: 0 | AO30: 0 | AP30: 0 | AQ30: 0 | AR30: 0 | AS30: 0 | AT30: 0 | AU30: 0 | AV30: 0 | AX30: 0 | AY30: 0 | AZ30: 0 | BA30: 0 | BB30: 0 | BC30: 0 | BD30: 0 | BE30: 0 | BF30: 0 | BG30: 0 | BH30: 0 | BI30: 0 | BJ30: 0 | BL30: 0 | BM30: 0 | BN30: 0 | BO30: 0 | BP30: 0 | BQ30: 0 | BR30: 0 | BS30: 0 | BT30: 0 | BU30: 0 | BV30: 0 | BW30: 0 | BX30: 0 | BZ30: 0 | CA30: 0 | CB30: 0 | CC30: 0
B31: 21D0453486 | E31: 0 | F31: 0 | H31: 0 | I31: 0 | J31: 0 | K31: 0 | L31: 19120.16249 | M31: 19120.16249 | N31: 19482.38154 | O31: 19482.38154 | P31: 19482.38154 | Q31: 19482.38154 | R31: 19482.38154 | S31: 19244.13149 | T31: 154896.3641 | V31: 19004.71525 | W31: 18764.13456 | X31: 18522.37745 | Y31: 18279.43795 | Z31: 18035.31606 | AA31: 17790.01772 | AB31: 19601.58682 | AC31: 19324.83202 | AD31: 19046.72836 | AE31: 18767.27476 | AF31: 18486.46003 | AG31: 18204.2827 | AH31: 223827.1637 | AJ31: 17920.73279 | AK31: 17635.79314 | AL31: 17349.4584 | AM31: 17061.73499 | AN31: 16772.60683 | AO31: 16482.07173 | AP31: 16827.34044 | AQ31: 16522.42903 | AR31: 16216.03711 | AS31: 15908.14321 | AT31: 15598.76164 | AU31: 15287.86273 | AV31: 199582.9721 | AX31: 14975.45525 | AY31: 14661.52478 | AZ31: 14346.06742 | BA31: 14029.07671 | BB31: 13710.54652 | BC31: 13390.4601 | BD31: 13581.90082 | BE31: 13246.00683 | BF31: 12908.42183 | BG31: 12569.24014 | BH31: 12228.41262 | BI31: 11640.64 | BJ31: 161287.753 | BL31: 11541.77433 | BM31: 11195.94814 | BN31: 10848.43711 | BO31: 10499.23677 | BP31: 10148.33127 | BQ31: 9795.717356 | BR31: 9943.686104 | BS31: 9568.689813 | BT31: 9191.86524 | BU31: 8813.206351 | BV31: 8432.70498 | BW31: 8050.349271 | BX31: 118029.9467 | BZ31: 7666.130251 | CA31: 7280.040934 | CB31: 6892.072992 | CC31: 21838.24418
B32: 20K0866670 | E32: 0 | F32: 0 | H32: 0 | I32: 0 | J32: 0 | K32: 60650.9932 | L32: 58366.10852 | M32: 15158.80436 | N32: 16733.27449 | O32: 16745.80879 | P32: 16062.10912 | Q32: 16122.57185 | R32: 14118.58799 | S32: 14932.76693 | T32: 228891.0252 | V32: 16431.29057 | W32: 15038.92069 | X32: 12888.08461 | Y32: 16545.36887 | Z32: 13816.09103 | AA32: 16078.71896 | AB32: 22538.03902 | AC32: 42084.95363 | AD32: 41929.42453 | AE32: 38278.44205 | AF32: 36459.20035 | AG32: 38214.75521 | AH32: 310303.2895 | AJ32: 51705.68483 | AK32: 55846.47628 | AL32: 45792.40328 | AM32: 56014.1624 | AN32: 45818.51668 | AO32: 55770.66445 | AP32: 55396.00103 | AQ32: 58640.67545 | AR32: 61192.50563 | AS32: 55416.75642 | AT32: 57940.89841 | AU32: 57721.48025 | AV32: 657256.2251 | AX32: 52153.40636 | AY32: 46202.04215 | AZ32: 46267.63726 | BA32: 43824.08286 | BB32: 45860.67105 | BC32: 47929.81617 | BD32: 20838.66898 | BE32: 54588.89578 | BF32: 51841.6785 | BG32: 27853.186 | BH32: 30453.21603 | BI32: 24544.81 | BJ32: 492358.1111 | BL32: 26309.16333 | BM32: 51751.57085 | BN32: 40699.72593 | BO32: 40290.95065 | BP32: 37548.78884 | BQ32: 40780.30321 | BR32: 36848.83234 | BS32: 42128.7337 | BT32: 38100.2929 | BU32: 39758.96566 | BV32: 17709.83977 | BW32: 14523.74561 | BX32: 426450.9128 | BZ32: 15957.76867 | CA32: 16618.18515 | CB32: 13558.8448 | CC32: 46134.79863
B33: 19G0801197 | E33: 13660.88495 | F33: 13660.88495 | H33: 13315.16429 | I33: 12141.16518 | J33: 0 | K33: 0 | L33: 0 | M33: 0 | N33: 0 | O33: 0 | P33: 0 | Q33: 0 | R33: 0 | S33: 0 | T33: 25456.32947 | V33: 0 | W33: 0 | X33: 0 | Y33: 0 | Z33: 0 | AA33: 0 | AB33: 0 | AC33: 0 | AD33: 0 | AE33: 0 | AF33: 0 | AG33: 0 | AH33: 0 | AJ33: 0 | AK33: 0 | AL33: 0 | AM33: 0 | AN33: 0 | AO33: 0 | AP33: 0 | AQ33: 0 | AR33: 0 | AS33: 0 | AT33: 0 | AU33: 0 | AV33: 0 | AX33: 0 | AY33: 0 | AZ33: 0 | BA33: 0 | BB33: 0 | BC33: 0 | BD33: 0 | BE33: 0 | BF33: 0 | BG33: 0 | BH33: 0 | BI33: 0 | BJ33: 0 | BL33: 0 | BM33: 0 | BN33: 0 | BO33: 0 | BP33: 0 | BQ33: 0 | BR33: 0 | BS33: 0 | BT33: 0 | BU33: 0 | BV33: 0 | BW33: 0 | BX33: 0 | BZ33: 0 | CA33: 0 | CB33: 0 | CC33: 0
B34: 18L1168429 | E34: 0 | F34: 0 | H34: 0 | I34: 0 | J34: 9990.823798 | K34: 12542.05061 | L34: 13061.84629 | M34: 12952.24434 | N34: 12838.66611 | O34: 13947.29237 | P34: 12023.58612 | Q34: 12511.12412 | R34: 12398.51149 | S34: 12943.91066 | T34: 125210.0559 | V34: 14753.23875 | W34: 13984.56777 | X34: 11326.86175 | Y34: 13081.4303 | Z34: 12956.03171 | AA34: 12214.16425 | AB34: 13013.58809 | AC34: 13470.07633 | AD34: 11588.94951 | AE34: 12040.487 | AF34: 10848.35599 | AG34: 11989.73573 | AH34: 151267.4872 | AJ34: 12991.56206 | AK34: 11730.17533 | AL34: 9931.817495 | AM34: 11996.10584 | AN34: 10775.08364 | AO34: 10638.29395 | AP34: 11560.00405 | AQ34: 11417.0646 | AR34: 10756.64917 | AS34: 10618.65212 | AT34: 9476.817437 | AU34: 11344.14065 | AV34: 133236.3663 | AX34: 10679.87729 | AY34: 9521.286773 | AZ34: 10371.83774 | BA34: 10706.35763 | BB34: 9100.140656 | BC34: 10376.88636 | BD34: 10217.22758 | BE34: 9595.742668 | BF34: 10343.47961 | BG34: 9289.029897 | BH34: 9128.283235 | BI34: 9206.21 | BJ34: 118536.3594 | BL34: 8351.59 | BM34: 9925.122509 | BN34: 7621.25196 | BO34: 1706.071229 | BP34: 1510.107357 | BQ34: 0 | BR34: 0 | BS34: 0 | BT34: 0 | BU34: 0 | BV34: 0 | BW34: 0 | BX34: 29114.14306 | BZ34: 0 | CA34: 0 | CB34: 0 | CC34: 0
B35: 21J0856063 | E35: 0 | F35: 0 | H35: 0 | I35: 0 | J35: 0 | K35: 0 | L35: 0 | M35: 0 | N35: 0 | O35: 0 | P35: 0 | Q35: 0 | R35: 0 | S35: 27790.89624 | T35: 27790.89624 | V35: 27957.50008 | W35: 28141.35326 | X35: 25516.34608 | Y35: 0 | Z35: 0 | AA35: 0 | AB35: 0 | AC35: 0 | AD35: 0 | AE35: 0 | AF35: 0 | AG35: 0 | AH35: 81615.19942 | AJ35: 0 | AK35: 0 | AL35: 0 | AM35: 0 | AN35: 0 | AO35: 0 | AP35: 0 | AQ35: 0 | AR35: 0 | AS35: 0 | AT35: 0 | AU35: 36129.7007 | AV35: 36129.7007 | AX35: 37369.14875 | AY35: 37425.66481 | AZ35: 35002.1692 | BA35: 37550.5257 | BB35: 0 | BC35: 0 | BD35: 0 | BE35: 0 | BF35: 38993.15041 | BG35: 0 | BH35: 0 | BI35: 0 | BJ35: 186340.6589 | BL35: 40228.9086 | BM35: 40277.41765 | BN35: 36147.80357 | BO35: 40171.70206 | BP35: 38760.82013 | BQ35: 39488.83863 | BR35: 37719.75972 | BS35: 38582.26171 | BT35: 38082.3516 | BU35: 36479.24323 | BV35: 37466.75534 | BW35: 36019.8894 | BX35: 459425.7517 | BZ35: 36894.70752 | CA35: 36237.65987 | CB35: 31901.41086 | CC35: 105033.7782
B36: 22B0914263 | E36: 0 | F36: 0 | H36: 0 | I36: 0 | J36: 0 | K36: 0 | L36: 0 | M36: 0 | N36: 0 | O36: 0 | P36: 0 | Q36: 0 | R36: 0 | S36: 0 | T36: 0 | V36: 0 | W36: 0 | X36: 0 | Y36: 31054.17525 | Z36: 43398.91221 | AA36: 55418.27436 | AB36: 47028.16321 | AC36: 70286.94302 | AD36: 71130.40632 | AE36: 63815.37955 | AF36: 67473.28241 | AG36: 66768.35937 | AH36: 516373.8957 | AJ36: 66720.95634 | AK36: 71221.36156 | AL36: 60259.96163 | AM36: 62331.87786 | AN36: 64075.55576 | AO36: 67960.65553 | AP36: 60358.24303 | AQ36: 63198.37 | AR36: 62029.48293 | AS36: 57535.02192 | AT36: 63199.9736 | AU36: 55428.45808 | AV36: 754319.9182 | AX36: 55982.87764 | AY36: 0 | AZ36: 0 | BA36: 0 | BB36: 0 | BC36: 0 | BD36: 0 | BE36: 0 | BF36: 0 | BG36: 0 | BH36: 0 | BI36: 0 | BJ36: 55982.87764 | BL36: 0 | BM36: 0 | BN36: 0 | BO36: 0 | BP36: 0 | BQ36: 0 | BR36: 0 | BS36: 0 | BT36: 0 | BU36: 0 | BV36: 0 | BW36: 0 | BX36: 0 | BZ36: 0 | CA36: 0 | CB36: 0 | CC36: 0
B37: 22B0914280 | E37: 0 | F37: 0 | H37: 0 | I37: 0 | J37: 0 | K37: 0 | L37: 0 | M37: 0 | N37: 0 | O37: 0 | P37: 0 | Q37: 0 | R37: 0 | S37: 0 | T37: 0 | V37: 0 | W37: 0 | X37: 0 | Y37: 28890.90243 | Z37: 27888.44414 | AA37: 31081.67177 | AB37: 26377.25398 | AC37: 29122.76666 | AD37: 29684.37108 | AE37: 26631.18357 | AF37: 28166.45542 | AG37: 27888.74044 | AH37: 255731.7895 | AJ37: 26967.08328 | AK37: 29760.16889 | AL37: 25179.47226 | AM37: 26055.05289 | AN37: 0 | AO37: 0 | AP37: 0 | AQ37: 28720.11154 | AR37: 28249.56746 | AS37: 26337.21697 | AT37: 28934.94548 | AU37: 25371.88671 | AV37: 245575.5055 | AX37: 25707.73078 | AY37: 27179.35139 | AZ37: 23157.61444 | BA37: 25751.76017 | BB37: 26417.51914 | BC37: 23542.2629 | BD37: 23763.88736 | BE37: 24973.39917 | BF37: 23326.59926 | BG37: 23214.16329 | BH37: 23707.80766 | BI37: 23111.51 | BJ37: 293853.6056 | BL37: 23800.92686 | BM37: 0 | BN37: 0 | BO37: 0 | BP37: 0 | BQ37: 0 | BR37: 0 | BS37: 0 | BT37: 0 | BU37: 0 | BV37: 0 | BW37: 0 | BX37: 23800.92686 | BZ37: 0 | CA37: 0 | CB37: 0 | CC37: 0
B38: 19K1034250 | E38: 0 | F38: =SUM(E38) -> 0 | H38: 0 | I38: 0 | J38: 0 | K38: 0 | L38: 0 | M38: 0 | N38: 0 | O38: 0 | P38: 0 | Q38: 0 | R38: 0 | S38: 0 | T38: =SUM(H38:S38) -> 0 | V38: 0 | W38: 0 | X38: 0 | Y38: 0 | Z38: 0 | AA38: 3226.806956 | AB38: 0 | AC38: 0 | AD38: 0 | AE38: 0 | AF38: 0 | AG38: 0 | AH38: 3226.806956 | AJ38: 0 | AK38: 0 | AL38: 0 | AM38: 0 | AN38: 0 | AO38: 0 | AP38: 0 | AQ38: 0 | AR38: 0 | AS38: 0 | AT38: 0 | AU38: 0 | AV38: 0 | AX38: 0 | AY38: 0 | AZ38: 0 | BA38: 0 | BB38: 0 | BC38: 0 | BD38: 0 | BE38: 0 | BF38: 0 | BG38: 0 | BH38: 0 | BI38: 0 | BJ38: 0 | BL38: 0 | BM38: 0 | BN38: 0 | BO38: 0 | BP38: 0 | BQ38: 0 | BR38: 0 | BS38: 0 | BT38: 0 | BU38: 0 | BV38: 0 | BW38: 0 | BX38: 0 | BZ38: 0 | CA38: 0 | CB38: 0 | CC38: 0
B39: 21B0031227 | E39: 0 | F39: 0 | H39: 0 | I39: 0 | J39: 0 | K39: 0 | L39: 0 | M39: 0 | N39: 0 | O39: 0 | P39: 0 | Q39: 0 | R39: 0 | S39: 0 | T39: 0 | V39: 0 | W39: 0 | X39: 0 | Y39: 0 | Z39: 0 | AA39: 4046.83755 | AB39: 0 | AC39: 0 | AD39: 0 | AE39: 0 | AF39: 0 | AG39: 0 | AH39: 4046.83755 | AJ39: 0 | AK39: 0 | AL39: 0 | AM39: 0 | AN39: 0 | AO39: 0 | AP39: 0 | AQ39: 0 | AR39: 0 | AS39: 0 | AT39: 0 | AU39: 0 | AV39: 0 | AX39: 0 | AY39: 0 | AZ39: 0 | BA39: 0 | BB39: 0 | BC39: 0 | BD39: 0 | BE39: 0 | BF39: 0 | BG39: 0 | BH39: 0 | BI39: 0 | BJ39: 0 | BL39: 0 | BM39: 0 | BN39: 0 | BO39: 0 | BP39: 0 | BQ39: 0 | BR39: 0 | BS39: 0 | BT39: 0 | BU39: 0 | BV39: 0 | BW39: 0 | BX39: 0 | BZ39: 0 | CA39: 0 | CB39: 0 | CC39: 0
B40: 21H0891390 | E40: 0 | F40: 0 | H40: 0 | I40: 0 | J40: 0 | K40: 0 | L40: 0 | M40: 0 | N40: 0 | O40: 0 | P40: 0 | Q40: 0 | R40: 0 | S40: 0 | T40: 0 | V40: 0 | W40: 0 | X40: 0 | Y40: 0 | Z40: 0 | AA40: 24393.85783 | AB40: 23853.80934 | AC40: 23239.65268 | AD40: 18413.46293 | AE40: 17752.81714 | AF40: 18293.96977 | AG40: 17805.77935 | AH40: 143753.349 | AJ40: 20518.32873 | AK40: 20645.53586 | AL40: 18737.54154 | AM40: 20929.28845 | AN40: 20394.74584 | AO40: 21206.4718 | AP40: 20566.33561 | AQ40: 21238.23373 | AR40: 21263.71342 | AS40: 20621.87627 | AT40: 21368.0558 | AU40: 20725.12019 | AV40: 248215.2472 | AX40: 21479.31819 | AY40: 21599.6053 | AZ40: 20284.55801 | BA40: 21870.34698 | BB40: 21195.36443 | BC40: 21988.56128 | BD40: 21373.77337 | BE40: 22136.1139 | BF40: 22220.23114 | BG40: 21495.75966 | BH40: 22313.53655 | BI40: 21263.17 | BJ40: 259220.3388 | BL40: 23012.79 | BM40: 23143.98 | BN40: 20474.88 | BO40: 0 | BP40: 0 | BQ40: 5046.078792 | BR40: 2342.976376 | BS40: 2520.842723 | BT40: 2416.696087 | BU40: 0 | BV40: 11936.01 | BW40: 0 | BX40: 90894.25398 | BZ40: 0 | CA40: 0 | CB40: 0 | CC40: 0
B41: 21K0518507 | E41: 0 | F41: 0 | H41: 0 | I41: 0 | J41: 0 | K41: 0 | L41: 0 | M41: 0 | N41: 0 | O41: 0 | P41: 0 | Q41: 0 | R41: 0 | S41: 0 | T41: 0 | V41: 0 | W41: 0 | X41: 0 | Y41: 0 | Z41: 0 | AA41: 0 | AB41: 3889.884315 | AC41: 0 | AD41: 0 | AE41: 0 | AF41: 0 | AG41: 0 | AH41: 3889.884315 | AJ41: 0 | AK41: 0 | AL41: 0 | AM41: 0 | AN41: 0 | AO41: 0 | AP41: 0 | AQ41: 0 | AR41: 0 | AS41: 0 | AT41: 0 | AU41: 0 | AV41: 0 | AX41: 0 | AY41: 0 | AZ41: 0 | BA41: 0 | BB41: 0 | BC41: 0 | BD41: 0 | BE41: 0 | BF41: 0 | BG41: 0 | BH41: 0 | BI41: 0 | BJ41: 0 | BL41: 0 | BM41: 0 | BN41: 0 | BO41: 0 | BP41: 0 | BQ41: 0 | BR41: 0 | BS41: 0 | BT41: 0 | BU41: 0 | BV41: 0 | BW41: 0 | BX41: 0 | BZ41: 0 | CA41: 0 | CB41: 0 | CC41: 0
B42: 22B0337860 | E42: 0 | F42: 0 | H42: 0 | I42: 0 | J42: 0 | K42: 0 | L42: 0 | M42: 0 | N42: 0 | O42: 0 | P42: 0 | Q42: 0 | R42: 0 | S42: 0 | T42: 0 | V42: 0 | W42: 0 | X42: 0 | Y42: 0 | Z42: 0 | AA42: 0 | AB42: 0 | AC42: 0 | AD42: 0 | AE42: 0 | AF42: 0 | AG42: 0 | AH42: 0 | AJ42: 0 | AK42: 0 | AL42: 0 | AM42: 0 | AN42: 0 | AO42: 0 | AP42: 0 | AQ42: 0 | AR42: 0 | AS42: 0 | AT42: 0 | AU42: 0 | AV42: 0 | AX42: 0 | AY42: 0 | AZ42: 0 | BA42: 0 | BB42: 0 | BC42: 0 | BD42: 0 | BE42: 0 | BF42: 0 | BG42: 0 | BH42: 0 | BI42: 0 | BJ42: 0 | BL42: 0 | BM42: 0 | BN42: 0 | BO42: 0 | BP42: 0 | BQ42: 0 | BR42: 0 | BS42: 0 | BT42: 0 | BU42: 0 | BV42: 0 | BW42: 0 | BX42: 0 | BZ42: 0 | CA42: 0 | CB42: 0 | CC42: 0
B43: 22B0945202 | E43: 0 | F43: 0 | H43: 0 | I43: 0 | J43: 0 | K43: 0 | L43: 0 | M43: 0 | N43: 0 | O43: 0 | P43: 0 | Q43: 0 | R43: 0 | S43: 0 | T43: 0 | V43: 0 | W43: 0 | X43: 0 | Y43: 0 | Z43: 0 | AA43: 0 | AB43: 9689.466692 | AC43: 67773.76102 | AD43: 65139.56904 | AE43: 60013.70063 | AF43: 57414.11357 | AG43: 60472.16356 | AH43: 320502.7745 | AJ43: 63677.30691 | AK43: 55934.85213 | AL43: 46058.15645 | AM43: 56669.84929 | AN43: 48180.58603 | AO43: 54965.86832 | AP43: 54509.39547 | AQ43: 44094.77259 | AR43: 46027.53986 | AS43: 54979.41326 | AT43: 62007.39447 | AU43: 61737.19576 | AV43: 648842.3305 | AX43: 55765.67576 | AY43: 53938.0916 | AZ43: 31057.95472 | BA43: 29409.0091 | BB43: 30778.57196 | BC43: 32146.85033 | BD43: 11057.23623 | BE43: 8280.080337 | BF43: 7852.240234 | BG43: 7473.6667 | BH43: 6952.432339 | BI43: 5596.7 | BJ43: 280308.5093 | BL43: 6003.36881 | BM43: 6056.595592 | BN43: 4754.908689 | BO43: 5538.795174 | BP43: 4981.23131 | BQ43: 1769.907129 | BR43: 1596.724328 | BS43: 1825.567763 | BT43: 1648.064111 | BU43: 1720.07795 | BV43: 1782.784957 | BW43: 1460.33319 | BX43: 39138.359 | BZ43: 1605.200019 | CA43: 1669.666641 | CB43: 1360.426489 | CC43: 4635.293149
B44: 21C0164377 | E44: 0 | F44: 0 | H44: 0 | I44: 0 | J44: 0 | K44: 0 | L44: 0 | M44: 0 | N44: 0 | O44: 0 | P44: 0 | Q44: 0 | R44: 0 | S44: 0 | T44: 0 | V44: 0 | W44: 0 | X44: 0 | Y44: 0 | Z44: 0 | AA44: 0 | AB44: 0 | AC44: 0 | AD44: 0 | AE44: 0 | AF44: 0 | AG44: 0 | AH44: =SUM(V44:AG44) -> 0 | AJ44: 0 | AK44: 0 | AL44: 0 | AM44: 0 | AN44: 0 | AO44: 0 | AP44: 0 | AQ44: 0 | AR44: 0 | AS44: 0 | AT44: 0 | AU44: 0 | AV44: 0 | AX44: 0 | AY44: 0 | AZ44: 0 | BA44: 0 | BB44: 0 | BC44: 0 | BD44: 0 | BE44: 0 | BF44: 0 | BG44: 0 | BH44: 0 | BI44: 0 | BJ44: 0 | BL44: 0 | BM44: 0 | BN44: 0 | BO44: 0 | BP44: 0 | BQ44: 0 | BR44: 0 | BS44: 0 | BT44: 0 | BU44: 0 | BV44: 0 | BW44: 0 | BX44: 0 | BZ44: 0 | CA44: 0 | CB44: 0 | CC44: 0
B45: 21D0779652 | F45: 0 | T45: 0 | V45: 0 | W45: 0 | X45: 0 | Y45: 0 | Z45: 0 | AA45: 0 | AB45: 0 | AC45: 0 | AD45: 30179.42245 | AE45: 28638.63483 | AF45: 29344.88 | AG45: 28317.03742 | AH45: 116479.9747 | AJ45: 28990.96074 | AK45: 28843.2227 | AL45: 25845.61841 | AM45: 27958.73183 | AN45: 26869.8351 | AO45: 27649.44228 | AP45: 26524.4847 | AQ45: 26797.29306 | AR45: 26024.02639 | AS45: 24727.11673 | AT45: 24910.34526 | AU45: 22905.73403 | AV45: 318046.8112 | AX45: 22988.35047 | AY45: 0 | AZ45: 0 | BA45: 0 | BB45: 0 | BC45: 0 | BD45: 0 | BE45: 0 | BF45: 0 | BG45: 0 | BH45: 0 | BI45: 0 | BJ45: 22988.35047 | BL45: 0 | BM45: 0 | BN45: 0 | BO45: 0 | BP45: 0 | BQ45: 0 | BR45: 0 | BS45: 0 | BT45: 0 | BU45: 0 | BV45: 0 | BW45: 0 | BX45: 0 | BZ45: 0 | CA45: 0 | CB45: 0 | CC45: 0
B46: 21H0891311 | F46: 0 | T46: 0 | V46: 0 | W46: 0 | X46: 0 | Y46: 0 | Z46: 0 | AA46: 0 | AB46: 0 | AC46: 0 | AD46: 69085.23983 | AE46: 66606.57118 | AF46: 68636.91493 | AG46: 66805.27944 | AH46: 271134.0054 | AJ46: 76982.45933 | AK46: 77459.72617 | AL46: 70301.14627 | AM46: 78524.33392 | AN46: 76518.79021 | AO46: 79564.29466 | AP46: 77162.57575 | AQ46: 79683.46181 | AR46: 79779.05876 | AS46: 77370.95804 | AT46: 80170.5396 | AU46: 77758.31758 | AV46: 931275.6621 | AX46: 80587.98358 | AY46: 81039.28729 | AZ46: 76105.3779 | BA46: 82055.07959 | BB46: 79522.62104 | BC46: 82498.60633 | BD46: 80191.99129 | BE46: 81613.76745 | BF46: 81687.22042 | BG46: 78840.68836 | BH46: 81840.07494 | BI46: 77987.61 | BJ46: 963970.3082 | BL46: 84404.75 | BM46: 84885.9 | BN46: 75096.37578 | BO46: 86310.40127 | BP46: 87572.10604 | BQ46: 52379.61388 | BR46: 24320.70481 | BS46: 26167.0038 | BT46: 25085.93461 | BU46: 0 | BV46: 123911.381 | BW46: 0 | BX46: 670134.1712 | BZ46: 0 | CA46: 0 | CB46: 0 | CC46: 0
B47: 22I0098043 | F47: 0 | T47: 0 | V47: 0 | W47: 0 | X47: 0 | Y47: 0 | Z47: 0 | AA47: 0 | AB47: 0 | AC47: 0 | AD47: 0 | AE47: 21010.88461 | AF47: 22277.26328 | AG47: 21246.14903 | AH47: 64534.29692 | AJ47: 27021.94466 | AK47: 26748.30859 | AL47: 0 | AM47: 0 | AN47: 26668.40303 | AO47: 27548.44697 | AP47: 26196.4433 | AQ47: 0 | AR47: 26969.05986 | AS47: 25843.04308 | AT47: 0 | AU47: 0 | AV47: 186995.6495 | AX47: 0 | AY47: 27606.39046 | AZ47: 25080.32113 | BA47: 26538.1212 | BB47: 25606.24795 | BC47: 26258.25611 | BD47: 25385.48542 | BE47: 25807.1951 | BF47: 25609.55062 | BG47: 24498.95726 | BH47: 25112.06015 | BI47: 23734.63 | BJ47: 281237.2154 | BL47: 24942.35666 | BM47: 24565.92197 | BN47: 21459.07363 | BO47: 23576.38807 | BP47: 22317.21595 | BQ47: 22612.64691 | BR47: 21277.47712 | BS47: 21705.11081 | BT47: 21246.067 | BU47: 20188.55993 | BV47: 20653.46151 | BW47: 19421.40732 | BX47: 263965.6869 | BZ47: 19702.87687 | CA47: 19304.25554 | CB47: 17318.50754 | CC47: 56325.63995
B48: 20H0695880 | E48: 0 | F48: 0 | H48: 0 | I48: 0 | J48: 0 | K48: 0 | L48: 0 | M48: 0 | N48: 0 | O48: 0 | P48: 0 | Q48: 0 | R48: 0 | S48: 0 | T48: 0 | V48: 0 | W48: 0 | X48: 0 | Y48: 0 | Z48: 0 | AA48: 0 | AB48: 0 | AC48: 0 | AD48: 0 | AE48: 0 | AF48: 0 | AG48: 0 | AH48: 0 | AJ48: 0 | AK48: 0 | AL48: 0 | AM48: 0 | AN48: 0 | AO48: 0 | AP48: 0 | AQ48: 0 | AR48: 0 | AS48: 0 | AT48: 0 | AU48: 0 | AV48: 0 | AX48: 0 | AY48: 0 | AZ48: 0 | BA48: 0 | BB48: 0 | BC48: 0 | BD48: 0 | BE48: 0 | BF48: 0 | BG48: 0 | BH48: 0 | BI48: 0 | BJ48: 0 | BL48: 0 | BM48: 0 | BN48: 0 | BO48: 0 | BP48: 0 | BQ48: 0 | BR48: 0 | BS48: 0 | BT48: 0 | BU48: 0 | BV48: 0 | BW48: 0 | BX48: 0 | BZ48: 0 | CA48: 0 | CB48: 0 | CC48: 0
B49: 23C2831601 | F49: 0 | T49: 0 | AH49: 0 | AJ49: 0 | AK49: 0 | AL49: 0 | AM49: 0 | AN49: 51807.7 | AO49: 64261.12 | AP49: 70223.42 | AQ49: 68844.37 | AR49: 64384.12 | AS49: 62304.63 | AT49: 55012.76 | AU49: 61971.96 | AV49: 498810.08 | AX49: 57201.44 | AY49: 50489.64 | AZ49: 54499.83 | BA49: 54992.25 | BB49: 46710.69 | BC49: 52993.53 | BD49: 52579.65 | BE49: 49775.76 | BF49: 54064.36 | BG49: 49791.8 | BH49: 47443.06 | BI49: 52589.05 | BJ49: 623131.06 | BL49: 48168.54 | BM49: 59835.38 | BN49: 47392.81 | BO49: 0 | BP49: 0 | BQ49: 0 | BR49: 0 | BS49: 0 | BT49: 0 | BU49: 0 | BV49: 0 | BW49: 0 | BX49: 155396.73 | BZ49: 0 | CA49: 0 | CB49: 0 | CC49: 0
B50: 23D1557666 | F50: 0 | T50: 0 | AH50: 0 | AJ50: 0 | AK50: 0 | AL50: 0 | AM50: 0 | AN50: 0 | AO50: 41302.85 | AP50: 40020.72557 | AQ50: 41323.58667 | AR50: 41334.93414 | AS50: 40050.85862 | AT50: 42401.36309 | AU50: 40176.58165 | AV50: 286610.8997 | AX50: 41598.98541 | AY50: 41791.49392 | AZ50: 46894.83247 | BA50: 50511.88527 | BB50: 48905.55871 | BC50: 50685.27186 | BD50: 49219.56519 | BE50: 41866.80367 | BF50: 40616.08982 | BG50: 39259.85018 | BH50: 39345.99011 | BI50: 36751.15 | BJ50: 527447.4766 | BL50: 36011.37348 | BM50: 34137.45801 | BN50: 30668.78965 | BO50: 33355.59214 | BP50: 32108.6419 | BQ50: 32780.08682 | BR50: 31317.18663 | BS50: 25925.02498 | BT50: 25253.71464 | BU50: 24199.54998 | BV50: 24600.33004 | BW50: 23192.83458 | BX50: 353550.5828 | BZ50: 23801.46825 | CA50: 23693.58965 | CB50: 20166.86434 | CC50: 67661.92224
B51: 23F1568486 | F51: 0 | T51: 0 | AH51: 0 | AJ51: 0 | AK51: 0 | AL51: 0 | AM51: 0 | AN51: 0 | AO51: 0 | AP51: 38654.79087 | AQ51: 33007.88395 | AR51: 35292.72098 | AS51: 32889.00437 | AT51: 33330.43124 | AU51: 32957.42205 | AV51: 206132.2535 | AX51: 33650.67681 | AY51: 33380.2031 | AZ51: 31127.37631 | BA51: 32926.18134 | BB51: 31910.98694 | BC51: 32675.06701 | BD51: 31492.7375 | BE51: 32544.07838 | BF51: 32632.4487 | BG51: 31447.1022 | BH51: 32642.43795 | BI51: 30188.77 | BJ51: 386618.0662 | BL51: 30814.07757 | BM51: 30624.21461 | BN51: 27394.21867 | BO51: 30738.28297 | BP51: 29909.53946 | BQ51: 17189.85584 | BR51: 16676.49139 | BS51: 17211.28408 | BT51: 17256.02466 | BU51: 7165.848981 | BV51: 7441.187492 | BW51: 7206.717522 | BX51: 239627.7432 | BZ51: 7429.791225 | CA51: 7429.059151 | CB51: 6714.804638 | CC51: 21573.65501
B52: 23J0108650 | F52: 0 | T52: 0 | AH52: 0 | AJ52: 0 | AK52: 0 | AL52: 0 | AM52: 0 | AN52: 0 | AO52: 0 | AP52: 0 | AQ52: 0 | AR52: 0 | AS52: 0 | AT52: 0 | AU52: 9897.647897 | AV52: 9897.647897 | AX52: 10245.11489 | AY52: 10289.5078 | AZ52: 9651.367897 | BA52: 10392.74373 | BB52: 10059.27655 | BC52: 10422.20768 | BD52: 10117.77429 | BE52: 10464.84137 | BF52: 10490.51399 | BG52: 10137.08488 | BH52: 10411.37983 | BI52: 9869.56 | BJ52: 122551.3729 | BL52: 10398.1987 | BM52: 10436.4736 | BN52: 20057.76748 | BO52: 22242.05488 | BP52: 21335.85437 | BQ52: 21994.71845 | BR52: 21219.73085 | BS52: 14047.07456 | BT52: 0 | BU52: 14430.63399 | BV52: 12603.27666 | BW52: 12131.84662 | BX52: 180897.6302 | BZ52: 12473.76886 | CA52: 12419.53006 | CB52: 11132.55286 | CC52: 36025.85179
B53: 23G1476822 | F53: 0 | T53: 0 | AH53: 0 | AJ53: 0 | AK53: 0 | AL53: 0 | AM53: 0 | AN53: 0 | AO53: 0 | AP53: 0 | AQ53: 0 | AR53: 0 | AS53: 0 | AT53: 0 | AU53: 0 | AV53: 0 | AX53: 0 | AY53: 0 | AZ53: 0 | BA53: 22678.03897 | BB53: 25682.25222 | BC53: 19079.17047 | BD53: 42579.74871 | BE53: 27912.08368 | BF53: 40317.38505 | BG53: 7083.49 | BH53: 0 | BI53: 0 | BJ53: 185332.1691 | BL53: 0 | BM53: 0 | BN53: 0 | BO53: 0 | BP53: 0 | BQ53: 0 | BR53: 0 | BS53: 0 | BT53: 0 | BU53: 0 | BV53: 0 | BW53: 0 | BX53: 0 | BZ53: 0 | CA53: 0 | CB53: 0 | CC53: 0
B54: 23G1477566 | F54: 0 | T54: 0 | AH54: 0 | AJ54: 0 | AK54: 0 | AL54: 0 | AM54: 0 | AN54: 0 | AO54: 0 | AP54: 0 | AQ54: 0 | AR54: 0 | AS54: 0 | AT54: 0 | AU54: 0 | AV54: =SUM(AJ54:AU54) -> 0 | AX54: 0 | AY54: 0 | AZ54: 0 | BA54: 37580.75031 | BB54: 42559.16083 | BC54: 31616.91107 | BD54: 70560.72646 | BE54: 46254.31012 | BF54: 66811.66668 | BG54: 11738.36 | BH54: 0 | BI54: 0 | BJ54: 307121.8855 | BL54: 0 | BM54: 0 | BN54: 0 | BO54: 0 | BP54: 0 | BQ54: 0 | BR54: 0 | BS54: 0 | BT54: 0 | BU54: 0 | BV54: 0 | BW54: 0 | BX54: 0 | BZ54: 0 | CA54: 0 | CB54: 0 | CC54: 0
B55: 22I2046002 | F55: 0 | T55: 0 | AH55: 0 | AJ55: 0 | AK55: 0 | AL55: 0 | AM55: 0 | AN55: 0 | AO55: 0 | AP55: 0 | AQ55: 37336.86873 | AR55: 36162.53395 | AS55: 34651.54267 | AT55: 35594.74475 | AU55: 34161.42161 | AV55: 177907.1117 | AX55: 34575.81793 | AY55: 33989.04327 | AZ55: 30828.555 | BA55: 32606.42603 | BB55: 31482.47099 | BC55: 32287.91806 | BD55: 31233.96995 | BE55: 31736.92254 | BF55: 31499.68968 | BG55: 0 | BH55: 0 | BI55: 0 | BJ55: 290240.8135 | BL55: 0 | BM55: 0 | BN55: 0 | BO55: 0 | BP55: 0 | BQ55: 17174.44742 | BR55: 16138.53074 | BS55: 9005.683029 | BT55: 8807.842949 | BU55: 4528.998408 | BV55: 8551.885547 | BW55: 8031.355616 | BX55: 72238.74371 | BZ55: 8144.698212 | CA55: 7975.113837 | CB55: 7159.117495 | CC55: 23278.92954
B56: 22I2046003 | F56: 0 | T56: 0 | AH56: 0 | AJ56: 0 | AK56: 0 | AL56: 0 | AM56: 0 | AN56: 4522.823959 | AO56: 24212.92545 | AP56: 21410.78386 | AQ56: 0 | AR56: 22777.82441 | AS56: 21822.74375 | AT56: 0 | AU56: 0 | AV56: 94747.10143 | AX56: 0 | AY56: 23324.58036 | AZ56: 21202.38509 | BA56: 22447.36706 | BB56: 21672.12614 | BC56: 22237.22883 | BD56: 21511.27228 | BE56: 21882.4481 | BF56: 21728.80172 | BG56: 20783.83755 | BH56: 21317.42793 | BI56: 20161.07 | BJ56: 238268.5451 | BL56: 21200.31219 | BM56: 20895.45838 | BN56: 18267.93426 | BO56: 20084.61824 | BP56: 19027.74326 | BQ56: 19295.22028 | BR56: 18172.44205 | BS56: 18551.83668 | BT56: 18175.68743 | BU56: 17271.06991 | BV56: 17682.56645 | BW56: 16644.38426 | BX56: 225269.2734 | BZ56: 16900.52664 | CA56: 16574.74627 | CB56: 14881.34367 | CC56: 48356.61657
B57: 22C0978890 | F57: 0 | T57: 0 | AH57: 0 | AJ57: 0 | AK57: 0 | AL57: 0 | AM57: 0 | AN57: 0 | AO57: 0 | AP57: 0 | AQ57: 0 | AR57: 0 | AS57: 0 | AT57: 0 | AU57: 0 | AV57: =SUM(AJ57:AU57) -> 0 | AX57: 0 | AY57: 0 | AZ57: 0 | BA57: 19878.37 | BB57: 22627.39 | BC57: 22457.05 | BD57: 22457.05 | BE57: 25684.87 | BF57: 0 | BG57: 44313.18 | BH57: 22137.49 | BI57: 20200.84 | BJ57: 199756.24 | BL57: 27639.78 | BM57: 28980.28 | BN57: 23157.76 | BO57: 0 | BP57: 0 | BQ57: 0 | BR57: 0 | BS57: 0 | BT57: 0 | BU57: 0 | BV57: 0 | BW57: 0 | BX57: 79777.82 | BZ57: 0 | CA57: 0 | CB57: 0 | CC57: 0
B58: 24G1773090 | BF58: 12979.79 | BG58: 19109.51058 | BH58: 19193.58516 | BI58: 18902.73 | BJ58: 70185.61574 | BL58: 19376.32766 | BM58: 19477.08016 | BN58: 24647.66736 | BO58: 32383.23942 | BP58: 39469.20679 | BQ58: 47215.50985 | BR58: 61011.53461 | BS58: 67975.71161 | BT58: 77697.79646 | BU58: 0 | BV58: 0 | BW58: 264603.2106 | BX58: 653857.2845 | BZ58: 85964.11694 | CA58: 86092.80497 | CB58: 86092.80104 | CC58: 258149.7229
B59: 24G2730557 | BF59: 20279.76221 | BG59: 19419.73531 | BH59: 19949.57109 | BI59: 18877.02 | BJ59: 78526.0886 | BL59: 19874.33715 | BM59: 19620.05075 | BN59: 17209.0302 | BO59: 18981.26957 | BP59: 18013.74149 | BQ59: 18319.56849 | BR59: 17303.11076 | BS59: 17701.92897 | BT59: 17383.56878 | BU59: 16553.04524 | BV59: 16984.52524 | BW59: 16036.96521 | BX59: 213981.1419 | BZ59: 16330.54254 | CA59: 16057.52505 | CB59: 14436.79774 | CC59: 46824.86534
B60: 24G1249772 | BG60: 37842.29958 | BH60: 60694.4763 | BI60: 37510.93 | BJ60: 136047.7059 | BL60: 34704.20059 | BM60: 41778.98146 | BN60: 32331.01765 | BO60: 37794.07538 | BP60: 33963.72059 | BQ60: 37690.60476 | BR60: 35621.27876 | BS60: 33770.59543 | BT60: 6690.874127 | BU60: 5740.491741 | BV60: 6552.79535 | BW60: 5907.694963 | BX60: 312546.3308 | BZ60: 5282.23759 | CA60: 5750.82736 | CB60: 5389.13564 | CC60: 16422.20059
B61: 24E3185606 | BG61: 94492.28 | BH61: 95278.97 | BI61: 118477.87 | BJ61: 308249.12 | BL61: 35361.2 | BM61: 13055.82 | BN61: 0 | BO61: 0 | BP61: 0 | BQ61: 0 | BR61: 0 | BS61: 0 | BT61: 0 | BU61: 0 | BV61: 0 | BW61: 0 | BX61: 48417.02 | BZ61: 0 | CA61: 0 | CB61: 0 | CC61: 0
B62: 20F0692684 | F62: =0 -> 0 | G62: =0 -> 0 | H62: =0 -> 0 | I62: =0 -> 0 | J62: =0 -> 0 | K62: =0 -> 0 | L62: =0 -> 0 | M62: =0 -> 0 | N62: =0 -> 0 | O62: =0 -> 0 | P62: =0 -> 0 | Q62: =0 -> 0 | R62: =0 -> 0 | S62: =0 -> 0 | T62: =0 -> 0 | U62: =0 -> 0 | V62: =0 -> 0 | W62: =0 -> 0 | X62: =0 -> 0 | Y62: =0 -> 0 | Z62: =0 -> 0 | AA62: =0 -> 0 | AB62: =0 -> 0 | AC62: =0 -> 0 | AD62: =0 -> 0 | AE62: =0 -> 0 | AF62: =0 -> 0 | AG62: =0 -> 0 | AH62: =0 -> 0 | AI62: =0 -> 0 | AJ62: =0 -> 0 | AK62: =0 -> 0 | AL62: =0 -> 0 | AM62: =0 -> 0 | AN62: =0 -> 0 | AO62: =0 -> 0 | AP62: =0 -> 0 | AQ62: =0 -> 0 | AR62: =0 -> 0 | AS62: =0 -> 0 | AT62: =0 -> 0 | AU62: =0 -> 0 | AV62: =0 -> 0 | AW62: =0 -> 0 | AX62: =0 -> 0 | AY62: =0 -> 0 | AZ62: =0 -> 0 | BA62: =0 -> 0 | BB62: =0 -> 0 | BC62: =0 -> 0 | BD62: =0 -> 0 | BE62: =0 -> 0 | BF62: =0 -> 0 | BG62: =0 -> 0 | BH62: 45861.91 | BI62: 43911.31 | BJ62: 89773.22 | BL62: 47405.33 | BM62: 48412.17 | BN62: 42881.76 | BO62: 54317.16 | BP62: 43174.67 | BQ62: 54018.21 | BR62: 51709.22 | BS62: 51919.62 | BT62: 56911.13 | BU62: 54229.43 | BV62: 51743.18 | BW62: 52797.14 | BX62: 609519.02 | BZ62: 49056.78 | CA62: 53978.7 | CB62: 44063.54 | CC62: 147099.02
B63: 24L2959379 | BI63: 0 | BJ63: 0 | BL63: 54498.66134 | BM63: 58486.40512 | BN63: 17015.79034 | BO63: 19003.50623 | BP63: 18175.21175 | BQ63: 20710.3853 | BR63: 16202.15782 | BS63: 16720.46042 | BT63: 16702.39524 | BU63: 57397.19652 | BV63: 59527.6969 | BW63: 54677.36121 | BX63: 409117.2282 | BZ63: 56218.38731 | CA63: 55973.93426 | CB63: 50238.48039 | CC63: 162430.802
B64: 25B2176484 | BM64: 0 | BN64: 0 | BO64: 84161.37 | BP64: 51753.63 | BQ64: 57692.94 | BR64: 60625.67 | BS64: 34849.27 | BT64: 39765.27 | BU64: 37681.05 | BV64: 35630.04 | BW64: 37000.28 | BX64: 439159.52 | BZ64: 49740.21 | CA64: 0 | CB64: 0 | CC64: 49740.21
B65: 24L1965061 | BM65: 1260.84 | BN65: 8873.51 | BO65: 9957.661597 | BP65: 25962.13459 | BQ65: 26747.88552 | BR65: 25383.87792 | BS65: 26043.62404 | BT65: 25687.31855 | BU65: 24547.48797 | BV65: 25262.33519 | BW65: 23974.8835 | BX65: 223701.5589 | BZ65: 24501.391 | CA65: 24205.78589 | CB65: 21828.37119 | CC65: 70535.54808
B66: 24G2730555 | F66: =0 -> 0 | G66: =0 -> 0 | H66: =0 -> 0 | I66: =0 -> 0 | J66: =0 -> 0 | K66: =0 -> 0 | L66: =0 -> 0 | M66: =0 -> 0 | N66: =0 -> 0 | O66: =0 -> 0 | P66: =0 -> 0 | Q66: =0 -> 0 | R66: =0 -> 0 | S66: =0 -> 0 | T66: =0 -> 0 | U66: =0 -> 0 | V66: =0 -> 0 | W66: =0 -> 0 | X66: =0 -> 0 | Y66: =0 -> 0 | Z66: =0 -> 0 | AA66: =0 -> 0 | AB66: =0 -> 0 | AC66: =0 -> 0 | AD66: =0 -> 0 | AE66: =0 -> 0 | AF66: =0 -> 0 | AG66: =0 -> 0 | AH66: =0 -> 0 | AI66: =0 -> 0 | AJ66: =0 -> 0 | AK66: =0 -> 0 | AL66: =0 -> 0 | AM66: =0 -> 0 | AN66: =0 -> 0 | AO66: =0 -> 0 | AP66: =0 -> 0 | AQ66: =0 -> 0 | AR66: =0 -> 0 | AS66: =0 -> 0 | AT66: =0 -> 0 | AU66: =0 -> 0 | AV66: =0 -> 0 | AW66: =0 -> 0 | AX66: =0 -> 0 | AY66: =0 -> 0 | AZ66: =0 -> 0 | BA66: =0 -> 0 | BB66: =0 -> 0 | BC66: =0 -> 0 | BD66: =0 -> 0 | BE66: =0 -> 0 | BF66: =0 -> 0 | BG66: =0 -> 0 | BH66: 95607.20521 | BI66: 90504.68 | BJ66: 186111.8852 | BL66: 95255.33723 | BM66: 94111.8683 | BN66: 82630.87469 | BO66: 91390.36928 | BP66: 87169.13832 | BQ66: 75978.11731 | BR66: 71840.75412 | BS66: 55999.81801 | BT66: 46125.86028 | BU66: 43938.71928 | BV66: 45077.33374 | BW66: 42608.33344 | BX66: 832126.524 | BZ66: 43394.79493 | CA66: 42713.74107 | CB66: 38411.33671 | CC66: 124519.8727
B67: 24L1964965 | BO67: 16098.44077 | BP67: 44988.48276 | BQ67: 59970.73681 | BR67: 56859.303 | BS67: 58274.78565 | BT67: 57422.12231 | BU67: 54824.84843 | BV67: 56358.24839 | BW67: 53428.67191 | BX67: 458225.64 | BZ67: 54542.05006 | CA67: 53834.00237 | CB67: 48507.8184 | CC67: 156883.8708
B68: 25C2809324 | BQ68: 4756.42 | BR68: 20265.83666 | BS68: 20937.02903 | BT68: 20935.38495 | BU68: 19589.81127 | BV68: 20002.51411 | BW68: 19264.28706 | BX68: 125751.2831 | BZ68: 19851.60818 | CA68: 19778.15226 | CB68: 17760.15595 | CC68: 57389.91639
B69: 25C2809326 | BQ69: 25052.01715 | BR69: 24022.14242 | BS69: 24817.41593 | BT69: 24816.23419 | BU69: 23250.8743 | BV69: 23754.3655 | BW69: 22812.33158 | BX69: 168525.3811 | BZ69: 23467.67965 | CA69: 23339.38642 | CB69: 20821.62939 | CC69: 67628.69546
B70: 22C0978882 | F70: 0 | T70: 0 | AH70: 0 | AJ70: 0 | AK70: 0 | AL70: 0 | AM70: 0 | AN70: 0 | AO70: 0 | AP70: 0 | AQ70: 0 | AR70: 0 | AS70: 0 | AT70: 0 | AU70: 0 | AV70: =SUM(AJ70:AU70) -> 0 | AX70: 0 | AY70: 0 | AZ70: 260155.44 | BA70: 89707.57 | BB70: 88916.94 | BC70: 88323.99 | BD70: 88323.99 | BE70: 99559.97 | BF70: 0 | BG70: 164404.72 | BH70: 26718.38 | BI70: 24588.87 | BJ70: 930699.87 | BL70: 32586.25 | BM70: 34015.81 | BN70: 90763.15 | BO70: 0 | BP70: 0 | BQ70: 0 | BR70: 0 | BS70: 0 | BT70: 0 | BU70: 0 | BV70: 0 | BW70: 0 | BX70: 157365.21 | BZ70: 0 | CA70: 0 | CB70: 0 | CC70: 0
B71: 23L1538459 | BS71: 22174.55322 | BT71: 22301.3576 | BU71: 22227.4509 | BV71: 22153.07785 | BW71: 22078.2226 | BX71: =SUM(BL71:BW71) -> 110934.6622 | BZ71: 22009.36062 | CA71: 0 | CB71: 7367.879933 | CC71: 29377.24056
B72: 25G5830826 | BV72: 8276.581119 | BW72: 20654.8472 | BZ72: 21282.80415 | CA72: 21204.32077 | CB72: 19042.66365 | CC72: 61529.78858
B73: 25A3992922 | BS73: 75052.44 | BT73: 68474.96 | BU73: 71762.47 | BV73: 75052.44 | BW73: 61907.31 | BX73: =SUM(BL73:BW73) -> 352249.62 | BZ73: 67783.29 | CA73: 70312.73 | CB73: 56850.57 | CC73: 194946.59
B74: Correção Monetária (CRI) | E74: =SUM(E75:E108) -> 12341.89586 | F74: 12341.89586 | H74: =SUM(H75:H108) -> 167902.9442 | I74: 75994.93126 | J74: 228851.954 | K74: 606691.9507 | L74: 207445.829 | M74: 323753.7964 | N74: 357001.5613 | O74: 428777.3059 | P74: 335667.8348 | Q74: 438862.2543 | R74: 646113.3522 | S74: 489595.1402 | T74: =SUM(H74:S74) -> 4306658.854 | V74: =SUM(V75:V111) -> 631769.5612 | W74: 720303.1917 | X74: 374668.65 | Y74: 504686.6443 | Z74: 415691.4049 | AA74: 642696.5088 | AB74: 738955.9767 | AC74: 325296.0262 | AD74: 226791.6814 | AE74: 416427.5694 | AF74: 439239.8914 | AG74: 466074.2225 | AH74: 5902601.328 | AJ74: =SUM(AJ75:AJ119) -> 545289.4522 | AK74: =SUM(AK75:AK119) -> 580315.1638 | AL74: 557456.3312 | AM74: 702119.6646 | AN74: =SUM(AN75:AN119) -> 646956.4886 | AO74: 835668.7263 | AP74: 586036.328 | AQ74: 426334.3874 | AR74: 348823.9979 | AS74: 420961.4731 | AT74: =SUM(AT75:AT119) -> 417774.7149 | AU74: =SUM(AU75:AU119) -> 654500.9296 | AV74: 6722237.657 | AX74: =SUM(AX75:AX119) -> 660078.6222 | AY74: =SUM(AY75:AY119) -> 605872.5225 | AZ74: =SUM(AZ75:AZ119) -> 630945.7454 | BA74: =SUM(BA75:BA119) -> 514144.649 | BB74: =SUM(BB75:BB119) -> 503000.5251 | BC74: =SUM(BC75:BC131) -> 499262.9464 | BD74: 509454.1827 | BE74: 270433.697 | BF74: 666260.2565 | BG74: 102761.148 | BH74: 296101.5696 | BI74: =SUM(BI75:BI131) -> 304504.7982 | BJ74: =SUM(AX74:BI74) -> 5562820.663 | BL74: =SUM(BL75:BL131) -> 373898.4894 | BM74: 366308.4097 | BN74: 537942.4701 | BO74: 720869.0985 | BP74: 852673.2498 | BQ74: =SUM(BQ75:BQ131) -> 305656.6845 | BR74: =SUM(BR75:BR131) -> 427533.9867 | BS74: =SUM(BS75:BS134) -> 455390.7278 | BT74: =SUM(BT75:BT134) -> 309248.8641 | BU74: =SUM(BU75:BU134) -> 226768.1071 | BV74: =SUM(BV75:BV134) -> 522484.4612 | BW74: =SUM(BW75:BW134) -> 84238.20242 | BX74: =SUM(BL74:BW74) -> 5183012.751 | BZ74: =SUM(BZ75:BZ134) -> 146266.7697 | CA74: =SUM(CA75:CA134) -> 289603.0551 | CB74: =SUM(CB75:CB134) -> 293547.4719 | CC74: =SUM(BZ74:CB74) -> 729417.2967
B75: 19K1124486 | E75: 0 | F75: 0 | H75: 0 | I75: 0 | J75: 0 | K75: 0 | L75: 0 | M75: 0 | N75: 0 | O75: 0 | P75: 0 | Q75: 0 | R75: 0 | S75: 0 | T75: 0 | V75: 0 | W75: 0 | X75: 0 | Y75: 0 | Z75: 0 | AA75: 0 | AB75: 0 | AC75: 0 | AD75: 0 | AE75: 0 | AF75: 0 | AG75: 0 | AH75: =SUM(V75:AG75) -> 0 | AJ75: 0 | AK75: 0 | AL75: 0 | AM75: 0 | AN75: 0 | AO75: 0 | AP75: 0 | AQ75: 0 | AR75: 0 | AS75: 0 | AT75: 0 | AU75: 0 | AV75: 0 | AX75: 0 | AY75: 0 | AZ75: 0 | BA75: 0 | BB75: 0 | BC75: 0 | BD75: 0 | BE75: 0 | BF75: 0 | BG75: 0 | BH75: 0 | BI75: 0 | BJ75: 0 | BL75: 0 | BM75: 0 | BN75: 0 | BO75: 0 | BP75: 0 | BQ75: 0 | BR75: 0 | BS75: 0 | BT75: 0 | BU75: 0 | BV75: 150366.7611 | BW75: 0 | BX75: =SUM(BL75:BW75) -> 150366.7611 | BZ75: 0 | CA75: 0 | CB75: 0 | CC75: =SUM(BZ75:CB75) -> 0
B76: 20C0818565 | E76: 0 | F76: 0 | H76: 0 | I76: 0 | J76: 0 | K76: 0 | L76: 0 | M76: 0 | N76: 0 | O76: 0 | P76: 0 | Q76: 0 | R76: 0 | S76: 0 | T76: 0 | V76: 0 | W76: 0 | X76: 0 | Y76: 0 | Z76: 0 | AA76: 0 | AB76: 0 | AC76: 0 | AD76: 0 | AE76: 0 | AF76: 0 | AG76: 0 | AH76: =SUM(V76:AG76) -> 0 | AJ76: 0 | AK76: 0 | AL76: 0 | AM76: 0 | AN76: 0 | AO76: 0 | AP76: 0 | AQ76: 0 | AR76: 0 | AS76: 0 | AT76: 0 | AU76: 0 | AV76: 0 | AX76: 0 | AY76: 0 | AZ76: 0 | BA76: 0 | BB76: 0 | BC76: 0 | BD76: 0 | BE76: 0 | BF76: 0 | BG76: 0 | BH76: 0 | BI76: 0 | BJ76: 0 | BL76: 0 | BM76: 0 | BN76: 0 | BO76: 0 | BP76: 0 | BQ76: 0 | BR76: 0 | BS76: 0 | BT76: 0 | BU76: 0 | BV76: 0 | BW76: 0 | BX76: 0 | BZ76: 0 | CA76: 0 | CB76: 0 | CC76: 0
B77: 20H0734994 | E77: 0 | F77: 0 | H77: 0 | I77: 0 | J77: 0 | K77: 0 | L77: 0 | M77: 0 | N77: 0 | O77: 0 | P77: 0 | Q77: 0 | R77: 0 | S77: 0 | T77: 0 | V77: 0 | W77: 0 | X77: 0 | Y77: 0 | Z77: 0 | AA77: 0 | AB77: 0 | AC77: 0 | AD77: 0 | AE77: 0 | AF77: 0 | AG77: 0 | AH77: 0 | AJ77: 0 | AK77: 0 | AL77: 0 | AM77: 0 | AN77: 0 | AO77: 0 | AP77: 0 | AQ77: 0 | AR77: 0 | AS77: 0 | AT77: 0 | AU77: 0 | AV77: 0 | AX77: 0 | AY77: 0 | AZ77: 0 | BA77: 0 | BB77: 0 | BC77: 0 | BD77: 0 | BE77: 0 | BF77: 0 | BG77: 0 | BH77: 0 | BI77: 0 | BJ77: 0 | BL77: 0 | BM77: 0 | BN77: 0 | BO77: 0 | BP77: 0 | BQ77: 0 | BR77: 0 | BS77: 0 | BT77: 0 | BU77: 0 | BV77: 0 | BW77: 0 | BX77: 0 | BZ77: 0 | CA77: 0 | CB77: 0 | CC77: 0
B78: 17C0868823 | E78: 0 | F78: 0 | H78: 0 | I78: 0 | J78: 0 | K78: 0 | L78: 0 | M78: 0 | N78: 0 | O78: 0 | P78: 0 | Q78: 0 | R78: 225198.7555 | S78: 0 | T78: 225198.7555 | V78: 0 | W78: 0 | X78: 0 | Y78: 0 | Z78: 0 | AA78: 0 | AB78: 0 | AC78: 0 | AD78: 0 | AE78: 0 | AF78: 224412.0415 | AG78: 0 | AH78: 224412.0415 | AJ78: 0 | AK78: 0 | AL78: 0 | AM78: 0 | AN78: 0 | AO78: 0 | AP78: 0 | AQ78: 0 | AR78: 0 | AS78: 0 | AT78: 248919.6362 | AU78: 0 | AV78: 248919.6362 | AX78: 0 | AY78: 0 | AZ78: 0 | BA78: 0 | BB78: 0 | BC78: 0 | BD78: 0 | BE78: 0 | BF78: 0 | BG78: 0 | BH78: 0 | BI78: 0 | BJ78: 0 | BL78: 0 | BM78: 0 | BN78: 0 | BO78: 0 | BP78: 0 | BQ78: 0 | BR78: 0 | BS78: 0 | BT78: 0 | BU78: 0 | BV78: 0 | BW78: 0 | BX78: 0 | BZ78: 0 | CA78: 0 | CB78: 0 | CC78: 0
B79: 19F0260732 | E79: 408.3137242 | F79: 408.3137242 | H79: 148031.7479 | I79: 629.0963086 | J79: 106.6015169 | K79: 197957.5813 | L79: 399.0499505 | M79: 3.042461374 | N79: 13077.01143 | O79: 0 | P79: 0 | Q79: 0 | R79: 0 | S79: 0 | T79: 360204.1308 | V79: 0 | W79: 0 | X79: 0 | Y79: 0 | Z79: 0 | AA79: 0 | AB79: 0 | AC79: 0 | AD79: 0 | AE79: 0 | AF79: 0 | AG79: 0 | AH79: 0 | AJ79: 0 | AK79: 0 | AL79: 0 | AM79: 0 | AN79: 0 | AO79: 0 | AP79: 0 | AQ79: 0 | AR79: 0 | AS79: 0 | AT79: 0 | AU79: 0 | AV79: 0 | AX79: 0 | AY79: 0 | AZ79: 0 | BA79: 0 | BB79: 0 | BC79: 0 | BD79: 0 | BE79: 0 | BF79: 0 | BG79: 0 | BH79: 0 | BI79: 0 | BJ79: 0 | BL79: 0 | BM79: 0 | BN79: 0 | BO79: 0 | BP79: 0 | BQ79: 0 | BR79: 0 | BS79: 0 | BT79: 0 | BU79: 0 | BV79: 0 | BW79: 0 | BX79: 0 | BZ79: 0 | CA79: 0 | CB79: 0 | CC79: 0
B80: 20F0165468 | E80: 0 | F80: 0 | H80: 18862.87911 | I80: 17924.73317 | J80: 46.29136869 | K80: 20481.67521 | L80: 17907.76318 | M80: 63.72566386 | N80: 165.6309279 | O80: 110.2066341 | P80: 200.6688187 | Q80: 9055.223564 | R80: 245.9225662 | S80: 259.3872992 | T80: 85324.10751 | V80: 206.306519 | W80: 160.0156369 | X80: 107.6542573 | Y80: 224.2383728 | Z80: 351.51692 | AA80: 241.5568634 | AB80: 104.7324223 | AC80: 155.0365709 | AD80: 0 | AE80: 0 | AF80: 0 | AG80: 0 | AH80: 1551.057563 | AJ80: 0 | AK80: 0 | AL80: 0 | AM80: 0 | AN80: 0 | AO80: 0 | AP80: 0 | AQ80: 191565.3192 | AR80: 0 | AS80: 49975.1352 | AT80: 0 | AU80: 0 | AV80: 241540.4544 | AX80: 0 | AY80: 37448.2151 | AZ80: 48631.54792 | BA80: 0 | BB80: 0 | BC80: 109996.7717 | BD80: 0 | BE80: 0 | BF80: 99854.89352 | BG80: 11225.71022 | BH80: 0 | BI80: 19456.03651 | BJ80: 326613.175 | BL80: 0 | BM80: 30097.19835 | BN80: 20028.48899 | BO80: 0 | BP80: 27770.89985 | BQ80: 0 | BR80: 0 | BS80: 44064.57334 | BT80: 0 | BU80: 0 | BV80: 0 | BW80: 0 | BX80: 121961.1605 | BZ80: 0 | CA80: 0 | CB80: 0 | CC80: 0
B81: 19D1329253 | E81: 0 | F81: 0 | H81: 0 | I81: 14746.20404 | J81: 107072.0307 | K81: 65523.90508 | L81: 3257.497002 | M81: 61112.28437 | N81: 30682.49443 | O81: 27171.24371 | P81: 43335.07057 | Q81: 55090.91914 | R81: 46235.60641 | S81: 39638.9694 | T81: 493866.2248 | V81: 38844.82114 | W81: 29648.11705 | X81: 155.5206802 | Y81: 292.4542329 | Z81: 15427.83938 | AA81: 158.1719994 | AB81: 123.9303456 | AC81: 159.5720498 | AD81: 48480.07566 | AE81: 44958.85493 | AF81: 36039.72401 | AG81: 14761.07909 | AH81: 229050.1606 | AJ81: 10131.65936 | AK81: 0 | AL81: 27837.30055 | AM81: 19680.7534 | AN81: 16267.26773 | AO81: 13212.02998 | AP81: 4796.2293 | AQ81: -1597.861842 | AR81: 2284.948695 | AS81: 4182.726223 | AT81: 4563.451635 | AU81: 4059.720892 | AV81: 105418.2259 | AX81: 4559.005969 | AY81: 8761.318985 | AZ81: 6320.843571 | BA81: 11971.62557 | BB81: 2215.677406 | BC81: 5682.663843 | BD81: 5767.130072 | BE81: 4938.806668 | BF81: 4262.492673 | BG81: -210.5595437 | BH81: 4352.818971 | BI81: 4091.933008 | BJ81: 62713.75719 | BL81: 7834.779497 | BM81: 4080.208117 | BN81: 1147.220943 | BO81: 8468.126502 | BP81: 3539.028913 | BQ81: 5719.302351 | BR81: 1335.20697 | BS81: 1091.75397 | BT81: 980.0656949 | BU81: -393.8749064 | BV81: 0 | BW81: 369.8425098 | BX81: 34171.66056 | BZ81: 0 | CA81: 0 | CB81: 0 | CC81: 0
B82: 18J0673053 | E82: 0 | F82: 0 | H82: 0 | I82: 18908.26535 | J82: 21632.98977 | K82: 0 | L82: 0 | M82: 0 | N82: 0 | O82: 0 | P82: 0 | Q82: 0 | R82: 0 | S82: 0 | T82: 40541.25511 | V82: 0 | W82: 0 | X82: 0 | Y82: 0 | Z82: 0 | AA82: 0 | AB82: 0 | AC82: 0 | AD82: 0 | AE82: 0 | AF82: 0 | AG82: 0 | AH82: 0 | AJ82: 0 | AK82: 0 | AL82: 0 | AM82: 0 | AN82: 0 | AO82: 0 | AP82: 0 | AQ82: 0 | AR82: 0 | AS82: 0 | AT82: 0 | AU82: 0 | AV82: 0 | AX82: 0 | AY82: 0 | AZ82: 0 | BA82: 0 | BB82: 0 | BC82: 0 | BD82: 0 | BE82: 0 | BF82: 0 | BG82: 0 | BH82: 0 | BI82: 0 | BJ82: 0 | BL82: 0 | BM82: 0 | BN82: 0 | BO82: 0 | BP82: 0 | BQ82: 0 | BR82: 0 | BS82: 0 | BT82: 0 | BU82: 0 | BV82: 0 | BW82: 0 | BX82: 0 | BZ82: 0 | CA82: 0 | CB82: 0 | CC82: 0
B83: 20G0754279 | E83: 0 | F83: 0 | H83: 0 | I83: 1664.249516 | J83: 4848.743684 | K83: 89615.51875 | L83: 28545.8174 | M83: 69082.92582 | N83: 104776.6151 | O83: 63960.62 | P83: 184.0218825 | Q83: 32831.483 | R83: 276.2884466 | S83: 20928.50175 | T83: 416714.7854 | V83: 61527.79515 | W83: 28622.8006 | X83: 4158.073079 | Y83: 17502.68296 | Z83: 379.2610973 | AA83: 260.6123674 | AB83: 112.9986386 | AC83: 133.7661867 | AD83: 0 | AE83: 0 | AF83: 85509.51 | AG83: 0 | AH83: 198207.5001 | AJ83: 0 | AK83: 0 | AL83: 52663.58556 | AM83: 19228.19984 | AN83: 13561.83903 | AO83: 11064.23284 | AP83: 0 | AQ83: 2674.281399 | AR83: 2095.218809 | AS83: 3974.847877 | AT83: 4383.696442 | AU83: 0 | AV83: 109645.9018 | AX83: 8372.518347 | AY83: 0 | AZ83: 0 | BA83: 6019.12 | BB83: 0 | BC83: 0 | BD83: 0 | BE83: 0 | BF83: 0 | BG83: 0 | BH83: 0 | BI83: 0 | BJ83: 14391.63835 | BL83: 0 | BM83: 0 | BN83: 0 | BO83: 0 | BP83: 0 | BQ83: 0 | BR83: 0 | BS83: 0 | BT83: 0 | BU83: 0 | BV83: 0 | BW83: 0 | BX83: 0 | BZ83: 0 | CA83: 0 | CB83: 0 | CC83: 0
B84: 16H0268853 | E84: 0 | F84: 0 | H84: 0 | I84: 21050.10644 | J84: 13983.66108 | K84: 0 | L84: 0 | M84: 0 | N84: 0 | O84: 0 | P84: 0 | Q84: 0 | R84: 0 | S84: 0 | T84: 35033.76752 | V84: 0 | W84: 0 | X84: 0 | Y84: 0 | Z84: 0 | AA84: 0 | AB84: 0 | AC84: 0 | AD84: 0 | AE84: 0 | AF84: 0 | AG84: 0 | AH84: 0 | AJ84: 0 | AK84: 0 | AL84: 0 | AM84: 0 | AN84: 0 | AO84: 0 | AP84: 0 | AQ84: 0 | AR84: 0 | AS84: 0 | AT84: 0 | AU84: 0 | AV84: 0 | AX84: 0 | AY84: 0 | AZ84: 0 | BA84: 0 | BB84: 0 | BC84: 0 | BD84: 0 | BE84: 0 | BF84: 0 | BG84: 0 | BH84: 0 | BI84: 0 | BJ84: =SUM(AX84:BI84) -> 0 | BL84: 0 | BM84: 0 | BN84: 0 | BO84: 0 | BP84: 0 | BQ84: 0 | BR84: 0 | BS84: 0 | BT84: 0 | BU84: 0 | BV84: 0 | BW84: 0 | BX84: 0 | BZ84: 0 | CA84: 0 | CB84: 0 | CC84: 0
B85: 19I0755306 | E85: 0 | F85: 0 | H85: 0 | I85: 0 | J85: 33338.6665 | K85: 32737.40216 | L85: 33137.23647 | M85: 12359.35744 | N85: 30716.20366 | O85: 0 | P85: 0 | Q85: 0 | R85: 0 | S85: 0 | T85: 142288.8662 | V85: 0 | W85: 0 | X85: 0 | Y85: 0 | Z85: 0 | AA85: 0 | AB85: 0 | AC85: 0 | AD85: 0 | AE85: 0 | AF85: 0 | AG85: 0 | AH85: 0 | AJ85: 0 | AK85: 0 | AL85: 0 | AM85: 0 | AN85: 0 | AO85: 0 | AP85: 0 | AQ85: 0 | AR85: 0 | AS85: 0 | AT85: 0 | AU85: 0 | AV85: 0 | AX85: 0 | AY85: 0 | AZ85: 0 | BA85: 0 | BB85: 0 | BC85: 0 | BD85: 0 | BE85: 0 | BF85: 0 | BG85: 0 | BH85: 0 | BI85: 0 | BJ85: 0 | BL85: 0 | BM85: 0 | BN85: 0 | BO85: 0 | BP85: 0 | BQ85: 0 | BR85: 0 | BS85: 0 | BT85: 0 | BU85: 0 | BV85: 0 | BW85: 0 | BX85: 0 | BZ85: 0 | CA85: 0 | CB85: 0 | CC85: 0
B86: 21C0122941 | E86: 0 | F86: 0 | H86: 0 | I86: 0 | J86: 29676.4 | K86: 148749.8098 | L86: 36466.89409 | M86: 91202.99146 | N86: 53736.41404 | O86: 60176.56548 | P86: 47442.99515 | Q86: 51761.87878 | R86: 50849.07701 | S86: 34801.34469 | T86: 604864.3705 | V86: 25594.29303 | W86: 0 | X86: 48929.8502 | Y86: 47008.41072 | Z86: 28871.2764 | AA86: 12059.20655 | AB86: 0 | AC86: 0 | AD86: 0 | AE86: 0 | AF86: 0 | AG86: 0 | AH86: 162463.0369 | AJ86: 0 | AK86: 0 | AL86: 0 | AM86: 0 | AN86: 0 | AO86: 0 | AP86: 0 | AQ86: 0 | AR86: 0 | AS86: 0 | AT86: 0 | AU86: 0 | AV86: 0 | AX86: 0 | AY86: 0 | AZ86: 0 | BA86: 0 | BB86: 0 | BC86: 0 | BD86: 0 | BE86: 0 | BF86: 0 | BG86: 0 | BH86: 0 | BI86: 0 | BJ86: 0 | BL86: 0 | BM86: 0 | BN86: 0 | BO86: 0 | BP86: 0 | BQ86: 0 | BR86: 0 | BS86: 0 | BT86: 0 | BU86: 0 | BV86: 0 | BW86: 0 | BX86: 0 | BZ86: 0 | CA86: 0 | CB86: 0 | CC86: 0
B87: 21E0517062 | E87: 0 | F87: 0 | H87: 0 | I87: 0 | J87: 0 | K87: 0 | L87: 0 | M87: 0 | N87: 12099.36565 | O87: 6401.903773 | P87: 9533.682814 | Q87: 8230.309383 | R87: 40850.20137 | S87: 14670.32984 | T87: 91785.79283 | V87: 310.1926773 | W87: 0 | X87: 0 | Y87: 0 | Z87: 0 | AA87: 39342.59 | AB87: 0 | AC87: 0 | AD87: 0 | AE87: 0 | AF87: 0 | AG87: 0 | AH87: 39652.78268 | AJ87: 0 | AK87: 0 | AL87: 0 | AM87: 0 | AN87: 0 | AO87: 0 | AP87: 0 | AQ87: 0 | AR87: 0 | AS87: 0 | AT87: 0 | AU87: 0 | AV87: 0 | AX87: 0 | AY87: 0 | AZ87: 0 | BA87: 0 | BB87: 0 | BC87: 0 | BD87: 0 | BE87: 0 | BF87: 0 | BG87: 0 | BH87: 0 | BI87: 0 | BJ87: 0 | BL87: 0 | BM87: 0 | BN87: 0 | BO87: 0 | BP87: 0 | BQ87: 0 | BR87: 0 | BS87: 0 | BT87: 0 | BU87: 0 | BV87: 0 | BW87: 0 | BX87: 0 | BZ87: 0 | CA87: 0 | CB87: 0 | CC87: 0
B88: 21E0466562 | E88: 0 | F88: 0 | H88: 0 | I88: 0 | J88: 0 | K88: 0 | L88: 0 | M88: 376.959969 | N88: 1458.876813 | O88: 175039.5019 | P88: 1751.358811 | Q88: 1550.502773 | R88: 20294.05639 | S88: 2271.015225 | T88: 202742.2719 | V88: 234711.0491 | W88: 1384.574282 | X88: 37507.16588 | Y88: 67473.51317 | Z88: 3026.089129 | AA88: 112866.0544 | AB88: 896.7430831 | AC88: 28495.82054 | AD88: =66733.1885825439+338063.721580716 -> 404796.9102 | AE88: 340115.1963 | AF88: 80279.78 | AG88: 18180.40284 | AH88: 1329733.299 | AJ88: 0 | AK88: 10536.75182 | AL88: 0 | AM88: 250000 | AN88: 47305.23894 | AO88: 290735.92 | AP88: 0 | AQ88: 132355.9803 | AR88: 0 | AS88: 0 | AT88: 0 | AU88: 324216.5244 | AV88: 1055150.415 | AX88: 0 | AY88: 0 | AZ88: 0 | BA88: 0 | BB88: 0 | BC88: 0 | BD88: 0 | BE88: 0 | BF88: 0 | BG88: 0 | BH88: 0 | BI88: 0 | BJ88: 0 | BL88: 0 | BM88: 0 | BN88: 0 | BO88: 0 | BP88: 0 | BQ88: 0 | BR88: 0 | BS88: 0 | BT88: 0 | BU88: 0 | BV88: 0 | BW88: 0 | BX88: 0 | BZ88: 0 | CA88: 0 | CB88: 0 | CC88: 0
B89: 20L0871127 | E89: 0 | F89: 0 | H89: 0 | I89: 0 | J89: 0 | K89: 0 | L89: 0 | M89: 59003.01174 | N89: 61261.43409 | O89: 59733.4518 | P89: 60101.64832 | Q89: 62328.00961 | R89: 60847.17539 | S89: 63052.92972 | T89: 426327.6607 | V89: 61598.80417 | W89: 47656.94276 | X89: 79657.46635 | Y89: 73770.65124 | Z89: 76313.04489 | AA89: 74688.71364 | AB89: 77209.54118 | AC89: 75610.8804 | AD89: 76073.23408 | AE89: 78557.09501 | AF89: 77019.25 | AG89: 79474.52239 | AH89: 877630.1461 | AJ89: 77967.49132 | AK89: 55998.82578 | AL89: 89219.36799 | AM89: 13584.07642 | AN89: 5268.792265 | AO89: -59932.46162 | AP89: -59433.40401 | AQ89: -58919.5428 | AR89: -58414.30772 | AS89: -57905.98642 | AT89: -57383.15327 | AU89: -56868.54115 | AV89: -166818.8432 | AX89: -20503.3149 | AY89: -36238.45701 | AZ89: 22697.4 | BA89: -46868.16711 | BB89: -41872.52246 | BC89: 27236.93458 | BD89: 77263.68252 | BE89: 69927.53016 | BF89: 51757.31421 | BG89: 24129.57191 | BH89: 51941.90234 | BI89: 73966.80269 | BJ89: 253438.6769 | BL89: 91904.34449 | BM89: 70952.48822 | BN89: 77526.16122 | BO89: 88907.91365 | BP89: -28249.10708 | BQ89: 19532.64476 | BR89: -40064.55854 | BS89: -47550.88462 | BT89: -46949.12817 | BU89: -46343.71917 | BV89: 2657.660171 | BW89: -27689.58182 | BX89: 114634.2331 | BZ89: 20179.39231 | CA89: -50004.81872 | CB89: 29519.05023 | CC89: -306.3761783
B90: 20I0905816 | E90: 0 | F90: 0 | H90: 0 | I90: 0 | J90: 3763.004193 | K90: 17454.53825 | L90: 18844.44884 | M90: 6281.06101 | N90: 16720.04794 | O90: 10672.38671 | P90: 19259.67671 | Q90: 11806.34124 | R90: 12255.006 | S90: 12716.89458 | T90: 129773.4055 | V90: 13960.25808 | W90: 13566.78471 | X90: 15512.1512 | Y90: 24873.98753 | Z90: 25794.96049 | AA90: 26536.39691 | AB90: 27194.6407 | AC90: 23982.18075 | AD90: -9888.994137 | AE90: -9395.900556 | AF90: -6644.28 | AG90: 11012.34772 | AH90: 156504.5334 | AJ90: 7593.65025 | AK90: 11367.24605 | AL90: 9471.616517 | AM90: 14605.36789 | AN90: 12034.46216 | AO90: 10048.26378 | AP90: 3479.449271 | AQ90: -1129.210593 | AR90: 1547.894013 | AS90: 2764.691538 | AT90: 2745.768932 | AU90: 2333.325805 | AV90: 76862.52561 | AX90: 2237.654166 | AY90: 3875.979884 | AZ90: 1811.029609 | BA90: 2489.582262 | BB90: 319.3736368 | BC90: 493.9768567 | BD90: 0 | BE90: 0 | BF90: 0 | BG90: 0 | BH90: 0 | BI90: 0 | BJ90: 11227.59641 | BL90: 0 | BM90: 0 | BN90: 0 | BO90: 0 | BP90: 0 | BQ90: 0 | BR90: 0 | BS90: 0 | BT90: 0 | BU90: 0 | BV90: 0 | BW90: 0 | BX90: 0 | BZ90: 0 | CA90: 0 | CB90: 0 | CC90: 0
B91: 21H0001650 | E91: 0 | F91: 0 | H91: 0 | I91: 0 | J91: 0 | K91: 0 | L91: 0 | M91: 0 | N91: 0 | O91: 0 | P91: 53845.13539 | Q91: 99680.64928 | R91: 35554.81498 | S91: 46939.04992 | T91: 236019.6496 | V91: 42942.85746 | W91: 371682.4017 | X91: 47593.72655 | Y91: 37097.8975 | Z91: 94232.37042 | AA91: 109118.1605 | AB91: 132219.864 | AC91: 46751.94795 | AD91: -39784.91647 | AE91: -31047.93659 | AF91: -19105.50066 | AG91: 38313.06725 | AH91: 830013.9397 | AJ91: 26299.46289 | AK91: 38890.74853 | AL91: 33156.68517 | AM91: 51609.56824 | AN91: 42757.97087 | AO91: 36376.54056 | AP91: 13287.11054 | AQ91: -4543.282148 | AR91: 6694.450908 | AS91: 12706.43725 | AT91: 13907.21075 | AU91: 12684.06201 | AV91: 283826.9656 | AX91: 14689.04938 | AY91: 29084.69781 | AZ91: 21077.66228 | BA91: 40844.37621 | BB91: 7810.702645 | BC91: 17472.33918 | BD91: 20714.52537 | BE91: 9364.948305 | BF91: 44124.40323 | BG91: -809.2922261 | BH91: 17481.98173 | BI91: 16180.22645 | BJ91: 238035.6204 | BL91: 13296.9432 | BM91: 17503.08215 | BN91: 5230.142871 | BO91: 38529.60996 | BP91: 16251.30025 | BQ91: 12291.37329 | BR91: 7099.630622 | BS91: 6385.289466 | BT91: 6698.641316 | BU91: -2735.46331 | BV91: 11643.21644 | BW91: 2146.472049 | BX91: 134340.2383 | BZ91: 4253.195278 | CA91: 7718.337639 | CB91: 7472.208767 | CC91: 19443.74168
B92: 21E0750441 | E92: 0 | F92: 0 | H92: 0 | I92: 0 | J92: 0 | K92: 0 | L92: 0 | M92: 0 | N92: 0 | O92: 0 | P92: 50146.00881 | Q92: 44605.23216 | R92: 58179.25674 | S92: 61884.29607 | T92: 214814.7938 | V92: 46720.21436 | W92: 26472.2668 | X92: 35152.20495 | Y92: 48678.52212 | Z92: 45944.54191 | AA92: 52793.91948 | AB92: 52619.3868 | AC92: 31845.02925 | AD92: -31820.75925 | AE92: -16569.09141 | AF92: -13127.45851 | AG92: 26451.14035 | AH92: 305159.9168 | AJ92: 18227.83376 | AK92: 26930.28758 | AL92: 22754.58679 | AM92: 35483.19296 | AN92: 29426.20601 | AO92: 24879.4112 | AP92: 9244.876022 | AQ92: -3154.51635 | AR92: 4660.798801 | AS92: 8771.445072 | AT92: 9775.701979 | AU92: 8882.304292 | AV92: 195882.1281 | AX92: 10175.47939 | AY92: 20049.0358 | AZ92: 0 | BA92: 0 | BB92: 0 | BC92: 0 | BD92: 0 | BE92: 0 | BF92: 0 | BG92: 0 | BH92: 0 | BI92: 0 | BJ92: 30224.51518 | BL92: 0 | BM92: 0 | BN92: 0 | BO92: 0 | BP92: 0 | BQ92: 0 | BR92: 0 | BS92: 0 | BT92: 0 | BU92: 0 | BV92: 0 | BW92: 0 | BX92: 0 | BZ92: 0 | CA92: 0 | CB92: 0 | CC92: 0
B93: 21H0001651 | E93: 0 | F93: 0 | H93: 0 | I93: 0 | J93: 0 | K93: 0 | L93: 0 | M93: 0 | N93: 0 | O93: 0 | P93: 14586.41653 | Q93: 26838.56939 | R93: 10883.32571 | S93: 14351.11623 | T93: 66659.42787 | V93: 13071.89293 | W93: 109869.5252 | X93: 14438.85933 | Y93: 11326.55916 | Z93: 0 | AA93: 12027.97715 | AB93: 182542.3638 | AC93: 0 | AD93: 0 | AE93: 73656.29 | AF93: 0 | AG93: 69280.58837 | AH93: 486214.056 | AJ93: 0 | AK93: 97972.8151 | AL93: 50042.61101 | AM93: 0 | AN93: 105456.8022 | AO93: 0 | AP93: 92771.58002 | AQ93: 0 | AR93: 153957 | AS93: 97533.3189 | AT93: 64481.36387 | AU93: 39927.27294 | AV93: 702142.7641 | AX93: 0 | AY93: 108001.3418 | AZ93: 59139.61583 | BA93: 66606.76817 | BB93: 45128.10523 | BC93: 50382.68681 | BD93: 54087.2863 | BE93: 55126.59932 | BF93: 81686.87345 | BG93: 0 | BH93: 0 | BI93: 0 | BJ93: 520159.277 | BL93: 0 | BM93: 0 | BN93: 231962.74 | BO93: 0 | BP93: 0 | BQ93: 0 | BR93: 304717.625 | BS93: 0 | BT93: 119236.9219 | BU93: 49313.36082 | BV93: 62145.32258 | BW93: 38793.60067 | BX93: 806169.571 | BZ93: 0 | CA93: 137981.6305 | CB93: 59424.58707 | CC93: 197406.2175
B94: 21D0453486 | E94: 0 | F94: 0 | H94: 0 | I94: 0 | J94: 0 | K94: 0 | L94: 0 | M94: 0 | N94: 0 | O94: 0 | P94: 0 | Q94: 0 | R94: 48946.59863 | S94: 49186.18444 | T94: 98132.78307 | V94: 49425.41164 | W94: 49667.09774 | X94: 49910.01108 | Y94: 50152.92405 | Z94: 50394.61437 | AA94: 50641.17614 | AB94: 24489.78828 | AC94: 26425.13278 | AD94: 0 | AE94: 0 | AF94: 0 | AG94: 21939.04234 | AH94: 373045.1984 | AJ94: 15031.79378 | AK94: 22323.88765 | AL94: 18789.79024 | AM94: 29198.11116 | AN94: 24293.84378 | AO94: 20530.56301 | AP94: -16827.34044 | AQ94: -16522.42903 | AR94: -12996.0222 | AS94: 7501.441442 | AT94: 8312.12069 | AU94: 7519.064489 | AV94: 107154.8246 | AX94: 8591.822438 | AY94: 16774.20565 | AZ94: 12326.83177 | BA94: 23723.25725 | BB94: 4498.301438 | BC94: 10413.00671 | BD94: 35266.5634 | BE94: 5704.052875 | BF94: 10040.0571 | BG94: 0 | BH94: 11005.39375 | BI94: 10816.66577 | BJ94: 149160.1581 | BL94: 9211.061112 | BM94: 11898.23118 | BN94: 3560.01507 | BO94: 27892.50758 | BP94: 11610.39315 | BQ94: 8617.837522 | BR94: -9434.598468 | BS94: 4706.887823 | BT94: 4896.142193 | BU94: -1995.055261 | BV94: 8274.836481 | BW94: 1486.446879 | BX94: 80724.70527 | BZ94: 2830.187882 | CA94: 4919.23481 | CB94: 4657.011813 | CC94: 12406.4345
B95: 20K0866670 | E95: 0 | F95: 0 | H95: 0 | I95: 0 | J95: 0 | K95: 10928.14359 | L95: 48806.6287 | M95: 14362.43944 | N95: 12943.28302 | O95: 13214.12848 | P95: 14160.53801 | Q95: 14451.0479 | R95: 14160.43401 | S95: 13616.4496 | T95: 156643.0928 | V95: 12325.6838 | W95: 13871.89945 | X95: 16315.47751 | Y95: 13131.2822 | Z95: 16174.92298 | AA95: 12831.94693 | AB95: 22032.9149 | AC95: -42084.95363 | AD95: -29616.58654 | AE95: -19692.46531 | AF95: 39723.032 | AG95: 27594.95098 | AH95: 82608.10529 | AJ95: 48562.01521 | AK95: 53063.79537 | AL95: 64031.47453 | AM95: 54584.66992 | AN95: 65458.30399 | AO95: 42112.8692 | AP95: -7483.520285 | AQ95: 12427.59491 | AR95: 23708.56262 | AS95: 26696.47833 | AT95: 24532.72329 | AU95: 28509.27805 | AV95: =SUM(AJ95:AU95) -> 436204.2451 | AX95: 56789.93927 | AY95: 34176.16076 | AZ95: 56536.06049 | BA95: 23816.98761 | BB95: 30701.8506 | BC95: 37048.2371 | BD95: 70546.82901 | BE95: 33361.72398 | BF95: 14391.06 | BG95: 21580.12124 | BH95: 27378.12461 | BI95: 15143.68372 | BJ95: 421470.7784 | BL95: 25276.6617 | BM95: 13345.24157 | BN95: 74586.71826 | BO95: 58375.48289 | BP95: 41440.08102 | BQ95: 17852.13602 | BR95: 16386.0621 | BS95: 17633.84507 | BT95: -7424.937556 | BU95: 32056.00139 | BV95: 2569.611957 | BW95: 5103.211967 | BX95: 297200.1164 | BZ95: 9282.808628 | CA95: 9113.269588 | CB95: 19454.16619 | CC95: 37850.2444
B96: 19G0801197 | E96: 11933.58213 | F96: 11933.58213 | H96: 1008.317188 | I96: 1072.276435 | J96: 9590.507242 | K96: 3270.380093 | L96: 0 | M96: 0 | N96: 0 | O96: 0 | P96: 0 | Q96: 0 | R96: 0 | S96: 0 | T96: 14941.48096 | V96: 0 | W96: 0 | X96: 0 | Y96: 0 | Z96: 0 | AA96: 0 | AB96: 0 | AC96: 0 | AD96: 0 | AE96: 0 | AF96: 0 | AG96: 0 | AH96: 0 | AJ96: 0 | AK96: 0 | AL96: 0 | AM96: 0 | AN96: 0 | AO96: 0 | AP96: 0 | AQ96: 0 | AR96: 0 | AS96: 0 | AT96: 0 | AU96: 0 | AV96: 0 | AX96: 0 | AY96: 0 | AZ96: 0 | BA96: 0 | BB96: 0 | BC96: 0 | BD96: 0 | BE96: 0 | BF96: 0 | BG96: 0 | BH96: 0 | BI96: 0 | BJ96: 0 | BL96: 0 | BM96: 0 | BN96: 0 | BO96: 0 | BP96: 0 | BQ96: 0 | BR96: 0 | BS96: 0 | BT96: 0 | BU96: 0 | BV96: 0 | BW96: 0 | BX96: 0 | BZ96: 0 | CA96: 0 | CB96: 0 | CC96: 0
B97: 18L1168429 | E97: 0 | F97: 0 | H97: 0 | I97: 0 | J97: 4793.057973 | K97: 19972.99652 | L97: 20080.49332 | M97: 9905.997078 | N97: 19364.18421 | O97: 12297.29739 | P97: 21120.61299 | Q97: 20632.08803 | R97: 21336.83306 | S97: 49298.23083 | T97: 198801.7914 | V97: 21926.90928 | W97: 19014.40809 | X97: 13009.47206 | Y97: 22974.64156 | Z97: 23725.25498 | AA97: 24465.7157 | AB97: 22878.75044 | AC97: 18052.21806 | AD97: 0 | AE97: 0 | AF97: 0 | AG97: -22760.62391 | AH97: 143286.7463 | AJ97: 8870.778959 | AK97: 13241.76559 | AL97: 11195.59266 | AM97: 17473.45118 | AN97: 14615.99926 | AO97: 12410.04168 | AP97: 4637.067712 | AQ97: -1597.743513 | AR97: 2361.501298 | AS97: 4465.408394 | AT97: 4978.851292 | AU97: -1451.465775 | AV97: 91201.24873 | AX97: 5464.344635 | AY97: 10739.97801 | AZ97: 7948.319624 | BA97: 15409.68677 | BB97: 2943.654365 | BC97: 6868.383642 | BD97: 8181.255022 | BE97: 3685.05285 | BF97: 6549.000703 | BG97: 0 | BH97: 7325.790421 | BI97: 2733.871554 | BJ97: 77849.3376 | BL97: 6227.234108 | BM97: 8586.234428 | BN97: 2603.114846 | BO97: 4041.974315 | BP97: 1703.431386 | BQ97: 0 | BR97: 0 | BS97: 0 | BT97: 0 | BU97: 0 | BV97: 0 | BW97: 0 | BX97: 23161.98908 | BZ97: 0 | CA97: 0 | CB97: 0 | CC97: 0
B98: 21J0856063 | E98: 0 | F98: 0 | H98: 0 | I98: 0 | J98: 0 | K98: 0 | L98: 0 | M98: 0 | N98: 0 | O98: 0 | P98: 0 | Q98: 0 | R98: 0 | S98: 65980.44064 | T98: 65980.44064 | V98: 8603.071903 | W98: 8686.35766 | X98: 12221.01685 | Y98: 0 | Z98: 0 | AA98: 0 | AB98: 106928.9303 | AC98: 0 | AD98: 0 | AE98: 74570.83 | AF98: 0 | AG98: 70140.79425 | AH98: 281151.001 | AJ98: 0 | AK98: 99189.271 | AL98: 50663.9915 | AM98: 0 | AN98: 106766.1869 | AO98: 0 | AP98: 93923.4555 | AQ98: 0 | AR98: 168229.1317 | AS98: 0 | AT98: 0 | AU98: 16884.24406 | AV98: 535656.2806 | AX98: 15490.08777 | AY98: 15734.86358 | AZ98: 19014.26026 | BA98: 39721.40809 | BB98: 201540.199 | BC98: 0 | BD98: 0 | BE98: 0 | BF98: 92814.30407 | BG98: 0 | BH98: 0 | BI98: 0 | BJ98: 384315.1228 | BL98: 16299.27692 | BM98: 30760.83356 | BN98: 39512.26068 | BO98: 34224.96197 | BP98: 49404.94456 | BQ98: 17243.56319 | BR98: 10308.69275 | BS98: 9420.189727 | BT98: 10068.49891 | BU98: -4236.101069 | BV98: 18248.58495 | BW98: 3411.744875 | BX98: 234667.451 | BZ98: 6760.732311 | CA98: 12153.86678 | CB98: 1971.588078 | CC98: 20886.18717
B99: 22B0914263 | E99: 0 | F99: 0 | H99: 0 | I99: 0 | J99: 0 | K99: 0 | L99: 0 | M99: 0 | N99: 0 | O99: 0 | P99: 0 | Q99: 0 | R99: 0 | S99: 0 | T99: 0 | V99: 0 | W99: 0 | X99: 0 | Y99: 56557.30818 | Z99: 24323.65732 | AA99: 78275.12716 | AB99: 63962.70056 | AC99: 131925.4554 | AD99: -70945.51143 | AE99: -37070.09921 | AF99: -29517.16511 | AG99: 48098.35136 | AH99: 265609.8242 | AJ99: 34197.29 | AK99: 75890.21279 | AL99: 54310.38839 | AM99: 83490.85087 | AN99: 70212.66094 | AO99: 60027.78683 | AP99: 22264.46763 | AQ99: -7606.538945 | AR99: 11178.49293 | AS99: 20525.08182 | AT99: 23154.41916 | AU99: 21337.66748 | AV99: 468982.7799 | AX99: 24298.96976 | AY99: 0 | AZ99: 0 | BA99: 0 | BB99: 0 | BC99: 0 | BD99: 0 | BE99: 0 | BF99: 0 | BG99: 0 | BH99: 0 | BI99: 0 | BJ99: 24298.96976 | BL99: 0 | BM99: 0 | BN99: 0 | BO99: 0 | BP99: 0 | BQ99: 0 | BR99: 0 | BS99: 0 | BT99: 0 | BU99: 0 | BV99: 0 | BW99: 0 | BX99: 0 | BZ99: 0 | CA99: 0 | CB99: 0 | CC99: 0
B100: 22B0914280 | E100: 0 | F100: 0 | H100: 0 | I100: 0 | J100: 0 | K100: 0 | L100: 0 | M100: 0 | N100: 0 | O100: 0 | P100: 0 | Q100: 0 | R100: 0 | S100: 0 | T100: 0 | V100: 0 | W100: 0 | X100: 0 | Y100: 33621.57126 | Z100: 10732.05463 | AA100: 28976.56149 | AB100: 23756.87886 | AC100: 37807.48499 | AD100: -7178.971757 | AE100: -10490.18079 | AF100: -8354.59 | AG100: 13475.77969 | AH100: 122346.5884 | AJ100: 9674.144221 | AK100: 20830.47182 | AL100: 16857.94875 | AM100: 23665.44897 | AN100: 0 | AO100: 0 | AP100: 128317.2109 | AQ100: =4316.60409684528+76474.3619686439 -> 80790.96607 | AR100: 3451.81111 | AS100: 6370.809443 | AT100: 7186.969305 | AU100: 6623.095573 | AV100: 303768.8762 | AX100: 7566.037767 | AY100: 14949.81272 | AZ100: 10940.73549 | BA100: 20872.29449 | BB100: 4909.046668 | BC100: 9716.7287 | BD100: 11468.24638 | BE100: 5170.232417 | BF100: 27518.84352 | BG100: -489.3943246 | BH100: 10590.52504 | BI100: 10659.46739 | BJ100: 133872.5762 | BL100: 9131.976698 | BM100: 0 | BN100: 0 | BO100: 0 | BP100: 0 | BQ100: 0 | BR100: 0 | BS100: 167256.336 | BT100: 32771.56 | BU100: 166371.7488 | BV100: 0 | BW100: 0 | BX100: 375531.6215 | BZ100: 0 | CA100: 0 | CB100: 0 | CC100: 0
B101: 19K1034250 | E101: 0 | F101: =SUM(E101) -> 0 | H101: 0 | I101: 0 | J101: 0 | K101: 0 | L101: 0 | M101: 0 | N101: 0 | O101: 0 | P101: 0 | Q101: 0 | R101: 0 | S101: 0 | T101: =SUM(H101:S101) -> 0 | V101: 0 | W101: 0 | X101: 0 | Y101: 0 | Z101: 0 | AA101: 1159.253044 | AB101: 0 | AC101: 0 | AD101: 0 | AE101: 0 | AF101: 0 | AG101: 0 | AH101: 1159.253044 | AJ101: 0 | AK101: 0 | AL101: 0 | AM101: 0 | AN101: 0 | AO101: 0 | AP101: 0 | AQ101: 0 | AR101: 0 | AS101: 0 | AT101: 0 | AU101: 0 | AV101: 0 | AX101: 0 | AY101: 0 | AZ101: 0 | BA101: 0 | BB101: 0 | BC101: 0 | BD101: 0 | BE101: 0 | BF101: 0 | BG101: 0 | BH101: 0 | BI101: 0 | BJ101: 0 | BL101: 0 | BM101: 0 | BN101: 0 | BO101: 0 | BP101: 0 | BQ101: 0 | BR101: 0 | BS101: 0 | BT101: 0 | BU101: 0 | BV101: 0 | BW101: 0 | BX101: 0 | BZ101: 0 | CA101: 0 | CB101: 0 | CC101: 0
B102: 21B0031227 | E102: 0 | F102: 0 | H102: 0 | I102: 0 | J102: 0 | K102: 0 | L102: 0 | M102: 0 | N102: 0 | O102: 0 | P102: 0 | Q102: 0 | R102: 0 | S102: 0 | T102: 0 | V102: 0 | W102: 0 | X102: 0 | Y102: 0 | Z102: 0 | AA102: 5994.789177 | AB102: 0 | AC102: 0 | AD102: 0 | AE102: 0 | AF102: 0 | AG102: 0 | AH102: 5994.789177 | AJ102: 0 | AK102: 0 | AL102: 0 | AM102: 0 | AN102: 0 | AO102: 0 | AP102: 0 | AQ102: 0 | AR102: 0 | AS102: 0 | AT102: 0 | AU102: 0 | AV102: 0 | AX102: 0 | AY102: 0 | AZ102: 0 | BA102: 0 | BB102: 0 | BC102: 0 | BD102: 0 | BE102: 0 | BF102: 0 | BG102: 0 | BH102: 0 | BI102: 0 | BJ102: 0 | BL102: 0 | BM102: 0 | BN102: 0 | BO102: 0 | BP102: 0 | BQ102: 0 | BR102: 0 | BS102: 0 | BT102: 0 | BU102: 0 | BV102: 0 | BW102: 0 | BX102: 0 | BZ102: 0 | CA102: 0 | CB102: 0 | CC102: 0
B103: 21H0891390 | E103: 0 | F103: 0 | H103: 0 | I103: 0 | J103: 0 | K103: 0 | L103: 0 | M103: 0 | N103: 0 | O103: 0 | P103: 0 | Q103: 0 | R103: 0 | S103: 0 | T103: 0 | V103: 0 | W103: 0 | X103: 0 | Y103: 0 | Z103: 0 | AA103: 258.5793038 | AB103: 112.1146379 | AC103: 155.7190959 | AD103: 0 | AE103: 0 | AF103: 0 | AG103: 0 | AH103: 526.4130375 | AJ103: 0 | AK103: 0 | AL103: 0 | AM103: 0 | AN103: 0 | AO103: 0 | AP103: 0 | AQ103: 0 | AR103: 0 | AS103: 76340.62204 | AT103: 0 | AU103: 0 | AV103: 76340.62204 | AX103: 0 | AY103: 0 | AZ103: 0 | BA103: 0 | BB103: 0 | BC103: 53374.26601 | BD103: 0 | BE103: 0 | BF103: 0 | BG103: 0 | BH103: 0 | BI103: 0 | BJ103: 53374.26601 | BL103: 0 | BM103: 0 | BN103: 0 | BO103: 0 | BP103: 0 | BQ103: 2106.873124 | BR103: 568.390706 | BS103: 291.6111197 | BT103: 0 | BU103: 0 | BV103: 0 | BW103: 0 | BX103: 2966.87495 | BZ103: 0 | CA103: 0 | CB103: 0 | CC103: 0
B104: 21K0518507 | E104: 0 | F104: 0 | H104: 0 | I104: 0 | J104: 0 | K104: 0 | L104: 0 | M104: 0 | N104: 0 | O104: 0 | P104: 0 | Q104: 0 | R104: 0 | S104: 0 | T104: 0 | V104: 0 | W104: 0 | X104: 0 | Y104: 0 | Z104: 0 | AA104: 0 | AB104: 156.463462 | AC104: 0 | AD104: 0 | AE104: 0 | AF104: 0 | AG104: 0 | AH104: 156.463462 | AJ104: 0 | AK104: 0 | AL104: 0 | AM104: 0 | AN104: 0 | AO104: 0 | AP104: 0 | AQ104: 0 | AR104: 0 | AS104: 0 | AT104: 0 | AU104: 0 | AV104: 0 | AX104: 0 | AY104: 0 | AZ104: 0 | BA104: 0 | BB104: 0 | BC104: 0 | BD104: 0 | BE104: 0 | BF104: 0 | BG104: 0 | BH104: 0 | BI104: 0 | BJ104: 0 | BL104: 0 | BM104: 0 | BN104: 0 | BO104: 0 | BP104: 0 | BQ104: 0 | BR104: 0 | BS104: 0 | BT104: 0 | BU104: 0 | BV104: 0 | BW104: 0 | BX104: 0 | BZ104: 0 | CA104: 0 | CB104: 0 | CC104: 0
B105: 22B0337860 | E105: 0 | F105: 0 | H105: 0 | I105: 0 | J105: 0 | K105: 0 | L105: 0 | M105: 0 | N105: 0 | O105: 0 | P105: 0 | Q105: 0 | R105: 0 | S105: 0 | T105: 0 | V105: 0 | W105: 0 | X105: 0 | Y105: 0 | Z105: 0 | AA105: 0 | AB105: 0 | AC105: 0 | AD105: 0 | AE105: 0 | AF105: 0 | AG105: 0 | AH105: 0 | AJ105: 0 | AK105: 0 | AL105: 0 | AM105: 0 | AN105: 0 | AO105: 0 | AP105: 0 | AQ105: 0 | AR105: 0 | AS105: 0 | AT105: 0 | AU105: 0 | AV105: 0 | AX105: 0 | AY105: 0 | AZ105: 0 | BA105: 0 | BB105: 0 | BC105: 0 | BD105: 0 | BE105: 0 | BF105: 0 | BG105: 0 | BH105: 0 | BI105: 0 | BJ105: 0 | BL105: 0 | BM105: 0 | BN105: 0 | BO105: 0 | BP105: 0 | BQ105: 0 | BR105: 0 | BS105: 0 | BT105: 0 | BU105: 0 | BV105: 0 | BW105: 0 | BX105: 0 | BZ105: 0 | CA105: 0 | CB105: 0 | CC105: 0
B106: 22B0945202 | E106: 0 | F106: 0 | H106: 0 | I106: 0 | J106: 0 | K106: 0 | L106: 0 | M106: 0 | N106: 0 | O106: 0 | P106: 0 | Q106: 0 | R106: 0 | S106: 0 | T106: 0 | V106: 0 | W106: 0 | X106: 0 | Y106: 0 | Z106: 0 | AA106: 0 | AB106: 1613.234169 | AC106: -54119.26417 | AD106: -29583.21614 | AE106: -22995.01285 | AF106: 9276.83 | AG106: 9837.684859 | AH106: -85969.74413 | AJ106: 123515.6003 | AK106: 8825.005191 | AL106: 7995.628469 | AM106: 52235.20049 | AN106: 40535.19493 | AO106: 51901.46387 | AP106: 36269.74672 | AQ106: 6960.054577 | AR106: 13281.34989 | AS106: 19727.42182 | AT106: 19554.26209 | AU106: 22710.83344 | AV106: 403511.7618 | AX106: 45230.66719 | AY106: 29716.32447 | AZ106: 29276.12725 | BA106: 10895.35213 | BB106: 15346.52418 | BC106: 18506.21824 | BD106: 355.824813 | BE106: 3768.567033 | BF106: -197.4691213 | BG106: 4022.52482 | BH106: 4654.840692 | BI106: 2572.062147 | BJ106: 164147.5638 | BL106: 4296.007798 | BM106: 1163.131982 | BN106: 5590.947127 | BO106: 7221.59612 | BP106: 3811.605085 | BQ106: 577.0120444 | BR106: 572.8440859 | BS106: 525.5276867 | BT106: -239.2081689 | BU106: 1032.856213 | BV106: 192.6412963 | BW106: 382.2031215 | BX106: 25127.16439 | BZ106: 695.4626352 | CA106: 681.9269619 | CB106: 1453.992783 | CC106: 2831.38238
B107: 21C0164377 | E107: 0 | F107: 0 | H107: 0 | I107: 0 | J107: 0 | K107: 0 | L107: 0 | M107: 0 | N107: 0 | O107: 0 | P107: 0 | Q107: 0 | R107: 0 | S107: 0 | T107: 0 | V107: 0 | W107: 0 | X107: 0 | Y107: 0 | Z107: 0 | AA107: 0 | AB107: 0 | AC107: 0 | AD107: 0 | AE107: 0 | AF107: 0 | AG107: 0 | AH107: 0 | AJ107: 0 | AK107: 0 | AL107: 0 | AM107: 0 | AN107: 0 | AO107: 0 | AP107: 0 | AQ107: 0 | AR107: 0 | AS107: 0 | AT107: 0 | AU107: 0 | AV107: 0 | AX107: 0 | AY107: 0 | AZ107: 0 | BA107: 0 | BB107: 0 | BC107: 0 | BD107: 0 | BE107: 0 | BF107: 0 | BG107: 0 | BH107: 0 | BI107: 0 | BJ107: 0 | BL107: 0 | BM107: 0 | BN107: 0 | BO107: 0 | BP107: 0 | BQ107: 0 | BR107: 0 | BS107: 0 | BT107: 0 | BU107: 0 | BV107: 0 | BW107: 0 | BX107: 0 | BZ107: 0 | CA107: 0 | CB107: 0 | CC107: 0
B108: 20H0695880 | E108: 0 | F108: 0 | H108: 0 | I108: 0 | J108: 0 | K108: 0 | L108: 0 | M108: 0 | N108: 0 | O108: 0 | P108: 0 | Q108: 0 | R108: 0 | S108: 0 | T108: 0 | V108: 0 | W108: 0 | X108: 0 | Y108: 0 | Z108: 0 | AA108: 0 | AB108: 0 | AC108: 0 | AD108: 0 | AE108: 0 | AF108: 0 | AG108: 0 | AH108: 0 | AJ108: 0 | AK108: 0 | AL108: 0 | AM108: 0 | AN108: 0 | AO108: 0 | AP108: 0 | AQ108: 0 | AR108: 0 | AS108: 0 | AT108: 0 | AU108: 0 | AV108: 0 | AX108: 0 | AY108: 0 | AZ108: 0 | BA108: 0 | BB108: 0 | BC108: 0 | BD108: 0 | BE108: 0 | BF108: 0 | BG108: 0 | BH108: 0 | BI108: 0 | BJ108: 0 | BL108: 0 | BM108: 0 | BN108: 0 | BO108: 0 | BP108: 0 | BQ108: 0 | BR108: 0 | BS108: 0 | BT108: 0 | BU108: 0 | BV108: 0 | BW108: 0 | BX108: 0 | BZ108: 0 | CA108: 0 | CB108: 0 | CC108: 0
B109: 21D0779652 | F109: =SUM(E109) -> 0 | H109: 0 | I109: 0 | J109: 0 | K109: 0 | L109: 0 | M109: 0 | N109: 0 | O109: 0 | P109: 0 | Q109: 0 | R109: 0 | S109: 0 | T109: =SUM(H109:S109) -> 0 | V109: 0 | W109: 0 | X109: 0 | Y109: 0 | Z109: 0 | AA109: 0 | AB109: 0 | AC109: 0 | AD109: -30179.42245 | AE109: -20011.27436 | AF109: -13663.77 | AG109: 27479.69411 | AH109: -36374.7727 | AJ109: 18947.57044 | AK109: 28448.18037 | AL109: 24154.24549 | AM109: 37280.77328 | AN109: 31338.67664 | AO109: 26835.60017 | AP109: 10065.73645 | AQ109: -3432.990266 | AR109: 4991.774895 | AS109: 9388.986065 | AT109: 10342.78134 | AU109: 9071.544453 | AV109: 207432.8793 | AX109: 10276.58803 | AY109: 0 | AZ109: 0 | BA109: 0 | BB109: 0 | BC109: 0 | BD109: 0 | BE109: 0 | BF109: 0 | BG109: 0 | BH109: 0 | BI109: 0 | BJ109: 10276.58803 | BL109: 0 | BM109: 0 | BN109: 0 | BO109: 0 | BP109: 0 | BQ109: 0 | BR109: 0 | BS109: 0 | BT109: 0 | BU109: 0 | BV109: 0 | BW109: 0 | BX109: 0 | BZ109: 0 | CA109: 0 | CB109: 0 | CC109: 0
B110: 21H0891311 | F110: =SUM(E110) -> 0 | H110: 0 | I110: 0 | J110: 0 | K110: 0 | L110: 0 | M110: 0 | N110: 0 | O110: 0 | P110: 0 | Q110: 0 | R110: 0 | S110: 0 | T110: =SUM(H110:S110) -> 0 | V110: 0 | W110: 0 | X110: 0 | Y110: 0 | Z110: 0 | AA110: 0 | AB110: 0 | AC110: 0 | AD110: -53560.16037 | AE110: -28158.73579 | AF110: -22607.51188 | AG110: 0 | AH110: -104326.4081 | AJ110: 134680.5 | AK110: 0 | AL110: 0 | AM110: 0 | AN110: 0 | AO110: 0 | AP110: 222917.3684 | AQ110: -6502.862296 | AR110: 0 | AS110: 0 | AT110: 0 | AU110: 0 | AV110: 351095.0061 | AX110: 103291.3915 | AY110: 0 | AZ110: 0 | BA110: 0 | BB110: 0 | BC110: 0 | BD110: 122971.6566 | BE110: 5703.711954 | BF110: 0 | BG110: 660.3324823 | BH110: 0 | BI110: 0 | BJ110: 232627.0925 | BL110: 0 | BM110: 0 | BN110: 0 | BO110: 0 | BP110: 471009.7537 | BQ110: 21869.89259 | BR110: 5900.043517 | BS110: 3026.999389 | BT110: 0 | BU110: 0 | BV110: 0 | BW110: 0 | BX110: 501806.6892 | BZ110: 0 | CA110: 0 | CB110: 0 | CC110: 0
B111: 22I0098043 | F111: 0 | H111: 0 | I111: 0 | J111: 0 | K111: 0 | L111: 0 | M111: 0 | N111: 0 | O111: 0 | P111: 0 | Q111: 0 | R111: 0 | S111: 0 | T111: 0 | V111: 0 | W111: 0 | X111: 0 | Y111: 0 | Z111: 0 | AA111: 0 | AB111: 0 | AC111: 0 | AD111: 0 | AE111: 0 | AF111: 0 | AG111: 12795.40084 | AH111: 12795.40084 | AJ111: 11589.66168 | AK111: 16805.89912 | AL111: 24311.51756 | AM111: 0 | AN111: 18383.32462 | AO111: 45398.76957 | AP111: 6333.159831 | AQ111: 51476.86586 | AR111: 3295.346046 | AS111: 6251.271843 | AT111: 0 | AU111: 0 | AV111: 183845.8161 | AX111: 101050.6105 | AY111: 15707.10416 | AZ111: 11438.71832 | BA111: 11871.83714 | BB111: 14712.18453 | BC111: 10135.31203 | BD111: 12250.81557 | BE111: 5516.072534 | BF111: 29118.17128 | BG111: -516.4799823 | BH111: 11217.81927 | BI111: 11313.5436 | BJ111: 233815.7089 | BL111: 9880.187031 | BM111: 12958.21521 | BN111: 3871.642789 | BO111: 31088.35175 | BP111: 13098.18403 | BQ111: 9874.248507 | BR111: 5815.068171 | BS111: 5299.48875 | BT111: 5617.195192 | BU111: -2344.368269 | BV111: 10059.48989 | BW111: 1839.563863 | BX111: 107057.2669 | BZ111: 3610.433182 | CA111: 6474.517146 | CB111: 6433.893169 | CC111: 16518.8435
B112: 23C2831601 | F112: 0 | T112: 0 | AH112: 0 | AJ112: 0 | AK112: 0 | AL112: 0 | AM112: 0 | AN112: 0 | AO112: 0 | AP112: 0 | AQ112: 0 | AR112: 0 | AS112: 0 | AT112: 0 | AU112: 0 | AV112: 0 | AX112: 0 | AY112: 0 | AZ112: 0 | BA112: 0 | BB112: 0 | BC112: 0 | BD112: 0 | BE112: 0 | BF112: 0 | BG112: 0 | BH112: 0 | BI112: 0 | BJ112: 0 | BL112: 0 | BM112: 0 | BN112: 0 | BO112: 0 | BP112: 0 | BQ112: 0 | BR112: 0 | BS112: 0 | BT112: 0 | BU112: 0 | BV112: 0 | BW112: 0 | BX112: 0 | BZ112: 0 | CA112: 0 | CB112: 0 | CC112: 0
B113: 23D1557666 | F113: 0 | T113: 0 | AH113: 0 | AJ113: 0 | AK113: 0 | AL113: 0 | AM113: 0 | AN113: 0 | AO113: 4550.76 | AP113: 4446.668976 | AQ113: 4633.275177 | AR113: 4679.689171 | AS113: 4570.559255 | AT113: 4774.486847 | AU113: 4670.558729 | AV113: 32325.99816 | AX113: 4881.208137 | AY113: 23124.16756 | AZ113: 52781.67232 | BA113: 87680.08246 | BB113: 5949.02891 | BC113: 6218.004769 | BD113: 21939.20668 | BE113: 38434.87457 | BF113: 5120.728763 | BG113: 13538.32991 | BH113: 20913.55618 | BI113: 20845.59339 | BJ113: 301426.4536 | BL113: 16974.827 | BM113: 21427.98283 | BN113: 6583.945694 | BO113: 43326.54817 | BP113: 31436.01742 | BQ113: 17033.37632 | BR113: 10185.14725 | BS113: 7532.335433 | BT113: 7945.188915 | BU113: 0 | BV113: 14258.11238 | BW113: 2614.057241 | BX113: 179317.5387 | BZ113: 5190.048397 | CA113: 9456.342216 | CB113: 8914.578024 | CC113: 23560.96864
B114: 23F1568486 | F114: 0 | T114: 0 | AH114: 0 | AJ114: 0 | AK114: 0 | AL114: 0 | AM114: 0 | AN114: 0 | AO114: 231016.863 | AP114: 11670.9361 | AQ114: 0 | AR114: 5215.489122 | AS114: 10715.16437 | AT114: 11149.28015 | AU114: 10279.65039 | AV114: 280047.3831 | AX114: 11978.0115 | AY114: 23693.94967 | AZ114: 17744.12325 | BA114: 0 | BB114: 41256.94428 | BC114: 15764.59427 | BD114: 9016.500614 | BE114: 4483.30543 | BF114: 16953.28541 | BG114: 0 | BH114: 31211.58186 | BI114: 17986.35023 | BJ114: 190088.6465 | BL114: 15257.09742 | BM114: 20191.66569 | BN114: 0 | BO114: 0 | BP114: 11813.47536 | BQ114: 0 | BR114: 8218.087176 | BS114: 0 | BT114: 51639.09 | BU114: 0 | BV114: 0 | BW114: 4007.548729 | BX114: 111126.9644 | BZ114: 3207.773648 | CA114: 3137.490309 | CB114: 3117.773828 | CC114: 9463.037785
B115: 23J0108650 | F115: 0 | T115: 0 | AH115: 0 | AJ115: 0 | AK115: 0 | AL115: 0 | AM115: 0 | AN115: 0 | AO115: 0 | AP115: 0 | AQ115: 0 | AR115: 0 | AS115: 0 | AT115: 0 | AU115: 5866.653931 | AV115: 5866.653931 | AX115: 1645.366181 | AY115: 1668.233749 | AZ115: 1578.405631 | BA115: 1714.113933 | BB115: 1674.882187 | BC115: 1750.855572 | BD115: 1713.943078 | BE115: 1790.030189 | BF115: 1810.46703 | BG115: 25659.66111 | BH115: 5812.898989 | BI115: 5775.4387 | BJ115: 52594.29635 | BL115: 2002.616385 | BM115: 1610.916805 | BN115: 13070.80243 | BO115: 36659.82613 | BP115: 15651.74816 | BQ115: 12005.10951 | BR115: 7249.011093 | BS115: 4286.999499 | BT115: 0 | BU115: 0 | BV115: 7672.937245 | BW115: 1436.291186 | BX115: 101646.2584 | BZ115: 2857.080178 | CA115: 5206.60412 | CB115: 5168.993565 | CC115: 13232.67786
B116: 23G1476822 | F116: 0 | T116: 0 | AH116: 0 | AJ116: 0 | AK116: 0 | AL116: 0 | AM116: 0 | AN116: 0 | AO116: 0 | AP116: 0 | AQ116: 0 | AR116: 0 | AS116: 0 | AT116: 0 | AU116: 0 | AV116: =SUM(AJ116:AU116) -> 0 | AX116: 125203.245 | AY116: 56343.19886 | AZ116: 84549.86399 | BA116: 64821.96423 | BB116: 47234.00129 | BC116: 35079.17242 | BD116: 10419.04929 | BE116: 3706.932244 | BF116: 8137.32291 | BG116: 1813.294514 | BH116: 0 | BI116: 0 | BJ116: 437308.0448 | BL116: 0 | BM116: 0 | BN116: 0 | BO116: 0 | BP116: 0 | BQ116: 0 | BR116: 0 | BS116: 0 | BT116: 0 | BU116: 0 | BV116: 0 | BW116: 0 | BX116: 0 | BZ116: 0 | CA116: 0 | CB116: 0 | CC116: 0
B117: 23G1477566 | F117: 0 | T117: 0 | AH117: 0 | AJ117: 0 | AK117: 0 | AL117: 0 | AM117: 0 | AN117: 0 | AO117: 0 | AP117: 0 | AQ117: 0 | AR117: 0 | AS117: 0 | AT117: 0 | AU117: 122850.0429 | AV117: 122850.0429 | AX117: 105826.4571 | AY117: 147058.6901 | AZ117: 138951.9788 | BA117: 107419.255 | BB117: 78271.08159 | BC117: 58131.20003 | BD117: 17265.85316 | BE117: 6142.916292 | BF117: 13484.70654 | BG117: 3004.888053 | BH117: 0 | BI117: 0 | BJ117: 675557.0268 | BL117: 0 | BM117: 0 | BN117: 0 | BO117: 0 | BP117: 0 | BQ117: 0 | BR117: 0 | BS117: 0 | BT117: 0 | BU117: 0 | BV117: 0 | BW117: 0 | BX117: 0 | BZ117: 0 | CA117: 0 | CB117: 0 | CC117: 0
B118: 22I2046002 | F118: 0 | T118: 0 | AH118: 0 | AJ118: 0 | AK118: 0 | AL118: 0 | AM118: 0 | AN118: 0 | AO118: 0 | AP118: 0 | AQ118: 25304.85203 | AR118: 5817.648289 | AS118: 101126.8262 | AT118: 12395.14424 | AU118: 11347.21902 | AV118: 155991.6898 | AX118: 12963.48309 | AY118: 25412.40382 | AZ118: 18510.49295 | BA118: 16459.80003 | BB118: 26548.41635 | BC118: 16408.34105 | BD118: 19844.6609 | BE118: 8931.149585 | BF118: 10261.3186 | BG118: 0 | BH118: 0 | BI118: 0 | BJ118: 155340.0664 | BL118: 0 | BM118: 0 | BN118: 0 | BO118: 0 | BP118: 0 | BQ118: 9873.901998 | BR118: 5807.088445 | BS118: 2894.959705 | BT118: 3065.941889 | BU118: 5419.899744 | BV118: 5484.011756 | BW118: 1001.520847 | BX118: 33547.32438 | BZ118: 1964.979635 | CA118: 3521.637148 | CB118: 3501.230754 | CC118: 8987.847537
B119: 22I2046003 | F119: 0 | T119: 0 | AH119: 0 | AJ119: 0 | AK119: 0 | AL119: 0 | AM119: 0 | AN119: 3273.71837 | AO119: 14500.07217 | AP119: 5355.529376 | AQ119: 23152.17567 | AR119: 2783.219512 | AS119: 5278.786369 | AT119: 0 | AU119: 53047.87369 | AV119: 107391.3752 | AX119: 0 | AY119: 19791.29697 | AZ119: 9670.056031 | BA119: 8675.304778 | BB119: 13813.0732 | BC119: 8583.2529 | BD119: 10381.15384 | BE119: 4677.190625 | BF119: 24668.31331 | BG119: -438.1588953 | BH119: 9522.71747 | BI119: 9610.140579 | BJ119: 118954.3408 | BL119: 8397.885266 | BM119: 11022.09177 | BN119: 3295.897911 | BO119: 26484.02609 | BP119: 11167.56156 | BQ119: 8425.63017 | BR119: 4966.471766 | BS119: 4529.589857 | BT119: 4805.42512 | BU119: -2005.578823 | BV119: 8612.483602 | BW119: 1576.528791 | BX119: 91278.01307 | BZ119: 3096.919429 | CA119: 5558.978001 | CB119: 5528.397577 | CC119: 14184.29501
B120: 22C0978890 | F120: 0 | T120: 0 | AH120: 0 | AJ120: 0 | AK120: 0 | AL120: 0 | AM120: 0 | AN120: 0 | AO120: 0 | AP120: 0 | AQ120: 0 | AR120: 0 | AS120: 0 | AT120: 0 | AU120: 0 | AV120: =SUM(AJ120:AU120) -> 0 | AX120: 0 | AY120: 0 | AZ120: 0 | BA120: 0 | BB120: 0 | BC120: 0 | BD120: 0 | BE120: 0 | BF120: 0 | BG120: 0 | BH120: 0 | BI120: 0 | BJ120: 0 | BL120: 0 | BM120: 0 | BN120: 0 | BO120: 0 | BP120: 0 | BQ120: 0 | BR120: 0 | BS120: 0 | BT120: 0 | BU120: 0 | BV120: 0 | BW120: 0 | BX120: 0 | BZ120: 0 | CA120: 0 | CB120: 0 | CC120: 0
B121: 24G1773090 | BF121: 0 | BG121: 0 | BH121: 0 | BI121: 0 | BJ121: 0 | BL121: 0 | BM121: 0 | BN121: 0 | BO121: 0 | BP121: 0 | BQ121: 0 | BR121: 0 | BS121: 141080.9019 | BT121: 0 | BU121: 48572.82007 | BV121: 71211.67178 | BW121: 8135.04 | BX121: 269000.4337 | BZ121: 16280.04165 | CA121: 29842.13095 | CB121: 29841.67898 | CC121: 75963.85159
B122: 24G2730557 | BF122: 26222.70723 | BG122: -409.4012835 | BH122: 8911.681549 | BI122: 8998.075527 | BJ122: 43723.06303 | BL122: 7872.638932 | BM122: 10349.33027 | BN122: 3104.850603 | BO122: 25029.12589 | BP122: 10572.43438 | BQ122: 7999.592993 | BR122: 4728.886234 | BS122: 4322.077607 | BT122: 4595.998827 | BU122: -1922.199213 | BV122: 8272.495145 | BW122: 1518.995054 | BX122: 86444.22672 | BZ122: 2992.473285 | CA122: 5385.585632 | CB122: 5363.326728 | CC122: 13741.38564
B123: 24G2730555 | BF123: 97681.4621 | BG123: 0 | BH123: 58131.60183 | BI123: 66042.68166 | BJ123: 221855.7456 | BL123: 69363.42449 | BM123: 65359.67791 | BN123: 19625.95434 | BO123: 158662.4828 | BP123: 67355.14723 | BQ123: 43681.20068 | BR123: 25848.92732 | BS123: 18001.63579 | BT123: 55917.73459 | BU123: -6717.456333 | BV123: 28906.44722 | BW123: 5313.316487 | BX123: 551318.4925 | BZ123: 10469.37358 | CA123: 18861.46083 | CB123: 18785.68025 | CC123: 48116.51467
B124: 24G1249772 | BG124: 0 | BH124: 15648.33486 | BI124: 8312.2253 | BJ124: 23960.56016 | BL124: 49460.11246 | BM124: 25983.34941 | BN124: 7940.843215 | BO124: 59384.60373 | BP124: 32540.9679 | BQ124: 20290.57649 | BR124: 12168.8181 | BS124: 10165.27926 | BT124: 2085.686326 | BU124: 0 | BV124: 3763.005726 | BW124: 699.4129145 | BX124: 224482.6555 | BZ124: 1382.484291 | CA124: 2491.580802 | CB124: 2452.02615 | CC124: 6326.091243
B125: 24L1965061 | BM125: 0 | BN125: 0 | BO125: 15400.76961 | BP125: 15236.74467 | BQ125: 11679.98022 | BR125: 6937.698981 | BS125: 6358.781401 | BT125: 6791.406725 | BU125: -2850.536604 | BV125: 12304.29125 | BW125: 2270.861662 | BX125: 74129.99791 | BZ125: 4489.731913 | CA125: 8118.457376 | CB125: 8109.20822 | CC125: 20717.39751
B126: 24L2959379 | BI126: 0 | BJ126: 0 | BL126: 11211.41491 | BM126: 9018.530284 | BN126: 18700.72308 | BO126: 31290.37292 | BP126: 13319.08061 | BQ126: 11292.68999 | BR126: 5529.049927 | BS126: 5097.72936 | BT126: 5514.121117 | BU126: 0 | BV126: 36204.18414 | BW126: 6466.729498 | BX126: 153644.6258 | BZ126: 12863.66222 | CA126: 23441.77406 | CB126: 23302.86902 | CC126: 59608.3053
B127: 24E3185606 | BG127: 0 | BH127: 0 | BI127: 0 | BJ127: 0 | BL127: 0 | BM127: 0 | BN127: 0 | BO127: 0 | BP127: 0 | BQ127: 0 | BR127: 0 | BS127: 0 | BT127: 0 | BU127: 0 | BV127: 0 | BW127: 0 | BX127: 0 | BZ127: 0 | CA127: 0 | CB127: 0 | CC127: 0
B128: 24L1964965 | BO128: 25880.81847 | BP128: 32189.55769 | BQ128: 31927.59328 | BR128: 18945.15136 | BS128: 17347.09665 | BT128: 18509.48584 | BU128: -7761.752718 | BV128: 33466.84268 | BW128: 6169.790555 | BX128: 176674.5838 | BZ128: 12185.27325 | CA128: 22013.29952 | CB128: 21968.79238 | CC128: 56167.36515
B129: 25C2809324 | BQ129: 2088.316865 | BR129: 5538.880812 | BS129: 5111.961014 | BT129: 5535.054733 | BU129: -2274.834564 | BV129: 9742.438986 | BW129: 1824.681689 | BX129: 27566.49953 | BZ129: 3637.687297 | CA129: 6633.458908 | CB129: 6597.872163 | CC129: 16869.01837
B130: 25C2809326 | BQ130: 13673.83258 | BR130: 8206.361246 | BS130: 7573.979137 | BT130: 8201.096365 | BU130: -3374.739587 | BV130: 14461.77535 | BW130: 2700.755442 | BX130: 51443.06053 | BZ130: 5375.203206 | CA130: 9784.504315 | CB130: 9667.76171 | CC130: 24827.46923
B131: 22C0978882 | F131: 0 | T131: 0 | AH131: 0 | AJ131: 0 | AK131: 0 | AL131: 0 | AM131: 0 | AN131: 0 | AO131: 0 | AP131: 0 | AQ131: 0 | AR131: 0 | AS131: 0 | AT131: 0 | AU131: 0 | AV131: =SUM(AJ131:AU131) -> 0 | AX131: 0 | AY131: 0 | AZ131: 0 | BA131: 0 | BB131: 0 | BC131: 0 | BD131: 0 | BE131: 0 | BF131: 0 | BG131: 0 | BH131: 0 | BI131: 0 | BJ131: 0 | BL131: 0 | BM131: 0 | BN131: 0 | BO131: 0 | BP131: 0 | BQ131: 0 | BR131: 0 | BS131: 0 | BT131: 0 | BU131: 0 | BV131: 0 | BW131: 0 | BX131: 0 | BZ131: 0 | CA131: 0 | CB131: 0 | CC131: 0
B132: 23L1538459 | BS132: 8935.783431 | BT132: 8986.882383 | BU132: 8957.099855 | BV132: 0 | BW132: 10702.77495 | BZ132: 8761.880143 | CA132: 0 | CB132: 3766.46256 | CC132: 12528.3427
B133: 25G5830826 | BV133: 1965.639101 | BW133: 1956.393266 | BZ133: 3899.945313 | CA133: 7111.786213 | CB133: 7074.321913 | CC133: 18086.05344
B134: 25A3992922 | BS134: 0 | BT134: 0 | BU134: 0 | BV134: 0 | BW134: 0 | BZ134: 0 | CA134: 0 | CB134: 0 | CC134: =SUM(BZ134:CB134) -> 0
B135: Ganho/ Perda Capital (CRI) | E135: 0 | F135: 0 | H135: 114346.65 | I135: 0 | J135: 295116.89 | K135: -120008.4096 | L135: 230488.5322 | M135: 156376.9928 | N135: 136084.93 | O135: 30225.18 | P135: 0 | Q135: 0 | R135: 30057.93 | S135: 0 | T135: 872688.6954 | V135: 0 | W135: 0 | X135: 353877.49 | Y135: 267530.95 | Z135: 625304.72 | AA135: 485659.82 | AB135: 23909.90129 | AC135: 11457.26 | AD135: 128263.5487 | AE135: -5343.96 | AF135: 0 | AG135: 0 | AH135: 1890659.73 | AJ135: 11068.62 | AK135: 0 | AL135: 0 | AM135: 0 | AN135: -31798.05823 | AO135: 0 | AP135: 0 | AQ135: 188468.0811 | AR135: 0 | AS135: 0 | AT135: 0 | AU135: 0 | AV135: =SUM(AJ135:AU135) -> 167738.6428 | AX135: 0 | AY135: 46538.16155 | AZ135: -2826.479012 | BA135: 0 | BB135: 0 | BC135: -15259.4541 | BD135: 0 | BE135: 36054.57741 | BF135: 0 | BG135: 0 | BH135: 0 | BI135: 27869.52129 | BJ135: =SUM(AX135:BI135) -> 92376.32714 | BL135: 0 | BM135: -35059.15 | BN135: 69320.91006 | BO135: 219649.58 | BP135: 4392.18 | BQ135: 45656.64 | BR135: 12401.24747 | BS135: 26916.76442 | BT135: 24796.47809 | BU135: 2468.219129 | BV135: 2056.700745 | BW135: 1439.999012 | BX135: =SUM(BL135:BW135) -> 374039.5689 | BZ135: 1892152.856 | CA135: -2941.103492 | CB135: 9717.021574 | CC135: =SUM(BZ135:CB135) -> 1898928.774
B136: Renda Fixa | E136: 574.76 | F136: =SUM(E136) -> 574.76 | H136: 2250.5 | I136: 54.11 | J136: 8305.23 | K136: 13984.83 | L136: 17541.36 | M136: 4996.71 | N136: 12277.62 | O136: 13826.21 | P136: 6061.89 | Q136: 14531.04 | R136: 10867.6 | S136: 13975.57 | T136: =SUM(H136:S136) -> 118672.67 | V136: 17552.83 | W136: 19326.01 | X136: 23260.53 | Y136: 24300.89 | Z136: 10930.11 | AA136: 53936.7 | AB136: 109451.04 | AC136: 95014.66 | AD136: 20668.75 | AE136: 14376.87 | AF136: 11776.12 | AG136: 22444.34 | AH136: =SUM(V136:AG136) -> 423038.85 | AJ136: 13421.99 | AK136: 11017.11 | AL136: 15857.37 | AM136: 15482.14 | AN136: 38753.58 | AO136: 80431.21 | AP136: 86011.5 | AQ136: 52795.63 | AR136: 42032.36 | AS136: 56794.08 | AT136: 45578.32 | AU136: 44207.01 | AV136: 502382.3 | AX136: 34851.64 | AY136: 28069.08 | AZ136: 30022.09 | BA136: 30957.85 | BB136: 20804.24 | BC136: 30536.67 | BD136: 10240.19 | BE136: 12815.07 | BF136: 16939.14 | BG136: 14846.37 | BH136: 7612.07 | BI136: 11705.03 | BJ136: =SUM(AX136:BI136) -> 249399.44 | BL136: 21023.9 | BM136: 11415.33 | BN136: 6175.79 | BO136: 29656.6 | BP136: 41070.72 | BQ136: 37111.23 | BR136: 27549.34 | BS136: 16429.54 | BT136: 25043.92 | BU136: 7335.6 | BV136: 39097.55 | BW136: 12276.7 | BX136: =SUM(BL136:BW136) -> 274186.22 | BZ136: 27531.84 | CA136: 25838.22 | CB136: 25621.3369 | CC136: 78991.3969
B137: Rendimentos FIIs | F137: 0 | T137: 0 | AH137: 0 | AJ137: 0 | AK137: 0 | AL137: 0 | AM137: 0 | AN137: 0 | AO137: 0 | AP137: 0 | AQ137: 11801 | AR137: 0 | AS137: 2151.92 | AT137: 2148 | AU137: 2148 | AV137: 18248.92 | AX137: 2362.8 | AY137: 953 | AZ137: 53965.96 | BA137: 83160.45 | BB137: 72753.85 | BC137: 72753.85 | BD137: 69295.85 | BE137: 67980.25 | BF137: 67980.25 | BG137: 69634.5 | BH137: 71966.05 | BI137: 71966.05 | BJ137: =SUM(AX137:BI137) -> 704772.86 | BL137: 67680.25 | BM137: 66026 | BN137: 63201.7 | BO137: 63201.7 | BP137: 36905.1 | BQ137: 34453.1 | BR137: 34453.1 | BS137: 34453.1 | BT137: 34453.1 | BU137: 34453.1 | BV137: 36050.12 | BW137: 26511.2 | BX137: =SUM(BL137:BW137) -> 531841.57 | BZ137: 26468 | CA137: 26468 | CB137: 27460.55 | CC137: 80396.55
B138: Ganho/ Perda Capital (FIIs) | F138: 0 | T138: 0 | AH138: 0 | AJ138: 0 | AK138: 0 | AL138: 0 | AM138: 0 | AN138: 0 | AO138: 0 | AP138: 0 | AQ138: 0 | AR138: 340288.18 | AS138: 26142.78 | AT138: 0 | AU138: 0 | AV138: 366430.96 | AX138: 0 | AY138: 18056.16 | AZ138: 173.25 | BA138: -3797.88 | BB138: -233.87 | BC138: 1610.81 | BD138: 176.01 | BE138: 0 | BF138: 0 | BG138: 0 | BH138: 0 | BI138: 0 | BJ138: =SUM(AX138:BI138) -> 15984.48 | BL138: -5297.1 | BM138: 0 | BN138: -50994.65 | BO138: -370725.96 | BP138: -79096.51 | BQ138: 0 | BR138: 0 | BS138: 0 | BT138: 0 | BU138: 94770.33 | BV138: -13476.69 | BW138: -400.14 | BX138: =SUM(BL138:BW138) -> -425220.72 | BZ138: 0 | CA138: 0 | CB138: 156344.96 | CC138: =SUM(BZ138:CB138) -> 156344.96
B139: Ganho de Capital Imóveis | F139: 0 | T139: 0 | AH139: 0 | AV139: 0 | BJ139: 0 | BL139: 0 | BM139: 0 | BN139: 0 | BO139: 0 | BP139: 0 | BQ139: 0 | BR139: 0 | BS139: 0 | BT139: 0 | BU139: 138075.29 | BV139: 0 | BW139: 81464.43 | BX139: =SUM(BL139:BW139) -> 219539.72 | BZ139: 0 | CA139: 149348 | CB139: 0 | CC139: =SUM(BZ139:CB139) -> 149348
B141: Receitas Totais | E141: =E11+E74+E135+E136 -> 74054.90813 | F141: =SUM(E141) -> 74054.90813 | H141: =H11+H74+H135+H136 -> 393372.2636 | I141: 286146.4934 | J141: 861913.7991 | K141: 901663.5061 | L141: 864798.7944 | M141: 1005859.075 | N141: 1114755.09 | O141: 1008646.559 | P141: 1028661.631 | Q141: 1137351.275 | R141: 1631834.447 | S141: 1221507.265 | T141: 11456510.2 | V141: =V11+V74+V135+V136 -> 1416854.205 | W141: 1480196.291 | X141: 1560814.061 | Y141: 1535370.267 | Z141: 1757998.688 | AA141: 1879330.889 | AB141: 1706378.913 | AC141: 1273140.099 | AD141: 1287700.41 | AE141: 1331320.124 | AF141: 1620459.468 | AG141: 1368406.543 | AH141: 18217969.96 | AJ141: =AJ11+AJ74+AJ135+AJ136 -> 1531048.037 | AK141: 1431634.065 | AL141: 1567250.234 | AM141: 1608694.008 | AN141: 1477551.574 | AO141: 1812748.578 | AP141: 1729967.191 | AQ141: =AQ11+AQ74+AQ135+AQ136+AQ137+AQ138 -> 1571713.844 | AR141: 1700986.421 | AS141: 1440460.568 | AT141: 1699051.275 | AU141: 1610484.989 | AV141: 19181590.78 | AX141: =AX11+AX74+AX135+AX136+AX137+AX138 -> 1614428.389 | AY141: 1668008.111 | AZ141: 1572156.39 | BA141: 1407526.751 | BB141: 1353671.777 | BC141: 1329562.534 | BD141: 1519262.656 | BE141: 1206315.617 | BF141: 1460102.649 | BG141: 1889857.125 | BH141: 1302328.432 | BI141: =BI11+BI74+BI135+BI136+BI137+BI138 -> 1344617.5 | BJ141: =BJ11+BJ74+BJ135+BJ136+BJ137+BJ138 -> 17667837.93 | BL141: =BL11+BL74+BL135+BL136+BL137+BL138 -> 1398246.762 | BM141: 1378189.929 | BN141: 1501255.034 | BO141: 1536129.758 | BP141: 1710223.087 | BQ141: 1321795.424 | BR141: =BR11+BR74+BR135+BR136+BR137+BR138 -> 1363698.408 | BS141: =BS11+BS74+BS135+BS136+BS137+BS138 -> 1457898.083 | BT141: =BT11+BT74+BT135+BT136+BT137+BT138 -> 1272540.67 | BU141: =BU11+BU74+BU135+BU136+BU137+BU138+BU139 -> 1291465.871 | BV141: =BV11+BV74+BV135+BV136+BV137+BV138+BV139 -> 1499174.723 | BW141: =BW11+BW74+BW135+BW136+BW137+BW138+BW139 -> 1223360.762 | BX141: =BX11+BX74+BX135+BX136+BX137+BX138+BX139 -> 16953978.51 | BZ141: =BZ11+BZ74+BZ135+BZ136+BZ137+BZ138 -> 2949479.248 | CA141: =CA11+CA74+CA135+CA136+CA137+CA138 -> 1125637.826 | CB141: =CB11+CB74+CB135+CB136+CB137+CB138 -> 1212355.577 | CC141: =CC11+CC74+CC135+CC136+CC137+CC138 -> 5287472.651
B143: Despesas Operacionais
B144: Despesas com taxa Anbima | E144: 0 | F144: 0 | H144: 0 | I144: 0 | J144: 0 | K144: 0 | L144: 0 | M144: -330.5 | N144: -330.5 | O144: -330.5 | P144: -330.5 | Q144: -330.5 | R144: -330.5 | S144: -330.5 | T144: =SUM(H144:S144) -> -2313.5 | V144: -330.5 | W144: -330.5 | X144: -330.5 | Y144: -330.5 | Z144: -330.5 | AA144: 0 | AB144: -661 | AC144: -330.5 | AD144: -330.5 | AE144: -330.5 | AF144: -330.5 | AG144: -330.5 | AH144: =SUM(V144:AG144) -> -3966 | AJ144: -330.5 | AK144: -314 | AL144: -314 | AM144: -314 | AN144: -314 | AO144: -314 | AP144: -314 | AQ144: -314 | AR144: -314 | AS144: -314 | AT144: -314 | AU144: -314 | AV144: =SUM(AJ144:AU144) -> -3784.5 | AX144: -314 | AY144: -314 | AZ144: -314 | BA144: -314 | BB144: -314 | BC144: -314 | BD144: -314 | BE144: -314 | BF144: -314 | BG144: -314 | BH144: -314 | BI144: -314 | BJ144: =SUM(AX144:BI144) -> -3768 | BL144: -314 | BM144: -314 | BN144: -314 | BO144: -314 | BP144: -314 | BQ144: -314 | BR144: -314 | BS144: -314 | BT144: -314 | BU144: -314 | BV144: -314 | BW144: -628 | BX144: =SUM(BL144:BW144) -> -4082 | BZ144: 0 | CA144: -628 | CB144: 0 | CC144: =SUM(BZ144:CB144) -> -628
B145: Despesas com taxa Cetip | E145: 0 | F145: 0 | H145: 0 | I145: -1093.52 | J145: -941.28 | K145: -1863.52 | L145: -1636.64 | M145: -2397.37 | N145: -1763.81 | O145: -1647.62 | P145: -1855.17 | Q145: -1786.99 | R145: -2344.32 | S145: -2354.92 | T145: -19685.16 | V145: -1803.99 | W145: -1940.44 | X145: -1942.04 | Y145: -2087.1 | Z145: -2117.46 | AA145: -2153.64 | AB145: -2267.67 | AC145: -2796.5 | AD145: -3044.88 | AE145: -2960.84 | AF145: -2869.85 | AG145: -2726.53 | AH145: -28710.94 | AJ145: -3154.7 | AK145: -3457.73 | AL145: -2953.82 | AM145: -3080.65 | AN145: -2858.42 | AO145: -3086.76 | AP145: -3024.18 | AQ145: -3338.26 | AR145: -3793.37 | AS145: -3100.84 | AT145: -3348.86 | AU145: -3090.42 | AV145: =SUM(AJ145:AU145) -> -38288.01 | AX145: -3825.56 | AY145: -3629.32 | AZ145: -4116.25 | BA145: -3554.87 | BB145: -3440.97 | BC145: -3339.26 | BD145: -3425.84 | BE145: -3741.66 | BF145: -3384.35 | BG145: -3504.13 | BH145: -3303.27 | BI145: -3392.45 | BJ145: -42657.93 | BL145: -3299.48 | BM145: -2943.42 | BN145: -3109.67 | BO145: -3359.47 | BP145: -3620.24 | BQ145: -3104.3 | BR145: -3461.07 | BS145: -3707.89 | BT145: -3436.69 | BU145: -4026.09 | BV145: -3435.59 | BW145: -3520.75 | BX145: =SUM(BL145:BW145) -> -41024.66 | BZ145: -3016.25 | CA145: -2839.12 | CB145: -3085.95 | CC145: -8941.32
B146: Despesas com taxa Bovespa | E146: 0 | F146: 0 | H146: -860.67 | I146: -860.67 | J146: -860.67 | K146: -860.67 | L146: -860.67 | M146: -860.67 | N146: -860.67 | O146: -860.67 | P146: -860.67 | Q146: -860.67 | R146: -860.67 | S146: -860.69 | T146: -10328.06 | V146: 0 | W146: -1890.76 | X146: -945.38 | Y146: -945.38 | Z146: -945.38 | AA146: -945.38 | AB146: -945.38 | AC146: -945.38 | AD146: -945.38 | AE146: -945.38 | AF146: -945.38 | AG146: -945.39 | AH146: -11344.57 | AJ146: 0 | AK146: -2067.08 | AL146: -1037.55 | AM146: -1037.55 | AN146: -1037.55 | AO146: -1037.55 | AP146: -1037.55 | AQ146: -1037.55 | AR146: -1037.55 | AS146: -1037.55 | AT146: -1037.55 | AU146: -1037.5 | AV146: -12442.53 | AX146: 0 | AY146: -1195.88 | AZ146: -1073.4 | BA146: -1073.38 | BB146: -1073.48 | BC146: -1073.48 | BD146: -1073.48 | BE146: -1073.48 | BF146: -1073.49 | BG146: -1073.48 | BH146: -1073.48 | BI146: -1073.64 | BJ146: -11930.67 | BL146: 0 | BM146: -2777.19 | BN146: -1388.52 | BO146: -1388.6 | BP146: -9821.38 | BQ146: -1388.6 | BR146: -1388.6 | BS146: -1388.6 | BT146: -1388.6 | BU146: -1388.6 | BV146: -1388.6 | BW146: -1388.65 | BX146: -25095.94 | BZ146: 0 | CA146: -17912.89 | CB146: 0 | CC146: -17912.89
B147: Despesas com auditoria externa | E147: 0 | F147: 0 | H147: 0 | I147: 0 | J147: 0 | K147: 0 | L147: 0 | M147: 0 | N147: 0 | O147: -11700 | P147: 0 | Q147: -11700 | R147: 0 | S147: 0 | T147: -23400 | V147: -15600 | W147: 0 | X147: 0 | Y147: 0 | Z147: 0 | AA147: 0 | AB147: 0 | AC147: 0 | AD147: 0 | AE147: -14100 | AF147: -14100 | AG147: 0 | AH147: -43800 | AJ147: -18800 | AK147: 0 | AL147: 0 | AM147: 0 | AN147: 0 | AO147: 0 | AP147: -9000 | AQ147: 0 | AR147: -21000 | AS147: 0 | AT147: 0 | AU147: 0 | AV147: -48800 | AX147: 0 | AY147: 0 | AZ147: 0 | BA147: 0 | BB147: 0 | BC147: -9360 | BD147: 0 | BE147: 0 | BF147: -22840 | BG147: 0 | BH147: 0 | BI147: 0 | BJ147: -32200 | BL147: 0 | BM147: 0 | BN147: 0 | BO147: 0 | BP147: 0 | BQ147: 0 | BR147: -9877.5 | BS147: 0 | BT147: -24047.5 | BU147: 0 | BV147: 0 | BW147: 0 | BX147: -33925 | BZ147: 0 | CA147: 0 | CB147: 0 | CC147: 0
B148: Despesas com taxa de administração do fundo | E148: -15843.34 | F148: -15843.34 | H148: -7338.48 | I148: -15000 | J148: -15000 | K148: -18939.42 | L148: -19708.1 | M148: -19512.71 | N148: -19545.17 | O148: -19611.09 | P148: -20807.58 | Q148: -21882.60264 | R148: -21925.98819 | S148: -22541.647 | T148: -221812.7878 | V148: -22590.61918 | W148: -20838.78293 | X148: -21832.72098 | Y148: -21746.28941 | Z148: -25350 | AA148: -24552.51 | AB148: -25350 | AC148: -25350 | AD148: -25350 | AE148: -25350 | AF148: -25350 | AG148: -27300.37 | AH148: -290961.2925 | AJ148: -26542.93 | AK148: -26542.03 | AL148: -26731.93 | AM148: -26731.93 | AN148: -26731.93 | AO148: -27234.72048 | AP148: -28997.38319 | AQ148: -29056.14024 | AR148: -28592.85522 | AS148: -28272.68557 | AT148: -28338.73679 | AU148: -28762.32584 | AV148: -332535.5973 | AX148: -28672.63797 | AY148: -28722.65212 | AZ148: -28969.83876 | BA148: -28831.44734 | BB148: -28512.00405 | BC148: -28265.53177 | BD148: -26853.95374 | BE148: -26506.912 | BF148: -27240.33 | BG148: -27183.54969 | BH148: -27443.632 | BI148: -27608.67828 | BJ148: -334811.1677 | BL148: -27573.6 | BM148: -27573.6 | BN148: -27573.6 | BO148: -27573.6 | BP148: -27723.55 | BQ148: -27768.11573 | BR148: -27711.11 | BS148: -27573.6 | BT148: -27611.6273 | BU148: -28045.28191 | BV148: -27573.6 | BW148: -27947.41 | BX148: -332248.6949 | BZ148: -27953.27 | CA148: -27953.27 | CB148: -27870.76 | CC148: -83777.3
B149: Despesas com taxa de gestão | E149: 0 | F149: 0 | H149: 0 | I149: 0 | J149: 0 | K149: 0 | L149: -58832.41 | M149: -58050.84 | N149: -58180.69 | O149: -58444.37 | P149: -64094.02 | Q149: -67530.39057 | R149: -67703.97277 | S149: -66609.948 | T149: -499446.6413 | V149: -66805.83673 | W149: -66268.41174 | X149: -65930.88391 | Y149: -65585.15763 | Z149: -61617.46178 | AA149: -62649.32713 | AB149: -75228.6015 | AC149: -74430.57923 | AD149: -76169.13555 | AE149: -75682.54895 | AF149: -75864.05 | AG149: -72534.69818 | AH149: -838766.6923 | AJ149: -72552.79753 | AK149: -71925.19017 | AL149: -72555.90108 | AM149: -73257.45631 | AN149: -73352.85123 | AO149: -86372.20192 | AP149: -92791.62621 | AQ149: -92979.64875 | AR149: -91497.13671 | AS149: -90472.59383 | AT149: -90683.95774 | AU149: -92039.4427 | AV149: -1000480.804 | AX149: -91752.4415 | AY149: -91912.48679 | AZ149: -92703.48404 | BA149: -92260.63148 | BB149: -91238.41295 | BC149: -90449.70168 | BD149: -85567.05496 | BE149: -84178.88801 | BF149: -87112.57 | BG149: -86885.43877 | BH149: -87819.62239 | BI149: -87157.59311 | BJ149: -1069038.326 | BL149: -84536.69913 | BM149: -85873.32129 | BN149: -85795.40603 | BO149: -86387.54 | BP149: -87617.09 | BQ149: -87795.34293 | BR149: -87567.32 | BS149: -86834.46 | BT149: -87169.38919 | BU149: -88904.00765 | BV149: -81514.79727 | BW149: -88756.72 | BX149: -1038752.093 | BZ149: -88780.14 | CA149: -88780.14 | CB149: -88450.13 | CC149: -266010.41
B150: Despesas com taxa de performance | E150: 0 | F150: 0 | H150: 0 | I150: 0 | J150: 0 | K150: 0 | L150: 0 | M150: -271474.32 | N150: 0 | O150: 0 | P150: 0 | Q150: 0 | R150: 0 | S150: 0 | T150: -271474.32 | V150: 0 | W150: 0 | X150: 0 | Y150: 0 | Z150: 0 | AA150: 0 | AB150: 0 | AC150: 0 | AD150: 0 | AE150: 0 | AF150: 0 | AG150: 0 | AH150: 0 | AJ150: 0 | AK150: 0 | AL150: 0 | AM150: 0 | AN150: 0 | AO150: -208219.0015 | AP150: 0 | AQ150: 0 | AR150: 0 | AS150: 0 | AT150: 0 | AU150: -106738.41 | AV150: -314957.4115 | AX150: 0 | AY150: 0 | AZ150: 0 | BA150: 0 | BB150: 0 | BC150: 0 | BD150: 0 | BE150: 0 | BF150: 0 | BG150: 0 | BH150: 0 | BI150: 0 | BJ150: 0 | BL150: 0 | BM150: 0 | BN150: 0 | BO150: 0 | BP150: 0 | BQ150: 0 | BR150: 0 | BS150: 0 | BT150: 0 | BU150: 0 | BV150: 0 | BW150: 0 | BX150: 0 | BZ150: 0 | CA150: 0 | CB150: 0 | CC150: 0
B151: Despesas com taxa de fiscalização da CVM | E151: 0 | F151: 0 | H151: -939.81 | I151: -939.81 | J151: -939.81 | K151: -2004.93 | L151: -2004.93 | M151: -2004.93 | N151: -2004.93 | O151: -3160.66 | P151: -2004.92 | Q151: -2004.93 | R151: -2004.93 | S151: -2004.92 | T151: -22019.51 | V151: 0 | W151: 0 | X151: 0 | Y151: 0 | Z151: -8432.8 | AA151: -3566.19 | AB151: -1686.555 | AC151: -1686.56 | AD151: -1686.56 | AE151: -1686.56 | AF151: -1686.56 | AG151: -1686.5 | AH151: =SUM(V151:AG151) -> -22118.285 | AJ151: 0 | AK151: 0 | AL151: 0 | AM151: 0 | AN151: -8432.775 | AO151: -1686.555 | AP151: -1686.555 | AQ151: -1686.555 | AR151: -1686.555 | AS151: -1686.55 | AT151: -1686.55 | AU151: -1686.55 | AV151: -20238.645 | AX151: 0 | AY151: -951.08 | AZ151: 0 | BA151: 0 | BB151: -8432.8 | BC151: -1686.55 | BD151: -1686.55 | BE151: -1686.55 | BF151: -1686.55 | BG151: -1686.55 | BH151: -1686.55 | BI151: -1686.55 | BJ151: -21189.73 | BL151: 0 | BM151: 0 | BN151: 0 | BO151: 0 | BP151: 0 | BQ151: -1686.55 | BR151: -1686.55 | BS151: -1686.55 | BT151: -1686.55 | BU151: -1686.55 | BV151: -1686.55 | BW151: -1686.59 | BX151: -11805.89 | BZ151: 0 | CA151: 0 | CB151: 0 | CC151: 0
B152: Despesas com Formador de Mercado | F152: 0 | H152: 0 | I152: 0 | J152: 0 | K152: 0 | L152: 0 | M152: 0 | N152: 0 | O152: 0 | P152: 0 | Q152: 0 | R152: 0 | S152: 0 | T152: =SUM(H152:S152) -> 0 | V152: 0 | W152: 0 | X152: 0 | Y152: 0 | Z152: 0 | AA152: 0 | AB152: -11805.94 | AC152: 0 | AD152: -35417.82 | AE152: -17708.91 | AF152: -17708.91 | AG152: -17708.91 | AH152: =SUM(V152:AG152) -> -100350.49 | AJ152: -17708.91 | AK152: -17708.91 | AL152: -17708.91 | AM152: -17708.91 | AN152: -17708.91 | AO152: -17708.91 | AP152: 0 | AQ152: -35417.82 | AR152: -17708.91 | AS152: -17708.91 | AT152: -17708.91 | AU152: -17708.91 | AV152: -212506.92 | AX152: -17708.91 | AY152: -17708.91 | AZ152: -17708.91 | BA152: -17708.91 | BB152: -13282 | BC152: -13701.59 | BD152: -14250.91 | BE152: -14250.91 | BF152: -14250.91 | BG152: -14250.91 | BH152: -14250.91 | BI152: -14250.91 | BJ152: -183324.69 | BL152: -14250.91 | BM152: -14250.91 | BN152: -14250.91 | BO152: -14250.91 | BP152: -14250.91 | BQ152: -14250.91 | BR152: -15009.06 | BS152: -15009.06 | BT152: -15009.06 | BU152: -15009.06 | BV152: -15009.06 | BW152: 0 | BX152: -160550.76 | BZ152: 0 | CA152: -15009.06 | CB152: -15009.06 | CC152: -30018.12
B153: Despesas de operações compromissadas | E153: 0 | F153: 0 | H153: 0 | I153: 0 | J153: 0 | K153: 0 | L153: 0 | M153: 0 | N153: 0 | O153: 0 | P153: 0 | Q153: 0 | R153: 0 | S153: 0 | T153: =SUM(H153:S153) -> 0 | V153: 0 | W153: 0 | X153: -2217.45 | Y153: -21171.16 | Z153: -26271.45 | AA153: -26056.88 | AB153: -26855.4399 | AC153: -37827.64 | AD153: -103660.31 | AE153: -73773.86 | AF153: -74576.38 | AG153: -82971.48 | AH153: =SUM(V153:AG153) -> -475382.0499 | AJ153: -83964.89294 | AK153: -69445.77 | AL153: -87320.23 | AM153: -67035.58 | AN153: -82824.38 | AO153: -79984.98482 | AP153: -80899.33302 | AQ153: -87129.07898 | AR153: -75519.93901 | AS153: -65865.92 | AT153: -60811.28 | AU153: -60072.26 | AV153: -900873.6488 | AX153: -65508.21 | AY153: -44401.84 | AZ153: -15299.84 | BA153: -13960.82 | BB153: -13010.84 | BC153: -12423.39 | BD153: -14416.63 | BE153: -13920.81 | BF153: -13504.56 | BG153: -12293.12 | BH153: -11040.77 | BI153: -13010.96 | BJ153: -242791.79 | BL153: -14266.68 | BM153: -42893.89 | BN153: -67640.5 | BO153: -80121.2 | BP153: -67446.55 | BQ153: -61626.54 | BR153: -113962.13 | BS153: -102583.88 | BT153: -72114.29 | BU153: -62723.38 | BV153: -49623.13 | BW153: -55943.1 | BX153: -790945.27 | BZ153: -51821.36 | CA153: -36544.78 | CB153: -57894 | CC153: -146260.14
B154: Outros | E154: 0 | F154: 0 | H154: 0 | I154: -16.88 | J154: -38.76 | K154: -5.19 | L154: -32.85 | M154: 0 | N154: -183 | O154: -37.57 | P154: 0 | Q154: -0.64 | R154: -1088.4 | S154: -870 | T154: -2273.29 | V154: -290 | W154: 0 | X154: 0 | Y154: -10.22 | Z154: 0 | AA154: 0 | AB154: 6.51 | AC154: 0 | AD154: 0 | AE154: 0 | AF154: -3465.3 | AG154: 0 | AH154: =SUM(V154:AG154) -> -3759.01 | AJ154: 0 | AK154: 0 | AL154: 0 | AM154: 0 | AN154: 0 | AO154: 0 | AP154: 0 | AQ154: 0 | AR154: 0 | AS154: -47.1 | AT154: -4979.64 | AU154: -7.99 | AV154: -5034.73 | AX154: -8.1 | AY154: -8.08 | AZ154: -41.81 | BA154: -35.9 | BB154: -60.28 | BC154: -380.99 | BD154: -92.62 | BE154: -57.38 | BF154: -56.04 | BG154: -98.08 | BH154: -3803.57 | BI154: -51.79 | BJ154: -4694.64 | BL154: -49.73 | BM154: -7548.12 | BN154: -47.68 | BO154: -47.83 | BP154: -36.09 | BQ154: -61235.14 | BR154: -31.86 | BS154: -34.09 | BT154: -33.99 | BU154: -3637.07 | BV154: -33.97 | BW154: -539.76 | BX154: -73275.33 | BZ154: -3575.44 | CA154: -29.98 | CB154: -30.18 | CC154: =SUM(BZ154:CB154) -> -3635.6
B155: Despesas Totais | E155: =SUM(E144:E154) -> -15843.34 | F155: =SUM(E155) -> -15843.34 | H155: =SUM(H144:H154) -> -9138.96 | I155: -17910.88 | J155: -17780.52 | K155: -23673.73 | L155: -83075.6 | M155: -354631.34 | N155: -82868.77 | O155: -95792.48 | P155: -89952.86 | Q155: -106096.7232 | R155: -96258.78096 | S155: -95572.625 | T155: =SUM(H155:S155) -> -1072753.269 | V155: =SUM(V144:V154) -> -107420.9459 | W155: -91268.89467 | X155: -93198.97489 | Y155: -111875.807 | Z155: -125065.0518 | AA155: -119923.9271 | AB155: -144794.0764 | AC155: -143367.1592 | AD155: -246604.5856 | AE155: =SUM(AE144:AE154) -> -212538.599 | AF155: =SUM(AF144:AF154) -> -216896.93 | AG155: =SUM(AG144:AG154) -> -206204.3782 | AH155: -1819159.33 | AJ155: =SUM(AJ144:AJ154) -> -223054.7305 | AK155: -191460.7102 | AL155: -208622.3411 | AM155: -189166.0763 | AN155: -213260.8162 | AO155: -425644.6837 | AP155: =SUM(AP144:AP154) -> -217750.6274 | AQ155: -250959.053 | AR155: -241150.3159 | AS155: -208506.1494 | AT155: -208909.4845 | AU155: =SUM(AU144:AU154) -> -311457.8085 | AV155: =SUM(AV144:AV154) -> -2889942.797 | AX155: =SUM(AX144:AX154) -> -207789.8595 | AY155: -188844.2489 | AZ155: -160227.5328 | BA155: -157739.9588 | BB155: -159364.787 | BC155: =SUM(BC144:BC154) -> -160994.4935 | BD155: -147681.0387 | BE155: -145730.59 | BF155: -171462.8 | BG155: -147289.2585 | BH155: =SUM(BH144:BH154) -> -150735.8044 | BI155: =SUM(BI144:BI154) -> -148546.5714 | BJ155: =SUM(BJ144:BJ154) -> -1946406.943 | BL155: =SUM(BL144:BL154) -> -144291.0991 | BM155: =SUM(BM144:BM154) -> -184174.4513 | BN155: =SUM(BN144:BN154) -> -200120.286 | BO155: =SUM(BO144:BO154) -> -213443.15 | BP155: =SUM(BP144:BP154) -> -210829.81 | BQ155: =SUM(BQ144:BQ154) -> -259169.4987 | BR155: =SUM(BR144:BR154) -> -261009.2 | BS155: -239132.13 | BT155: -232811.6965 | BU155: -205734.0396 | BV155: -180579.2973 | BW155: -180410.98 | BX155: -2511705.638 | BZ155: =SUM(BZ144:BZ154) -> -175146.46 | CA155: =SUM(CA144:CA154) -> -189697.24 | CB155: =SUM(CB144:CB154) -> -192340.08 | CC155: =SUM(CC144:CC154) -> -557183.78
B157: Lucro Líquido | E157: =E141+E155 -> 58211.56813 | F157: =SUM(E157) -> 58211.56813 | H157: =H141+H155 -> 384233.3036 | I157: 268235.6134 | J157: 844133.2791 | K157: 877989.7761 | L157: 781723.1944 | M157: 651227.7348 | N157: 1031886.32 | O157: 912854.0791 | P157: 938708.7708 | Q157: 1031254.551 | R157: 1535575.666 | S157: 1125934.64 | T157: 10383756.93 | V157: =V141+V155 -> 1309433.26 | W157: 1388927.397 | X157: 1467615.086 | Y157: 1423494.46 | Z157: 1632933.637 | AA157: 1759406.962 | AB157: 1561584.836 | AC157: 1129772.94 | AD157: 1041095.825 | AE157: =AE141+AE155 -> 1118781.525 | AF157: =AF141+AF155 -> 1403562.538 | AG157: =AG141+AG155 -> 1162202.165 | AH157: 16398810.63 | AJ157: =AJ141+AJ155 -> 1307993.306 | AK157: 1240173.355 | AL157: 1358627.893 | AM157: 1419527.932 | AN157: 1264290.758 | AO157: =AO141+AO155 -> 1387103.894 | AP157: 1512216.564 | AQ157: 1320754.791 | AR157: 1459836.105 | AS157: 1231954.419 | AT157: =AT141+AT155 -> 1490141.791 | AU157: =AU141+AU155 -> 1299027.18 | AV157: =AV141+AV155 -> 16291647.99 | AX157: =AX141+AX155 -> 1406638.529 | AY157: 1479163.862 | AZ157: 1411928.857 | BA157: 1249786.792 | BB157: 1194306.99 | BC157: =BC141+BC155 -> 1168568.041 | BD157: 1371581.617 | BE157: 1060585.027 | BF157: 1288639.849 | BG157: 1742567.867 | BH157: =BH141+BH155 -> 1151592.628 | BI157: =BI141+BI155 -> 1196070.928 | BJ157: =BJ141+BJ155 -> 15721430.99 | BL157: =BL141+BL155 -> 1253955.663 | BM157: 1194015.478 | BN157: 1301134.748 | BO157: 1322686.608 | BP157: 1499393.277 | BQ157: 1062625.926 | BR157: =BR141+BR155 -> 1102689.208 | BS157: 1218765.953 | BT157: 1039728.973 | BU157: 1085731.832 | BV157: 1318595.426 | BW157: 1042949.782 | BX157: 14442272.87 | BZ157: =BZ141+BZ155 -> 2774332.788 | CA157: =CA141+CA155 -> 935940.5862 | CB157: =CB141+CB155 -> 1020015.497 | CC157: =CC141+CC155 -> 4730288.871
B159: Quantidade de Cotas Início do mês | E159: 239000 | F159: 239000 | H159: 239000 | I159: =H160 -> 399000 | J159: =I160 -> 438000 | K159: 821614 | L159: 860614 | M159: 860614 | N159: 860614 | O159: 860614 | P159: 953360 | Q159: =P160 -> 1000320 | R159: =Q160 -> 1000320 | S159: =R160 -> 1000320 | T159: =S160 -> 1000320 | V159: 1000320 | W159: =V160 -> 1000320 | X159: 1000320 | Y159: 1000320 | Z159: 1000320 | AA159: 1000320 | AB159: 1167391 | AC159: 1190790 | AD159: 1190790 | AE159: 1190790 | AF159: 1190790 | AG159: 1190790 | AH159: =AD160 -> 1190790 | AJ159: 1190790 | AK159: 1190790 | AL159: 1190790 | AM159: 1190790 | AN159: 1190790 | AO159: 1190790 | AP159: 1453859 | AQ159: 1453859 | AR159: 1453859 | AS159: 1453859 | AT159: 1453859 | AU159: 1453859 | AV159: 1453859 | AX159: 1453859 | AY159: 1453859 | AZ159: 1453859 | BA159: 1453859 | BB159: 1453859 | BC159: 1453859 | BD159: 1453859 | BE159: 1453859 | BF159: 1453859 | BG159: 1453859 | BH159: 1453859 | BI159: 1453859 | BJ159: 1453859 | BL159: 1453859 | BM159: 1453859 | BN159: 1453859 | BO159: 1453859 | BP159: 1453859 | BQ159: 1453859 | BR159: 1453859 | BS159: 1453859 | BT159: 1453859 | BU159: 1453859 | BV159: 1453859 | BW159: 1453859 | BX159: 1453859 | BZ159: 1453859 | CA159: 1453859 | CB159: 1453859 | CC159: 1453859
B160: Quantidade de Cotas Final do mês | E160: 239000 | F160: 239000 | H160: 399000 | I160: 438000 | J160: 821614 | K160: 860614 | L160: 860614 | M160: 860614 | N160: 860614 | O160: 953360 | P160: 1000320 | Q160: 1000320 | R160: 1000320 | S160: 1000320 | T160: 1000320 | V160: 1000320 | W160: 1000320 | X160: 1000320 | Y160: 1000320 | Z160: 1000320 | AA160: 1167391 | AB160: 1167391 | AC160: 1190790 | AD160: 1190790 | AE160: 1190790 | AF160: 1190790 | AG160: 1190790 | AH160: =AH159 -> 1190790 | AJ160: 1190790 | AK160: 1190790 | AL160: 1190790 | AM160: 1190790 | AN160: 1190790 | AO160: 1453859 | AP160: 1453859 | AQ160: 1453859 | AR160: 1453859 | AS160: 1453859 | AT160: 1453859 | AU160: 1453859 | AV160: 1453859 | AX160: 1453859 | AY160: 1453859 | AZ160: 1453859 | BA160: 1453859 | BB160: 1453859 | BC160: 1453859 | BD160: 1453859 | BE160: 1453859 | BF160: 1453859 | BG160: 1453859 | BH160: 1453859 | BI160: 1453859 | BJ160: 1453859 | BL160: 1453859 | BM160: 1453859 | BN160: 1453859 | BO160: 1453859 | BP160: 1453859 | BQ160: 1453859 | BR160: 1453859 | BS160: 1453859 | BT160: 1453859 | BU160: 1453859 | BV160: 1453859 | BW160: 1453859 | BX160: 1453859 | BZ160: 1453859 | CA160: 1453859 | CB160: 1453859 | CC160: 1453859
B161: Lucro Líquido por Cota | E161: =E157/E160 -> 0.2435630466 | F161: 0.2435630466 | H161: =H157/H159 -> 1.607670726 | I161: =I157/I159 -> 0.6722697076 | J161: 1.92724493 | K161: 1.06861589 | L161: 0.9083319518 | M161: 0.7567013026 | N161: 1.199011776 | O161: 1.06070094 | P161: 0.9846320077 | Q161: =Q157/Q159 -> 1.030924655 | R161: =R157/R159 -> 1.535084439 | S161: =S157/S159 -> 1.125574457 | T161: =T157/T159 -> 10.38043519 | V161: =V157/V159 -> 1.309014375 | W161: =W157/W159 -> 1.388483082 | X161: 1.4671456 | Y161: 1.423039087 | Z161: 1.632411265 | AA161: 1.758844132 | AB161: 1.337670786 | AC161: =AC157/AC159 -> 0.9487591764 | AD161: =AD157/AD159 -> 0.8742900299 | AE161: =AE157/AE159 -> 0.9395288211 | AF161: =AF157/AF159 -> 1.178681832 | AG161: =AG157/AG159 -> 0.975992547 | AH161: =SUM(V161:AG161) -> 15.23386073 | AJ161: =AJ157/AJ159 -> 1.098424833 | AK161: 1.041471086 | AL161: 1.140946677 | AM161: 1.192089228 | AN161: 1.061724366 | AO161: 1.164860214 | AP161: =AP157/AP159 -> 1.040139768 | AQ161: 0.9084476496 | AR161: 1.0041112 | AS161: 0.8473685679 | AT161: 1.024956196 | AU161: 0.8935028641 | AV161: =SUM(AJ161:AU161) -> 12.41804265 | AX161: =AX157/AX159 -> 0.967520598 | AY161: 1.017405307 | AZ161: 0.971159416 | BA161: 0.8596341132 | BB161: 0.8214737402 | BC161: 0.803769857 | BD161: =BD157/BD159 -> 0.9434075912 | BE161: =BE157/BE159 -> 0.7294964831 | BF161: 0.8863582017 | BG161: 1.198581064 | BH161: 0.7920937505 | BI161: 0.8226870199 | BJ161: =SUM(AX161:BI161) -> 10.81358714 | BL161: 0.8625015653 | BM161: =BM157/BM159 -> 0.8212732306 | BN161: 0.8949525012 | BO161: =BO157/BO159 -> 0.9097764003 | BP161: 1.031319597 | BQ161: =BQ157/BQ159 -> 0.7309002631 | BR161: 0.7584567747 | BS161: =BS157/BS159 -> 0.8382972166 | BT161: 0.7151511759 | BU161: =BU157/BU159 -> 0.7467930739 | BV161: 0.9069623848 | BW161: 0.717366527 | BX161: =SUM(BL161:BW161) -> 9.93375071 | BZ161: =BZ157/BZ159 -> 1.908254369 | CA161: =CA157/CA159 -> 0.6437629689 | CB161: =CB157/CB159 -> 0.7015917614 | CC161: =CC157/CC159 -> 3.253609099
B163: Resultado Distribuído | E163: =SUM(E164:E171) -> 0 | F163: 0 | H163: 239000 | I163: 399000 | J163: 678407.38 | K163: 877826.28 | L163: 791764.88 | M163: 869220.14 | N163: 877826.28 | O163: 877826.28 | P163: 976607.0897 | Q163: 1030329.6 | R163: 1120358.4 | S163: 1380441.6 | T163: =SUM(H163:S163) -> 10118607.93 | V163: 1200384 | W163: 1400448 | X163: 1480473.6 | Y163: 1510483.2 | Z163: 1550496 | AA163: 1403690.751 | AB163: 1459238.75 | AC163: 1393224.3 | AD163: 1309869 | AE163: 1309869 | AF163: 1309869 | AG163: 1309869 | AH163: =SUM(V163:AG163) -> 16637914.6 | AJ163: 1309869 | AK163: 1309869 | AL163: 1309869 | AM163: 1309869 | AN163: 1309869 | AO163: 1393310.608 | AP163: 1453859 | AQ163: 1381166.05 | AR163: 1381166.05 | AS163: 1381166.05 | AT163: 1381166.05 | AU163: 1381166.05 | AV163: =SUM(AJ163:AU163) -> 16302344.86 | AX163: =AX164*AX160 -> 1381166.05 | AY163: 1381166.05 | AZ163: 1381166.05 | BA163: 1308473.1 | BB163: 1235780.15 | BC163: 1235780.15 | BD163: =BD164*BD160 -> 1235780.15 | BE163: 1235780.15 | BF163: 1264857.33 | BG163: 1264857.33 | BH163: 1264857.33 | BI163: 1264857.33 | BJ163: =SUM(AX163:BI163) -> 15454521.17 | BL163: 1264857.33 | BM163: =BM164*BM160 -> 1264857.33 | BN163: =BN164*BN160 -> 1264857.33 | BO163: 1264857.33 | BP163: 1264857.33 | BQ163: 1264857.33 | BR163: 1235780.15 | BS163: 1235780.15 | BT163: 1163087.2 | BU163: =BU164*BU160 -> 1163087.2 | BV163: 1163087.2 | BW163: 1163087.2 | BX163: =SUM(BL163:BW163) -> 14713053.08 | BZ163: =BZ164*BZ160 -> 1235780.15 | CA163: =CA164*CA160 -> 1235780.15 | CB163: =CB164*CB160 -> 1235780.15 | CC163: =CC164*CC160 -> 3707340.45
B164: Distribuição por cota GCRI11 | E164: 0 | F164: 0 | H164: 1 | I164: 1 | J164: 1 | K164: 1.02 | L164: 0.92 | M164: 1.01 | N164: 1.02 | O164: 1.02 | P164: 1.02 | Q164: 1.03 | R164: 1.12 | S164: 1.38 | T164: =SUM(H164:S164) -> 12.54 | V164: 1.2 | W164: 1.4 | X164: 1.48 | Y164: 1.51 | Z164: 1.55 | AA164: 1.35 | AB164: 1.25 | AC164: 1.17 | AD164: 1.1 | AE164: 1.1 | AF164: 1.1 | AG164: 1.1 | AH164: =SUM(V164:AG164) -> 15.31 | AJ164: 1.1 | AK164: 1.1 | AL164: 1.1 | AM164: 1.1 | AN164: 1.1 | AO164: 1 | AP164: 1 | AQ164: 0.95 | AR164: 0.95 | AS164: 0.95 | AT164: 0.95 | AU164: 0.95 | AV164: =SUM(AJ164:AU164) -> 12.25 | AX164: 0.95 | AY164: 0.95 | AZ164: 0.95 | BA164: 0.9 | BB164: 0.85 | BC164: 0.85 | BD164: 0.85 | BE164: 0.85 | BF164: 0.87 | BG164: 0.87 | BH164: 0.87 | BI164: 0.87 | BJ164: 10.63 | BL164: 0.87 | BM164: 0.87 | BN164: 0.87 | BO164: 0.87 | BP164: 0.87 | BQ164: 0.87 | BR164: 0.85 | BS164: 0.85 | BT164: 0.8 | BU164: 0.8 | BV164: 0.8 | BW164: 0.8 | BX164: =SUM(BL164:BW164) -> 10.12 | BZ164: 0.85 | CA164: 0.85 | CB164: 0.85 | CC164: =SUM(BZ164:CB164) -> 2.55
B165: Distribuição por cota GCRI13 | E165: 0 | F165: 0 | H165: 0 | I165: 1 | J165: 1 | K165: 0 | L165: 0 | M165: 0 | N165: 0 | O165: 0 | P165: 1.02 | Q165: 0 | R165: 0 | S165: 0 | T165: =SUM(H165:S165) -> 3.02 | V165: 0 | W165: 0 | X165: 0 | Y165: 0 | Z165: 0 | AA165: 0.734212898 | AB165: 1.25 | AC165: 0 | AD165: 0 | AE165: 0 | AF165: 0 | AG165: 0 | AH165: =SUM(V165:AG165) -> 1.984212898 | AJ165: 0 | AK165: 0 | AL165: 0 | AM165: 0 | AN165: 0 | AO165: 2.48837959 | AP165: 0 | AQ165: 0 | AR165: 0 | AS165: 0 | AT165: 0 | AU165: 0 | AV165: =SUM(AJ165:AU165) -> 2.48837959 | AX165: 0 | AY165: 0 | AZ165: 0 | BA165: 0 | BB165: 0 | BC165: 0 | BD165: 0 | BE165: 0 | BF165: 0 | BG165: 0 | BH165: 0 | BI165: 0 | BJ165: 0 | BL165: 0 | BM165: 0 | BN165: 0 | BO165: 0 | BP165: 0 | BQ165: 0 | BR165: 0 | BS165: 0 | BT165: 0 | BU165: 0 | BV165: 0 | BW165: 0 | BX165: =SUM(BL165:BW165) -> 0 | BZ165: 0 | CA165: 0 | CB165: 0 | CC165: =SUM(BZ165:CB165) -> 0
B166: Distribuição por cota GCRI14 | E166: 0 | F166: 0 | H166: 0 | I166: 0 | J166: 0 | K166: 0 | L166: 0 | M166: 0 | N166: 0 | O166: 0 | P166: 1.02 | Q166: 0 | R166: 0 | S166: 0 | T166: 1.02 | V166: 0 | W166: 0 | X166: 0 | Y166: 0 | Z166: 0 | AA166: 0.149580846 | AB166: 1.25 | AC166: 0 | AD166: 0 | AE166: 0 | AF166: 0 | AG166: 0 | AH166: 1.399580846 | AJ166: 0 | AK166: 0 | AL166: 0 | AM166: 0 | AN166: 0 | AO166: 1.074712327 | AP166: 0 | AQ166: 0 | AR166: 0 | AS166: 0 | AT166: 0 | AU166: 0 | AV166: 1.074712327 | AX166: 0 | AY166: 0 | AZ166: 0 | BA166: 0 | BB166: 0 | BC166: 0 | BD166: 0 | BE166: 0 | BF166: 0 | BG166: 0 | BH166: 0 | BI166: 0 | BJ166: 0 | BL166: 0 | BM166: 0 | BN166: 0 | BO166: 0 | BP166: 0 | BQ166: 0 | BR166: 0 | BS166: 0 | BT166: 0 | BU166: 0 | BV166: 0 | BW166: 0 | BX166: 0 | BZ166: 0 | CA166: 0 | CB166: 0 | CC166: 0
B167: Distribuição por cota GCRI15 | E167: 0 | F167: 0 | H167: 0 | I167: 0 | J167: 1 | K167: 0 | L167: 0 | M167: 0 | N167: 0 | O167: 0 | P167: 0.2110345 | Q167: 0 | R167: 0 | S167: 0 | T167: 1.2110345 | V167: 0 | W167: 0 | X167: 0 | Y167: 0 | Z167: 0 | AA167: 0 | AB167: 0 | AC167: 0 | AD167: 0 | AE167: 0 | AF167: 0 | AG167: 0 | AH167: 0 | AJ167: 0 | AK167: 0 | AL167: 0 | AM167: 0 | AN167: 0 | AO167: 0.2930705568 | AP167: 0 | AQ167: 0 | AR167: 0 | AS167: 0 | AT167: 0 | AU167: 0 | AV167: 0.2930705568 | AX167: 0 | AY167: 0 | AZ167: 0 | BA167: 0 | BB167: 0 | BC167: 0 | BD167: 0 | BE167: 0 | BF167: 0 | BG167: 0 | BH167: 0 | BI167: 0 | BJ167: 0 | BL167: 0 | BM167: 0 | BN167: 0 | BO167: 0 | BP167: 0 | BQ167: 0 | BR167: 0 | BS167: 0 | BT167: 0 | BU167: 0 | BV167: 0 | BW167: 0 | BX167: 0 | BZ167: 0 | CA167: 0 | CB167: 0 | CC167: 0
B168: Distribuição por cota GCRI16 | E168: 0 | F168: 0 | H168: 0 | I168: 0 | J168: 0.82 | K168: 0 | L168: 0 | M168: 0 | N168: 0 | O168: 0 | P168: 0 | Q168: 0 | R168: 0 | S168: 0 | T168: 0.82 | V168: 0 | W168: 0 | X168: 0 | Y168: 0 | Z168: 0 | AA168: 0 | AB168: 0 | AC168: 0 | AD168: 0 | AE168: 0 | AF168: 0 | AG168: 0 | AH168: 0 | AJ168: 0 | AK168: 0 | AL168: 0 | AM168: 0 | AN168: 0 | AO168: 0 | AP168: 0 | AQ168: 0 | AR168: 0 | AS168: 0 | AT168: 0 | AU168: 0 | AV168: 0 | AX168: 0 | AY168: 0 | AZ168: 0 | BA168: 0 | BB168: 0 | BC168: 0 | BD168: 0 | BE168: 0 | BF168: 0 | BG168: 0 | BH168: 0 | BI168: 0 | BJ168: 0 | BL168: 0 | BM168: 0 | BN168: 0 | BO168: 0 | BP168: 0 | BQ168: 0 | BR168: 0 | BS168: 0 | BT168: 0 | BU168: 0 | BV168: 0 | BW168: 0 | BX168: 0 | BZ168: 0 | CA168: 0 | CB168: 0 | CC168: 0
B169: Distribuição por cota GCRI17 | E169: 0 | F169: 0 | H169: 0 | I169: 0 | J169: 0.6 | K169: 0 | L169: 0 | M169: 0 | N169: 0 | O169: 0 | P169: 0 | Q169: 0 | R169: 0 | S169: 0 | T169: 0.6 | V169: 0 | W169: 0 | X169: 0 | Y169: 0 | Z169: 0 | AA169: 0 | AB169: 0 | AC169: 0 | AD169: 0 | AE169: 0 | AF169: 0 | AG169: 0 | AH169: 0 | AJ169: 0 | AK169: 0 | AL169: 0 | AM169: 0 | AN169: 0 | AO169: 0 | AP169: 0 | AQ169: 0 | AR169: 0 | AS169: 0 | AT169: 0 | AU169: 0 | AV169: 0 | AX169: 0 | AY169: 0 | AZ169: 0 | BA169: 0 | BB169: 0 | BC169: 0 | BD169: 0 | BE169: 0 | BF169: 0 | BG169: 0 | BH169: 0 | BI169: 0 | BJ169: 0 | BL169: 0 | BM169: 0 | BN169: 0 | BO169: 0 | BP169: 0 | BQ169: 0 | BR169: 0 | BS169: 0 | BT169: 0 | BU169: 0 | BV169: 0 | BW169: 0 | BX169: 0 | BZ169: 0 | CA169: 0 | CB169: 0 | CC169: 0
B170: Distribuição por cota GCRI18 | E170: 0 | F170: 0 | H170: 0 | I170: 0 | J170: 0.39 | K170: 0 | L170: 0 | M170: 0 | N170: 0 | O170: 0 | P170: 0 | Q170: 0 | R170: 0 | S170: 0 | T170: 0.39 | V170: 0 | W170: 0 | X170: 0 | Y170: 0 | Z170: 0 | AA170: 0 | AB170: 0 | AC170: 0 | AD170: 0 | AE170: 0 | AF170: 0 | AG170: 0 | AH170: 0 | AJ170: 0 | AK170: 0 | AL170: 0 | AM170: 0 | AN170: 0 | AO170: 0 | AP170: 0 | AQ170: 0 | AR170: 0 | AS170: 0 | AT170: 0 | AU170: 0 | AV170: 0 | AX170: 0 | AY170: 0 | AZ170: 0 | BA170: 0 | BB170: 0 | BC170: 0 | BD170: 0 | BE170: 0 | BF170: 0 | BG170: 0 | BH170: 0 | BI170: 0 | BJ170: 0 | BL170: 0 | BM170: 0 | BN170: 0 | BO170: 0 | BP170: 0 | BQ170: 0 | BR170: 0 | BS170: 0 | BT170: 0 | BU170: 0 | BV170: 0 | BW170: 0 | BX170: 0 | BZ170: 0 | CA170: 0 | CB170: 0 | CC170: 0
B171: Distribuição por cota GCRI19 | E171: 0 | F171: 0 | H171: 0 | I171: 0 | J171: 0.17 | K171: 0 | L171: 0 | M171: 0 | N171: 0 | O171: 0 | P171: 0 | Q171: 0 | R171: 0 | S171: 0 | T171: 0.17 | V171: 0 | W171: 0 | X171: 0 | Y171: 0 | Z171: 0 | AA171: 0 | AB171: 0 | AC171: 0 | AD171: 0 | AE171: 0 | AF171: 0 | AG171: 0 | AH171: =SUM(V171:AG171) -> 0 | AJ171: 0 | AK171: 0 | AL171: 0 | AM171: 0 | AN171: 0 | AO171: 0 | AP171: 0 | AQ171: 0 | AR171: 0 | AS171: 0 | AT171: 0 | AU171: 0 | AV171: 0 | AX171: 0 | AY171: 0 | AZ171: 0 | BA171: 0 | BB171: 0 | BC171: 0 | BD171: 0 | BE171: 0 | BF171: 0 | BG171: 0 | BH171: 0 | BI171: 0 | BJ171: 0 | BL171: 0 | BM171: 0 | BN171: 0 | BO171: 0 | BP171: 0 | BQ171: 0 | BR171: 0 | BS171: 0 | BT171: 0 | BU171: 0 | BV171: 0 | BW171: 0 | BX171: 0 | BZ171: 0 | CA171: 0 | CB171: 0 | CC171: 0
B173: Rendimento Distribuído/Cota | E173: =E164 -> 0 | F173: =F164 -> 0 | H173: =H164 -> 1 | I173: 1 | J173: 1 | K173: 1.02 | L173: 0.92 | M173: 1.01 | N173: 1.02 | O173: 1.02 | P173: 1.02 | Q173: =Q164 -> 1.03 | R173: =R164 -> 1.12 | S173: =S164 -> 1.38 | T173: =T164 -> 12.54 | V173: =V164 -> 1.2 | W173: =W164 -> 1.4 | X173: 1.48 | Y173: 1.51 | Z173: 1.55 | AA173: 1.35 | AB173: 1.25 | AC173: 1.17 | AD173: 1.1 | AE173: 1.1 | AF173: 1.1 | AG173: 1.1 | AH173: =AH164 -> 15.31 | AJ173: =AJ164 -> 1.1 | AK173: 1.1 | AL173: 1.1 | AM173: 1.1 | AN173: 1.1 | AO173: 1 | AP173: =AP164 -> 1 | AQ173: 0.95 | AR173: 0.95 | AS173: 0.95 | AT173: 0.95 | AU173: 0.95 | AV173: =SUM(AJ173:AU173) -> 12.25 | AX173: =AX164 -> 0.95 | AY173: 0.95 | AZ173: 0.95 | BA173: 0.9 | BB173: 0.85 | BC173: 0.85 | BD173: 0.85 | BE173: =BE164 -> 0.85 | BF173: 0.87 | BG173: 0.87 | BH173: 0.87 | BI173: 0.87 | BJ173: =SUM(AX173:BI173) -> 10.63 | BL173: 0.87 | BM173: =BM164 -> 0.87 | BN173: 0.87 | BO173: 0.87 | BP173: 0.87 | BQ173: 0.87 | BR173: 0.85 | BS173: =BS164 -> 0.85 | BT173: =BT164 -> 0.8 | BU173: =BU164 -> 0.8 | BV173: 0.8 | BW173: 0.8 | BX173: =SUM(BL173:BW173) -> 10.12 | BZ173: =BZ164 -> 0.85 | CA173: 0.85 | CB173: =CB164 -> 0.85 | CC173: 2.55
B175: Reserva de Resultado | E175: =E157-E163 -> 58211.56813 | F175: 58211.56813 | H175: =(H157-H163)+E175 -> 203444.8717 | I175: =(I157-I163)+H175 -> 72680.48505 | J175: =(J157-J163)+I175 -> 238406.3842 | K175: 238569.8802 | L175: 228528.1946 | M175: 10535.78947 | N175: 164595.8297 | O175: 199623.6289 | P175: 161725.3101 | Q175: 162650.2613 | R175: =(R157-R163)+Q175 -> 577867.5271 | S175: =(S157-S163)+R175 -> 323360.5676 | T175: =S175 -> 323360.5676 | V175: =(V157-V163)+S175 -> 432409.8271 | W175: =(W157-W163)+V175 -> 420889.2239 | X175: 408030.7103 | Y175: 321041.9702 | Z175: 403479.6068 | AA175: 759195.8178 | AB175: 861541.904 | AC175: =(AC157-AC163)+AB175 -> 598090.5437 | AD175: =(AD157-AD163)+AC175 -> 329317.3684 | AE175: =(AE157-AE163)+AD175 -> 138229.8932 | AF175: =(AF157-AF163)+AE175 -> 231923.4315 | AG175: =(AG157-AG163)+AF175 -> 84256.59655 | AH175: =AG175 -> 84256.59655 | AJ175: =(AJ157-AJ163)+AH175 -> 82380.90296 | AK175: =(AK157-AK163)+AJ175 -> 12685.25751 | AL175: 61444.15067 | AM175: 171103.0823 | AN175: 125524.8406 | AO175: 119318.1264 | AP175: 177675.69 | AQ175: 117264.4314 | AR175: 195934.4861 | AS175: 46722.85487 | AT175: 155698.5957 | AU175: =(AU157-AU163)+AT175 -> 73559.72615 | AV175: =AU175 -> 73559.72615 | AX175: =(AX157-AX163)+AV175 -> 99032.2052 | AY175: =(AY157-AY163)+AX175 -> 197030.0174 | AZ175: 227792.8248 | BA175: 169106.517 | BB175: 127633.3574 | BC175: 60421.24803 | BD175: 196222.7151 | BE175: 21027.59256 | BF175: =(BF157-BF163)+BE175 -> 44810.11128 | BG175: =(BG157-BG163)+BF175 -> 522520.6479 | BH175: =(BH157-BH163)+BG175 -> 409255.9459 | BI175: =(BI157-BI163)+BH175 -> 340469.5441 | BJ175: =BI175 -> 340469.5441 | BL175: =(BL157-BL163)+BI175 -> 329567.8773 | BM175: =(BM157-BM163)+BL175 -> 258726.0252 | BN175: 295003.4435 | BO175: 352832.721 | BP175: 587368.6684 | BQ175: 385137.264 | BR175: 252046.322 | BS175: 235032.125 | BT175: 111673.8984 | BU175: =(BU157-BU163)+BT175 -> 34318.53003 | BV175: =(BV157-BV163)+BU175 -> 189826.7559 | BW175: =(BW157-BW163)+BV175 -> 69689.33749 | BX175: =BW175 -> 69689.33749 | BZ175: =(BZ157-BZ163)+BX175 -> 1608241.976 | CA175: =(CA157-CA163)+BY175 -> -299839.5638 | CB175: =(CB157-CB163)+CA175 -> -515604.2172 | CC175: =CB175 -> -515604.2172
B176: Reserva de Resultado por Cota | E176: =E175/E160 -> 0.2435630466 | F176: 0.2435630466 | H176: =H175/H160 -> 0.5098868965 | I176: =I175/I160 -> 0.1659371805 | J176: 0.2901683566 | K176: 0.2772089232 | L176: 0.265540875 | M176: 0.01224217765 | N176: 0.1912539533 | O176: 0.2093895579 | P176: 0.1616735745 | Q176: =Q175/Q160 -> 0.1625982299 | R176: =R175/R160 -> 0.5776826687 | S176: =S175/S160 -> 0.3232571253 | T176: =S176 -> 0.3232571253 | V176: =V175/V160 -> 0.4322715003 | W176: 0.4207545824 | X176: 0.4079001822 | Y176: 0.3209392697 | Z176: 0.4033505346 | AA176: 0.6503355069 | AB176: 0.7380062927 | AC176: =AC175/AC160 -> 0.50226366 | AD176: =AD175/AD160 -> 0.2765536899 | AE176: =AE175/AE160 -> 0.1160825109 | AF176: =AF175/AF160 -> 0.1947643426 | AG176: =AG175/AG160 -> 0.07075688959 | AH176: =AG176 -> 0.07075688959 | AJ176: =AJ175/AJ160 -> 0.06918172219 | AK176: 0.01065280823 | AL176: 0.05159948494 | AM176: 0.1436887128 | AN176: 0.1054130792 | AO176: 0.08206994382 | AP176: =AP175/AP160 -> 0.1222097122 | AQ176: 0.08065736179 | AR176: 0.1347685616 | AS176: 0.03213712944 | AT176: 0.1070933259 | AU176: 0.05059618997 | AV176: =AU176 -> 0.05059618997 | AX176: =AX175/AX160 -> 0.06811678794 | AY176: 0.1355220949 | AZ176: 0.1566815109 | BA176: 0.1163156241 | BB176: 0.08778936433 | BC176: 0.04155922138 | BD176: =BD175/BD160 -> 0.1349668125 | BE176: 0.01446329565 | BF176: 0.03082149733 | BG176: 0.359402561 | BH176: 0.2814963115 | BI176: 0.2341833314 | BJ176: =BI176 -> 0.2341833314 | BL176: =BL175/BL160 -> 0.2266848968 | BM176: 0.1779581274 | BN176: 0.2029106286 | BO176: 0.2426870288 | BP176: 0.4040066254 | BQ176: 0.2649068885 | BR176: =BR175/BR160 -> 0.1733636632 | BS176: 0.1616608798 | BT176: =BT175/BT160 -> 0.07681205566 | BU176: 0.02360512954 | BV176: 0.1305675144 | BW176: 0.0479340414 | BX176: =BW176 -> 0.0479340414 | BZ176: =BZ175/BZ160 -> 1.10618841 | CA176: =CA175/CA160 -> -0.2062370311 | CB176: =CB175/CB160 -> -0.3546452697 | CC176: =CB176 -> -0.3546452697

Sheet Portfólio
B7: Resumo Portfólio
C9: Resumo Indexadores e Spread Médio | H9: Exposição por Setor | M9: Exposição por Prazo Médio
B26: Carteira de Ativos
D27: 6 | E27: 7 | K27: 5 | L27: 11 | O27: 10 | P27: 8 | Q27: 18
B28: Ativo | C28: Código Cetip | D28: Montante (R$) | E28: % PL | F28: Emissor | G28: AF | H28: Segmento | I28: Indexador | J28: Taxa Emissão | K28: Taxa MTM | L28: LTV | M28: Série | N28: Subordinação | O28: Vencimento | P28: Duration | Q28: % do CRI | R28: Multa Pré Pagamento | S28: Defasagem Indexador | T28: Pode ter deflação? | U28: Garantias
B29: Montreal II | C29: 24G1773090 | D29: 9134477.461 | E29: 0.06967834386 | F29: Habitasec | G29: Oliveira Trust | H29: Residencial | I29: IPCA | J29: 0.12 | K29: 0.09176688675 | L29: 0.63 | M29: Mezanino | N29: 0.25 | O29: 2027-08-22 | P29: 0.1944444444 | Q29: 0 | R29: - | S29: M-2 | T29: Sim | U29: (i) AF Imóvel (ii) AF SPEs (iii) CF Recebíveis (iv) Aval
B30: Fametro II | C30: 24L2959379 | D30: 6932801.58 | E30: 0.05288382773 | F30: Canal | G30: Oliveira Trust | H30: Corporativo | I30: IPCA | J30: 0.0951 | K30: 0.09921513705 | L30: 0.63 | M30: Única | N30: 0 | O30: 2034-12-01 | P30: 3.78968254 | Q30: 0 | R30: 1,5% * Duration * SD | S30: M-2 | T30: Não | U30: (i) AF Imovéis (ii) CF Recebíveis (iii) Fiança
B31: Wimo V IV Sr. | C31: 24L1964965 | D31: 6658292.582 | E31: 0.05078985657 | F31: Virgo | G31: Vortx | H31: Home Equity | I31: IPCA | J31: 0.0975 | K31: 0.09559136061 | L31: 0.3478648933 | M31: Sênior | N31: 0.2 | O31: 2044-07-25 | P31: 5.400793651 | Q31: 0 | R31: - | S31: M-2 | T31: Sim | U31: (i) AF dos imóveis em garantia (ii) Subordinação de 20%
B32: Pirelli | C32: 23L1538459 | D32: 1158807.151 | E32: 0.008839450693 | F32: Canal | G32: Oliveira Trust | H32: Corporativo | I32: IPCA | J32: 0.08 | K32: 0.0769304129 | L32: 0.94 | M32: Única | N32: 0 | O32: 2039-09-10 | P32: 5.587301587 | Q32: 0 | R32: - | S32: M-3 | T32: Sim | U32: (i) AF Imovéis (ii) CF Recebíveis (iii) Fiança
B33: SEB | C33: 20L0871127 | D33: 6080916.069 | E33: 0.04638559378 | F33: Virgo | G33: Vortx | H33: Educacional | I33: IGPM | J33: 0.0731 | K33: 0.1583558452 | L33: 0.53 | M33: Única | N33: 0 | O33: 2031-01-01 | P33: 2.115079365 | Q33: 0 | R33: 3% SD | S33: M-2 | T33: Sim | U33: (i) AF (ii) Coobrigação do Cedente
B34: Seed II | C34: 21E0466562 | D34: 6348314.96 | E34: 0.04842532861 | F34: Vert | G34: Vortx | H34: Residencial | I34: IPCA | J34: 0.105 | K34: 0 | L34: n/a | M34: Única | N34: 0 | O34: n/a | P34: 0 | Q34: 0 | R34: - | S34: M-2 | T34: Sim | U34: (i) Aval Sócio (ii) Aval Seed Incorp (iii) AF 11 terrenos (iv) AF SPE´s
B35: Sinal | C35: 20K0866670 | D35: 2613552.029 | E35: 0.01993633218 | F35: Virgo | G35: Vortx | H35: Corporativo | I35: IPCA | J35: 0.07 | K35: 0.09289505406 | L35: 0.61 | M35: Única | N35: 0 | O35: 1932-12-01 | P35: 3.015873016 | Q35: 0 | R35: Vedado | S35: M-1 | T35: Sim | U35: (i) AF Imóveis c/ 160% de razão de garantia (ii) Fiança
B36: Wimo V V Sr. | C36: 24G2730555 | D36: 5232708.555 | E36: 0.03991541581 | F36: Virgo | G36: Vortx | H36: Home Equity | I36: IPCA | J36: 0.09 | K36: 0.1063840823 | L36: 0.3478648933 | M36: Sênior | N36: 0.2 | O36: 2039-02-25 | P36: 4.670634921 | Q36: 0 | R36: Vedado | S36: M-2 | T36: Sim | U36: (i) AF Imóvel (ii) Fundo de despesas (iii) Fundo de reserva
B37: Wimo II Mez | C37: 21H0001651 | D37: 4962713.831 | E37: 0.0378558798 | F37: Virgo | G37: Vortx | H37: Home Equity | I37: IPCA | J37: 0.12 | K37: 0.1496399262 | L37: 0.343 | M37: Mezanino | N37: 0.1 | O37: 2036-07-01 | P37: 3.527777778 | Q37: 0 | R37: - | S37: M-2 | T37: Sim | U37: (i) AF dos imóveis em garantia (ii) Subordinação de 10%
B38: CH II | C38: 19K1124486 | D38: 4479759.37 | E38: 0.03417187411 | F38: Ourinvest | G38: H. COMMCOR | H38: Residencial | I38: CDI | J38: 0.07 | K38: 0.07 | L38: 0.54 | M38: Única | N38: 0 | O38: 2027-12-10 | P38: 1.130952381 | Q38: 0 | R38: Até 24º mês (1.5% SD); até 36º mês (1.0% SD); até 48º mês (0.5% SD) | S38: n/a | T38: - | U38: (i) AF Imovéis c/ 180% de razão de garantia (ii) CF Recebíveis
B39: Nino | C39: 25A3992922 | D39: 4107847.313 | E39: 0.03133490655 | F39: Canal | G39: Oliveira Trust | H39: Corporativo | I39: CDI | J39: 0.05 | K39: 0.05720974618 | L39: n/a | M39: Única | N39: 0 | O39: 2030-02-19 | P39: 1.55952381 | Q39: 0 | R39: - | S39: n/a | T39: - | U39: (i) AF Ações (ii) CF Recebíveis (iii) Aval Sócio
B40: Wimo III Mez | C40: 21J0856063 | D40: 3294646.697 | E40: 0.02513176331 | F40: Virgo | G40: Vortx | H40: Home Equity | I40: IPCA | J40: 0.12 | K40: 0.1473047166 | L40: 0.36 | M40: Mezanino | N40: 0.1 | O40: 2036-09-25 | P40: 3.650793651 | Q40: 0 | R40: - | S40: M-2 | T40: Sim | U40: (i) AF dos imóveis em garantia (ii) Subordinação de 10%
B41: Pontte Sr. | C41: 25C2809326 | D41: 2874854.427 | E41: 0.0219295626 | F41: Virgo | G41: Vortx | H41: Home Equity | I41: IPCA | J41: 0.095 | K41: 0.0969585868 | L41: 0.35 | M41: Sênior | N41: 0.2 | O41: 2044-11-01 | P41: 6.444444444 | Q41: 0 | R41: - | S41: M-2 | T41: Sim | U41: (i) AF dos imóveis em garantia (ii) Subordinação de 20%
B42: Porte V | C42: 23D1557666 | D42: 2679238.552 | E42: 0.02043739294 | F42: Canal | G42: H. COMMCOR | H42: Residencial | I42: IPCA | J42: 0.1 | K42: 0.101288819 | L42: 0.3 | M42: Única | N42: 0 | O42: 2028-04-15 | P42: 1.813492063 | Q42: 0 | R42: Vedado até 1 ano; 10% entre 1º e 2º ano; 7,5% entre 2º e 3º ano; 5% após 3º ano | S42: M-2 | T42: Não | U42: (i) AF Imóveis (ii) AF Quotas(iii) Cessão fiduciária de recebíveis (iv) Aval
B43: CH III | C43: 20F0692684 | D43: 2900766.579 | E43: 0.02212722206 | F43: Ourinvest | G43: H. COMMCOR | H43: Residencial | I43: CDI | J43: 0.07 | K43: 0.07 | L43: 0.21 | M43: Única | N43: 0 | O43: 2027-06-01 | P43: 0.746031746 | Q43: 0 | R43: Até 24º mês (1.5% SD); até 36º mês (1.0% SD); até 48º mês (0.5% SD) | S43: n/a | T43: - | U43: (i) AF Imovéis c/ 180% de razão de garantia (ii) CF Recebíveis
B44: Censi Fisa | C44: 20F0165468 | D44: 2837130.175 | E44: 0.02164179974 | F44: Ourinvest | G44: H. COMMCOR | H44: Residencial | I44: IPCA | J44: 0.12 | K44: 0.12 | L44: 0.5 | M44: Única | N44: 0 | O44: 2026-03-01 | P44: 0 | Q44: 0 | R44: Até 12º mês (25% SD); até o 24º mês (20.0% SD); até o 37º mês (15% SD) | S44: M-2 | T44: Não | U44: (i) AF Imóvel (ii) AF Terreno (iii) AF Imóvel Corporativo (iv) CF Recebíveis
B45: Wimo V IV Mez. | C45: 24L1965061 | D45: 2392773.459 | E45: 0.01825221997 | F45: Virgo | G45: Vortx | H45: Home Equity | I45: IPCA | J45: 0.12 | K45: 0.1236534364 | L45: 0.351 | M45: Mezanino | N45: 0.2 | O45: 2044-07-01 | P45: 5.69047619 | Q45: 0 | R45: - | S45: M-2 | T45: Sim | U45: (i) AF dos imóveis em garantia (ii) Subordinação de 20%
B46: Wimo II | C46: 21H0001650 | D46: 1901945.051 | E46: 0.01450815132 | F46: Virgo | G46: Vortx | H46: Home Equity | I46: IPCA | J46: 0.07 | K46: 0.1097306932 | L46: 0.343 | M46: Sênior | N46: 0.2 | O46: 2036-06-01 | P46: 3.968253968 | Q46: 0 | R46: - | S46: M-2 | T46: Sim | U46: (i) AF dos imóveis em garantia (ii) Subordinação de 20%
B47: Pontte Mez. | C47: 25C2809324 | D47: 1935439.683 | E47: 0.0147636504 | F47: Virgo | G47: Vortx | H47: Home Equity | I47: IPCA | J47: 0.12 | K47: 0.1259039172 | L47: 0.35 | M47: Mezanino | N47: 0.2 | O47: 2045-01-01 | P47: 5.706349206 | Q47: 0 | R47: - | S47: M-2 | T47: Sim | U47: (i) AF dos imóveis em garantia (ii) Subordinação de 20%
B48: Wimo V Mez. | C48: 22I0098043 | D48: 1750806.596 | E48: 0.01335525809 | F48: Virgo | G48: Vortx | H48: Home Equity | I48: IPCA | J48: 0.12 | K48: 0.1472301979 | L48: 0.351 | M48: Mezanino | N48: 0.2000070811 | O48: 2037-05-01 | P48: 3.646825397 | Q48: 0 | R48: - | S48: M-2 | T48: Sim | U48: (i) AF Imóvel (ii) Fundo de despesas (iii) Fundo de reserva
B49: Fametro | C49: 23J0108650 | D49: 1566974.414 | E49: 0.01195297514 | F49: Canal | G49: Oliveira Trust | H49: Corporativo | I49: IPCA | J49: 0.095 | K49: 0.09379006598 | L49: 0.63 | M49: Única | N49: 0 | O49: 2034-10-25 | P49: 3.797619048 | Q49: 0 | R49: 1,5% * Duration * SD | S49: M-2 | T49: Não | U49: (i) AF Imovéis (ii) CF Recebíveis (iii) Fiança
B50: New Village | C50: 21E0517062 | D50: 1825032.32 | E50: 0.01392145638 | F50: True Sec | G50: Vortx | H50: Residencial | I50: IPCA | J50: 0.102 | K50: 0.102 | L50: 0.66 | M50: Única | N50: 0 | O50: 2037-05-01 | P50: 4.261904762 | Q50: 0 | R50: 3% SD | S50: M-3 | T50: Sim | U50: (i) AF SPE (ii) CF Recebíveis (iii) Aval Sócios
B51: Cogna | C51: 21D0453486 | D51: 1331355.696 | E51: 0.01015566138 | F51: True Sec | G51: Vortx | H51: Educacional | I51: IPCA | J51: 0.06 | K51: 0.1020169737 | L51: 0.4350545793 | M51: Única | N51: 0 | O51: 2027-07-01 | P51: 0.630952381 | Q51: 0 | R51: Entre o 25º - 36º mês (2% SD); até 48º mês (1.0% SD); até 60º mês (0.5% SD); após 61º mês não tem multa | S51: M-2 | T51: Sim | U51: (i) AF Imóvel (ii) Fiança do Contrato
B52: Wimo V II Mez | C52: 22I2046003 | D52: 1497667.683 | E52: 0.01142429923 | F52: Virgo | G52: Vortx | H52: Home Equity | I52: IPCA | J52: 0.12 | K52: 0.1468985885 | L52: 0.351 | M52: Mezanino | N52: 0.1 | O52: 2037-10-25 | P52: 3.904761905 | Q52: 0 | R52: - | S52: M-2 | T52: Sim | U52: (i) AF Imóvel (ii) Fundo de despesas (iii) Fundo de reserva
B53: Wimo V V Mez. | C53: 24G2730557 | D53: 1505000.144 | E53: 0.01148023169 | F53: Virgo | G53: Vortx | H53: Home Equity | I53: IPCA | J53: 0.12 | K53: 0.1368913828 | L53: 0.3478648933 | M53: Mezanino | N53: 0.2 | O53: 2039-02-25 | P53: 4.238095238 | Q53: 0 | R53: - | S53: M-2 | T53: Sim | U53: (i) AF Imóvel (ii) Fundo de despesas (iii) Fundo de reserva
B54: Wimo V II Sr. | C54: 22I2046002 | D54: 996463.8108 | E54: 0.007601085925 | F54: Virgo | G54: Vortx | H54: Home Equity | I54: IPCA | J54: 0.09 | K54: 0.1010609282 | L54: 0.35 | M54: Sênior | N54: 0.2 | O54: 2037-10-01 | P54: 4.432539683 | Q54: 0 | R54: - | S54: M-2 | T54: Sim | U54: (i) AF dos imóveis em garantia (ii) Subordinação de 20%
B55: Modena | C55: 20G0754279 | D55: 980159.9041 | E55: 0.007476718744 | F55: Ourinvest | G55: H. COMMCOR | H55: Residencial | I55: IPCA | J55: 0.09 | K55: 0.07 | L55: 0.61 | M55: Única | N55: 0 | O55: 2026-04-01 | P55: 0 | Q55: 0 | R55: Até o 24º mês (2.50% SD); até 36º mês (2.0% SD); após o 37º mês (1.0% SD) | S55: M-2 | T55: Sim | U55: (i) AF Imóvel (ii) CF Recebíveis (iii) Aval Sócios (iv) Fundo de Obra
B56: Dome | C56: 24G1249772 | D56: 735421.3417 | E56: 0.005609838259 | F56: True Sec | G56: Oliveira Trust | H56: Corporativo | I56: IPCA | J56: 0.095 | K56: 0.0945116759 | L56: 0.24 | M56: Única | N56: 0 | O56: 2031-06-01 | P56: 2.011904762 | Q56: 0 | R56: - | S56: M-1 | T56: Sim | U56: (i) CF Recebíveis
B57: San Remo | C57: 19D1329253 | D57: 191047.2715 | E57: 0.001457320086 | F57: Ourinvest | G57: Vortx | H57: Residencial | I57: IPCA | J57: 0.09 | K57: 0 | L57: 0.317 | M57: Única | N57: 0 | O57: 2025-12-01 | P57: 0 | Q57: 0 | R57: Até 18º mês (2% SD); até 36º mês (1.5% SD); após 37º mês (1% SD) | S57: M-2 | T57: Sim | U57: (i) AF Imovéis (ii) CF Recebíveis (iii) Aval Sócios
B58: Wimo IV Mez | C58: 22B0914280 | D58: 2564180.64 | E58: 0.01955972426 | F58: Virgo | G58: Vortx | H58: Home Equity | I58: IPCA | J58: 0.12 | K58: 0.147119012 | L58: 0.3478648933 | M58: Mezanino | N58: 0.2 | O58: 2037-02-25 | P58: 3.757936508 | Q58: 0 | R58: - | S58: M-2 | T58: Sim | U58: (i) alienacao fiduciaria (ii) Fundo de Despesas (iii) Fundo de Reserva
B59: Pontte II Mez | C59: 25G5830826 | D59: 2119036.216 | E59: 0.0161641358 | F59: Virgo | G59: Vortx | H59: Home Equity | I59: IPCA | J59: 0.12 | K59: 0.1231213935 | L59: 0.35 | M59: Mezanino | N59: 0.2 | O59: 2045-06-25 | P59: 5.738095238 | Q59: 0 | R59: - | S59: M-2 | T59: Sim | U59: (i) alienacao fiduciaria (ii) Fundo de Despesas (iii) Fundo de Reserva
B60: Dom Medical | C60: 23F1568486 | D60: 908966.8837 | E60: 0.006933654099 | F60: Opea Capital | G60: Oliveira Trust | H60: Corporativo | I60: IPCA | J60: 0.095 | K60: 0.113048958 | L60: 0.4580998897 | M60: Única | N60: 0 | O60: 2026-06-01 | P60: 0.2222222222 | Q60: 0 | R60: Vedado até o término das obras e 2% SD após a finalização | S60: M-2 | T60: Não | U60: (i) Alienação fiduciária de imóveis e Quotas (ii) Cessão Fiduciária de recebíveis (iii) Aval e Fundo de obras, reserva e despesas
B61: Savixx | C61: 26B3227821 | D61: 1998481.93 | E61: 0.01524454045 | F61: Reit | G61: Terra Investimentos | H61: Corporativo | I61: IPCA | J61: 0.1 | K61: 0.0976 | L61: 0 | M61: Única | N61: 0 | O61: 2034-10-01 | P61: 3.9945664 | Q61: 0 | R61: - | S61: M-2 | T61: Não | U61: (i) Aval/Fiança com Interveniente (ii) Coobrigação (iii) Cessão Fiduciária

Sheet Investidores
B7: Número de Cotistas
B9: Tipologia | C9: 2021-03-01 | D9: 2021-04-01 | E9: 2021-05-01 | F9: 2021-06-01 | G9: 2021-07-01 | H9: 2021-08-01 | I9: 2021-09-01 | J9: 2021-10-01 | K9: 2021-11-01 | L9: 2021-12-01 | M9: 2022-01-01 | N9: 2022-02-01 | O9: 2022-03-01 | P9: 2022-04-01 | Q9: 2022-05-01 | R9: 2022-06-01 | S9: 2022-07-01 | T9: 2022-08-01 | U9: 2022-09-01 | V9: 2022-10-01 | W9: 2022-11-01 | X9: 2022-12-01 | Y9: 2023-01-01 | Z9: 2023-02-01 | AA9: 2023-03-01 | AB9: 2023-04-01 | AC9: 2023-05-01 | AD9: 2023-06-01 | AE9: 2023-07-01 | AF9: 2023-08-01 | AG9: 2023-09-01 | AH9: 2023-10-01 | AI9: 2023-11-01 | AJ9: 2023-12-01 | AK9: 2024-01-01 | AL9: 2024-02-01 | AM9: 2024-03-01 | AN9: 2024-04-01 | AO9: 2024-05-01 | AP9: 2024-06-01 | AQ9: 2024-07-01 | AR9: 2024-08-01 | AS9: 2024-09-01 | AT9: 2024-10-01 | AU9: =EDATE(AT9,1) -> 2024-11-01 | AV9: 2024-12-01 | AW9: 2025-01-01 | AX9: 2025-02-01 | AY9: 2025-03-01 | AZ9: 2025-04-01 | BA9: 2025-05-01 | BB9: 2025-06-01 | BC9: 2025-07-01 | BD9: 2025-08-01 | BE9: 2025-09-01 | BF9: 2025-10-01 | BG9: 2025-11-01 | BH9: 2025-12-01 | BI9: 2026-01-01 | BJ9: 2026-02-01 | BK9: 2026-03-01
B10: Pessoas Físicas | C10: 57 | D10: 128 | E10: 201 | F10: 309 | G10: 722 | H10: 856 | I10: 978 | J10: 1129 | K10: 1176 | L10: 1212 | M10: 1408 | N10: 1687 | O10: 1891 | P10: 2342 | Q10: 2927 | R10: 3208 | S10: 3457 | T10: 3581 | U10: 3647 | V10: 3670 | W10: 3738 | X10: 3708 | Y10: 3773 | Z10: 3775 | AA10: 3779 | AB10: 3734 | AC10: 3770 | AD10: 3778 | AE10: 3783 | AF10: 5080 | AG10: 5045 | AH10: 4973 | AI10: 4920 | AJ10: 4839 | AK10: 4794 | AL10: 4790 | AM10: 4757 | AN10: 4689 | AO10: 4624 | AP10: 4510 | AQ10: 4494 | AR10: 4457 | AS10: 4504 | AT10: 4456 | AU10: 4389 | AV10: 4338 | AW10: 4353 | AX10: 4334 | AY10: 4347 | AZ10: 4407 | BA10: 4416 | BB10: 4397 | BC10: 4346 | BD10: 4305 | BE10: 4257 | BF10: 4260 | BG10: 4240 | BH10: 4205 | BI10: 4178 | BJ10: 4166 | BK10: 4121
B11: Institucionais | C11: 18 | D11: 21 | E11: 21 | F11: 21 | G11: 28 | H11: 29 | I11: 29 | J11: 30 | K11: 32 | L11: 31 | M11: 31 | N11: 29 | O11: 27 | P11: 35 | Q11: 43 | R11: 43 | S11: 38 | T11: 44 | U11: 39 | V11: 38 | W11: 39 | X11: 38 | Y11: 37 | Z11: 37 | AA11: 34 | AB11: 34 | AC11: 33 | AD11: 33 | AE11: 32 | AF11: 41 | AG11: 40 | AH11: 40 | AI11: 42 | AJ11: 43 | AK11: 43 | AL11: 39 | AM11: 40 | AN11: 37 | AO11: 39 | AP11: 36 | AQ11: 37 | AR11: 37 | AS11: 36 | AT11: 34 | AU11: 33 | AV11: 34 | AW11: 33 | AX11: 31 | AY11: 32 | AZ11: 30 | BA11: 31 | BB11: 33 | BC11: 32 | BD11: 32 | BE11: 31 | BF11: 31 | BG11: 31 | BH11: 31 | BI11: 29 | BJ11: 30 | BK11: 30
B12: Total | C12: =SUM(C10:C11) -> 75 | D12: 149 | E12: 222 | F12: 330 | G12: 750 | H12: 885 | I12: 1007 | J12: 1159 | K12: 1208 | L12: =SUM(L10:L11) -> 1243 | M12: 1439 | N12: =SUM(N10:N11) -> 1716 | O12: 1918 | P12: 2377 | Q12: 2970 | R12: 3251 | S12: 3495 | T12: 3625 | U12: =SUM(U10:U11) -> 3686 | V12: 3708 | W12: 3777 | X12: 3746 | Y12: 3810 | Z12: 3812 | AA12: =SUM(AA10:AA11) -> 3813 | AB12: 3768 | AC12: 3803 | AD12: 3811 | AE12: 3815 | AF12: 5121 | AG12: 5085 | AH12: =SUM(AH10:AH11) -> 5013 | AI12: 4962 | AJ12: =SUM(AJ10:AJ11) -> 4882 | AK12: 4837 | AL12: =SUM(AL10:AL11) -> 4829 | AM12: 4797 | AN12: 4726 | AO12: 4663 | AP12: 4546 | AQ12: 4531 | AR12: =SUM(AR10:AR11) -> 4494 | AS12: 4540 | AT12: 4490 | AU12: 4422 | AV12: 4372 | AW12: 4386 | AX12: =SUM(AX10:AX11) -> 4365 | AY12: 4379 | AZ12: 4437 | BA12: 4447 | BB12: 4430 | BC12: 4378 | BD12: =SUM(BD10:BD11) -> 4337 | BE12: 4288 | BF12: 4291 | BG12: 4271 | BH12: 4236 | BI12: 4207 | BJ12: 4196 | BK12: =SUM(BK10:BK11) -> 4151
B27: Percentual de Cotas por Tipo de Investidor
B29: Tipologia | C29: =C9 -> 2021-03-01 | D29: 2021-04-01 | E29: 2021-05-01 | F29: 2021-06-01 | G29: 2021-07-01 | H29: 2021-08-01 | I29: 2021-09-01 | J29: 2021-10-01 | K29: 2021-11-01 | L29: 2021-12-01 | M29: 2022-01-01 | N29: 2022-02-01 | O29: 2022-03-01 | P29: 2022-04-01 | Q29: 2022-05-01 | R29: =R9 -> 2022-06-01 | S29: 2022-07-01 | T29: 2022-08-01 | U29: 2022-09-01 | V29: 2022-10-01 | W29: 2022-11-01 | X29: 2022-12-01 | Y29: =Y9 -> 2023-01-01 | Z29: 2023-02-01 | AA29: 2023-03-01 | AB29: 2023-04-01 | AC29: 2023-05-01 | AD29: 2023-06-01 | AE29: =AE9 -> 2023-07-01 | AF29: 2023-08-01 | AG29: 2023-09-01 | AH29: 2023-10-01 | AI29: 2023-11-01 | AJ29: 2023-12-01 | AK29: =AK9 -> 2024-01-01 | AL29: 2024-02-01 | AM29: 2024-03-01 | AN29: 2024-04-01 | AO29: 2024-05-01 | AP29: 2024-06-01 | AQ29: =AQ9 -> 2024-07-01 | AR29: 2024-08-01 | AS29: 2024-09-01 | AT29: 2024-10-01 | AU29: 2024-11-01 | AV29: 2024-12-01 | AW29: =AW9 -> 2025-01-01 | AX29: 2025-02-01 | AY29: 2025-03-01 | AZ29: 2025-04-01 | BA29: 2025-05-01 | BB29: 2025-06-01 | BC29: =BC9 -> 2025-07-01 | BD29: =BD9 -> 2025-08-01 | BE29: =BE9 -> 2025-09-01 | BF29: 2025-10-01 | BG29: =BG9 -> 2025-11-01 | BH29: 2025-12-01 | BI29: 2026-01-01 | BJ29: 2026-02-01 | BK29: =BK9 -> 2026-03-01
B30: Institucionais | C30: 0.9666631776 | D30: 0.9624860855 | E30: 0.9613787366 | F30: 0.9542954216 | G30: 0.9159530289 | H30: 0.9023301968 | I30: 0.8883322004 | J30: 0.8685480646 | K30: 0.8602927063 | L30: 0.8582683541 | M30: 0.8334992802 | N30: 0.8038587652 | O30: 0.7759806862 | P30: 0.7294085893 | Q30: 0.702456214 | R30: 0.6791646673 | S30: 0.6658569258 | T30: 0.6305217545 | U30: 0.6270123196 | V30: 0.6264891375 | W30: 0.6260927619 | X30: 0.6280469268 | Y30: 0.626350574 | Z30: 0.6246609394 | AA30: 0.6281745732 | AB30: 0.6300321635 | AC30: 0.6244560334 | AD30: 0.6220643438 | AE30: 0.692049229 | AF30: 0.5242145215 | AG30: 0.5239868515 | AH30: 0.5229860667 | AI30: 0.5223780298 | AJ30: 0.5206481509 | AK30: 0.5421736221 | AL30: 0.5614499068 | AM30: 0.5669029803 | AN30: 0.5711613024 | AO30: 0.5855698524 | AP30: 0.5895035213 | AQ30: 0.5862439205 | AR30: 0.5837897623 | AS30: 0.5799578914 | AT30: 0.5743342374 | AU30: 0.5759238 | AV30: 0.5739965155 | AW30: 0.5737757238 | AX30: 0.5735 | AY30: 0.5695 | AZ30: 0.5518 | BA30: 0.5468 | BB30: 0.549 | BC30: 0.549 | BD30: 0.5435 | BE30: 0.544 | BF30: 0.5394574027 | BG30: 0.5416948961 | BH30: 0.5416948961 | BI30: 0.5468377607 | BJ30: 0.5491811792 | BK30: 0.5530199283
B31: Pessoas Físicas | C31: 0.0333368224 | D31: 0.03751391448 | E31: 0.03862126342 | F31: 0.04570457836 | G31: 0.08404697112 | H31: 0.09766980319 | I31: 0.1116677996 | J31: 0.1314519354 | K31: 0.1397072937 | L31: 0.1417316459 | M31: 0.1665007198 | N31: 0.1961412348 | O31: 0.2240193138 | P31: 0.2705914107 | Q31: 0.297543786 | R31: 0.3208353327 | S31: 0.3341430742 | T31: 0.3694782455 | U31: 0.3729876804 | V31: 0.3735108625 | W31: 0.3739072381 | X31: 0.3719530732 | Y31: 0.373649426 | Z31: 0.3753390606 | AA31: 0.3718254268 | AB31: 0.3699678365 | AC31: 0.3755439666 | AD31: 0.3779356562 | AE31: 0.307950771 | AF31: 0.4757854785 | AG31: 0.4760131485 | AH31: 0.4770139333 | AI31: 0.4776219702 | AJ31: 0.4793518491 | AK31: 0.4578263779 | AL31: 0.4385500932 | AM31: 0.4330970197 | AN31: 0.4288386976 | AO31: 0.4144301476 | AP31: 0.4104964787 | AQ31: 0.4137560795 | AR31: 0.4162102377 | AS31: 0.4200421086 | AT31: 0.4256657626 | AU31: 0.4240762 | AV31: 0.4260034845 | AW31: 0.4262242762 | AX31: 0.4265 | AY31: 0.4305 | AZ31: 0.4482 | BA31: 0.4532 | BB31: 0.451 | BC31: 0.451 | BD31: 0.4565 | BE31: 0.456 | BF31: 0.4605425973 | BG31: 0.4583051039 | BH31: 0.4583051039 | BI31: 0.4531622393 | BJ31: 0.4508188208 | BK31: 0.4469800717
B32: Total | C32: =SUM(C30:C31) -> 1 | D32: =SUM(D30:D31) -> 1 | E32: 1 | F32: 1 | G32: 1 | H32: 1 | I32: 1 | J32: 1 | K32: 1 | L32: =SUM(L30:L31) -> 1 | M32: 1 | N32: =SUM(N30:N31) -> 1 | O32: 1 | P32: =SUM(P30:P31) -> 1 | Q32: 1 | R32: 1 | S32: =SUM(S30:S31) -> 1 | T32: 1 | U32: =SUM(U30:U31) -> 1 | V32: 1 | W32: =SUM(W30:W31) -> 1 | X32: 1 | Y32: =SUM(Y30:Y31) -> 1 | Z32: 1 | AA32: =SUM(AA30:AA31) -> 1 | AB32: 1 | AC32: =SUM(AC30:AC31) -> 1 | AD32: 1 | AE32: =SUM(AE30:AE31) -> 1 | AF32: 1 | AG32: =SUM(AG30:AG31) -> 1 | AH32: 1 | AI32: =SUM(AI30:AI31) -> 1 | AJ32: 1 | AK32: =SUM(AK30:AK31) -> 1 | AL32: =SUM(AL30:AL31) -> 1 | AM32: 1 | AN32: 1 | AO32: 1 | AP32: 1 | AQ32: 1 | AR32: =SUM(AR30:AR31) -> 1 | AS32: 1 | AT32: =SUM(AT30:AT31) -> 1 | AU32: 1 | AV32: 1 | AW32: 1 | AX32: 1 | AY32: 1 | AZ32: =SUM(AZ30:AZ31) -> 1 | BA32: 1 | BB32: 1 | BC32: 1 | BD32: 1 | BE32: 1 | BF32: =SUM(BF30:BF31) -> 1 | BG32: 1 | BH32: 1 | BI32: 1 | BJ32: 1 | BK32: =SUM(BK30:BK31) -> 1

Sheet 23L1538459
B2: Juros | C2: 0.08 | D2: Pirelli
B3: Código IF | C3: 23L1538459
B4: Trunc. Juros | C4: 6
B5: Trunc. Índice | C5: 8
B6: Trunc. Fator Juros | C6: 8
B7: Trunc. Amortz | C7: 8
B8: Trunc. Atualização | C8: 8
B9: Correção | C9: Anual
B10: Mês de Correção | C10: 4
B11: Qtde emissão | C11: 170748
B13: Data | C13: Paga Juros? | D13: VN | E13: Índice Mensal | F13: Índice Anual | G13: VNA | H13: % Amort Esp. | I13: % Amort Real. | J13: Pagto Amort | K13: VNF | L13: Fator Juros | M13: Juros | N13: PMT | O13: Correção PU | P13: Correção Resultado | Q13: CM Acum. Inicial | R13: CM Acum. Final | S13: Juros | T13: Resultado caixa | U13: Amortização Custo
B14: 2023-12-13 | K14: 1000
B15: 2024-01-10 | C15: N | D15: 997.6059851 | E15: 1.00239976 | F15: 1 | G15: 1000 | H15: 0 | J15: 0 | K15: 1005.809579 | L15: 1.00580958 | M15: 5.809579 | N15: 5.809579 | O15: 2.394014939 | P15: 0 | Q15: 0 | R15: 0 | S15: 0 | T15: 0 | U15: 0
B16: 2024-02-10 | C16: N | D16: 1003.000716 | E16: 1.00280046 | F16: 1 | G16: 1005.809579 | H16: 0 | J16: 0 | K16: 1012.280988 | L16: 1.00643403 | M16: 6.471409 | N16: 6.471409 | O16: 2.808863384 | P16: 0 | Q16: 0 | R16: 0 | S16: 0 | T16: 0 | U16: 0
B17: 2024-03-10 | C17: N | D17: 1006.643653 | E17: 1.00560013 | F17: 1 | G17: 1012.280988 | H17: 0 | J17: 0 | K17: 1018.794034 | L17: 1.00643403 | M17: 6.513046 | N17: 6.513046 | O17: 5.637335319 | P17: 0 | Q17: 0 | R17: 0 | S17: 0 | T17: 0 | U17: 0
B18: 2024-04-10 | C18: N | D18: 1014.532662 | E18: 1.00420033 | F18: 1 | G18: 1018.794034 | H18: 0 | J18: 0 | K18: 1025.348985 | L18: 1.00643403 | M18: 6.554951 | N18: 6.554951 | O18: 4.261371976 | P18: 0 | Q18: 0 | R18: 0 | S18: 0 | T18: 0 | U18: 0
B19: 2024-05-10 | C19: N | D19: 1016.909279 | E19: 1.00829937 | F19: 1 | G19: 1025.348985 | H19: 0 | J19: 0 | K19: 1031.946111 | L19: 1.00643403 | M19: 6.597126 | N19: 6.597126 | O19: 8.43970636 | P19: 0 | Q19: 0 | R19: 0 | S19: 0 | T19: 0 | U19: 0
B20: 2024-06-10 | C20: N | D20: 1030.298098 | E20: 1.00159955 | F20: 1 | G20: 1031.946111 | H20: 0 | J20: 0 | K20: 1038.585683 | L20: 1.00643403 | M20: 6.639572 | N20: 6.639572 | O20: 1.648013322 | P20: 0 | Q20: 0 | R20: 0 | S20: 0 | T20: 0 | U20: 0
B21: 2024-07-10 | C21: N | D21: 1034.65441 | E21: 1.0037996 | F21: 1 | G21: 1038.585683 | H21: 0 | J21: 0 | K21: 1045.267974 | L21: 1.00643403 | M21: 6.682291 | N21: 6.682291 | O21: 3.931272897 | P21: 0 | Q21: 0 | R21: 0 | S21: 0 | T21: 0 | U21: 0
B22: 2024-08-10 | C22: N | D22: 1040.481478 | E22: 1.00460027 | F22: 1 | G22: 1045.267974 | H22: 0 | J22: 0 | K22: 1051.993259 | L22: 1.00643403 | M22: 6.725285 | N22: 6.725285 | O22: 4.78649573 | P22: 0 | Q22: 0 | R22: 0 | S22: 0 | T22: 0 | U22: 0
B23: 2024-09-10 | C23: N | D23: 1049.7882 | E23: 1.00210048 | F23: 1 | G23: 1051.993259 | H23: 0 | J23: 0 | K23: 1058.761815 | L23: 1.00643403 | M23: 6.768556 | N23: 6.768556 | O23: 2.205059118 | P23: 0 | Q23: 0 | R23: 0 | S23: 0 | T23: 0 | U23: 0
B24: 2024-10-10 | C24: N | D24: 1054.753415 | E24: 1.00380032 | F24: 1 | G24: 1058.761815 | H24: 0 | J24: 0 | K24: 1065.57392 | L24: 1.00643403 | M24: 6.812105 | N24: 6.812105 | O24: 4.008400496 | P24: 0 | Q24: 0 | R24: 0 | S24: 0 | T24: 0 | U24: 0
B25: 2024-11-10 | C25: N | D25: 1065.786534 | E25: 0.99980051 | F25: 1 | G25: 1065.57392 | H25: 0 | J25: 0 | K25: 1072.429854 | L25: 1.00643403 | M25: 6.855934 | N25: 6.855934 | O25: -0.2126137556 | P25: 0 | Q25: 0 | R25: 0 | S25: 0 | T25: 0 | U25: 0
B26: 2024-12-10 | C26: N | D26: 1114.718532 | E26: 1.00439962 | F26: 1.04400569 | G26: 1119.62287 | H26: 0 | J26: 0 | K26: 1126.826557 | L26: 1.00643403 | M26: 7.203687 | N26: 7.203687 | O26: 4.904337947 | P26: 0 | Q26: 0 | R26: 0 | S26: 0 | T26: 0 | U26: 0
B27: 2025-01-10 | C27: N | D27: 1120.552115 | E27: 1.00559942 | F27: 1 | G27: 1126.826557 | H27: 0 | J27: 0 | K27: 1134.076592 | L27: 1.00643403 | M27: 7.250035 | N27: 7.250035 | O27: 6.274441923 | P27: 0 | Q27: 0 | R27: 0 | S27: 0 | T27: 0 | U27: 0
B28: 2025-02-10 | C28: N | D28: 1129.671145 | E28: 1.00389976 | F28: 1 | G28: 1134.076592 | H28: 0 | J28: 0 | K28: 1141.373274 | L28: 1.00643403 | M28: 7.296682 | N28: 7.296682 | O28: 4.405446346 | P28: 0 | Q28: 0 | R28: 0 | S28: 0 | T28: 0 | U28: 0
B29: 2025-03-10 | C29: N | D29: 1135.469096 | E29: 1.00519977 | F29: 1 | G29: 1141.373274 | H29: 0 | J29: 0 | K29: 1148.716903 | L29: 1.00643403 | M29: 7.343629 | N29: 7.343629 | O29: 5.904178139 | P29: 0 | Q29: 0 | R29: 0 | S29: 0 | T29: 0 | U29: 0
B30: 2025-04-10 | C30: S | D30: 1146.882029 | E30: 1.00159988 | F30: 1 | G30: 1148.716903 | H30: 0.003158 | J30: 3.62764797 | K30: 1145.089255 | L30: 1.00643403 | M30: 7.390879 | N30: 11.01852697 | O30: 1.834873621 | P30: 0 | Q30: 0 | R30: 0 | S30: 7.390879 | T30: 7.390879 | U30: 3.62764797
B31: 2025-05-10 | C31: S | D31: 1148.811462 | E31: 1.01310065 | F31: 1.016393817 | G31: 1163.861639 | H31: 0.003188 | J31: 3.7103909 | K31: 1160.151248 | L31: 1.00643403 | M31: 7.48832 | N31: 11.1987109 | O31: 15.05017688 | P31: 0 | Q31: 0 | R31: 0 | S31: 7.48832 | T31: 7.48832 | U31: 3.7103909
B32: 2025-06-10 | C32: S | D32: 1153.690294 | E32: 1.00560025 | F32: 1 | G32: 1160.151248 | H32: 0.003219 | J32: 3.73452686 | K32: 1156.416721 | L32: 1.00643403 | M32: 7.464447 | N32: 11.19897386 | O32: 6.460954069 | P32: 0 | Q32: 0 | R32: 0 | S32: 7.464447 | T32: 7.464447 | U32: 3.73452686
B33: 2025-07-10 | C33: S | D33: 1151.464652 | E33: 1.00430067 | F33: 1 | G33: 1156.416721 | H33: 0.00325 | J33: 3.75835434 | K33: 1152.658367 | L33: 1.00643403 | M33: 7.440419 | N33: 11.19877334 | O33: 4.952069484 | P33: 0 | Q33: 0 | R33: 0 | S33: 7.440419 | T33: 7.440419 | U33: 3.75835434
B34: 2025-08-10 | C34: S | D34: 1149.669078 | E34: 1.00260013 | F34: 1 | G34: 1152.658367 | H34: 0.003282 | J34: 3.78302476 | K34: 1148.875342 | L34: 1.00643403 | M34: 7.416238 | N34: 11.19926276 | O34: 2.989289059 | P34: 2.989289059 | Q34: 0 | R34: 0 | S34: 7.416238 | T34: 10.40552706 | U34: 0.7937357007
B35: 2025-09-10 | C35: S | D35: 1146.124506 | E35: 1.00240012 | F35: 1 | G35: 1148.875342 | H35: 0.003314 | J35: 3.80737288 | K35: 1145.067969 | L35: 1.00643403 | M35: 7.391898 | N35: 11.19927088 | O35: 2.750836349 | P35: 2.750836349 | Q35: 0 | R35: 0 | S35: 7.391898 | T35: 10.14273435 | U35: 1.056536531
B36: 2025-10-10 | C36: S | D36: 1142.099094 | E36: 1.00259949 | F36: 1 | G36: 1145.067969 | H36: 0.003346 | J36: 3.83139742 | K36: 1141.236572 | L36: 1.00643403 | M36: 7.367401 | N36: 11.19879842 | O36: 2.968875174 | P36: 2.968875174 | Q36: 0 | R36: 0 | S36: 7.367401 | T36: 10.33627617 | U36: 0.862522246
B37: 2025-11-10 | C37: S | D37: 1142.494069 | E37: 0.99889934 | F37: 1 | G37: 1141.236572 | H37: 0.003379 | J37: 3.85623837 | K37: 1137.380333 | L37: 1.00643403 | M37: 7.34275 | N37: 11.19898837 | O37: -1.257497522 | P37: -1.257497522 | Q37: 0 | R37: 0 | S37: 7.34275 | T37: 6.085252478 | U37: 5.113735892
B38: 2025-12-10 | C38: S | D38: 1131.947731 | E38: 1.00479934 | F38: 1 | G38: 1137.380333 | H38: 0.003119 | J38: 3.54748926 | K38: 1133.832844 | L38: 1.00643403 | M38: 7.317939 | N38: 10.86542826 | O38: 5.432602025 | P38: 3.54748926 | Q38: 0 | R38: 1.885112765 | S38: 7.317939 | T38: 10.86542826 | U38: 0
B39: 2026-01-10 | C39: S | D39: 1132.813799 | E39: 1.00089957 | F39: 1 | G39: 1133.832844 | H39: 0.003443 | J39: 3.90378648 | K39: 1129.929058 | L39: 1.00643403 | M39: 7.295114 | N39: 11.19890048 | O39: 1.019045309 | P39: 2.904158074 | Q39: 1.885112765 | R39: 0 | S39: 7.295114 | T39: 10.19927207 | U39: 0.9996284056
B40: 2026-02-10 | C40: S | D40: 1127.89857 | E40: 1.00180024 | F40: 1 | G40: 1129.929058 | H40: 0.003477 | J40: 3.92876333 | K40: 1126.000294 | L40: 1.00643403 | M40: 7.269997 | N40: 11.19876033 | O40: 2.030488121 | P40: 2.030488121 | Q40: 0 | R40: 0 | S40: 7.269997 | T40: 9.300485121 | U40: 1.898275209
B41: 2026-03-10 | C41: S | D41: 1122.296794 | E41: 1.00329993 | F41: 1 | G41: 1126.000294 | H41: 0.003512 | J41: 3.95451303 | K41: 1122.045781 | L41: 1.00643403 | M41: 7.244719 | N41: 11.19923203 | O41: 3.703500858 | P41: 3.703500858 | Q41: 0 | R41: 0 | S41: 7.244719 | T41: 10.94821986 | U41: 0.2510121722
B42: 2026-04-10 | C42: S | D42: 1168.024966 | E42: 1.00329988 | F42: 1.044413095 | G42: 1171.879308 | H42: 0.003547 | J42: 4.1566559 | K42: 1167.722652 | L42: 1.00643403 | M42: 7.539906 | N42: 11.6965619 | O42: 3.854342223 | P42: 3.854342223 | Q42: 0 | R42: 0 | S42: 7.539906 | T42: 11.39424822 | U42: 0.3023136768
B43: 2026-05-10 | C43: S | D43: 1159.606047 | E43: 1.00699945 | F43: 1 | G43: 1167.722652 | H43: 0.003582 | J43: 4.18278253 | K43: 1163.539869 | L43: 1.00643403 | M43: 7.513162 | N43: 11.69594453 | O43: 8.116604548 | P43: 4.18278253 | Q43: 0 | R43: 3.933822018 | S43: 7.513162 | T43: 11.69594453 | U43: 0
B44: 2026-06-10 | C44: S | D44: 1153.390266 | E44: 1.0087998 | F44: 1 | G44: 1163.539869 | H44: 0.003618 | J44: 4.20968724 | K44: 1159.330182 | L44: 1.00643403 | M44: 7.48625 | N44: 11.69593724 | O44: 10.14960366 | P44: 4.20968724 | Q44: 3.933822018 | R44: 9.873738437 | S44: 7.48625 | T44: 11.69593724 | U44: 0
B45: 2026-07-10 | C45: S | D45: 1151.499982 | E45: 1.0068 | F45: 1 | G45: 1159.330182 | H45: 0.003655 | J45: 4.23735181 | K45: 1155.09283 | L45: 1.00643403 | M45: 7.459165 | N45: 11.69651681 | O45: 7.830199879 | P45: 4.23735181 | Q45: 9.873738437 | R45: 13.46658651 | S45: 7.459165 | T45: 11.69651681 | U45: 0
B46: 2026-08-10 | C46: S | D46: 1155.09283 | E46: 1 | F46: 1 | G46: 1155.09283 | H46: 0.003692 | J46: 4.26460272 | K46: 1150.828228 | L46: 1.00643403 | M46: 7.431901 | N46: 11.69650372 | O46: 0 | P46: 4.26460272 | Q46: 13.46658651 | R46: 9.201983786 | S46: 7.431901 | T46: 11.69650372 | U46: 0
B47: 2026-09-10 | C47: S | D47: 1150.828228 | E47: 1 | F47: 1 | G47: 1150.828228 | H47: 0.003729 | J47: 4.29143846 | K47: 1146.536789 | L47: 1.00643403 | M47: 7.404463 | N47: 11.69590146 | O47: 0 | P47: 4.29143846 | Q47: 9.201983786 | R47: 4.910545326 | S47: 7.404463 | T47: 11.69590146 | U47: 0
B48: 2026-10-10 | C48: S | D48: 1146.536789 | E48: 1 | F48: 1 | G48: 1146.536789 | H48: 0.003767 | J48: 4.31900408 | K48: 1142.217785 | L48: 1.00643403 | M48: 7.376852 | N48: 11.69585608 | O48: 0 | P48: 4.31900408 | Q48: 4.910545326 | R48: 0.591541246 | S48: 7.376852 | T48: 11.69585608 | U48: 0
B49: 2026-11-10 | C49: S | D49: 1142.217785 | E49: 1 | F49: 1 | G49: 1142.217785 | H49: 0.003806 | J49: 4.34728088 | K49: 1137.870504 | L49: 1.00643403 | M49: 7.349063 | N49: 11.69634388 | O49: 0 | P49: 0.591541246 | Q49: 0.591541246 | R49: 0 | S49: 7.349063 | T49: 7.940604246 | U49: 3.755739634
B50: 2026-12-10 | C50: S | D50: 1137.870504 | E50: 1 | F50: 1 | G50: 1137.870504 | H50: 0.003539 | J50: 4.02692371 | K50: 1133.84358 | L50: 1.00643403 | M50: 7.321092 | N50: 11.34801571 | O50: 0 | P50: 0 | Q50: 0 | R50: 0 | S50: 7.321092 | T50: 7.321092 | U50: 4.02692371
B51: 2027-01-10 | C51: S | D51: 1133.84358 | E51: 1 | F51: 1 | G51: 1133.84358 | H51: 0.003882 | J51: 4.40158077 | K51: 1129.442 | L51: 1.00643403 | M51: 7.295183 | N51: 11.69676377 | O51: 0 | P51: 0 | Q51: 0 | R51: 0 | S51: 7.295183 | T51: 7.295183 | U51: 4.40158077
B52: 2027-02-10 | C52: S | D52: 1129.442 | E52: 1 | F52: 1 | G52: 1129.442 | H52: 0.003922 | J52: 4.42967152 | K52: 1125.012328 | L52: 1.00643403 | M52: 7.266863 | N52: 11.69653452 | O52: 0 | P52: 0 | Q52: 0 | R52: 0 | S52: 7.266863 | T52: 7.266863 | U52: 4.42967152
B53: 2027-03-10 | C53: S | D53: 1125.012328 | E53: 1 | F53: 1 | G53: 1125.012328 | H53: 0.003963 | J53: 4.45842385 | K53: 1120.553904 | L53: 1.00643403 | M53: 7.238363 | N53: 11.69678685 | O53: 0 | P53: 0 | Q53: 0 | R53: 0 | S53: 7.238363 | T53: 7.238363 | U53: 4.45842385
B54: 2027-04-10 | C54: S | D54: 1146.067457 | E54: 1 | F54: 1.022768697 | G54: 1146.067457 | H54: 0.004004 | J54: 4.58885409 | K54: 1141.478603 | L54: 1.00643403 | M54: 7.373832 | N54: 11.96268609 | O54: 0 | P54: 0 | Q54: 0 | R54: 0 | S54: 7.373832 | T54: 7.373832 | U54: 4.58885409
B55: 2027-05-10 | C55: S | D55: 1141.478603 | E55: 1 | F55: 1 | G55: 1141.478603 | H55: 0.004046 | J55: 4.61842242 | K55: 1136.860181 | L55: 1.00643403 | M55: 7.344307 | N55: 11.96272942 | O55: 0 | P55: 0 | Q55: 0 | R55: 0 | S55: 7.344307 | T55: 7.344307 | U55: 4.61842242
B56: 2027-06-10 | C56: S | D56: 1136.860181 | E56: 1 | F56: 1 | G56: 1136.860181 | H56: 0.004089 | J56: 4.64862127 | K56: 1132.211559 | L56: 1.00643403 | M56: 7.314592 | N56: 11.96321327 | O56: 0 | P56: 0 | Q56: 0 | R56: 0 | S56: 7.314592 | T56: 7.314592 | U56: 4.64862127
B57: 2027-07-10 | C57: S | D57: 1132.211559 | E57: 1 | F57: 1 | G57: 1132.211559 | H57: 0.004132 | J57: 4.67829816 | K57: 1127.533261 | L57: 1.00643403 | M57: 7.284683 | N57: 11.96298116 | O57: 0 | P57: 0 | Q57: 0 | R57: 0 | S57: 7.284683 | T57: 7.284683 | U57: 4.67829816
B58: 2027-08-10 | C58: S | D58: 1127.533261 | E58: 1 | F58: 1 | G58: 1127.533261 | H58: 0.004176 | J58: 4.70857889 | K58: 1122.824682 | L58: 1.00643403 | M58: 7.254582 | N58: 11.96316089 | O58: 0 | P58: 0 | Q58: 0 | R58: 0 | S58: 7.254582 | T58: 7.254582 | U58: 4.70857889
B59: 2027-09-10 | C59: S | D59: 1122.824682 | E59: 1 | F59: 1 | G59: 1122.824682 | H59: 0.00422 | J59: 4.73832015 | K59: 1118.086362 | L59: 1.00643403 | M59: 7.224287 | N59: 11.96260715 | O59: 0 | P59: 0 | Q59: 0 | R59: 0 | S59: 7.224287 | T59: 7.224287 | U59: 4.73832015
B60: 2027-10-10 | C60: S | D60: 1118.086362 | E60: 1 | F60: 1 | G60: 1118.086362 | H60: 0.004265 | J60: 4.76863833 | K60: 1113.317724 | L60: 1.00643403 | M60: 7.193801 | N60: 11.96243933 | O60: 0 | P60: 0 | Q60: 0 | R60: 0 | S60: 7.193801 | T60: 7.193801 | U60: 4.76863833
B61: 2027-11-10 | C61: S | D61: 1113.317724 | E61: 1 | F61: 1 | G61: 1113.317724 | H61: 0.004311 | J61: 4.7995127 | K61: 1108.518211 | L61: 1.00643403 | M61: 7.163119 | N61: 11.9626317 | O61: 0 | P61: 0 | Q61: 0 | R61: 0 | S61: 7.163119 | T61: 7.163119 | U61: 4.7995127
B62: 2027-12-10 | C62: S | D62: 1108.518211 | E62: 1 | F62: 1 | G62: 1108.518211 | H62: 0.004036 | J62: 4.4739795 | K62: 1104.044232 | L62: 1.00643403 | M62: 7.132239 | N62: 11.6062185 | O62: 0 | P62: 0 | Q62: 0 | R62: 0 | S62: 7.132239 | T62: 7.132239 | U62: 4.4739795
B63: 2028-01-10 | C63: S | D63: 1104.044232 | E63: 1 | F63: 1 | G63: 1104.044232 | H63: 0.004401 | J63: 4.85889866 | K63: 1099.185333 | L63: 1.00643403 | M63: 7.103453 | N63: 11.96235166 | O63: 0 | P63: 0 | Q63: 0 | R63: 0 | S63: 7.103453 | T63: 7.103453 | U63: 4.85889866
B64: 2028-02-10 | C64: S | D64: 1099.185333 | E64: 1 | F64: 1 | G64: 1099.185333 | H64: 0.004449 | J64: 4.89027554 | K64: 1094.295057 | L64: 1.00643403 | M64: 7.072191 | N64: 11.96246654 | O64: 0 | P64: 0 | Q64: 0 | R64: 0 | S64: 7.072191 | T64: 7.072191 | U64: 4.89027554
B65: 2028-03-10 | C65: S | D65: 1094.295057 | E65: 1 | F65: 1 | G65: 1094.295057 | H65: 0.004498 | J65: 4.92213916 | K65: 1089.372918 | L65: 1.00643403 | M65: 7.040727 | N65: 11.96286616 | O65: 0 | P65: 0 | Q65: 0 | R65: 0 | S65: 7.040727 | T65: 7.040727 | U65: 4.92213916
B66: 2028-04-10 | C66: S | D66: 1089.372918 | E66: 1 | F66: 1 | G66: 1089.372918 | H66: 0.004547 | J66: 4.95337865 | K66: 1084.41954 | L66: 1.00643403 | M66: 7.009058 | N66: 11.96243665 | O66: 0 | P66: 0 | Q66: 0 | R66: 0 | S66: 7.009058 | T66: 7.009058 | U66: 4.95337865
B67: 2028-05-10 | C67: S | D67: 1084.41954 | E67: 1 | F67: 1 | G67: 1084.41954 | H67: 0.004597 | J67: 4.98507662 | K67: 1079.434463 | L67: 1.00643403 | M67: 6.977187 | N67: 11.96226362 | O67: 0 | P67: 0 | Q67: 0 | R67: 0 | S67: 6.977187 | T67: 6.977187 | U67: 4.98507662
B68: 2028-06-10 | C68: S | D68: 1079.434463 | E68: 1 | F68: 1 | G68: 1079.434463 | H68: 0.004648 | J68: 5.01721138 | K68: 1074.417252 | L68: 1.00643403 | M68: 6.945113 | N68: 11.96232438 | O68: 0 | P68: 0 | Q68: 0 | R68: 0 | S68: 6.945113 | T68: 6.945113 | U68: 5.01721138
B69: 2028-07-10 | C69: S | D69: 1074.417252 | E69: 1 | F69: 1 | G69: 1074.417252 | H69: 0.0047 | J69: 5.04976108 | K69: 1069.367491 | L69: 1.00643403 | M69: 6.912832 | N69: 11.96259308 | O69: 0 | P69: 0 | Q69: 0 | R69: 0 | S69: 6.912832 | T69: 6.912832 | U69: 5.04976108
B70: 2028-08-10 | C70: S | D70: 1069.367491 | E70: 1 | F70: 1 | G70: 1069.367491 | H70: 0.004753 | J70: 5.08270368 | K70: 1064.284787 | L70: 1.00643403 | M70: 6.880342 | N70: 11.96304568 | O70: 0 | P70: 0 | Q70: 0 | R70: 0 | S70: 6.880342 | T70: 6.880342 | U70: 5.08270368
B71: 2028-09-10 | C71: S | D71: 1064.284787 | E71: 1 | F71: 1 | G71: 1064.284787 | H71: 0.004806 | J71: 5.11495268 | K71: 1059.169834 | L71: 1.00643403 | M71: 6.84764 | N71: 11.96259268 | O71: 0 | P71: 0 | Q71: 0 | R71: 0 | S71: 6.84764 | T71: 6.84764 | U71: 5.11495268
B72: 2028-10-10 | C72: S | D72: 1059.169834 | E72: 1 | F72: 1 | G72: 1059.169834 | H72: 0.00486 | J72: 5.14756539 | K72: 1054.022269 | L72: 1.00643403 | M72: 6.81473 | N72: 11.96229539 | O72: 0 | P72: 0 | Q72: 0 | R72: 0 | S72: 6.81473 | T72: 6.81473 | U72: 5.14756539
B73: 2028-11-10 | C73: S | D73: 1054.022269 | E73: 1 | F73: 1 | G73: 1054.022269 | H73: 0.004916 | J73: 5.18157347 | K73: 1048.840695 | L73: 1.00643403 | M73: 6.78161 | N73: 11.96318347 | O73: 0 | P73: 0 | Q73: 0 | R73: 0 | S73: 6.78161 | T73: 6.78161 | U73: 5.18157347
B74: 2028-12-10 | C74: S | D74: 1048.840695 | E74: 1 | F74: 1 | G74: 1048.840695 | H74: 0.004632 | J74: 4.8582301 | K74: 1043.982465 | L74: 1.00643403 | M74: 6.748272 | N74: 11.6065021 | O74: 0 | P74: 0 | Q74: 0 | R74: 0 | S74: 6.748272 | T74: 6.748272 | U74: 4.8582301
B75: 2029-01-10 | C75: S | D75: 1043.982465 | E75: 1 | F75: 1 | G75: 1043.982465 | H75: 0.005025 | J75: 5.24601188 | K75: 1038.736453 | L75: 1.00643403 | M75: 6.717014 | N75: 11.96302588 | O75: 0 | P75: 0 | Q75: 0 | R75: 0 | S75: 6.717014 | T75: 6.717014 | U75: 5.24601188
B76: 2029-02-10 | C76: S | D76: 1038.736453 | E76: 1 | F76: 1 | G76: 1038.736453 | H76: 0.005083 | J76: 5.27989739 | K76: 1033.456556 | L76: 1.00643403 | M76: 6.683261 | N76: 11.96315839 | O76: 0 | P76: 0 | Q76: 0 | R76: 0 | S76: 6.683261 | T76: 6.683261 | U76: 5.27989739
B77: 2029-03-10 | C77: S | D77: 1033.456556 | E77: 1 | F77: 1 | G77: 1033.456556 | H77: 0.005141 | J77: 5.31300015 | K77: 1028.143556 | L77: 1.00643403 | M77: 6.64929 | N77: 11.96229015 | O77: 0 | P77: 0 | Q77: 0 | R77: 0 | S77: 6.64929 | T77: 6.64929 | U77: 5.31300015
B78: 2029-04-10 | C78: S | D78: 1028.143556 | E78: 1 | F78: 1 | G78: 1028.143556 | H78: 0.005201 | J78: 5.34737463 | K78: 1022.796181 | L78: 1.00643403 | M78: 6.615106 | N78: 11.96248063 | O78: 0 | P78: 0 | Q78: 0 | R78: 0 | S78: 6.615106 | T78: 6.615106 | U78: 5.34737463
B79: 2029-05-10 | C79: S | D79: 1022.796181 | E79: 1 | F79: 1 | G79: 1022.796181 | H79: 0.005262 | J79: 5.3819535 | K79: 1017.414228 | L79: 1.00643403 | M79: 6.580701 | N79: 11.9626545 | O79: 0 | P79: 0 | Q79: 0 | R79: 0 | S79: 6.580701 | T79: 6.580701 | U79: 5.3819535
B80: 2029-06-10 | C80: S | D80: 1017.414228 | E80: 1 | F80: 1 | G80: 1017.414228 | H80: 0.005324 | J80: 5.41671334 | K80: 1011.997514 | L80: 1.00643403 | M80: 6.546073 | N80: 11.96278634 | O80: 0 | P80: 0 | Q80: 0 | R80: 0 | S80: 6.546073 | T80: 6.546073 | U80: 5.41671334
B81: 2029-07-10 | C81: S | D81: 1011.997514 | E81: 1 | F81: 1 | G81: 1011.997514 | H81: 0.005387 | J81: 5.4516306 | K81: 1006.545884 | L81: 1.00643403 | M81: 6.511222 | N81: 11.9628526 | O81: 0 | P81: 0 | Q81: 0 | R81: 0 | S81: 6.511222 | T81: 6.511222 | U81: 5.4516306
B82: 2029-08-10 | C82: S | D82: 1006.545884 | E82: 1 | F82: 1 | G82: 1006.545884 | H82: 0.005451 | J82: 5.48668161 | K82: 1001.059202 | L82: 1.00643403 | M82: 6.476146 | N82: 11.96282761 | O82: 0 | P82: 0 | Q82: 0 | R82: 0 | S82: 6.476146 | T82: 6.476146 | U82: 5.48668161
B83: 2029-09-10 | C83: S | D83: 1001.059202 | E83: 1 | F83: 1 | G83: 1001.059202 | H83: 0.005516 | J83: 5.52184255 | K83: 995.5373596 | L83: 1.00643403 | M83: 6.440844 | N83: 11.96268655 | O83: 0 | P83: 0 | Q83: 0 | R83: 0 | S83: 6.440844 | T83: 6.440844 | U83: 5.52184255
B84: 2029-10-10 | C84: S | D84: 995.5373596 | E84: 1 | F84: 1 | G84: 995.5373596 | H84: 0.005582 | J84: 5.55708954 | K84: 989.98027 | L84: 1.00643403 | M84: 6.405317 | N84: 11.96240654 | O84: 0 | P84: 0 | Q84: 0 | R84: 0 | S84: 6.405317 | T84: 6.405317 | U84: 5.55708954
B85: 2029-11-10 | C85: S | D85: 989.98027 | E85: 1 | F85: 1 | G85: 989.98027 | H85: 0.00565 | J85: 5.59338852 | K85: 984.3868815 | L85: 1.00643403 | M85: 6.369562 | N85: 11.96295052 | O85: 0 | P85: 0 | Q85: 0 | R85: 0 | S85: 6.369562 | T85: 6.369562 | U85: 5.59338852
B86: 2029-12-10 | C86: S | D86: 984.3868815 | E86: 1 | F86: 1 | G86: 984.3868815 | H86: 0.005357 | J86: 5.27336052 | K86: 979.113521 | L86: 1.00643403 | M86: 6.333574 | N86: 11.60693452 | O86: 0 | P86: 0 | Q86: 0 | R86: 0 | S86: 6.333574 | T86: 6.333574 | U86: 5.27336052
B87: 2030-01-10 | C87: S | D87: 979.113521 | E87: 1 | F87: 1 | G87: 979.113521 | H87: 0.005784 | J87: 5.6631926 | K87: 973.4503284 | L87: 1.00643403 | M87: 6.299645 | N87: 11.9628376 | O87: 0 | P87: 0 | Q87: 0 | R87: 0 | S87: 6.299645 | T87: 6.299645 | U87: 5.6631926
B88: 2030-02-10 | C88: S | D88: 973.4503284 | E88: 1 | F88: 1 | G88: 973.4503284 | H88: 0.005855 | J88: 5.69955167 | K88: 967.7507767 | L88: 1.00643403 | M88: 6.263208 | N88: 11.96275967 | O88: 0 | P88: 0 | Q88: 0 | R88: 0 | S88: 6.263208 | T88: 6.263208 | U88: 5.69955167
B89: 2030-03-10 | C89: S | D89: 967.7507767 | E89: 1 | F89: 1 | G89: 967.7507767 | H89: 0.005927 | J89: 5.73585885 | K89: 962.0149179 | L89: 1.00643403 | M89: 6.226537 | N89: 11.96239585 | O89: 0 | P89: 0 | Q89: 0 | R89: 0 | S89: 6.226537 | T89: 6.226537 | U89: 5.73585885
B90: 2030-04-10 | C90: S | D90: 962.0149179 | E90: 1 | F90: 1 | G90: 962.0149179 | H90: 0.006001 | J90: 5.77305152 | K90: 956.2418663 | L90: 1.00643403 | M90: 6.189632 | N90: 11.96268352 | O90: 0 | P90: 0 | Q90: 0 | R90: 0 | S90: 6.189632 | T90: 6.189632 | U90: 5.77305152
B91: 2030-05-10 | C91: S | D91: 956.2418663 | E91: 1 | F91: 1 | G91: 956.2418663 | H91: 0.006076 | J91: 5.81012557 | K91: 950.4317408 | L91: 1.00643403 | M91: 6.152488 | N91: 11.96261357 | O91: 0 | P91: 0 | Q91: 0 | R91: 0 | S91: 6.152488 | T91: 6.152488 | U91: 5.81012557
B92: 2030-06-10 | C92: S | D92: 950.4317408 | E92: 1 | F92: 1 | G92: 950.4317408 | H92: 0.006153 | J92: 5.8480065 | K92: 944.5837343 | L92: 1.00643403 | M92: 6.115106 | N92: 11.9631125 | O92: 0 | P92: 0 | Q92: 0 | R92: 0 | S92: 6.115106 | T92: 6.115106 | U92: 5.8480065
B93: 2030-07-10 | C93: S | D93: 944.5837343 | E93: 1 | F93: 1 | G93: 944.5837343 | H93: 0.00623 | J93: 5.88475666 | K93: 938.6989776 | L93: 1.00643403 | M93: 6.07748 | N93: 11.96223666 | O93: 0 | P93: 0 | Q93: 0 | R93: 0 | S93: 6.07748 | T93: 6.07748 | U93: 5.88475666
B94: 2030-08-10 | C94: S | D94: 938.6989776 | E94: 1 | F94: 1 | G94: 938.6989776 | H94: 0.00631 | J94: 5.92319054 | K94: 932.7757871 | L94: 1.00643403 | M94: 6.039617 | N94: 11.96280754 | O94: 0 | P94: 0 | Q94: 0 | R94: 0 | S94: 6.039617 | T94: 6.039617 | U94: 5.92319054
B95: 2030-09-10 | C95: S | D95: 932.7757871 | E95: 1 | F95: 1 | G95: 932.7757871 | H95: 0.006391 | J95: 5.96137005 | K95: 926.814417 | L95: 1.00643403 | M95: 6.001507 | N95: 11.96287705 | O95: 0 | P95: 0 | Q95: 0 | R95: 0 | S95: 6.001507 | T95: 6.001507 | U95: 5.96137005
B96: 2030-10-10 | C96: S | D96: 926.814417 | E96: 1 | F96: 1 | G96: 926.814417 | H96: 0.006473 | J96: 5.99926972 | K96: 920.8151473 | L96: 1.00643403 | M96: 5.963151 | N96: 11.96242072 | O96: 0 | P96: 0 | Q96: 0 | R96: 0 | S96: 5.963151 | T96: 5.963151 | U96: 5.99926972
B97: 2030-11-10 | C97: S | D97: 920.8151473 | E97: 1 | F97: 1 | G97: 920.8151473 | H97: 0.006557 | J97: 6.03778492 | K97: 914.7773624 | L97: 1.00643403 | M97: 5.924552 | N97: 11.96233692 | O97: 0 | P97: 0 | Q97: 0 | R97: 0 | S97: 5.924552 | T97: 5.924552 | U97: 6.03778492
B98: 2030-12-10 | C98: S | D98: 914.7773624 | E98: 1 | F98: 1 | G98: 914.7773624 | H98: 0.006254 | J98: 5.72101762 | K98: 909.0563448 | L98: 1.00643403 | M98: 5.885704 | N98: 11.60672162 | O98: 0 | P98: 0 | Q98: 0 | R98: 0 | S98: 5.885704 | T98: 5.885704 | U98: 5.72101762
B99: 2031-01-10 | C99: S | D99: 909.0563448 | E99: 1 | F99: 1 | G99: 909.0563448 | H99: 0.006725 | J99: 6.11340391 | K99: 902.9429409 | L99: 1.00643403 | M99: 5.848895 | N99: 11.96229891 | O99: 0 | P99: 0 | Q99: 0 | R99: 0 | S99: 5.848895 | T99: 5.848895 | U99: 6.11340391
B100: 2031-02-10 | C100: S | D100: 902.9429409 | E100: 1 | F100: 1 | G100: 902.9429409 | H100: 0.006815 | J100: 6.15355614 | K100: 896.7893847 | L100: 1.00643403 | M100: 5.809561 | N100: 11.96311714 | O100: 0 | P100: 0 | Q100: 0 | R100: 0 | S100: 5.809561 | T100: 5.809561 | U100: 6.15355614
B101: 2031-03-10 | C101: S | D101: 896.7893847 | E101: 1 | F101: 1 | G101: 896.7893847 | H101: 0.006905 | J101: 6.1923307 | K101: 890.597054 | L101: 1.00643403 | M101: 5.769969 | N101: 11.9622997 | O101: 0 | P101: 0 | Q101: 0 | R101: 0 | S101: 5.769969 | T101: 5.769969 | U101: 6.1923307
B102: 2031-04-10 | C102: S | D102: 890.597054 | E102: 1 | F102: 1 | G102: 890.597054 | H102: 0.006998 | J102: 6.23239818 | K102: 884.3646558 | L102: 1.00643403 | M102: 5.730128 | N102: 11.96252618 | O102: 0 | P102: 0 | Q102: 0 | R102: 0 | S102: 5.730128 | T102: 5.730128 | U102: 6.23239818
B103: 2031-05-10 | C103: S | D103: 884.3646558 | E103: 1 | F103: 1 | G103: 884.3646558 | H103: 0.007093 | J103: 6.2727985 | K103: 878.0918573 | L103: 1.00643403 | M103: 5.690028 | N103: 11.9628265 | O103: 0 | P103: 0 | Q103: 0 | R103: 0 | S103: 5.690028 | T103: 5.690028 | U103: 6.2727985
B104: 2031-06-10 | C104: S | D104: 878.0918573 | E104: 1 | F104: 1 | G104: 878.0918573 | H104: 0.007189 | J104: 6.31260236 | K104: 871.779255 | L104: 1.00643403 | M104: 5.649669 | N104: 11.96227136 | O104: 0 | P104: 0 | Q104: 0 | R104: 0 | S104: 5.649669 | T104: 5.649669 | U104: 6.31260236
B105: 2031-07-10 | C105: S | D105: 871.779255 | E105: 1 | F105: 1 | G105: 871.779255 | H105: 0.007288 | J105: 6.35352721 | K105: 865.4257278 | L105: 1.00643403 | M105: 5.609053 | N105: 11.96258021 | O105: 0 | P105: 0 | Q105: 0 | R105: 0 | S105: 5.609053 | T105: 5.609053 | U105: 6.35352721
B106: 2031-08-10 | C106: S | D106: 865.4257278 | E106: 1 | F106: 1 | G106: 865.4257278 | H106: 0.007389 | J106: 6.3946307 | K106: 859.0310971 | L106: 1.00643403 | M106: 5.568175 | N106: 11.9628057 | O106: 0 | P106: 0 | Q106: 0 | R106: 0 | S106: 5.568175 | T106: 5.568175 | U106: 6.3946307
B107: 2031-09-10 | C107: S | D107: 859.0310971 | E107: 1 | F107: 1 | G107: 859.0310971 | H107: 0.007492 | J107: 6.43586097 | K107: 852.5952361 | L107: 1.00643403 | M107: 5.527031 | N107: 11.96289197 | O107: 0 | P107: 0 | Q107: 0 | R107: 0 | S107: 5.527031 | T107: 5.527031 | U107: 6.43586097
B108: 2031-10-10 | C108: S | D108: 852.5952361 | E108: 1 | F108: 1 | G108: 852.5952361 | H108: 0.007597 | J108: 6.477166 | K108: 846.1180701 | L108: 1.00643403 | M108: 5.485623 | N108: 11.962789 | O108: 0 | P108: 0 | Q108: 0 | R108: 0 | S108: 5.485623 | T108: 5.485623 | U108: 6.477166
B109: 2031-11-10 | C109: S | D109: 846.1180701 | E109: 1 | F109: 1 | G109: 846.1180701 | H109: 0.007704 | J109: 6.51849361 | K109: 839.5995765 | L109: 1.00643403 | M109: 5.443949 | N109: 11.96244261 | O109: 0 | P109: 0 | Q109: 0 | R109: 0 | S109: 5.443949 | T109: 5.443949 | U109: 6.51849361
B110: 2031-12-10 | C110: S | D110: 839.5995765 | E110: 1 | F110: 1 | G110: 839.5995765 | H110: 0.00739 | J110: 6.20464087 | K110: 833.3949356 | L110: 1.00643403 | M110: 5.402008 | N110: 11.60664887 | O110: 0 | P110: 0 | Q110: 0 | R110: 0 | S110: 5.402008 | T110: 5.402008 | U110: 6.20464087
B111: 2032-01-10 | C111: S | D111: 833.3949356 | E111: 1 | F111: 1 | G111: 833.3949356 | H111: 0.00792 | J111: 6.60048789 | K111: 826.7944477 | L111: 1.00643403 | M111: 5.362088 | N111: 11.96257589 | O111: 0 | P111: 0 | Q111: 0 | R111: 0 | S111: 5.362088 | T111: 5.362088 | U111: 6.60048789
B112: 2032-02-10 | C112: S | D112: 826.7944477 | E112: 1 | F112: 1 | G112: 826.7944477 | H112: 0.008035 | J112: 6.64329338 | K112: 820.1511543 | L112: 1.00643403 | M112: 5.31962 | N112: 11.96291338 | O112: 0 | P112: 0 | Q112: 0 | R112: 0 | S112: 5.31962 | T112: 5.31962 | U112: 6.64329338
B113: 2032-03-10 | C113: S | D113: 820.1511543 | E113: 1 | F113: 1 | G113: 820.1511543 | H113: 0.008152 | J113: 6.68587221 | K113: 813.4652821 | L113: 1.00643403 | M113: 5.276877 | N113: 11.96274921 | O113: 0 | P113: 0 | Q113: 0 | R113: 0 | S113: 5.276877 | T113: 5.276877 | U113: 6.68587221
B114: 2032-04-10 | C114: S | D114: 813.4652821 | E114: 1 | F114: 1 | G114: 813.4652821 | H114: 0.008272 | J114: 6.72898481 | K114: 806.7362973 | L114: 1.00643403 | M114: 5.23386 | N114: 11.96284481 | O114: 0 | P114: 0 | Q114: 0 | R114: 0 | S114: 5.23386 | T114: 5.23386 | U114: 6.72898481
B115: 2032-05-10 | C115: S | D115: 806.7362973 | E115: 1 | F115: 1 | G115: 806.7362973 | H115: 0.008394 | J115: 6.77174447 | K115: 799.9645529 | L115: 1.00643403 | M115: 5.190565 | N115: 11.96230947 | O115: 0 | P115: 0 | Q115: 0 | R115: 0 | S115: 5.190565 | T115: 5.190565 | U115: 6.77174447
B116: 2032-06-10 | C116: S | D116: 799.9645529 | E116: 1 | F116: 1 | G116: 799.9645529 | H116: 0.00852 | J116: 6.81569799 | K116: 793.1488549 | L116: 1.00643403 | M116: 5.146995 | N116: 11.96269299 | O116: 0 | P116: 0 | Q116: 0 | R116: 0 | S116: 5.146995 | T116: 5.146995 | U116: 6.81569799
B117: 2032-07-10 | C117: S | D117: 793.1488549 | E117: 1 | F117: 1 | G117: 793.1488549 | H117: 0.008649 | J117: 6.85994444 | K117: 786.2889104 | L117: 1.00643403 | M117: 5.103143 | N117: 11.96308744 | O117: 0 | P117: 0 | Q117: 0 | R117: 0 | S117: 5.103143 | T117: 5.103143 | U117: 6.85994444
B118: 2032-08-10 | C118: S | D118: 786.2889104 | E118: 1 | F118: 1 | G118: 786.2889104 | H118: 0.00878 | J118: 6.90361663 | K118: 779.3852938 | L118: 1.00643403 | M118: 5.059006 | N118: 11.96262263 | O118: 0 | P118: 0 | Q118: 0 | R118: 0 | S118: 5.059006 | T118: 5.059006 | U118: 6.90361663
B119: 2032-09-10 | C119: S | D119: 779.3852938 | E119: 1 | F119: 1 | G119: 779.3852938 | H119: 0.008915 | J119: 6.94821989 | K119: 772.4370739 | L119: 1.00643403 | M119: 5.014588 | N119: 11.96280789 | O119: 0 | P119: 0 | Q119: 0 | R119: 0 | S119: 5.014588 | T119: 5.014588 | U119: 6.94821989
B120: 2032-10-10 | C120: S | D120: 772.4370739 | E120: 1 | F120: 1 | G120: 772.4370739 | H120: 0.009053 | J120: 6.99287283 | K120: 765.4442011 | L120: 1.00643403 | M120: 4.969883 | N120: 11.96275583 | O120: 0 | P120: 0 | Q120: 0 | R120: 0 | S120: 4.969883 | T120: 4.969883 | U120: 6.99287283
B121: 2032-11-10 | C121: S | D121: 765.4442011 | E121: 1 | F121: 1 | G121: 765.4442011 | H121: 0.009194 | J121: 7.03749398 | K121: 758.4067071 | L121: 1.00643403 | M121: 4.92489 | N121: 11.96238398 | O121: 0 | P121: 0 | Q121: 0 | R121: 0 | S121: 4.92489 | T121: 4.92489 | U121: 7.03749398
B122: 2032-12-10 | C122: S | D122: 758.4067071 | E122: 1 | F122: 1 | G122: 758.4067071 | H122: 0.00887 | J122: 6.72706749 | K122: 751.6796396 | L122: 1.00643403 | M122: 4.879611 | N122: 11.60667849 | O122: 0 | P122: 0 | Q122: 0 | R122: 0 | S122: 4.879611 | T122: 4.879611 | U122: 6.72706749
B123: 2033-01-10 | C123: S | D123: 751.6796396 | E123: 1 | F123: 1 | G123: 751.6796396 | H123: 0.009481 | J123: 7.12667466 | K123: 744.5529649 | L123: 1.00643403 | M123: 4.836329 | N123: 11.96300366 | O123: 0 | P123: 0 | Q123: 0 | R123: 0 | S123: 4.836329 | T123: 4.836329 | U123: 7.12667466
B124: 2033-02-10 | C124: S | D124: 744.5529649 | E124: 1 | F124: 1 | G124: 744.5529649 | H124: 0.009633 | J124: 7.17227871 | K124: 737.3806862 | L124: 1.00643403 | M124: 4.790476 | N124: 11.96275471 | O124: 0 | P124: 0 | Q124: 0 | R124: 0 | S124: 4.790476 | T124: 4.790476 | U124: 7.17227871
B125: 2033-03-10 | C125: S | D125: 737.3806862 | E125: 1 | F125: 1 | G125: 737.3806862 | H125: 0.009789 | J125: 7.21821953 | K125: 730.1624667 | L125: 1.00643403 | M125: 4.744329 | N125: 11.96254853 | O125: 0 | P125: 0 | Q125: 0 | R125: 0 | S125: 4.744329 | T125: 4.744329 | U125: 7.21821953
B126: 2033-04-10 | C126: S | D126: 730.1624667 | E126: 1 | F126: 1 | G126: 730.1624667 | H126: 0.00995 | J126: 7.26511654 | K126: 722.8973502 | L126: 1.00643403 | M126: 4.697887 | N126: 11.96300354 | O126: 0 | P126: 0 | Q126: 0 | R126: 0 | S126: 4.697887 | T126: 4.697887 | U126: 7.26511654
B127: 2033-05-10 | C127: S | D127: 722.8973502 | E127: 1 | F127: 1 | G127: 722.8973502 | H127: 0.010114 | J127: 7.31138379 | K127: 715.5859664 | L127: 1.00643403 | M127: 4.651143 | N127: 11.96252679 | O127: 0 | P127: 0 | Q127: 0 | R127: 0 | S127: 4.651143 | T127: 4.651143 | U127: 7.31138379
B128: 2033-06-10 | C128: S | D128: 715.5859664 | E128: 1 | F128: 1 | G128: 715.5859664 | H128: 0.010283 | J128: 7.35837049 | K128: 708.2275959 | L128: 1.00643403 | M128: 4.604101 | N128: 11.96247149 | O128: 0 | P128: 0 | Q128: 0 | R128: 0 | S128: 4.604101 | T128: 4.604101 | U128: 7.35837049
B129: 2033-07-10 | C129: S | D129: 708.2275959 | E129: 1 | F129: 1 | G129: 708.2275959 | H129: 0.010457 | J129: 7.40593597 | K129: 700.8216599 | L129: 1.00643403 | M129: 4.556757 | N129: 11.96269297 | O129: 0 | P129: 0 | Q129: 0 | R129: 0 | S129: 4.556757 | T129: 4.556757 | U129: 7.40593597
B130: 2033-08-10 | C130: S | D130: 700.8216599 | E130: 1 | F130: 1 | G130: 700.8216599 | H130: 0.010635 | J130: 7.45323835 | K130: 693.3684216 | L130: 1.00643403 | M130: 4.509107 | N130: 11.96234535 | O130: 0 | P130: 0 | Q130: 0 | R130: 0 | S130: 4.509107 | T130: 4.509107 | U130: 7.45323835
B131: 2033-09-10 | C131: S | D131: 693.3684216 | E131: 1 | F131: 1 | G131: 693.3684216 | H131: 0.010819 | J131: 7.50155295 | K131: 685.8668686 | L131: 1.00643403 | M131: 4.461153 | N131: 11.96270595 | O131: 0 | P131: 0 | Q131: 0 | R131: 0 | S131: 4.461153 | T131: 4.461153 | U131: 7.50155295
B132: 2033-10-10 | C132: S | D132: 685.8668686 | E132: 1 | F132: 1 | G132: 685.8668686 | H132: 0.011008 | J132: 7.55002248 | K132: 678.3168461 | L132: 1.00643403 | M132: 4.412888 | N132: 11.96291048 | O132: 0 | P132: 0 | Q132: 0 | R132: 0 | S132: 4.412888 | T132: 4.412888 | U132: 7.55002248
B133: 2033-11-10 | C133: S | D133: 678.3168461 | E133: 1 | F133: 1 | G133: 678.3168461 | H133: 0.011202 | J133: 7.59850531 | K133: 670.7183408 | L133: 1.00643403 | M133: 4.36431 | N133: 11.96281531 | O133: 0 | P133: 0 | Q133: 0 | R133: 0 | S133: 4.36431 | T133: 4.36431 | U133: 7.59850531
B134: 2033-12-10 | C134: S | D134: 670.7183408 | E134: 1 | F134: 1 | G134: 670.7183408 | H134: 0.010871 | J134: 7.29137908 | K134: 663.4269617 | L134: 1.00643403 | M134: 4.315421 | N134: 11.60680008 | O134: 0 | P134: 0 | Q134: 0 | R134: 0 | S134: 4.315421 | T134: 4.315421 | U134: 7.29137908
B135: 2034-01-10 | C135: S | D135: 663.4269617 | E135: 1 | F135: 1 | G135: 663.4269617 | H135: 0.011598 | J135: 7.6944259 | K135: 655.7325358 | L135: 1.00643403 | M135: 4.268508 | N135: 11.9629339 | O135: 0 | P135: 0 | Q135: 0 | R135: 0 | S135: 4.268508 | T135: 4.268508 | U135: 7.6944259
B136: 2034-02-10 | C136: S | D136: 655.7325358 | E136: 1 | F136: 1 | G136: 655.7325358 | H136: 0.011809 | J136: 7.74354551 | K136: 647.9889903 | L136: 1.00643403 | M136: 4.219002 | N136: 11.96254751 | O136: 0 | P136: 0 | Q136: 0 | R136: 0 | S136: 4.219002 | T136: 4.219002 | U136: 7.74354551
B137: 2034-03-10 | C137: S | D137: 647.9889903 | E137: 1 | F137: 1 | G137: 647.9889903 | H137: 0.012027 | J137: 7.79336358 | K137: 640.1956268 | L137: 1.00643403 | M137: 4.16918 | N137: 11.96254358 | O137: 0 | P137: 0 | Q137: 0 | R137: 0 | S137: 4.16918 | T137: 4.16918 | U137: 7.79336358
B138: 2034-04-10 | C138: S | D138: 640.1956268 | E138: 1 | F138: 1 | G138: 640.1956268 | H138: 0.012252 | J138: 7.84367681 | K138: 632.3519499 | L138: 1.00643403 | M138: 4.119037 | N138: 11.96271381 | O138: 0 | P138: 0 | Q138: 0 | R138: 0 | S138: 4.119037 | T138: 4.119037 | U138: 7.84367681
B139: 2034-05-10 | C139: S | D139: 632.3519499 | E139: 1 | F139: 1 | G139: 632.3519499 | H139: 0.012484 | J139: 7.89428174 | K139: 624.4576682 | L139: 1.00643403 | M139: 4.068571 | N139: 11.96285274 | O139: 0 | P139: 0 | Q139: 0 | R139: 0 | S139: 4.068571 | T139: 4.068571 | U139: 7.89428174
B140: 2034-06-10 | C140: S | D140: 624.4576682 | E140: 1 | F140: 1 | G140: 624.4576682 | H140: 0.012723 | J140: 7.94497491 | K140: 616.5126933 | L140: 1.00643403 | M140: 4.017779 | N140: 11.96275391 | O140: 0 | P140: 0 | Q140: 0 | R140: 0 | S140: 4.017779 | T140: 4.017779 | U140: 7.94497491
B141: 2034-07-10 | C141: S | D141: 616.5126933 | E141: 1 | F141: 1 | G141: 616.5126933 | H141: 0.01297 | J141: 7.99616963 | K141: 608.5165237 | L141: 1.00643403 | M141: 3.966661 | N141: 11.96283063 | O141: 0 | P141: 0 | Q141: 0 | R141: 0 | S141: 3.966661 | T141: 3.966661 | U141: 7.99616963
B142: 2034-08-10 | C142: S | D142: 608.5165237 | E142: 1 | F142: 1 | G142: 608.5165237 | H142: 0.013225 | J142: 8.04763102 | K142: 600.4688926 | L142: 1.00643403 | M142: 3.915213 | N142: 11.96284402 | O142: 0 | P142: 0 | Q142: 0 | R142: 0 | S142: 3.915213 | T142: 3.915213 | U142: 8.04763102
B143: 2034-09-10 | C143: S | D143: 600.4688926 | E143: 1 | F143: 1 | G143: 600.4688926 | H143: 0.013488 | J143: 8.09912442 | K143: 592.3697682 | L143: 1.00643403 | M143: 3.863434 | N143: 11.96255842 | O143: 0 | P143: 0 | Q143: 0 | R143: 0 | S143: 3.863434 | T143: 3.863434 | U143: 8.09912442
B144: 2034-10-10 | C144: S | D144: 592.3697682 | E144: 1 | F144: 1 | G144: 592.3697682 | H144: 0.013761 | J144: 8.15160038 | K144: 584.2181678 | L144: 1.00643403 | M144: 3.811324 | N144: 11.96292438 | O144: 0 | P144: 0 | Q144: 0 | R144: 0 | S144: 3.811324 | T144: 3.811324 | U144: 8.15160038
B145: 2034-11-10 | C145: S | D145: 584.2181678 | E145: 1 | F145: 1 | G145: 584.2181678 | H145: 0.014042 | J145: 8.20359151 | K145: 576.0145763 | L145: 1.00643403 | M145: 3.758877 | N145: 11.96246851 | O145: 0 | P145: 0 | Q145: 0 | R145: 0 | S145: 3.758877 | T145: 3.758877 | U145: 8.20359151
B146: 2034-12-10 | C146: S | D146: 576.0145763 | E146: 1 | F146: 1 | G146: 576.0145763 | H146: 0.013716 | J146: 7.90061592 | K146: 568.1139604 | L146: 1.00643403 | M146: 3.706095 | N146: 11.60671092 | O146: 0 | P146: 0 | Q146: 0 | R146: 0 | S146: 3.706095 | T146: 3.706095 | U146: 7.90061592
B147: 2035-01-10 | C147: S | D147: 568.1139604 | E147: 1 | F147: 1 | G147: 568.1139604 | H147: 0.014623 | J147: 8.30753044 | K147: 559.80643 | L147: 1.00643403 | M147: 3.655262 | N147: 11.96279244 | O147: 0 | P147: 0 | Q147: 0 | R147: 0 | S147: 3.655262 | T147: 3.655262 | U147: 8.30753044
B148: 2035-02-10 | C148: S | D148: 559.80643 | E148: 1 | F148: 1 | G148: 559.80643 | H148: 0.014935 | J148: 8.36070903 | K148: 551.4457209 | L148: 1.00643403 | M148: 3.601811 | N148: 11.96252003 | O148: 0 | P148: 0 | Q148: 0 | R148: 0 | S148: 3.601811 | T148: 3.601811 | U148: 8.36070903
B149: 2035-03-10 | C149: S | D149: 551.4457209 | E149: 1 | F149: 1 | G149: 551.4457209 | H149: 0.015259 | J149: 8.41451025 | K149: 543.0312107 | L149: 1.00643403 | M149: 3.548018 | N149: 11.96252825 | O149: 0 | P149: 0 | Q149: 0 | R149: 0 | S149: 3.548018 | T149: 3.548018 | U149: 8.41451025
B150: 2035-04-10 | C150: S | D150: 543.0312107 | E150: 1 | F150: 1 | G150: 543.0312107 | H150: 0.015595 | J150: 8.46857173 | K150: 534.562639 | L150: 1.00643403 | M150: 3.493879 | N150: 11.96245073 | O150: 0 | P150: 0 | Q150: 0 | R150: 0 | S150: 3.493879 | T150: 3.493879 | U150: 8.46857173
B151: 2035-05-10 | C151: S | D151: 534.562639 | E151: 1 | F151: 1 | G151: 534.562639 | H151: 0.015944 | J151: 8.52306671 | K151: 526.0395723 | L151: 1.00643403 | M151: 3.439392 | N151: 11.96245871 | O151: 0 | P151: 0 | Q151: 0 | R151: 0 | S151: 3.439392 | T151: 3.439392 | U151: 8.52306671
B152: 2035-06-10 | C152: S | D152: 526.0395723 | E152: 1 | F152: 1 | G152: 526.0395723 | H152: 0.016307 | J152: 8.5781273 | K152: 517.461445 | L152: 1.00643403 | M152: 3.384554 | N152: 11.9626813 | O152: 0 | P152: 0 | Q152: 0 | R152: 0 | S152: 3.384554 | T152: 3.384554 | U152: 8.5781273
B153: 2035-07-10 | C153: S | D153: 517.461445 | E153: 1 | F153: 1 | G153: 517.461445 | H153: 0.016684 | J153: 8.63332674 | K153: 508.8281182 | L153: 1.00643403 | M153: 3.329362 | N153: 11.96268874 | O153: 0 | P153: 0 | Q153: 0 | R153: 0 | S153: 3.329362 | T153: 3.329362 | U153: 8.63332674
B154: 2035-08-10 | C154: S | D154: 508.8281182 | E154: 1 | F154: 1 | G154: 508.8281182 | H154: 0.017076 | J154: 8.68874894 | K154: 500.1393693 | L154: 1.00643403 | M154: 3.273815 | N154: 11.96256394 | O154: 0 | P154: 0 | Q154: 0 | R154: 0 | S154: 3.273815 | T154: 3.273815 | U154: 8.68874894
B155: 2035-09-10 | C155: S | D155: 500.1393693 | E155: 1 | F155: 1 | G155: 500.1393693 | H155: 0.017485 | J155: 8.74493687 | K155: 491.3944324 | L155: 1.00643403 | M155: 3.217911 | N155: 11.96284787 | O155: 0 | P155: 0 | Q155: 0 | R155: 0 | S155: 3.217911 | T155: 3.217911 | U155: 8.74493687
B156: 2035-10-10 | C156: S | D156: 491.3944324 | E156: 1 | F156: 1 | G156: 491.3944324 | H156: 0.01791 | J156: 8.80087428 | K156: 482.5935581 | L156: 1.00643403 | M156: 3.161646 | N156: 11.96252028 | O156: 0 | P156: 0 | Q156: 0 | R156: 0 | S156: 3.161646 | T156: 3.161646 | U156: 8.80087428
B157: 2035-11-10 | C157: S | D157: 482.5935581 | E157: 1 | F157: 1 | G157: 482.5935581 | H157: 0.018354 | J157: 8.85752216 | K157: 473.736036 | L157: 1.00643403 | M157: 3.105021 | N157: 11.96254316 | O157: 0 | P157: 0 | Q157: 0 | R157: 0 | S157: 3.105021 | T157: 3.105021 | U157: 8.85752216
B158: 2035-12-10 | C158: S | D158: 473.736036 | E158: 1 | F158: 1 | G158: 473.736036 | H158: 0.018066 | J158: 8.55851522 | K158: 465.1775207 | L158: 1.00643403 | M158: 3.048031 | N158: 11.60654622 | O158: 0 | P158: 0 | Q158: 0 | R158: 0 | S158: 3.048031 | T158: 3.048031 | U158: 8.55851522
B159: 2036-01-10 | C159: S | D159: 465.1775207 | E159: 1 | F159: 1 | G159: 465.1775207 | H159: 0.019282 | J159: 8.96955295 | K159: 456.2079678 | L159: 1.00643403 | M159: 2.992966 | N159: 11.96251895 | O159: 0 | P159: 0 | Q159: 0 | R159: 0 | S159: 2.992966 | T159: 2.992966 | U159: 8.96955295
B160: 2036-02-10 | C160: S | D160: 456.2079678 | E160: 1 | F160: 1 | G160: 456.2079678 | H160: 0.019788 | J160: 9.02744326 | K160: 447.1805245 | L160: 1.00643403 | M160: 2.935255 | N160: 11.96269826 | O160: 0 | P160: 0 | Q160: 0 | R160: 0 | S160: 2.935255 | T160: 2.935255 | U160: 9.02744326
B161: 2036-03-10 | C161: S | D161: 447.1805245 | E161: 1 | F161: 1 | G161: 447.1805245 | H161: 0.020317 | J161: 9.08536671 | K161: 438.0951578 | L161: 1.00643403 | M161: 2.877172 | N161: 11.96253871 | O161: 0 | P161: 0 | Q161: 0 | R161: 0 | S161: 2.877172 | T161: 2.877172 | U161: 9.08536671
B162: 2036-04-10 | C162: S | D162: 438.0951578 | E162: 1 | F162: 1 | G162: 438.0951578 | H162: 0.020872 | J162: 9.14392213 | K162: 428.9512357 | L162: 1.00643403 | M162: 2.818717 | N162: 11.96263913 | O162: 0 | P162: 0 | Q162: 0 | R162: 0 | S162: 2.818717 | T162: 2.818717 | U162: 9.14392213
B163: 2036-05-10 | C163: S | D163: 428.9512357 | E163: 1 | F163: 1 | G163: 428.9512357 | H163: 0.021454 | J163: 9.20271981 | K163: 419.7485159 | L163: 1.00643403 | M163: 2.759885 | N163: 11.96260481 | O163: 0 | P163: 0 | Q163: 0 | R163: 0 | S163: 2.759885 | T163: 2.759885 | U163: 9.20271981
B164: 2036-06-10 | C164: S | D164: 419.7485159 | E164: 1 | F164: 1 | G164: 419.7485159 | H164: 0.022066 | J164: 9.26217075 | K164: 410.4863451 | L164: 1.00643403 | M164: 2.700674 | N164: 11.96284475 | O164: 0 | P164: 0 | Q164: 0 | R164: 0 | S164: 2.700674 | T164: 2.700674 | U164: 9.26217075
B165: 2036-07-10 | C165: S | D165: 410.4863451 | E165: 1 | F165: 1 | G165: 410.4863451 | H165: 0.022709 | J165: 9.32173441 | K165: 401.1646107 | L165: 1.00643403 | M165: 2.641081 | N165: 11.96281541 | O165: 0 | P165: 0 | Q165: 0 | R165: 0 | S165: 2.641081 | T165: 2.641081 | U165: 9.32173441
B166: 2036-08-10 | C166: S | D166: 401.1646107 | E166: 1 | F166: 1 | G166: 401.1646107 | H166: 0.023386 | J166: 9.38163558 | K166: 391.7829751 | L166: 1.00643403 | M166: 2.581105 | N166: 11.96274058 | O166: 0 | P166: 0 | Q166: 0 | R166: 0 | S166: 2.581105 | T166: 2.581105 | U166: 9.38163558
B167: 2036-09-10 | C167: S | D167: 391.7829751 | E167: 1 | F167: 1 | G167: 391.7829751 | H167: 0.0241 | J167: 9.4419697 | K167: 382.3410054 | L167: 1.00643403 | M167: 2.520743 | N167: 11.9627127 | O167: 0 | P167: 0 | Q167: 0 | R167: 0 | S167: 2.520743 | T167: 2.520743 | U167: 9.4419697
B168: 2036-10-10 | C168: S | D168: 382.3410054 | E168: 1 | F168: 1 | G168: 382.3410054 | H168: 0.024854 | J168: 9.50270334 | K168: 372.8383021 | L168: 1.00643403 | M168: 2.459993 | N168: 11.96269634 | O168: 0 | P168: 0 | Q168: 0 | R168: 0 | S168: 2.459993 | T168: 2.459993 | U168: 9.50270334
B169: 2036-11-10 | C169: S | D169: 372.8383021 | E169: 1 | F169: 1 | G169: 372.8383021 | H169: 0.025651 | J169: 9.56367528 | K169: 363.2746268 | L169: 1.00643403 | M169: 2.398852 | N169: 11.96252728 | O169: 0 | P169: 0 | Q169: 0 | R169: 0 | S169: 2.398852 | T169: 2.398852 | U169: 9.56367528
B170: 2036-12-10 | C170: S | D170: 363.2746268 | E170: 1 | F170: 1 | G170: 363.2746268 | H170: 0.025516 | J170: 9.26931537 | K170: 354.0053115 | L170: 1.00643403 | M170: 2.337319 | N170: 11.60663437 | O170: 0 | P170: 0 | Q170: 0 | R170: 0 | S170: 2.337319 | T170: 2.337319 | U170: 9.26931537
B171: 2037-01-10 | C171: S | D171: 354.0053115 | E171: 1 | F171: 1 | G171: 354.0053115 | H171: 0.027358 | J171: 9.68487731 | K171: 344.3204341 | L171: 1.00643403 | M171: 2.27768 | N171: 11.96255731 | O171: 0 | P171: 0 | Q171: 0 | R171: 0 | S171: 2.27768 | T171: 2.27768 | U171: 9.68487731
B172: 2037-02-10 | C172: S | D172: 344.3204341 | E172: 1 | F172: 1 | G172: 344.3204341 | H172: 0.028309 | J172: 9.74736717 | K172: 334.573067 | L172: 1.00643403 | M172: 2.215368 | N172: 11.96273517 | O172: 0 | P172: 0 | Q172: 0 | R172: 0 | S172: 2.215368 | T172: 2.215368 | U172: 9.74736717
B173: 2037-03-10 | C173: S | D173: 334.573067 | E173: 1 | F173: 1 | G173: 334.573067 | H173: 0.029321 | J173: 9.81001689 | K173: 324.7630501 | L173: 1.00643403 | M173: 2.152653 | N173: 11.96266989 | O173: 0 | P173: 0 | Q173: 0 | R173: 0 | S173: 2.152653 | T173: 2.152653 | U173: 9.81001689
B174: 2037-04-10 | C174: S | D174: 324.7630501 | E174: 1 | F174: 1 | G174: 324.7630501 | H174: 0.030401 | J174: 9.87312148 | K174: 314.8899286 | L174: 1.00643403 | M174: 2.089535 | N174: 11.96265648 | O174: 0 | P174: 0 | Q174: 0 | R174: 0 | S174: 2.089535 | T174: 2.089535 | U174: 9.87312148
B175: 2037-05-10 | C175: S | D175: 314.8899286 | E175: 1 | F175: 1 | G175: 314.8899286 | H175: 0.031556 | J175: 9.93666658 | K175: 304.953262 | L175: 1.00643403 | M175: 2.026011 | N175: 11.96267758 | O175: 0 | P175: 0 | Q175: 0 | R175: 0 | S175: 2.026011 | T175: 2.026011 | U175: 9.93666658
B176: 2037-06-10 | C176: S | D176: 304.953262 | E176: 1 | F176: 1 | G176: 304.953262 | H176: 0.032794 | J176: 10.00063727 | K176: 294.9526248 | L176: 1.00643403 | M176: 1.962078 | N176: 11.96271527 | O176: 0 | P176: 0 | Q176: 0 | R176: 0 | S176: 1.962078 | T176: 1.962078 | U176: 10.00063727
B177: 2037-07-10 | C177: S | D177: 294.9526248 | E177: 1 | F177: 1 | G177: 294.9526248 | H177: 0.034124 | J177: 10.06496336 | K177: 284.8876614 | L177: 1.00643403 | M177: 1.897734 | N177: 11.96269736 | O177: 0 | P177: 0 | Q177: 0 | R177: 0 | S177: 1.897734 | T177: 1.897734 | U177: 10.06496336
B178: 2037-08-10 | C178: S | D178: 284.8876614 | E178: 1 | F178: 1 | G178: 284.8876614 | H178: 0.035557 | J178: 10.12975057 | K178: 274.7579108 | L178: 1.00643403 | M178: 1.832975 | N178: 11.96272557 | O178: 0 | P178: 0 | Q178: 0 | R178: 0 | S178: 1.832975 | T178: 1.832975 | U178: 10.12975057
B179: 2037-09-10 | C179: S | D179: 274.7579108 | E179: 1 | F179: 1 | G179: 274.7579108 | H179: 0.037105 | J179: 10.19489228 | K179: 264.5630185 | L179: 1.00643403 | M179: 1.7678 | N179: 11.96269228 | O179: 0 | P179: 0 | Q179: 0 | R179: 0 | S179: 1.7678 | T179: 1.7678 | U179: 10.19489228
B180: 2037-10-10 | C180: S | D180: 264.5630185 | E180: 1 | F180: 1 | G180: 264.5630185 | H180: 0.038783 | J180: 10.26054754 | K180: 254.302471 | L180: 1.00643403 | M180: 1.702206 | N180: 11.96275354 | O180: 0 | P180: 0 | Q180: 0 | R180: 0 | S180: 1.702206 | T180: 1.702206 | U180: 10.26054754
B181: 2037-11-10 | C181: S | D181: 254.302471 | E181: 1 | F181: 1 | G181: 254.302471 | H181: 0.040607 | J181: 10.32646044 | K181: 243.9760106 | L181: 1.00643403 | M181: 1.636189 | N181: 11.96264944 | O181: 0 | P181: 0 | Q181: 0 | R181: 0 | S181: 1.636189 | T181: 1.636189 | U181: 10.32646044
B182: 2037-12-10 | C182: S | D182: 243.9760106 | E182: 1 | F182: 1 | G182: 243.9760106 | H182: 0.041138 | J182: 10.03668512 | K182: 233.9393254 | L182: 1.00643403 | M182: 1.569748 | N182: 11.60643312 | O182: 0 | P182: 0 | Q182: 0 | R182: 0 | S182: 1.569748 | T182: 1.569748 | U182: 10.03668512
B183: 2038-01-10 | C183: S | D183: 233.9393254 | E183: 1 | F183: 1 | G183: 233.9393254 | H183: 0.044702 | J183: 10.45755572 | K183: 223.4817697 | L183: 1.00643403 | M183: 1.505172 | N183: 11.96272772 | O183: 0 | P183: 0 | Q183: 0 | R183: 0 | S183: 1.505172 | T183: 1.505172 | U183: 10.45755572
B184: 2038-02-10 | C184: S | D184: 223.4817697 | E184: 1 | F184: 1 | G184: 223.4817697 | H184: 0.047095 | J184: 10.52487394 | K184: 212.9568958 | L184: 1.00643403 | M184: 1.437888 | N184: 11.96276194 | O184: 0 | P184: 0 | Q184: 0 | R184: 0 | S184: 1.437888 | T184: 1.437888 | U184: 10.52487394
B185: 2038-03-10 | C185: S | D185: 212.9568958 | E185: 1 | F185: 1 | G185: 212.9568958 | H185: 0.04974 | J185: 10.59247599 | K185: 202.3644198 | L185: 1.00643403 | M185: 1.370171 | N185: 11.96264699 | O185: 0 | P185: 0 | Q185: 0 | R185: 0 | S185: 1.370171 | T185: 1.370171 | U185: 10.59247599
B186: 2038-04-10 | C186: S | D186: 202.3644198 | E186: 1 | F186: 1 | G186: 202.3644198 | H186: 0.052681 | J186: 10.66075999 | K186: 191.7036598 | L186: 1.00643403 | M186: 1.302018 | N186: 11.96277799 | O186: 0 | P186: 0 | Q186: 0 | R186: 0 | S186: 1.302018 | T186: 1.302018 | U186: 10.66075999
B187: 2038-05-10 | C187: S | D187: 191.7036598 | E187: 1 | F187: 1 | G187: 191.7036598 | H187: 0.055968 | J187: 10.72927043 | K187: 180.9743894 | L187: 1.00643403 | M187: 1.233427 | N187: 11.96269743 | O187: 0 | P187: 0 | Q187: 0 | R187: 0 | S187: 1.233427 | T187: 1.233427 | U187: 10.72927043
B188: 2038-06-10 | C188: S | D188: 180.9743894 | E188: 1 | F188: 1 | G188: 180.9743894 | H188: 0.059667 | J188: 10.79819889 | K188: 170.1761905 | L188: 1.00643403 | M188: 1.164394 | N188: 11.96259289 | O188: 0 | P188: 0 | Q188: 0 | R188: 0 | S188: 1.164394 | T188: 1.164394 | U188: 10.79819889
B189: 2038-07-10 | C189: S | D189: 170.1761905 | E189: 1 | F189: 1 | G189: 170.1761905 | H189: 0.063862 | J189: 10.86779187 | K189: 159.3083986 | L189: 1.00643403 | M189: 1.094918 | N189: 11.96270987 | O189: 0 | P189: 0 | Q189: 0 | R189: 0 | S189: 1.094918 | T189: 1.094918 | U189: 10.86779187
B190: 2038-08-10 | C190: S | D190: 159.3083986 | E190: 1 | F190: 1 | G190: 159.3083986 | H190: 0.068657 | J190: 10.93763672 | K190: 148.3707619 | L190: 1.00643403 | M190: 1.024995 | N190: 11.96263172 | O190: 0 | P190: 0 | Q190: 0 | R190: 0 | S190: 1.024995 | T190: 1.024995 | U190: 10.93763672
B191: 2038-09-10 | C191: S | D191: 148.3707619 | E191: 1 | F191: 1 | G191: 148.3707619 | H191: 0.074193 | J191: 11.00807193 | K191: 137.36269 | L191: 1.00643403 | M191: 0.954621 | N191: 11.96269293 | O191: 0 | P191: 0 | Q191: 0 | R191: 0 | S191: 0.954621 | T191: 0.954621 | U191: 11.00807193
B192: 2038-10-10 | C192: S | D192: 137.36269 | E192: 1 | F192: 1 | G192: 137.36269 | H192: 0.080654 | J192: 11.07885039 | K192: 126.2838396 | L192: 1.00643403 | M192: 0.883795 | N192: 11.96264539 | O192: 0 | P192: 0 | Q192: 0 | R192: 0 | S192: 0.883795 | T192: 0.883795 | U192: 11.07885039
B193: 2038-11-10 | C193: S | D193: 126.2838396 | E193: 1 | F193: 1 | G193: 126.2838396 | H193: 0.088295 | J193: 11.15023161 | K193: 115.133608 | L193: 1.00643403 | M193: 0.812514 | N193: 11.96274561 | O193: 0 | P193: 0 | Q193: 0 | R193: 0 | S193: 0.812514 | T193: 0.812514 | U193: 11.15023161
B194: 2038-12-10 | C194: S | D194: 115.133608 | E194: 1 | F194: 1 | G194: 115.133608 | H194: 0.094375 | J194: 10.86573425 | K194: 104.2678737 | L194: 1.00643403 | M194: 0.740773 | N194: 11.60650725 | O194: 0 | P194: 0 | Q194: 0 | R194: 0 | S194: 0.740773 | T194: 0.740773 | U194: 10.86573425
B195: 2039-01-10 | C195: S | D195: 104.2678737 | E195: 1 | F195: 1 | G195: 104.2678737 | H195: 0.108296 | J195: 11.29179365 | K195: 92.97608006 | L195: 1.00643403 | M195: 0.670862 | N195: 11.96265565 | O195: 0 | P195: 0 | Q195: 0 | R195: 0 | S195: 0.670862 | T195: 0.670862 | U195: 11.29179365
B196: 2039-02-10 | C196: S | D196: 92.97608006 | E196: 1 | F196: 1 | G196: 92.97608006 | H196: 0.12223 | J196: 11.36446626 | K196: 81.6116138 | L196: 1.00643403 | M196: 0.59821 | N196: 11.96267626 | O196: 0 | P196: 0 | Q196: 0 | R196: 0 | S196: 0.59821 | T196: 0.59821 | U196: 11.36446626
B197: 2039-03-10 | C197: S | D197: 81.6116138 | E197: 1 | F197: 1 | G197: 81.6116138 | H197: 0.140147 | J197: 11.43762283 | K197: 70.17399097 | L197: 1.00643403 | M197: 0.525091 | N197: 11.96271383 | O197: 0 | P197: 0 | Q197: 0 | R197: 0 | S197: 0.525091 | T197: 0.525091 | U197: 11.43762283
B198: 2039-04-10 | C198: S | D198: 70.17399097 | E198: 1 | F198: 1 | G198: 70.17399097 | H198: 0.164038 | J198: 11.51120113 | K198: 58.66278984 | L198: 1.00643403 | M198: 0.451501 | N198: 11.96270213 | O198: 0 | P198: 0 | Q198: 0 | R198: 0 | S198: 0.451501 | T198: 0.451501 | U198: 11.51120113
B199: 2039-05-10 | C199: S | D199: 58.66278984 | E199: 1 | F199: 1 | G199: 58.66278984 | H199: 0.197489 | J199: 11.5852557 | K199: 47.07753414 | L199: 1.00643403 | M199: 0.377438 | N199: 11.9626937 | O199: 0 | P199: 0 | Q199: 0 | R199: 0 | S199: 0.377438 | T199: 0.377438 | U199: 11.5852557
B200: 2039-06-10 | C200: S | D200: 47.07753414 | E200: 1 | F200: 1 | G200: 47.07753414 | H200: 0.247672 | J200: 11.65978703 | K200: 35.41774711 | L200: 1.00643403 | M200: 0.302898 | N200: 11.96268503 | O200: 0 | P200: 0 | Q200: 0 | R200: 0 | S200: 0.302898 | T200: 0.302898 | U200: 11.65978703
B201: 2039-07-10 | C201: S | D201: 35.41774711 | E201: 1 | F201: 1 | G201: 35.41774711 | H201: 0.331325 | J201: 11.73478506 | K201: 23.68296205 | L201: 1.00643403 | M201: 0.227878 | N201: 11.96266306 | O201: 0 | P201: 0 | Q201: 0 | R201: 0 | S201: 0.227878 | T201: 0.227878 | U201: 11.73478506
B202: 2039-08-10 | C202: S | D202: 23.68296205 | E202: 1 | F202: 1 | G202: 23.68296205 | H202: 0.498683 | J202: 11.81029056 | K202: 11.87267149 | L202: 1.00643403 | M202: 0.152376 | N202: 11.96266656 | O202: 0 | P202: 0 | Q202: 0 | R202: 0 | S202: 0.152376 | T202: 0.152376 | U202: 11.81029056
... 1 more rows

Sheet 20F0165468
B2: Juros | C2: 0.12 | D2: Censi Fisa
B3: Código IF | C3: 20F0165468
B4: Trunc. Juros | C4: 8
B5: Trunc. Índice | C5: 8
B6: Trunc. Fator Juros | C6: 9
B7: Trunc. Amortz | C7: 8
B8: Trunc. Atualização | C8: 8
B9: Correção | C9: Mensal
B10: Mês de Correção | C10: 0
B11: Qtde emissão | C11: 42000
B13: Data | C13: Paga Juros? | D13: VN | E13: Índice Mensal | F13: Índice Anual | G13: VNA | H13: % Amort Esp. | I13: % Amort Real. | J13: Pagto Amort | K13: Fator Juros | L13: Juros | M13: PMT | N13: Correção PU | O13: Correção Resultado | P13: CM Acum. Inicial | Q13: CM Acum. Final | R13: Juros | S13: Resultado caixa | T13: Amortização Custo
B14: 2020-06-16
B15: 2020-07-04 | C15: S | D15: 1000 | E15: 1 | F15: 1 | G15: 1000 | H15: 0 | I15: 0 | J15: 0 | K15: 1.005682519 | L15: 5.682519 | M15: 5.682519 | N15: 0 | O15: 0 | P15: 0 | Q15: 0 | R15: 5.682519 | S15: 5.682519 | T15: 0
B16: 2020-08-04 | C16: S | D16: 1000 | E16: 1.00259994 | F16: 1 | G16: 1002.59994 | H16: 0 | I16: 0 | J16: 0 | K16: 1.009806632 | L16: 9.83212865 | M16: 9.83212865 | N16: 2.59994 | O16: 0 | Q16: 0 | R16: 9.83212865 | S16: 9.83212865 | T16: 0
B17: 2020-09-04 | C17: S | D17: 1002.59994 | E17: 1.00359968 | F17: 1 | G17: 1006.208979 | H17: 0 | I17: 0 | J17: 0 | K17: 1.009806632 | L17: 9.86752117 | M17: 9.86752117 | N17: 3.609038952 | O17: 0 | Q17: 0 | R17: 9.86752117 | S17: 9.86752117 | T17: 0
B18: 2020-10-04 | C18: S | D18: 1006.208979 | E18: 1.00240054 | F18: 1 | G18: 1008.624424 | H18: 0 | I18: 0 | J18: 0 | K18: 1.009488793 | L18: 9.57062837 | M18: 9.57062837 | N18: 2.415444902 | O18: 0 | Q18: 0 | R18: 9.57062837 | S18: 9.57062837 | T18: 0
B19: 2020-11-04 | C19: S | D19: 1008.624424 | E19: 1.00640042 | F19: 1 | G19: 1015.080044 | H19: 0 | I19: 0 | J19: 0 | K19: 1.009806632 | L19: 9.95451643 | M19: 9.95451643 | N19: 6.455619935 | O19: 0 | Q19: 0 | R19: 9.95451643 | S19: 9.95451643 | T19: 0
B20: 2020-12-04 | C20: S | D20: 1015.080044 | E20: 1.00860017 | F20: 1 | G20: 1023.809905 | H20: 0 | J20: 0 | K20: 1.009488793 | L20: 9.71472025 | M20: 9.71472025 | N20: 8.72986094 | O20: 0 | Q20: 0 | R20: 9.71472025 | S20: 9.71472025 | T20: 0
B21: 2021-01-04 | C21: S | D21: 1023.809905 | E21: 1.00890013 | F21: 1 | G21: 1032.921946 | H21: 0 | I21: 0.01712312299 | J21: 17.68684951 | K21: 1.009806632 | L21: 10.1294854 | M21: 27.81633491 | N21: 9.112041247 | O21: 9.112041247 | P21: 0 | Q21: 0 | R21: 10.1294854 | S21: 19.24152665 | T21: 8.574808263
B22: 2021-02-04 | C22: S | D22: 1015.235096 | E22: 1.01350036 | F22: 1 | G22: 1028.941136 | H22: 0 | I22: 0.008367205704 | J22: 8.60936214 | K22: 1.009806632 | L22: 10.09044706 | M22: 18.6998092 | N22: 13.70603929 | O22: 8.60936214 | P22: 0 | Q22: 5.096677147 | R22: 10.09044706 | S22: 18.6998092 | T22: 0
B23: 2021-03-04 | C23: S | D23: 1020.331774 | E23: 1.00249973 | F23: 1 | G23: 1022.882328 | H23: 0 | I23: 0 | J23: 0 | K23: 1.008853415 | L23: 9.05600174 | M23: 9.05600174 | N23: 2.550553944 | O23: 0 | P23: 5.096677147 | Q23: 7.647231091 | R23: 9.05600174 | S23: 9.05600174 | T23: 0
B24: 2021-04-04 | C24: S | D24: 1022.882328 | E24: 1.00859988 | F24: 1 | G24: 1031.678993 | H24: 0 | I24: 0.009600659352 | J24: 9.90479857 | K24: 1.009806632 | L24: 10.11729622 | M24: 20.02209479 | N24: 8.796665271 | O24: 9.90479857 | P24: 7.647231091 | Q24: 6.539097792 | R24: 10.11729622 | S24: 20.02209479 | T24: 0
B25: 2021-05-04 | C25: S | D25: 1021.774194 | E25: 1.00930024 | F25: 1 | G25: 1031.276939 | H25: 0 | I25: 0.008383125763 | J25: 8.64532428 | K25: 1.009488793 | L25: 9.7855734 | M25: 18.43089768 | N25: 9.502745232 | O25: 8.64532428 | P25: 6.539097792 | Q25: 7.396518744 | R25: 9.7855734 | S25: 18.43089768 | T25: 0
B26: 2021-06-04 | C26: S | D26: 1022.631615 | E26: 1.00309971 | F26: 1 | G26: 1025.801477 | H26: 0 | J26: 0 | K26: 1.009806632 | L26: 10.05965758 | M26: 10.05965758 | N26: 3.169861444 | O26: 0 | P26: 7.396518744 | Q26: 10.56638019 | R26: 10.05965758 | S26: 10.05965758 | T26: 0
B27: 2021-07-04 | C27: S | D27: 1025.801477 | E27: 1.00830067 | F27: 1 | G27: 1034.316316 | H27: 0 | J27: 0 | K27: 1.009488793 | L27: 9.81441342 | M27: 9.81441342 | N27: 8.514839543 | O27: 0 | P27: 10.56638019 | Q27: 19.08121973 | R27: 9.81441342 | S27: 9.81441342 | T27: 0
B28: 2021-08-04 | C28: S | D28: 1034.316316 | E28: 1.00530005 | F28: 1 | G28: 1039.798244 | H28: 0 | J28: 0 | K28: 1.009806632 | L28: 10.19691873 | M28: 10.19691873 | N28: 5.481928191 | O28: 0 | P28: 19.08121973 | Q28: 24.56314792 | R28: 10.19691873 | S28: 10.19691873 | T28: 0
B29: 2021-09-04 | C29: S | D29: 1039.798244 | E29: 1.00959968 | F29: 1 | G29: 1049.779975 | H29: 0 | J29: 0 | K29: 1.009806632 | L29: 10.29480589 | M29: 10.29480589 | N29: 9.98173041 | O29: 0 | P29: 24.56314792 | Q29: 34.54487833 | R29: 10.29480589 | S29: 10.29480589 | T29: 0
B30: 2021-10-04 | C30: S | D30: 1049.779975 | E30: 1.00869987 | F30: 1 | G30: 1058.912924 | H30: 0 | I30: 0.004089591447 | J30: 4.33052123 | K30: 1.009488793 | L30: 10.04780554 | M30: 14.37832677 | N30: 9.132949309 | O30: 4.33052123 | P30: 34.54487833 | Q30: 39.34730641 | R30: 10.04780554 | S30: 14.37832677 | T30: 0
B31: 2021-11-04 | C31: S | D31: 1054.582403 | E31: 1.01159962 | F31: 1 | G31: 1066.815158 | H31: 0 | J31: 0 | K31: 1.009806632 | L31: 10.46186366 | M31: 10.46186366 | N31: 12.23275513 | O31: 0 | P31: 39.34730641 | Q31: 51.58006154 | R31: 10.46186366 | S31: 10.46186366 | T31: 0
B32: 2021-12-04 | C32: S | D32: 1066.815158 | E32: 1.01249955 | F32: 1 | G32: 1080.149867 | H32: 0 | J32: 0 | K32: 1.009488793 | L32: 10.2493185 | M32: 10.2493185 | N32: 13.33470941 | O32: 0 | P32: 51.58006154 | Q32: 64.91477095 | R32: 10.2493185 | S32: 10.2493185 | T32: 0
B33: 2022-01-04 | C33: S | D33: 1080.149867 | E33: 1.00950069 | F33: 1 | G33: 1090.412036 | H33: 0 | J33: 0 | K33: 1.009806632 | L33: 10.69326956 | M33: 10.69326956 | N33: 10.26216904 | O33: 0 | P33: 64.91477095 | Q33: 75.17693999 | R33: 10.69326956 | S33: 10.69326956 | T33: 0
B34: 2022-02-04 | C34: S | D34: 1090.412036 | E34: 1.00729958 | F34: 1 | G34: 1098.371586 | H34: 0 | J34: 0 | K34: 1.009806632 | L34: 10.77132594 | M34: 10.77132594 | N34: 7.959549893 | O34: 0 | P34: 75.17693999 | Q34: 83.13648989 | R34: 10.77132594 | S34: 10.77132594 | T34: 0
B35: 2022-03-04 | C35: S | D35: 1098.371586 | E35: 1.00540029 | F35: 1 | G35: 1104.303111 | H35: 0 | J35: 0 | K35: 1.008853415 | L35: 9.77685373 | M35: 9.77685373 | N35: 5.931525094 | O35: 0 | P35: 83.13648989 | Q35: 89.06801498 | R35: 9.77685373 | S35: 9.77685373 | T35: 0
B36: 2022-04-04 | C36: S | D36: 1104.303111 | E36: 1.01010061 | F36: 1 | G36: 1115.457246 | H36: 0 | J36: 0 | K36: 1.009806632 | L36: 10.93887872 | M36: 10.93887872 | N36: 11.15413505 | O36: 0 | P36: 89.06801498 | Q36: 100.22215 | R36: 10.93887872 | S36: 10.93887872 | T36: 0
B37: 2022-05-04 | C37: S | D37: 1115.457246 | E37: 1.0162005 | F37: 1 | G37: 1133.528212 | H37: 0 | J37: 0 | K37: 1.009488793 | L37: 10.75581455 | M37: 10.75581455 | N37: 18.07096512 | O37: 0 | P37: 100.22215 | Q37: 118.2931152 | R37: 10.75581455 | S37: 10.75581455 | T37: 0
B38: 2022-06-04 | C38: S | D38: 1133.528212 | E38: 1.01060018 | F38: 1 | G38: 1145.543815 | H38: 0 | J38: 0 | K38: 1.009806632 | L38: 11.23392662 | M38: 11.23392662 | N38: 12.01560308 | O38: 0 | P38: 0 | Q38: 12.01560308 | R38: 11.23392662 | S38: 11.23392662 | T38: 0
B39: 2022-07-04 | C39: S | D39: 1145.543815 | E39: 1.00470007 | F39: 1 | G39: 1150.927951 | H39: 0 | J39: 0 | K39: 1.009488793 | L39: 10.92091708 | M39: 10.92091708 | N39: 5.384136117 | O39: 0 | P39: 12.01560308 | Q39: 17.39973919 | R39: 10.92091708 | S39: 10.92091708 | T39: 0
B40: 2022-08-04 | C40: S | D40: 1150.927951 | E40: 1.00670057 | F40: 1 | G40: 1158.639824 | H40: 0 | J40: 0 | K40: 1.009806632 | L40: 11.36235437 | M40: 11.36235437 | N40: 7.711873299 | O40: 0 | P40: 17.39973919 | Q40: 25.11161249 | R40: 11.36235437 | S40: 11.36235437 | T40: 0
B41: 2022-09-04 | C41: S | D41: 1158.639824 | E41: 1 | F41: 1 | G41: 1158.639824 | H41: 0 | J41: 0 | K41: 1.009806632 | L41: 11.36235437 | M41: 11.36235437 | N41: 0 | O41: 0 | P41: 25.11161249 | Q41: 25.11161249 | R41: 11.36235437 | S41: 11.36235437 | T41: 0
B42: 2022-10-04 | C42: S | D42: 1158.639824 | E42: 1 | F42: 1 | G42: 1158.639824 | H42: 0 | J42: 0 | K42: 1.009488793 | L42: 10.99409345 | M42: 10.99409345 | N42: 0 | O42: 0 | P42: 25.11161249 | Q42: 25.11161249 | R42: 10.99409345 | S42: 10.99409345 | T42: 0
B43: 2022-11-04 | C43: S | D43: 1158.639824 | E43: 1 | F43: 1 | G43: 1158.639824 | H43: 0 | J43: 0 | K43: 1.009806632 | L43: 11.36235437 | M43: 11.36235437 | N43: 0 | O43: 0 | P43: 25.11161249 | Q43: 25.11161249 | R43: 11.36235437 | S43: 11.36235437 | T43: 0
B44: 2022-12-04 | C44: S | D44: 1158.639824 | E44: 1.00590078 | F44: 1 | G44: 1165.476703 | H44: 0 | J44: 0 | K44: 1.009488793 | L44: 11.05896717 | M44: 11.05896717 | N44: 6.836878701 | O44: 0 | P44: 25.11161249 | Q44: 31.94849119 | R44: 11.05896717 | S44: 11.05896717 | T44: 0
B45: 2023-01-04 | C45: S | D45: 1165.476703 | E45: 1.0040996 | F45: 1 | G45: 1170.254691 | H45: 0 | J45: 0 | K45: 1.009806632 | L45: 11.4762571 | M45: 11.4762571 | N45: 4.77798829 | O45: 0 | P45: 31.94849119 | Q45: 36.72647948 | R45: 11.4762571 | S45: 11.4762571 | T45: 0
B46: 2023-02-04 | C46: S | D46: 1170.254691 | E46: 1.00619968 | F46: 1 | G46: 1177.509896 | H46: 0 | J46: 0 | K46: 1.009806632 | L46: 11.54740622 | M46: 11.54740622 | N46: 7.255204603 | O46: 0 | P46: 36.72647948 | Q46: 43.98168409 | R46: 11.54740622 | S46: 11.54740622 | T46: 0
B47: 2023-03-04 | C47: S | D47: 1177.509896 | E47: 1.00529958 | F47: 1 | G47: 1183.750203 | H47: 0 | J47: 0 | K47: 1.008853415 | L47: 10.4802318 | M47: 10.4802318 | N47: 6.240307893 | O47: 0 | P47: 43.98168409 | Q47: 50.22199198 | R47: 10.4802318 | S47: 10.76769521 | T47: 0
B48: 2023-04-04 | C48: S | D48: 1183.750203 | E48: 1.00839991 | F48: 1 | G48: 1193.693599 | H48: 0 | J48: 0 | K48: 1.009806632 | L48: 11.70611384 | M48: 11.70611384 | N48: 9.943395172 | O48: 0 | P48: 50.22199198 | Q48: 60.16538715 | R48: 11.70611384 | S48: 11.70611384 | T48: 0
B49: 2023-05-04 | C49: S | D49: 1193.693599 | E49: 1.00710033 | F49: 1 | G49: 1202.169217 | H49: 0 | J49: 0 | K49: 1.009488793 | L49: 11.40713485 | M49: 11.40713485 | N49: 8.475618469 | O49: 0 | P49: 60.16538715 | Q49: 68.64100562 | R49: 11.40713485 | S49: 11.40713485 | T49: 0
B50: 2023-06-04 | C50: S | D50: 1202.169217 | E50: 1.00610015 | F50: 1 | G50: 1209.50263 | H50: 0 | I50: 0 | J50: 0 | K50: 1.009806632 | L50: 11.86114719 | M50: 11.86114719 | N50: 7.33341255 | O50: 0 | P50: 68.64100562 | Q50: 75.97441817 | R50: 11.86114719 | S50: 11.86114719 | T50: 0
B51: 2023-07-04 | C51: N | D51: 1209.50263 | E51: 1.00229925 | F51: 1 | G51: 1212.283579 | H51: 0 | J51: 0 | K51: 1.009488793 | L51: 11.50310793 | M51: 11.50310793 | N51: 2.780948921 | O51: 0 | P51: 75.97441817 | Q51: 78.75536709 | R51: 0 | S51: 0 | T51: 0
B52: 2023-08-04 | C52: N | D52: 1223.786687 | E52: 1 | F52: 1 | G52: 1223.786687 | H52: 0 | J52: 0 | K52: 1.009806632 | L52: 12.00122568 | M52: 12.00122568 | N52: 0 | O52: 0 | P52: 78.75536709 | Q52: 78.75536709 | R52: 0 | S52: 0 | T52: 0
B53: 2023-09-04 | C53: N | D53: 1235.787912 | E53: 1.0011997 | F53: 1 | G53: 1237.270487 | H53: 0 | J53: 0 | K53: 1.009806632 | L53: 12.13345634 | M53: 12.13345634 | N53: 1.482574758 | O53: 0 | P53: 0 | Q53: 1.482574758 | R53: 0 | S53: 0 | T53: 0
B54: 2023-10-04 | C54: N | D54: 1249.403943 | E54: 1.00230056 | F54: 1 | G54: 1252.278272 | H54: 0 | J54: 0 | K54: 1.009488793 | L54: 11.8826093 | M54: 11.8826093 | N54: 2.874328736 | O54: 0 | P54: 1.482574758 | Q54: 4.356903494 | R54: 0 | S54: 0 | T54: 0
B55: 2023-11-04 | C55: N | D55: 1264.160881 | E55: 1.00260051 | F55: 1 | G55: 1267.448344 | H55: 0 | J55: 0 | K55: 1.009806632 | L55: 12.42939949 | M55: 12.42939949 | N55: 3.287463013 | O55: 0 | P55: 0 | Q55: 3.287463013 | R55: 0 | S55: 0 | T55: 0
B56: 2023-12-04 | C56: N | D56: 1279.877744 | E56: 1.00239976 | F56: 1 | G56: 1282.949143 | H56: 0 | J56: 0 | K56: 1.009488793 | L56: 12.17363884 | M56: 12.17363884 | N56: 3.071399414 | O56: 0 | P56: 3.287463013 | Q56: 6.358862428 | R56: 0 | S56: 0 | T56: 0
B57: 2024-01-04 | C57: N | D57: 1295.122782 | E57: 1.00280046 | F57: 1 | G57: 1298.749722 | H57: 0 | J57: 0 | K57: 1.009806632 | L57: 12.73636057 | M57: 12.73636057 | N57: 3.626939546 | O57: 0 | P57: 6.358862428 | Q57: 9.985801974 | R57: 0 | S57: 0 | T57: 0
B58: 2024-02-04 | C58: N | D58: 1311.486082 | E58: 1.00560013 | F58: 1 | G58: 1318.830575 | H58: 0.36723 | I58: 0 | J58: 0 | K58: 1.009806632 | L58: 12.93328611 | M58: 12.93328611 | N58: 7.344492553 | O58: 0 | P58: 0 | Q58: 7.344492553 | R58: 0 | S58: 0 | T58: 0
B59: 2024-03-04 | C59: N | D59: 1331.763861 | E59: 1.00420033 | F59: 1 | G59: 1337.357709 | H59: 0 | J59: 0 | K59: 1.009171054 | L59: 12.26497976 | M59: 12.26497976 | N59: 5.593847698 | O59: 0 | P59: 0 | Q59: 5.593847698 | R59: 0 | S59: 0 | T59: 0
B60: 2024-04-04 | C60: N | D60: 1349.622688 | E60: 1.00829937 | F60: 1 | G60: 1360.823706 | H60: 0 | J60: 0 | K60: 1.009806632 | L60: 13.3450973 | M60: 13.3450973 | N60: 11.20101805 | O60: 0 | P60: 0.002728706194 | Q60: 11.20374676 | R60: 0 | S60: 0 | T60: 0
B61: 2024-05-04 | C61: N | D61: 1374.168804 | E61: 1.00159955 | F61: 1 | G61: 1376.366855 | H61: 0 | J61: 0 | K61: 1.009488793 | L61: 13.06006018 | M61: 13.06006018 | N61: 2.19805171 | O61: 0 | P61: 11.20374676 | Q61: 13.40179847 | R61: 0 | S61: 0 | T61: 0
B62: 2024-06-04 | C62: N | D62: 1389.426916 | E62: 1.0037996 | F62: 1 | G62: 1394.706182 | H62: 0 | J62: 0 | K62: 1.009806632 | L62: 13.67737027 | M62: 13.67737027 | N62: 5.279266508 | O62: 0 | P62: 13.40179847 | Q62: 18.68106497 | R62: 0 | S62: 0 | T62: 0
B63: 2024-07-04 | C63: N | D63: 1408.383552 | E63: 1.00460027 | F63: 1 | G63: 1414.862497 | H63: 0 | J63: 0 | K63: 1.009488793 | L63: 13.42533735 | M63: 13.42533735 | N63: 6.478944604 | O63: 0 | P63: 0.009112714622 | Q63: 6.488057319 | R63: 0 | S63: 0 | T63: 0
B64: 2024-08-04 | C64: N | D64: 1428.287834 | E64: 1.00210048 | F64: 1 | G64: 1431.287924 | H64: 0 | J64: 0 | K64: 1.009806632 | L64: 14.03611395 | M64: 14.03611395 | N64: 3.00009003 | O64: 0 | P64: 6.488057319 | Q64: 9.488147349 | R64: 0 | S64: 0 | T64: 0
B65: 2024-09-04 | C65: N | D65: 1445.324038 | E65: 1.00380032 | F65: 1 | G65: 1450.816732 | H65: 0 | J65: 0 | K65: 1.009806632 | L65: 14.22762579 | M65: 14.22762579 | N65: 5.492693849 | O65: 0 | P65: 9.488147349 | Q65: 14.9808412 | R65: 0 | S65: 0 | T65: 0
B66: 2024-10-04 | C66: N | D66: 1465.044358 | E66: 1 | F66: 1 | G66: 1465.044358 | H66: 0 | I66: 0 | J66: 0 | K66: 1.009488793 | L66: 13.90150264 | M66: 13.90150264 | N66: 0 | O66: 0 | P66: 0.007307727413 | Q66: 0.007307727413 | R66: 0 | S66: 0 | T66: 0
B67: 2024-10-30 | C67: S | D67: 1478.94586 | E67: 1.003688697 | F67: 1 | G67: 1484.401243 | H67: 0 | I67: 0.01904925089 | J67: 28.2767317 | K67: 1.008218437 | L67: 12.1994581 | M67: 40.4761898 | N67: 5.45538294 | O67: 5.462690668 | P67: 0.007307727413 | Q67: 0 | R67: 12.1994581 | S67: 17.66214877 | T67: 22.81404103
B68: 2024-11-04 | C68: N | D68: 1456.124512 | E68: 1.00070831 | F68: 1 | G68: 1457.1559 | H68: 0 | J68: 0 | K68: 1.001575249 | L68: 2.29538337 | M68: 2.29538337 | N68: 1.031388143 | O68: 0 | P68: 0 | Q68: 1.031388143 | R68: 0 | S68: 0 | T68: 0
B69: 2024-12-04 | C69: S | D69: 1459.451283 | E69: 1.00559942 | F69: 1 | G69: 1467.623364 | H69: 0 | I69: 0.01440685306 | J69: 21.14383414 | K69: 1.009488793 | L69: 13.9259743 | M69: 35.06980844 | N69: 8.172080704 | O69: 9.203468847 | P69: 1.031388143 | Q69: 0 | R69: 13.9259743 | S69: 23.12944315 | T69: 11.94036529
B70: 2024-12-19 | C70: S | D70: 1446.47953 | E70: 1.001885085 | F70: 1 | G70: 1449.206267 | H70: 0 | I70: 0.009231728929 | J70: 13.37867942 | K70: 1.004733195 | L70: 6.85937585 | M70: 20.23805527 | N70: 2.726737357 | O70: 2.726737357 | P70: 0 | Q70: 0 | R70: 6.85937585 | S70: 9.586113207 | T70: 10.65194206
B71: 2025-01-04 | C71: N | D71: 1435.827588 | E71: 1.00389976 | F71: 1 | G71: 1441.426971 | H71: 0 | J71: 0 | K71: 1.005049537 | L71: 7.27853882 | M71: 7.27853882 | N71: 5.599382993 | O71: 0 | P71: 0 | Q71: 5.599382993 | R71: 0 | S71: 0 | T71: 0
B72: 2025-02-04 | C72: N | D72: 1448.70551 | E72: 1.00519977 | F72: 1 | G72: 1456.238445 | H72: 0 | J72: 0 | K72: 1.009806632 | L72: 14.28079453 | M72: 14.28079453 | N72: 7.532935447 | O72: 0 | P72: 5.599382993 | Q72: 13.13231844 | R72: 0 | S72: 0 | T72: 0
B73: 2025-02-07 | C73: S | D73: 1470.51924 | E73: 1.000154715 | F73: 1 | G73: 1470.746751 | H73: 0 | I73: 0.03227449003 | J73: 47.46760136 | K73: 1.000944852 | L73: 1.389638 | M73: 48.85723936 | N73: 0.2275118893 | O73: 13.35983033 | P73: 13.13231844 | Q73: 0 | R73: 1.389638 | S73: 14.74946833 | T73: 34.10777103
B74: 2025-02-25 | C74: S | D74: 1423.27915 | E74: 1.000928651 | F74: 1 | G74: 1424.60088 | H74: 0 | I74: 0.04382903468 | J74: 62.43888136 | K74: 1.005682519 | L74: 8.09532156 | M74: 70.53420292 | N74: 1.321729873 | O74: 1.321729873 | P74: 0 | Q74: 0 | R74: 8.09532156 | S74: 9.417051433 | T74: 61.11715149
B75: 2025-03-04 | C75: N | D75: 1362.161999 | E75: 1.002943325 | F75: 1 | G75: 1366.171284 | H75: 0 | J75: 0 | K75: 1.002206043 | L75: 3.01383259 | M75: 3.01383259 | N75: 4.009285104 | O75: 0 | P75: 0 | Q75: 4.009285104 | R75: 0 | S75: 0 | T75: 0
B76: 2025-03-14 | C76: S | D76: 1369.185116 | E76: 1.0042074 | F76: 1 | G76: 1374.945826 | H76: 0 | I76: 0.04178385497 | J76: 57.45053698 | K76: 1.003152979 | L76: 4.33517531 | M76: 61.78571229 | N76: 5.760709628 | O76: 9.769994732 | P76: 4.009285104 | Q76: 0 | R76: 4.33517531 | S76: 14.10517004 | T76: 47.68054225
B77: 2025-04-04 | C77: N | D77: 1317.495289 | E77: 1.003790299 | F77: 1 | G77: 1322.488991 | H77: 0 | J77: 0 | K77: 1.00663274 | L77: 8.77172562 | M77: 8.77172562 | N77: 4.993701653 | O77: 0 | P77: 0 | Q77: 4.993701653 | R77: 0 | S77: 0 | T77: 0
B78: 2025-05-04 | C78: N | D78: 1331.260716 | E78: 1.00560025 | F78: 1 | G78: 1338.716109 | H78: 0 | J78: 0 | K78: 1.009488793 | L78: 12.70280004 | M78: 12.70280004 | N78: 7.455392826 | O78: 0 | P78: 4.993701653 | Q78: 12.44909448 | R78: 0 | S78: 0 | T78: 0
B79: 2025-05-29 | C79: S | D79: 1351.418909 | E79: 1.003466841 | F79: 1 | G79: 1356.104064 | H79: 0 | I79: 0.01281651129 | J79: 17.38052304 | K79: 1.007901098 | L79: 10.7147111 | M79: 28.09523414 | N79: 4.685154812 | O79: 17.13424929 | P79: 12.44909448 | Q79: 0 | R79: 10.7147111 | S79: 27.84896039 | T79: 0.2462737494
B80: 2025-06-04 | C80: N | D80: 1338.723541 | E80: 1.00430067 | F80: 1 | G80: 1344.480949 | H80: 0 | J80: 0 | K80: 1.001890596 | L80: 2.5418703 | M80: 2.5418703 | N80: 5.75740817 | O80: 0 | P80: 0 | Q80: 5.75740817 | R80: 0 | S80: 0 | T80: 0
B81: 2025-07-04 | C81: N | D81: 1347.022819 | E81: 1.00260013 | F81: 1 | G81: 1350.525254 | H81: 0 | J81: 0 | K81: 1.009488793 | L81: 12.81485457 | M81: 12.81485457 | N81: 3.502434443 | O81: 0 | P81: 5.75740817 | Q81: 9.259842613 | R81: 0 | S81: 0 | T81: 0
B82: 2025-08-04 | C82: N | D82: 1363.340108 | E82: 1.00240012 | F82: 1 | G82: 1366.612288 | H82: 0 | J82: 0 | K82: 1.009806632 | L82: 13.40186379 | M82: 13.40186379 | N82: 3.272179861 | O82: 0 | P82: 9.259842613 | Q82: 12.53202247 | R82: 0 | S82: 0 | T82: 0
B83: 2025-09-04 | C83: N | D83: 1380.014152 | E83: 1.00259949 | F83: 1 | G83: 1383.601485 | H83: 1 | I83: 0 | J83: 0 | K83: 1.009806632 | L83: 13.56847059 | M83: 13.56847059 | N83: 3.587332988 | O83: 0 | P83: 12.53202247 | Q83: 16.11935546 | R83: 0 | S83: 0 | T83: 0

Sheet 20G0754279
B2: Juros | C2: 0.09 | D2: Modena
B3: Código IF | C3: 20G0754279
B4: Trunc. Juros | C4: 8
B5: Trunc. Índice | C5: 8
B6: Trunc. Fator Juros | C6: 9
B7: Trunc. Amortz | C7: 8
B8: Trunc. Atualização | C8: 8
B9: Correção | C9: Mensal
B10: Nova taxa | C10: 0.07
B11: Qtde emissão | C11: 30000
B13: Data | C13: Paga Juros? | D13: Dias úteis | E13: VN | F13: Índice Mensal/Fator DI | G13: Fator spread | H13: VNA | I13: % Amort Esp. | J13: % Amort Real. | K13: Pagto Amort | L13: Fator Juros | M13: Juros | N13: PMT | O13: Correção PU | P13: Correção Resultado | Q13: CM Acum. Inicial | R13: CM Acum. Final | S13: Juros | T13: Resultado caixa | U13: Amortização Custo
B14: 2020-07-28
B15: 2020-08-10 | C15: S | E15: 1000 | F15: 1.0065001 | H15: 1006.5001 | I15: 0 | J15: 0 | K15: 0 | L15: 1.00311682 | M15: 3.13707964 | N15: 3.13707964 | O15: 6.5001 | P15: 0 | Q15: 0 | R15: 0 | S15: 3.13707964 | T15: 3.13707964 | U15: 0
B16: 2020-09-10 | C16: S | E16: 1006.5001 | F16: 1.02227833 | H16: 1028.923241 | I16: 0 | J16: 0.009663705639 | K16: 9.94321132 | L16: 1.00744846 | M16: 7.6638936 | N16: 17.60710492 | O16: 22.42314137 | P16: 9.94321132 | Q16: 0 | R16: 0 | S16: 7.6638936 | T16: 17.60710492 | U16: 0
B17: 2020-10-10 | C17: S | E17: 1018.98003 | F17: 1.02744163 | H17: 1046.942503 | I17: 0 | J17: 0.01477302585 | K17: 15.46650866 | L17: 1.007207323 | M17: 7.54565278 | N17: 23.01216144 | O17: 27.96247296 | P17: 15.46650866 | Q17: 0 | R17: 0 | S17: 7.54565278 | T17: 23.01216144 | U17: 0
B18: 2020-11-10 | C18: S | E18: 1031.475994 | F18: 1.04340794 | H18: 1076.250242 | I18: 0 | J18: 0.0118260904 | K18: 12.72783266 | L18: 1.00744846 | M18: 8.01640688 | N18: 20.74423954 | O18: 44.77424807 | P18: 12.72783266 | Q18: 0 | R18: 0 | S18: 8.01640688 | T18: 20.74423954 | U18: 0
B19: 2020-12-10 | C19: S | E19: 1063.52241 | F19: 1.03231419 | H19: 1097.889275 | I19: 0 | J19: 0.0338252061 | K19: 37.136331 | L19: 1.007207323 | M19: 7.91284262 | N19: 45.04917362 | O19: 34.36686522 | P19: 34.36686522 | Q19: 0 | R19: 0 | S19: 7.91284262 | T19: 42.27970784 | U19: 2.769465782
B20: 2021-01-10 | C20: S | E20: 1060.752944 | F20: 1.03277393 | H20: 1095.517987 | I20: 0 | J20: 0.0140600643 | K20: 15.40305333 | L20: 1.00744846 | M20: 8.1599219 | N20: 23.56297523 | O20: 34.76504273 | P20: 15.40305333 | Q20: 0 | R20: 19.3619894 | S20: 8.1599219 | T20: 23.56297523 | U20: 0
B21: 2021-02-10 | C21: S | E21: 1080.114933 | F21: 1.00958108 | H21: 1090.463601 | I21: 0 | J21: 0.0007131781101 | K21: 0.77769477 | L21: 1.00744846 | M21: 8.12227451 | N21: 8.89996928 | O21: 10.34866759 | P21: 0.77769477 | Q21: 0 | R21: 9.570972816 | S21: 8.12227451 | T21: 8.89996928 | U21: 0
B22: 2021-03-10 | C22: S | E22: 1089.685906 | F22: 1.02576709 | H22: 1117.763941 | I22: 0 | J22: 0.001363347487 | K22: 1.52390065 | L22: 1.006725223 | M22: 7.51721176 | N22: 9.04111241 | O22: 28.07803482 | P22: 1.52390065 | Q22: 6.582368093 | R22: 33.13650226 | S22: 7.51721176 | T22: 9.04111241 | U22: 0
B23: 2021-04-10 | C23: S | E23: 1116.24004 | F23: 1.02525854 | H23: 1144.434634 | I23: 0 | J23: 0.02747651029 | K23: 31.44506999 | L23: 1.00744846 | M23: 8.52427559 | N23: 39.96934558 | O23: 28.19459371 | P23: 31.44506999 | Q23: 33.13650226 | R23: 29.88602598 | S23: 8.52427559 | T23: 39.96934558 | U23: 0
B24: 2021-05-10 | C24: S | E24: 1112.989564 | F24: 1.02938265 | H24: 1145.692147 | I24: 0 | J24: 0.008595324981 | K24: 9.84759632 | L24: 1.007207323 | M24: 8.25737336 | N24: 18.10496968 | O24: 32.70258281 | P24: 9.84759632 | Q24: 29.88602598 | R24: 52.74101247 | S24: 8.25737336 | T24: 18.10496968 | U24: 0
B25: 2021-06-10 | C25: S | E25: 1135.844551 | F25: 1.01508279 | H25: 1152.976255 | I25: 0 | J25: 0.02105396986 | K25: 24.27472733 | L25: 1.00744846 | M25: 8.58789751 | N25: 32.86262484 | O25: 17.13170483 | P25: 24.27472733 | Q25: 52.74101247 | R25: 45.59798997 | S25: 8.58789751 | T25: 32.86262484 | U25: 0
B26: 2021-07-10 | C26: S | E26: 1128.701528 | F26: 1.04096334 | H26: 1174.936912 | I26: 0.01 | J26: 0.03121630737 | K26: 36.6771918 | L26: 1.007207323 | M26: 8.46814983 | N26: 45.14534163 | O26: 46.23538445 | P26: 36.6771918 | Q26: 45.59798997 | R26: 55.15618262 | S26: 8.46814983 | T26: 45.14534163 | U26: 0
B27: 2021-08-10 | C27: S | E27: 1138.259721 | F27: 1.00602643 | H27: 1145.119363 | I27: 0 | J27: 0.01972977067 | K27: 22.59294242 | L27: 1.00744846 | M27: 8.52937577 | N27: 31.12231819 | O27: 6.859642528 | P27: 22.59294242 | Q27: 55.15618262 | R27: 39.42288273 | S27: 8.52937577 | T27: 31.12231819 | U27: 0
B28: 2021-09-10 | C28: S | E28: 1122.526421 | F28: 1.0077733 | H28: 1131.252155 | I28: 0 | K28: 0 | L28: 1.00744846 | M28: 8.42608642 | N28: 8.42608642 | O28: 8.725734627 | P28: 0 | Q28: 39.42288273 | R28: 48.14861736 | S28: 8.42608642 | T28: 8.42608642 | U28: 0
B29: 2021-10-10 | C29: S | E29: 1131.252155 | F29: 1.00869987 | H29: 1141.093902 | I29: 0.010101 | K29: 11.5261895 | L29: 1.007207323 | M29: 8.22423232 | N29: 19.75042182 | O29: 9.841746689 | P29: 11.5261895 | Q29: 48.14861736 | R29: 46.46417455 | S29: 8.22423232 | T29: 19.75042182 | U29: 0
B30: 2021-11-10 | C30: S | E30: 1129.567713 | F30: 1.01159962 | H30: 1142.670269 | I30: 0 | K30: 0 | L30: 1.00744846 | M30: 8.51113379 | N30: 8.51113379 | O30: 13.10255623 | P30: 0 | Q30: 46.46417455 | R30: 59.56673078 | S30: 8.51113379 | T30: 8.51113379 | U30: 0
B31: 2021-12-10 | C31: S | E31: 1142.670269 | F31: 1.01249955 | H31: 1156.953133 | I31: 0 | J31: 0.006300753663 | K31: 7.28967669 | L31: 1.007207323 | M31: 8.33853492 | N31: 15.62821161 | O31: 14.28286416 | P31: 7.28967669 | Q31: 59.56673078 | R31: 66.55991825 | S31: 8.33853492 | T31: 15.62821161 | U31: 0
B32: 2022-01-10 | C32: S | E32: 1149.663456 | F32: 1.00950069 | H32: 1160.586052 | I32: 0.010204 | J32: 0.01865629336 | K32: 21.65223386 | L32: 1.00744846 | M32: 8.64457878 | N32: 30.29681264 | O32: 10.9225961 | P32: 21.65223386 | Q32: 66.55991825 | R32: 55.83028049 | S32: 8.64457878 | T32: 30.29681264 | U32: 0
B33: 2022-02-10 | C33: S | E33: 1138.933819 | F33: 1.00729958 | H33: 1147.247557 | I33: 0 | J33: 0.008758847577 | K33: 10.04856648 | L33: 1.00744846 | M33: 8.54522753 | N33: 18.59379401 | O33: 8.313738523 | P33: 10.04856648 | Q33: 55.83028049 | R33: 54.09545253 | S33: 8.54522753 | T33: 18.59379401 | U33: 0
B34: 2022-03-10 | C34: S | E34: 1137.198991 | F34: 1.00540029 | H34: 1143.340195 | I34: 0 | J34: 0.001248504587 | K34: 1.42746547 | L34: 1.006725223 | M34: 7.68921777 | N34: 9.11668324 | O34: 6.141204337 | P34: 1.42746547 | Q34: 54.09545253 | R34: 58.8091914 | S34: 7.68921777 | T34: 9.11668324 | U34: 0
B35: 2022-04-10 | C35: S | E35: 1141.912729 | F35: 1.01010061 | H35: 1153.446745 | I35: 0.071429 | J35: 0.005285548009 | K35: 6.09659814 | L35: 1.00744846 | M35: 8.59140193 | N35: 14.68800007 | O35: 11.53401513 | P35: 6.09659814 | Q35: 58.8091914 | R35: 64.24660839 | S35: 8.59140193 | T35: 14.68800007 | U35: 0
B36: 2022-05-10 | C36: S | E36: 1147.350146 | F36: 1.0162005 | H36: 1165.937792 | I36: 0 | K36: 0 | L36: 1.007207323 | M36: 8.40329026 | N36: 8.40329026 | O36: 18.58764605 | P36: 0 | Q36: 0 | R36: 18.58764605 | S36: 8.40329026 | T36: 8.40329026 | U36: 0
B37: 2022-06-10 | C37: S | E37: 1165.937792 | F37: 1.01060018 | H37: 1178.296943 | I37: 0 | K37: 0 | L37: 1.00744846 | M37: 8.77649764 | N37: 8.77649764 | O37: 12.35915047 | P37: 0 | Q37: 18.58764605 | R37: 30.94679652 | S37: 8.77649764 | T37: 8.77649764 | U37: 0
B38: 2022-07-10 | C38: S | E38: 1178.296943 | F38: 1.00470007 | H38: 1183.835021 | I38: 0 | K38: 0 | L38: 1.007207323 | M38: 8.53228137 | N38: 8.53228137 | O38: 5.538078112 | P38: 0 | Q38: 30.94679652 | R38: 36.48487463 | S38: 8.53228137 | T38: 8.53228137 | U38: 0
B39: 2022-08-10 | C39: S | E39: 1183.835021 | F39: 1.00670057 | H39: 1191.76739 | I39: 0 | K39: 0 | L39: 1.00744846 | M39: 8.87683173 | N39: 8.87683173 | O39: 7.932369427 | P39: 0 | Q39: 45.62220851 | R39: 53.55457794 | S39: 8.87683173 | T39: 8.87683173 | U39: 0
B40: 2022-09-10 | C40: S | E40: 1191.76739 | F40: 0.99319996 | H40: 1183.663325 | I40: 0 | K40: 0 | L40: 1.00744846 | M40: 8.81646892 | N40: 8.81646892 | O40: -8.104065926 | P40: 0 | Q40: 53.55457794 | R40: 45.45051201 | S40: 8.81646892 | T40: 8.81646892 | U40: 0
B41: 2022-10-10 | C41: S | E41: 1183.663325 | F41: 0.99640047 | H41: 1179.402693 | I41: 0 | K41: 0 | L41: 1.007207323 | M41: 8.50033615 | N41: 8.50033615 | O41: -4.260631646 | P41: 0 | Q41: 45.45051201 | R41: 41.18988037 | S41: 8.50033615 | T41: 8.50033615 | U41: 0
B42: 2022-11-10 | C42: S | E42: 1179.402693 | F42: 0.99709964 | H42: 1175.982 | I42: 0.0873 | K42: 102.6632286 | L42: 1.00744846 | M42: 8.75925489 | N42: 111.4224835 | O42: -3.420692394 | P42: 37.76918797 | Q42: 41.18988037 | R42: 0 | S42: 8.75925489 | T42: 46.52844286 | U42: 64.89404066
B43: 2022-12-10 | C43: S | E43: 1073.318772 | F43: 1.00590078 | H43: 1079.65219 | I43: 0 | K43: 0 | L43: 1.007207323 | M43: 7.78140205 | N43: 7.78140205 | O43: 6.333417942 | P43: 0 | Q43: 0 | R43: 6.333417942 | S43: 7.78140205 | T43: 7.78140205 | U43: 0
B44: 2023-01-10 | C44: S | E44: 1079.65219 | F44: 1.0040996 | H44: 1084.078332 | I44: 0 | K44: 0 | L44: 1.00744846 | M44: 8.07471409 | N44: 19.20031921 | O44: 4.426142117 | P44: 0 | Q44: 6.333417942 | R44: 10.75956006 | S44: 8.07471409 | T44: 19.20031921 | U44: 0
B45: 2023-02-10 | C45: S | E45: 1084.078332 | F45: 1.00619968 | H45: 1090.799271 | I45: 0.1015 | J45: 0 | K45: 0 | L45: 1.00744846 | M45: 8.12477473 | N45: 8.12477473 | O45: 6.720938753 | P45: 0 | Q45: 10.75956006 | R45: 17.48049881 | S45: 8.12477473 | T45: 8.12477473 | U45: 0
B46: 2023-03-10 | C46: S | E46: 1090.799271 | F46: 1.00529958 | H46: 1096.580049 | I46: 0.1562 | J46: 0.07796586563 | K46: 85.49581272 | L46: 1.006725223 | M46: 7.37474536 | N46: 129.9193987 | O46: 5.780777999 | P46: 23.26127681 | Q46: 17.48049881 | R46: 0 | S46: 7.37474536 | T46: 67.68486282 | U46: 62.23453591
B47: 2023-04-10 | C47: S | E47: 1011.084236 | F47: 1.00839991 | H47: 1019.577252 | I47: 0.1685 | J47: 0.172547411 | K47: 175.9254152 | L47: 1.00744846 | M47: 7.59428038 | N47: 183.5196956 | O47: 8.493016584 | P47: 8.493016584 | Q47: 0 | R47: 0 | S47: 7.59428038 | T47: 16.08729696 | U47: 167.4323986
B48: 2023-05-10 | C48: S | E48: 843.6518373 | F48: 1.00710033 | H48: 849.6420437 | I48: 0.1023 | J48: 0.05709462182 | K48: 48.50999116 | L48: 1.007207323 | M48: 6.12364464 | N48: 54.6336358 | O48: 5.99020645 | P48: 5.99020645 | Q48: 0 | R48: 0 | S48: 6.12364464 | T48: 12.11385109 | U48: 42.51978471
B49: 2023-06-10 | C49: S | E49: 801.1320526 | F49: 1.00610015 | H49: 806.0190783 | I49: 0.0657 | J49: 0.02153116204 | K49: 17.35452738 | L49: 1.00744846 | M49: 6.00360086 | N49: 23.35812824 | O49: 4.88702569 | P49: 4.88702569 | Q49: 0 | R49: 0 | S49: 6.00360086 | T49: 10.89062655 | U49: 12.46750169
B50: 2023-07-10 | C50: S | E50: 788.6645509 | F50: 1.00229925 | H50: 790.4778878 | I50: 0 | K50: 0 | L50: 1.007207323 | M50: 5.69722946 | N50: 5.69722946 | O50: 1.813336969 | P50: 0 | Q50: 0 | R50: 1.813336969 | S50: 5.69722946 | T50: 5.69722946 | U50: 0
B51: 2023-08-10 | C51: S | E51: 790.4778878 | F51: 0.99920033 | H51: 789.8457664 | I51: 0 | J51: 0.02335924246 | K51: 18.45019876 | L51: 1.00744846 | M51: 5.88313459 | N51: 24.33333335 | O51: -0.6321214526 | P51: 1.181215516 | Q51: 1.813336969 | R51: 0 | S51: 5.88313459 | T51: 7.064350106 | U51: 17.26898324
B52: 2023-09-10 | C52: S | E52: 771.3955676 | F52: 1.0011997 | H52: 772.3210109 | I52: 0 | J52: 0.01187348995 | K52: 9.17014575 | L52: 1.00744846 | M52: 5.75260215 | N52: 14.9227479 | O52: 0.9254432625 | P52: 0.9254432625 | Q52: 0 | R52: 0 | S52: 5.75260215 | T52: 6.678045412 | U52: 8.244702488
B53: 2023-10-10 | C53: S | E53: 763.1508651 | F53: 1.00230056 | H53: 764.9065395 | I53: 0.0627 | J53: 0.01878589286 | K53: 14.36945229 | L53: 1.007207323 | M53: 5.51292849 | N53: 19.88238078 | O53: 1.755674354 | P53: 1.755674354 | Q53: 0 | R53: 0 | S53: 5.51292849 | T53: 7.268602844 | U53: 12.61377794
B54: 2023-10-10 | C54: S | E54: 750.5370872 | F54: 1 | H54: 750.5370872 | I54: 0 | J54: 0.007954086046 | K54: 5.96983657 | L54: 1 | M54: 0 | N54: 6.127040634 | O54: 0 | P54: 0 | Q54: 0 | R54: 0 | S54: 0 | T54: 0.1572040636 | U54: 5.96983657
B55: 2023-11-10 | C55: S | E55: 744.5672506 | F55: 1.00260051 | H55: 746.5035052 | I55: 0.0668 | J55: 0.0396266236 | K55: 29.58141341 | L55: 1.00744846 | M55: 5.56030149 | N55: 35.1417149 | O55: 1.936254581 | P55: 1.936254581 | Q55: 0 | R55: 0 | S55: 5.56030149 | T55: 8.60508964 | U55: 27.64515883
B56: 2023-12-10 | C56: S | E56: 716.9220918 | F56: 1.00239976 | H56: 718.6425327 | I56: 0.0716 | J56: 0.02019111545 | K56: 14.51019434 | L56: 1.007207323 | M56: 5.17948885 | N56: 15.27426236 | O56: 1.720440959 | P56: 1.720440959 | Q56: 0 | R56: 0 | S56: 0.7640680212 | T56: 2.48450898 | U56: 12.78975338
B57: 2024-01-10 | C57: S | E57: 704.1323384 | F57: 1.00280046 | H57: 706.1042328 | I57: 0.0772 | J57: 0.00817841647 | K57: 5.77481448 | L57: 1.00744846 | M57: 5.25938913 | N57: 12.20054728 | O57: 1.971894448 | P57: 1.971894448 | Q57: 0 | R57: 0 | S57: 10.22865283 | T57: 12.20054728 | U57: 3.802920032
B58: 2024-01-31 | C58: N | E58: 700.3294183 | F58: 1.003790218 | H58: 702.9838197 | I58: 0 | K58: 0 | L58: 1.005039689 | M58: 3.54281982 | N58: 3.54281982 | O58: 2.654401373 | P58: 0 | Q58: 0 | R58: 2.654401373 | S58: 0 | T58: 0 | U58: 0
B59: 2024-02-10 | C59: S | D59: 8 | E59: 723.1831911 | F59: 1.00341511 | G59: 1.0021502 | H59: 723.1831911 | I59: 0 | K59: 0 | L59: 1.005572653 | M59: 4.03004897 | N59: 4.493617875 | O59: 0 | P59: 0 | Q59: 2.654401373 | R59: 2.654401373 | S59: 4.493617875 | T59: 4.957186779 | U59: 0
B60: 2024-03-10 | C60: S | D60: 17 | E60: 723.1831911 | F60: 1.00757925 | G60: 1.00457471 | H60: 723.1831911 | I60: 0 | K60: 0 | L60: 1.012188633 | M60: 8.8146145 | N60: 8.8146145 | O60: 0 | P60: 0 | Q60: 2.654401373 | R60: 2.654401373 | S60: 8.8146145 | T60: 8.8146145 | U60: 0
B61: 2024-04-10 | C61: S | D61: 21 | E61: 723.1831911 | F61: 1.00864961 | G61: 1.00565415 | H61: 723.1831911 | I61: 0 | J61: 0.02201820794 | K61: 15.92319787 | L61: 1.014352666 | M61: 10.37960679 | N61: 26.30280466 | O61: 0 | P61: 2.654401373 | Q61: 2.654401373 | R61: 0 | S61: 10.37960679 | T61: 13.03400816 | U61: 13.2687965
B62: 2024-05-10 | C62: S | D62: 21 | E62: 707.2599932 | F62: 1.00846925 | G62: 1.00565415 | H62: 707.2599932 | I62: 0 | J62: 0.02758548569 | K62: 19.51011042 | L62: 1.014171286 | M62: 10.02278364 | N62: 29.53289406 | O62: 0 | P62: 0 | Q62: 0 | R62: 0 | S62: 10.02278364 | T62: 10.02278364 | U62: 19.51011042
B63: 2024-06-10 | C63: S | D63: 20 | E63: 687.7498828 | F63: 1.00789242 | G63: 1.00538418 | H63: 687.7498828 | I63: 0 | K63: 0 | L63: 1.013319094 | M63: 9.16020533 | N63: 9.16020533 | O63: 0 | P63: 0 | Q63: 0 | R63: 0 | S63: 9.16020533 | T63: 9.16020533 | U63: 0
B64: 2024-07-10 | C64: S | D64: 22 | E64: 687.7498828 | F64: 1.00867512 | G64: 1.00592419 | H64: 687.7498828 | I64: 0 | J64: 0.04187568871 | K64: 28.8 | L64: 1.014650703 | M64: 10.07601927 | N64: 38.87601927 | O64: 0 | P64: 0 | Q64: 0 | R64: 0 | S64: 10.07601927 | T64: 10.07601927 | U64: 28.8
B65: 2024-08-10 | C65: S | D65: 23 | E65: 658.9498828 | F65: 1.00907122 | G65: 1.0061943 | H65: 658.9498828 | I65: 0 | J65: 0.06178435872 | K65: 40.71279593 | L65: 1.01532171 | M65: 10.096239 | N65: 50.80903493 | O65: 0 | P65: 0 | Q65: 0 | R65: 0 | S65: 10.096239 | T65: 10.096239 | U65: 40.71279593
B66: 2024-09-10 | C66: S | D66: 21 | E66: 618.2370869 | F66: 1.00827917 | G66: 1.00565415 | H66: 618.2370869 | I66: 0 | J66: 0.06441939256 | K66: 39.82645759 | L66: 1.013980132 | M66: 8.64303608 | N66: 48.46949367 | O66: 0 | P66: 0 | Q66: 0 | R66: 0 | S66: 8.64303608 | T66: 8.64303608 | U66: 39.82645759
B67: 2024-10-10 | C67: S | D67: 22 | E67: 578.4106293 | F67: 1.00879283 | G67: 1.00592419 | H67: 578.4106293 | I67: 0 | J67: 0.05090251028 | K67: 29.442553 | L67: 1.01476911 | M67: 8.5426102 | N67: 37.9851632 | O67: 0 | P67: 0 | Q67: 0 | R67: 0 | S67: 8.5426102 | T67: 8.5426102 | U67: 29.442553
B68: 2024-11-10 | C68: S | D68: 22 | E68: 548.9680763 | F68: 1.00887433 | G68: 1.00592419 | H68: 548.9680763 | I68: 0 | K68: 0 | L68: 1.014851093 | M68: 8.15277595 | N68: 8.15277595 | O68: 0 | P68: 0 | Q68: 0 | R68: 0 | S68: 8.15277595 | T68: 8.15277595 | U68: 0
B69: 2024-12-10 | C69: S | D69: 19 | E69: 548.9680763 | F69: 1.008002 | G69: 1.00511428 | H69: 548.9680763 | I69: 0 | J69: 0.00532051895 | K69: 2.92079505 | L69: 1.013157204 | M69: 7.22288496 | N69: 10.14368001 | O69: 0 | P69: 0 | Q69: 0 | R69: 0 | S69: 7.22288496 | T69: 7.22288496 | U69: 2.92079505
B70: 2025-01-10 | C70: S | D70: 21 | E70: 546.0472812 | F70: 1.00945782 | G70: 1.00565415 | H70: 546.0472812 | I70: 0 | K70: 0 | L70: 1.015165446 | M70: 8.28105055 | N70: 8.28105055 | O70: 0 | P70: 0 | Q70: 0 | R70: 0 | S70: 8.28105055 | T70: 8.28105055 | U70: 0
B71: 2025-02-10 | C71: S | D71: 21 | E71: 546.0472812 | F71: 1.00977918 | G71: 1.00565415 | H71: 546.0472812 | I71: 0 | J71: 0.07310878352 | K71: 39.92085247 | L71: 1.015488623 | M71: 8.45752047 | N71: 48.37837294 | O71: 0 | P71: 0 | Q71: 0 | R71: 0 | S71: 8.45752047 | T71: 8.45752047 | U71: 39.92085247
B72: 2025-03-10 | C72: S | D72: 18 | E72: 506.1264288 | F72: 1.00886355 | G72: 1.00484446 | H72: 506.1264288 | I72: 0 | K72: 0 | L72: 1.013750949 | M72: 6.9597187 | N72: 6.9597187 | O72: 0 | P72: 0 | Q72: 0 | R72: 0 | S72: 6.9597187 | T72: 6.9597187 | U72: 0
B73: 2025-04-10 | C73: S | D73: 23 | E73: 506.1264288 | F73: 1.0117988 | G73: 1.0061943 | H73: 506.1264288 | I73: 0 | K73: 0 | L73: 1.018066185 | M73: 9.14377369 | N73: 9.14377369 | O73: 0 | P73: 0 | Q73: 0 | R73: 0 | S73: 9.14377369 | T73: 9.14377369 | U73: 0
B74: 2025-05-12 | C74: S | D74: 19 | E74: 506.1264288 | F74: 1.01002822 | G74: 1.00511428 | H74: 506.1264288 | I74: 0 | K74: 0 | L74: 1.015193787 | M74: 7.68997715 | N74: 7.68997715 | O74: 0 | P74: 0 | Q74: 0 | R74: 0 | S74: 7.68997715 | T74: 7.68997715 | U74: 0
B75: 2025-06-10 | C75: S | D75: 21 | E75: 506.1264288 | F75: 1.01145791 | G75: 1.00565415 | H75: 506.1264288 | I75: 0 | J75: 0.02469738644 | K75: 12.5 | L75: 1.017176845 | M75: 8.69365521 | N75: 21.19365521 | O75: 0 | P75: 0 | Q75: 0 | R75: 0 | S75: 8.69365521 | T75: 8.69365521 | U75: 12.5
B76: 2025-07-10 | C76: S | D76: 21 | E76: 493.6264288 | F76: 1.01156285 | G76: 1.00565415 | H76: 493.6264288 | I76: 0 | J76: 0.02734861671 | K76: 13.5 | L76: 1.017282378 | M76: 8.53103853 | N76: 22.03103853 | O76: 0 | P76: 0 | Q76: 0 | R76: 0 | S76: 8.53103853 | T76: 8.53103853 | U76: 13.5
B77: 2025-08-10 | C77: S | D77: 21 | E77: 480.1264288 | F77: 1.01219929 | G77: 1.00565415 | H77: 480.1264288 | I77: 0 | J77: 0.09052732897 | K77: 43.46456316 | L77: 1.017922417 | M77: 8.60502606 | N77: 52.06958922 | O77: 0 | P77: 0 | Q77: 0 | R77: 0 | S77: 8.60502606 | T77: 8.60502606 | U77: 43.46456316
B78: 2025-09-10 | C78: S | D78: 22 | E78: 436.6618656 | F78: 1.01219929 | G78: 1.00592419 | H78: 436.6618656 | I78: 0 | J78: 0.03435152273 | K78: 15 | L78: 1.018195751 | M78: 7.94539057 | N78: 22.94539057 | O78: 0 | P78: 0 | Q78: 0 | R78: 0 | S78: 7.94539057 | T78: 7.94539057 | U78: 15
B79: 2025-10-10 | C79: S | D79: 22 | E79: 421.6618656 | F79: 1.01219929 | G79: 1.00592419 | H79: 421.6618656 | I79: 0 | K79: 0 | L79: 1.018195751 | M79: 7.67245431 | N79: 7.67245431 | O79: 0 | P79: 0 | Q79: 0 | R79: 0 | S79: 7.67245431 | T79: 7.67245431 | U79: 0
B80: 2025-11-10 | C80: S | D80: 21 | E80: 421.6618656 | F80: 1.01164156 | G80: 1.00565415 | H80: 421.6618656 | I80: 0 | J80: 0.003952610682 | K80: 1.66666519 | L80: 1.017361533 | M80: 7.32069639 | N80: 8.98736158 | O80: 0 | P80: 0 | Q80: 0 | R80: 0 | S80: 7.32069639 | T80: 7.32069639 | U80: 1.66666519
B81: 2025-12-10 | C81: S | D81: 21 | E81: 419.9952004 | F81: 1.01164156 | G81: 1.00565415 | H81: 419.9952004 | I81: 0 | K81: 0 | L81: 1.017361533 | M81: 7.29176053 | N81: 7.29176053 | O81: 0 | P81: 0 | Q81: 0 | R81: 0 | S81: 7.29176053 | T81: 7.29176053 | U81: 0
B82: 2026-01-12 | C82: S | D82: 21 | E82: 419.9952004 | F82: 1.01164156 | G82: 1.00565415 | H82: 419.9952004 | I82: 0 | K82: 0 | L82: 1.017361533 | M82: 7.29176053 | N82: 7.29176053 | O82: 0 | P82: 0 | Q82: 0 | R82: 0 | S82: 7.29176053 | T82: 7.29176053 | U82: 0
B83: 2026-02-12 | C83: N | D83: 23 | E83: 419.9952004 | F83: 1.01275733 | G83: 1.0061943 | H83: 419.9952004 | I83: 0 | K83: 0 | L83: 1.019030653 | M83: 7.99278292 | N83: 7.99278292 | O83: 0 | P83: 0 | Q83: 0 | R83: 0 | S83: 0 | T83: 0 | U83: 0
B84: 2026-03-12 | C84: N | D84: 18 | E84: 419.9952004 | F84: 1.00997022 | G84: 1.00484446 | H84: 419.9952004 | I84: 0 | K84: 0 | L84: 1.01486298 | M84: 6.24238026 | N84: 6.24238026 | O84: 0 | P84: 0 | Q84: 0 | R84: 0 | S84: 0 | T84: 0 | U84: 0
B85: 2026-04-13 | C85: S | D85: 21 | E85: 419.9952004 | F85: 1.01151913 | G85: 1.00565415 | H85: 419.9952004 | I85: 1 | K85: 419.9952004 | L85: 1.017238411 | M85: 7.24004988 | N85: 427.2352503 | O85: 0 | P85: 0 | Q85: 0 | R85: 0 | S85: 7.24004988 | T85: 7.24004988 | U85: 419.9952004

Sheet 21E0466562
B2: Juros | C2: 0.118 | D2: Seed II | E2: Juros
B3: Código IF | C3: 21E0466562
B4: Trunc. Juros | C4: 8
B5: Trunc. Fator Juros | C5: 9
B6: Trunc. Índice | C6: 8
B7: Trunc. Amortz | C7: 8
B8: Trunc. Atualização | C8: 8
B9: Correção | C9: Mensal
B10: Mês de Correção | C10: 0
B11: Qtde emissão | C11: 18772
B13: Data | C13: Paga Juros? | D13: VN | E13: Índice Mensal | F13: Índice Anual | G13: VNA | H13: % Amort Esp. | I13: % Amort Real. | J13: Pagto Amort | K13: Fator Juros | L13: Juros | M13: PMT | N13: Correção PU | O13: Correção Resultado | P13: CM Acum. Inicial | Q13: CM Acum. Final | R13: Juros | S13: Resultado caixa | T13: Amortização Custo
B14: 2021-05-18
B15: 2021-06-12 | C15: S | D15: 1000 | E15: 1.002582427 | F15: 1 | G15: 1002.582427 | H15: 0 | J15: 0 | K15: 1.007776006 | L15: 7.79608696 | M15: 7.79608696 | N15: 2.58242724 | O15: 0 | P15: 0 | Q15: 2.58242724 | R15: 7.79608696 | S15: 7.79608696 | T15: 0
B16: 2021-07-12 | C16: S | D16: 1002.582427 | E16: 1.008300672 | F16: 1 | G16: 1010.904535 | H16: 0 | J16: 0 | K16: 1.009338448 | L16: 9.44027943 | M16: 9.44027943 | N16: 8.322108193 | O16: 0 | P16: 2.58242724 | Q16: 10.90453543 | R16: 9.44027943 | S16: 9.44027943 | T16: 0
B17: 2021-08-12 | C17: S | D17: 1010.904535 | E17: 1.005300058 | F17: 1 | G17: 1016.262388 | H17: 0 | I17: 0.009124404891 | J17: 9.2727895 | K17: 1.009651227 | L17: 9.80817899 | M17: 19.08096849 | N17: 5.357852513 | O17: 9.2727895 | P17: 10.90453543 | Q17: 6.989598445 | R17: 9.80817899 | S17: 19.08096849 | T17: 0
B18: 2021-09-12 | C18: S | D18: 1006.989598 | E18: 1.009599687 | F18: 1 | G18: 1016.656383 | H18: 0 | J18: 0 | K18: 1.009651227 | L18: 9.81198153 | M18: 9.81198153 | N18: 9.666784609 | O18: 0 | P18: 6.989598445 | Q18: 16.65638305 | R18: 9.81198153 | S18: 9.81198153 | T18: 0
B19: 2021-10-12 | C19: S | D19: 1016.656383 | E19: 1.008699877 | F19: 1 | G19: 1025.501168 | H19: 0 | J19: 0 | K19: 1.009338448 | L19: 9.57658933 | M19: 9.57658933 | N19: 8.844785051 | O19: 0 | P19: 16.65638305 | Q19: 25.5011681 | R19: 9.57658933 | S19: 9.57658933 | T19: 0
B20: 2021-11-12 | C20: S | D20: 1025.501168 | E20: 1.011599629 | F20: 1 | G20: 1037.396601 | H20: 0 | I20: 0.0009314428789 | J20: 0.96627567 | K20: 1.009651227 | L20: 10.01215008 | M20: 10.97842575 | N20: 11.89543309 | O20: 0.96627567 | P20: 25.5011681 | Q20: 36.43032553 | R20: 10.01215008 | S20: 10.97842575 | T20: 0
B21: 2021-12-12 | C21: S | D21: 1036.430325 | E21: 1.012499558 | F21: 1 | G21: 1049.385247 | H21: 0 | J21: 0 | K21: 1.009338448 | L21: 9.79962955 | M21: 9.79962955 | N21: 12.95492137 | O21: 0 | P21: 36.43032553 | Q21: 49.3852469 | R21: 9.79962955 | S21: 9.79962955 | T21: 0
B22: 2022-01-12 | C22: S | D22: 1049.385247 | E22: 1.00950069 | F22: 1 | G22: 1059.355131 | H22: 0 | I22: 0.01171187088 | J22: 12.40703051 | K22: 1.009651227 | L22: 10.22407684 | M22: 22.63110735 | N22: 9.96988431 | O22: 12.40703051 | P22: 49.3852469 | Q22: 46.9481007 | R22: 10.22407684 | S22: 22.63110735 | T22: 0
B23: 2022-02-12 | C23: S | D23: 1046.948101 | E23: 1.007299582 | F23: 1 | G23: 1054.590385 | H23: 0 | J23: 0 | K23: 1.009651227 | L23: 10.17809119 | M23: 10.17809119 | N23: 7.642283965 | O23: 0 | P23: 46.9481007 | Q23: 54.59038467 | R23: 10.17809119 | S23: 10.17809119 | T23: 0
B24: 2022-03-12 | C24: S | D24: 1054.590385 | E24: 1.005400292 | F24: 1 | G24: 1060.28548 | H24: 0 | I24: 0.00183763284 | J24: 1.94841541 | K24: 1.008713181 | L24: 9.23845929 | M24: 11.1868747 | N24: 5.695095491 | O24: 1.94841541 | P24: 54.59038467 | Q24: 58.33706475 | R24: 9.23845929 | S24: 11.1868747 | T24: 0
B25: 2022-04-12 | C25: S | D25: 1058.337065 | E25: 1.010100616 | F25: 1 | G25: 1069.026921 | H25: 0 | I25: 0.003265773454 | J25: 3.49119974 | K25: 1.009651227 | L25: 10.31742148 | M25: 13.80862122 | N25: 10.68985641 | O25: 3.49119974 | P25: 43.81184417 | Q25: 51.01050084 | R25: 10.31742148 | S25: 13.80862122 | T25: 0
B26: 2022-05-12 | C26: S | D26: 1065.535721 | E26: 1.016200501 | F26: 1 | G26: 1082.797934 | H26: 0 | J26: 0 | K26: 1.009338448 | L26: 10.11165219 | M26: 10.11165219 | N26: 17.2622122 | O26: 0 | P26: 51.01050084 | Q26: 68.27271305 | R26: 10.11165219 | S26: 10.11165219 | T26: 0
B27: 2022-06-12 | C27: S | D27: 1082.797934 | E27: 1.010600181 | F27: 1 | G27: 1094.275787 | H27: 0 | I27: 0.005393240864 | J27: 5.90169289 | K27: 1.009651227 | L27: 10.56110402 | M27: 16.46279691 | N27: 11.47785388 | O27: 5.90169289 | P27: 68.27271305 | Q27: 73.84887404 | R27: 10.56110402 | S27: 16.46279691 | T27: 0
B28: 2022-07-12 | C28: S | D28: 1088.374095 | E28: 1.004700073 | F28: 1 | G28: 1093.489532 | H28: 0 | J28: 0 | K28: 1.009338448 | L28: 10.21149513 | M28: 10.21149513 | N28: 5.115437363 | O28: 0 | P28: 48.27793427 | Q28: 53.39337164 | R28: 10.21149513 | S28: 10.21149513 | T28: 0
B29: 2022-08-12 | C29: S | D29: 1093.489532 | E29: 1.006700578 | F29: 1 | G29: 1100.816543 | H29: 0 | I29: 0.001314734354 | J29: 1.44728132 | K29: 1.009651227 | L29: 10.62423034 | M29: 12.07151166 | N29: 7.32701145 | O29: 1.44728132 | P29: 53.39337164 | Q29: 59.27310177 | R29: 10.62423034 | S29: 12.07151166 | T29: 0
B30: 2022-09-12 | C30: S | D30: 1099.369262 | E30: 0.9931999659 | F30: 1 | G30: 1091.893514 | H30: 0 | I30: 0.003255749967 | J30: 3.55493227 | K30: 1.009651227 | L30: 10.53811215 | M30: 14.09304442 | N30: -7.475748446 | O30: 3.55493227 | P30: 59.27310177 | Q30: 48.24242105 | R30: 10.53811215 | S30: 14.09304442 | T30: 0
B31: 2022-10-12 | C31: S | D31: 1088.338581 | E31: 0.996400471 | F31: 1 | G31: 1084.421075 | H31: 0 | I31: 0.0167077336 | J31: 18.11821842 | K31: 1.009338448 | L31: 10.12680981 | M31: 28.24502823 | N31: -3.91750629 | O31: 18.11821842 | P31: 29.40495321 | Q31: 7.369228499 | R31: 10.12680981 | S31: 28.24502823 | T31: 0
B32: 2022-11-12 | C32: S | D32: 1066.302857 | E32: 0.9970996436 | F32: 1 | G32: 1063.210198 | H32: 0 | I32: 0.01944714395 | J32: 20.67640177 | K32: 1.009651227 | L32: 10.26128297 | M32: 30.93768474 | N32: -3.092658316 | O32: 4.276570184 | P32: 7.369228499 | Q32: 0 | R32: 10.26128297 | S32: 14.53785315 | T32: 16.39983159
B33: 2022-12-12 | C33: S | D33: 1042.533796 | E33: 1.005900784 | F33: 1 | G33: 1048.685563 | H33: 0 | I33: 0.0009235228964 | J33: 0.96848512 | K33: 1.009338448 | L33: 9.7930956 | M33: 10.76158072 | N33: 6.151766689 | O33: 0.96848512 | P33: 0 | Q33: 5.183281569 | R33: 9.7930956 | S33: 10.76158072 | T33: 0
B34: 2023-01-12 | C34: S | D34: 1047.717078 | E34: 1.004099608 | F34: 1 | G34: 1052.012307 | H34: 0 | J34: 0 | K34: 1.009651227 | L34: 10.15320958 | M34: 10.15320958 | N34: 4.295229136 | O34: 0 | P34: 5.183281569 | Q34: 9.478510706 | R34: 10.15320958 | S34: 10.15320958 | T34: 0
B35: 2023-02-12 | C35: S | D35: 1052.012307 | E35: 1.006199683 | F35: 1 | G35: 1058.53445 | H35: 0 | I35: 0.0005302627704 | J35: 0.56130141 | K35: 1.009651227 | L35: 10.21615626 | M35: 10.77745767 | N35: 6.522142758 | O35: 0.56130141 | P35: 9.478510706 | Q35: 15.43935205 | R35: 10.21615626 | S35: 10.77745767 | T35: 0
B36: 2023-03-12 | C36: S | D36: 1057.973149 | E36: 1.005299587 | F36: 1 | G36: 1063.579969 | H36: 0 | J36: 0 | K36: 1.008713181 | L36: 9.26716477 | M36: 9.26716477 | N36: 5.606820221 | O36: 0 | P36: 15.43935205 | Q36: 21.04617227 | R36: 9.26716477 | S36: 9.26716477 | T36: 0
B37: 2023-04-12 | C37: S | D37: 1063.579969 | E37: 1.008399914 | F37: 1 | G37: 1072.513949 | H37: 0 | J37: 0 | K37: 1.009651227 | L37: 10.35107558 | M37: 10.35107558 | N37: 8.933980224 | O37: 0 | P37: 21.04617227 | Q37: 29.9801525 | R37: 10.35107558 | S37: 10.35107558 | T37: 0
B38: 2023-04-28 | C38: N | D38: 1072.513949 | E38: 1 | F38: 1 | G38: 1072.513949 | H38: 0 | I38: 0.01241728113 | J38: 13.31770722 | K38: 1 | L38: 0 | M38: 13.31770722 | N38: 0 | O38: 13.31770722 | P38: 29.9801525 | Q38: 16.66244528 | R38: 0 | S38: 13.31770722 | T38: 0
B39: 2023-05-12 | C39: S | D39: 1059.196242 | E39: 1.007100336 | F39: 1 | G39: 1066.716891 | H39: 0 | I39: 0.002362266875 | J39: 2.51986997 | K39: 1.009338448 | L39: 9.96148021 | M39: 12.48135018 | N39: 7.520648853 | O39: 2.51986997 | P39: 16.66244528 | Q39: 21.66322416 | R39: 9.96148021 | S39: 12.48135018 | T39: 0
B40: 2023-06-12 | C40: S | D40: 1064.197021 | E40: 1.006100153 | F40: 1 | G40: 1070.688786 | H40: 0 | I40: 0.01446521497 | J40: 15.48774344 | K40: 1.009651227 | L40: 10.33346051 | M40: 26.37259325 | N40: 6.491764925 | O40: 15.48774344 | P40: 21.66322416 | Q40: 12.66724565 | R40: 10.33346051 | S40: 26.37259325 | T40: 0
B41: 2023-07-12 | C41: S | D41: 1055.201042 | E41: 1.002299252 | F41: 1 | G41: 1057.627215 | H41: 0 | J41: 0 | K41: 1.009338448 | L41: 9.87659674 | M41: 9.87659674 | N41: 2.426172661 | O41: 0 | P41: 12.66724565 | Q41: 15.09341831 | R41: 9.87659674 | S41: 9.87659674 | T41: 0
B42: 2023-08-12 | C42: S | D42: 1057.627215 | E42: 0.9992003337 | F42: 1 | G42: 1056.781466 | H42: 0 | J42: 0 | K42: 1.009651227 | L42: 10.19923781 | M42: 10.19923781 | N42: -0.845748874 | O42: 0 | P42: 15.09341831 | Q42: 14.24766943 | R42: 10.19923781 | S42: 10.19923781 | T42: 0
B43: 2023-09-12 | C43: S | D43: 1056.781466 | E43: 1.001199709 | F43: 1 | G43: 1058.049296 | H43: 0 | J43: 0 | K43: 1.009651227 | L43: 10.21147393 | M43: 10.21147393 | N43: 1.267829926 | O43: 0 | P43: 7.094234295 | Q43: 8.362064221 | R43: 10.21147393 | S43: 10.21147393 | T43: 0
B44: 2023-10-12 | C44: S | D44: 1058.049296 | E44: 1.002300561 | F44: 1 | G44: 1060.483402 | H44: 0 | J44: 0 | K44: 1.009338448 | L44: 9.9032691 | M44: 9.9032691 | N44: 2.434106515 | O44: 0 | P44: 8.362064221 | Q44: 10.79617074 | R44: 9.9032691 | S44: 9.9032691 | T44: 0
B45: 2023-11-12 | C45: S | D45: 1060.483402 | E45: 1.00260052 | F45: 1 | G45: 1063.24121 | H45: 0 | J45: 0 | K45: 1.009651227 | L45: 10.26158227 | M45: 10.26158227 | N45: 2.757807773 | O45: 0 | P45: 10.79617074 | Q45: 13.55397851 | R45: 10.26158227 | S45: 10.48070916 | T45: 0
B46: 2023-12-12 | C46: S | D46: 1063.24121 | E46: 1.002399764 | F46: 1 | G46: 1065.792738 | H46: 0 | J46: 0 | K46: 1.009338448 | L46: 9.95285005 | M46: 9.95285005 | N46: 2.55152756 | O46: 0 | P46: 13.55397851 | Q46: 16.10550607 | R46: 9.95285005 | S46: 9.95285005 | T46: 0
B47: 2024-01-12 | C47: S | D47: 1065.792738 | E47: 1.002800466 | F47: 1 | G47: 1068.777454 | H47: 0 | J47: 0 | K47: 1.009651227 | L47: 10.31501381 | M47: 10.31501381 | N47: 2.984716007 | O47: 0 | P47: 0.001715907316 | Q47: 2.986431915 | R47: 10.31501381 | S47: 10.55276791 | T47: 0
B48: 2024-01-19 | C48: S | D48: 1068.777454 | E48: 1.001261815 | F48: 1 | G48: 1070.126053 | H48: 0 | J48: 0 | K48: 1.001943323 | L48: 2.07960057 | M48: 2.07960057 | N48: 1.348599142 | O48: 0 | P48: 4.977474909 | Q48: 6.326074051 | R48: 2.07960057 | S48: 0 | T48: 0
B49: 2024-02-12 | C49: S | D49: 1070.126053 | E49: 1.004332855 | F49: 1 | G49: 1074.762753 | H49: 0 | J49: 0 | K49: 1.006678558 | L49: 7.17786538 | M49: 7.17786538 | N49: 4.636700582 | O49: 0 | P49: 6.326074051 | Q49: 10.96277463 | R49: 7.17786538 | S49: 9.671282873 | T49: 0
B50: 2024-03-12 | C50: N | D50: 1074.762753 | E50: 1.004200335 | F50: 1 | G50: 1079.277116 | H50: 0 | I50: 0 | J50: 0 | K50: 1.008075529 | L50: 8.71573365 | M50: 8.71573365 | N50: 4.514363126 | O50: 0 | P50: 10.96277463 | Q50: 15.47713776 | R50: 0 | S50: 0 | T50: 0
B51: 2024-04-12 | C51: N | D51: 1079.277116 | E51: 1.008299371 | F51: 1 | G51: 1088.234438 | H51: 0 | J51: 0 | K51: 1.00863486 | L51: 9.39675201 | M51: 9.39675201 | N51: 8.957321563 | O51: 0 | P51: 15.47713776 | Q51: 24.43445932 | R51: 0 | S51: 0 | T51: 0
B52: 2024-05-12 | C52: N | D52: 1088.234438 | E52: 1.001599552 | F52: 1 | G52: 1089.975126 | H52: 0 | J52: 0 | K52: 1.008355156 | L52: 9.10691221 | M52: 9.10691221 | N52: 1.740687645 | O52: 0 | P52: 24.43445932 | Q52: 26.17514697 | R52: 0 | S52: 0 | T52: 0
B53: 2024-06-12 | C53: N | D53: 1089.975126 | E53: 1.003799602 | F53: 1 | G53: 1094.116598 | H53: 0 | J53: 0 | K53: 1.00863486 | L53: 9.44754364 | M53: 9.44754364 | N53: 4.141471972 | O53: 0 | P53: 26.17514697 | Q53: 30.31661894 | R53: 0 | S53: 0 | T53: 0
B54: 2024-07-12 | C54: N | D54: 1094.116598 | E54: 1.004600275 | F54: 1 | G54: 1099.149835 | H54: 0 | J54: 0 | K54: 1.008355156 | L54: 9.18356833 | M54: 9.18356833 | N54: 5.033237201 | O54: 0 | P54: 30.31661894 | Q54: 35.34985614 | R54: 0 | S54: 0 | T54: 0
B55: 2024-08-12 | C55: N | D55: 1099.149835 | E55: 1.002100489 | F55: 1 | G55: 1101.458586 | H55: 0 | J55: 0 | K55: 1.00863486 | L55: 9.51094068 | M55: 9.51094068 | N55: 2.308751616 | O55: 0 | P55: 35.34985614 | Q55: 37.65860776 | R55: 0 | S55: 0 | T55: 0
B56: 2024-09-12 | C56: N | D56: 1101.458586 | E56: 1.003800326 | F56: 1 | G56: 1105.644488 | H56: 0 | J56: 0 | K56: 1.00863486 | L56: 9.54708536 | M56: 9.54708536 | N56: 4.185901556 | O56: 0 | P56: 37.65860776 | Q56: 41.84450931 | R56: 0 | S56: 0 | T56: 0
B57: 2024-10-12 | C57: N | D57: 1105.644488 | E57: 0.9998005135 | F57: 1 | G57: 1105.423927 | H57: 0 | J57: 0 | K57: 1.008355156 | L57: 9.23598935 | M57: 9.23598935 | N57: -0.220561151 | O57: 0 | P57: 25.10625977 | Q57: 24.88569862 | R57: 0 | S57: 0 | T57: 0
B58: 2024-11-12 | C58: N | D58: 1105.423927 | E58: 1.004399627 | F58: 1 | G58: 1110.28738 | H58: 0 | J58: 0 | K58: 1.00863486 | L58: 9.58717608 | M58: 9.58717608 | N58: 4.863452718 | O58: 0 | P58: 24.88569862 | Q58: 29.74915134 | R58: 0 | S58: 0 | T58: 0
B59: 2024-12-12 | C59: N | D59: 1110.28738 | E59: 1.005599423 | F59: 1 | G59: 1116.504348 | H59: 0 | J59: 0 | K59: 1.008355156 | L59: 9.328568 | M59: 9.328568 | N59: 6.21696827 | O59: 0 | P59: 29.74915134 | Q59: 35.96611961 | R59: 0 | S59: 0 | T59: 0
B60: 2025-01-12 | C60: N | D60: 1116.504348 | E60: 1.00389976 | F60: 1 | G60: 1120.858447 | H60: 0 | J60: 0 | K60: 1.00863486 | L60: 9.67845577 | M60: 9.67845577 | N60: 4.354099268 | O60: 0 | P60: 35.96611961 | Q60: 40.32021887 | R60: 0 | S60: 0 | T60: 0
B61: 2025-02-12 | C61: N | D61: 1120.858447 | E61: 1.005199773 | F61: 1 | G61: 1126.686656 | H61: 0 | J61: 0 | K61: 1.00863486 | L61: 9.72878154 | M61: 9.72878154 | N61: 5.828209407 | O61: 0 | P61: 40.32021887 | Q61: 46.14842828 | R61: 0 | S61: 0 | T61: 0
B62: 2025-03-12 | C62: N | D62: 1126.686656 | E62: 1.001599887 | F62: 1 | G62: 1128.489228 | H62: 0 | J62: 0 | K62: 1.00779598 | L62: 8.79767945 | M62: 8.79767945 | N62: 1.802571709 | O62: 0 | P62: 46.14842828 | Q62: 47.95099999 | R62: 0 | S62: 0 | T62: 0
B63: 2025-04-12 | C63: N | D63: 1128.489228 | E63: 1.013100652 | F63: 1 | G63: 1143.273172 | H63: 0 | J63: 0 | K63: 1.00863486 | L63: 9.87200378 | M63: 9.87200378 | N63: 14.7839442 | O63: 0 | P63: 47.95099999 | Q63: 62.73494419 | R63: 0 | S63: 0 | T63: 0
B64: 2025-05-12 | C64: N | D64: 1143.273172 | E64: 1.005600254 | F64: 1 | G64: 1149.675793 | H64: 1 | I64: 0 | J64: 0 | K64: 1.008355156 | L64: 9.60572059 | M64: 9.60572059 | N64: 6.402620462 | O64: 0 | P64: 62.73494419 | Q64: 69.13756465 | R64: 0 | S64: 0 | T64: 0

Sheet 21D0453486
B2: Juros | C2: 0.06 | D2: Cogna
B3: Código IF | C3: 21D0453486
B4: Trunc. Juros | C4: 6
B5: Trunc. Índice | C5: 8
B6: Trunc. Fator Juros | C6: 8
B7: Trunc. Amortz | C7: 8
B8: Trunc. Atualização | C8: 8
B9: Correção | C9: Anual
B10: Mês de Correção | C10: 7
B11: Qtde emissão | C11: 155
B13: Data | C13: Paga Juros? | D13: VN | E13: Índice Mensal | F13: Índice Anual | G13: VNA | H13: % Amort Esp. | I13: % Amort Real. | J13: Pagto Amort | K13: VNF | L13: Fator Juros | M13: Juros | N13: PMT | O13: Correção PU | P13: Correção Resultado | Q13: CM Acum. Inicial | R13: CM Acum. Final | S13: Juros | T13: Resultado caixa | U13: Amortização Custo
B14: 2021-04-16 | K14: 126712.4864
B15: 2021-05-17 | C15: S | D15: 125544.8889 | E15: 1.00930024 | F15: 1 | G15: 126712.4864 | H15: 0 | J15: 0 | K15: 126712.4864 | L15: 1.00486755 | M15: 616.779363 | N15: 616.779363 | O15: 1167.597597 | P15: 0 | Q15: 0 | R15: 1167.597597 | S15: 616.779363 | T15: 616.779363 | U15: 0
B16: 2021-06-17 | C16: S | D16: 126320.9282 | E16: 1.00309971 | F16: 1 | G16: 126712.4864 | H16: 0 | J16: 0 | K16: 126712.4864 | L16: 1.00486755 | M16: 616.779363 | N16: 616.779363 | O16: 391.5582444 | P16: 0 | Q16: 1167.597597 | R16: 1559.155841 | S16: 616.779363 | T16: 616.779363 | U16: 0
B17: 2021-07-19 | C17: S | D17: 128050.0705 | E17: 1.00830067 | F17: 1.018944348 | G17: 129112.9719 | H17: 0 | J17: 0 | K17: 129112.9719 | L17: 1.00486755 | M17: 628.463846 | N17: 628.463846 | O17: 1062.901379 | P17: 0 | Q17: 1559.155841 | R17: 2622.05722 | S17: 628.463846 | T17: 628.463846 | U17: 0
B18: 2021-08-17 | C18: S | D18: 128432.2744 | E18: 1.00530005 | F18: 1 | G18: 129112.9719 | H18: 0 | J18: 0 | K18: 129112.9719 | L18: 1.00486755 | M18: 628.463846 | N18: 628.463846 | O18: 680.6974761 | P18: 0 | Q18: 2622.05722 | R18: 3302.754696 | S18: 628.463846 | T18: 628.463846 | U18: 0
B19: 2021-09-17 | C19: S | D19: 127885.3138 | E19: 1.00959968 | F19: 1 | G19: 129112.9719 | H19: 0 | J19: 0 | K19: 129112.9719 | L19: 1.00486755 | M19: 628.463846 | N19: 628.463846 | O19: 1227.658089 | P19: 0 | Q19: 3302.754696 | R19: 4530.412786 | S19: 628.463846 | T19: 628.463846 | U19: 0
B20: 2021-10-19 | C20: S | D20: 127999.3938 | E20: 1.00869987 | F20: 1 | G20: 129112.9719 | H20: 0 | J20: 0 | K20: 129112.9719 | L20: 1.00486755 | M20: 628.463846 | N20: 628.463846 | O20: 1113.578086 | P20: 0 | Q20: 4530.412786 | R20: 5643.990872 | S20: 628.463846 | T20: 628.463846 | U20: 0
B21: 2021-11-18 | C21: S | D21: 127632.4836 | E21: 1.01159962 | F21: 1 | G21: 129112.9719 | H21: 0.012229 | J21: 1578.922533 | K21: 127534.0494 | L21: 1.00486755 | M21: 628.463846 | N21: 2207.386379 | O21: 1480.488309 | P21: 1578.922533 | Q21: 5643.990872 | R21: 5545.556648 | S21: 628.463846 | T21: 2207.386379 | U21: 0
B22: 2021-12-17 | C22: S | D22: 125959.6109 | E22: 1.01249955 | F22: 1 | G22: 127534.0494 | H22: 0.012441 | J22: 1586.651108 | K22: 125947.3983 | L22: 1.00486755 | M22: 620.778362 | N22: 2207.42947 | O22: 1574.438455 | P22: 1586.651108 | Q22: 5545.556648 | R22: 5533.343994 | S22: 620.778362 | T22: 2207.42947 | U22: 0
B23: 2022-01-17 | C23: S | D23: 124762.0725 | E23: 1.00950069 | F23: 1 | G23: 125947.3983 | H23: 0.012659 | J23: 1594.368115 | K23: 124353.0302 | L23: 1.00486755 | M23: 613.055258 | N23: 2207.423373 | O23: 1185.325774 | P23: 1594.368115 | Q23: 5533.343994 | R23: 5124.301654 | S23: 613.055258 | T23: 2207.423373 | U23: 0
B24: 2022-02-17 | C24: S | D24: 123451.8833 | E24: 1.00729958 | F24: 1 | G24: 124353.0302 | H24: 0.012884 | J24: 1602.16444 | K24: 122750.8657 | L24: 1.00486755 | M24: 605.294591 | N24: 2207.459031 | O24: 901.146898 | P24: 1602.16444 | Q24: 5124.301654 | R24: 4423.284112 | S24: 605.294591 | T24: 2207.459031 | U24: 0
B25: 2022-03-17 | C25: S | D25: 122091.536 | E25: 1.00540029 | F25: 1 | G25: 122750.8657 | H25: 0.013116 | J25: 1610.000355 | K25: 121140.8654 | L25: 1.00486755 | M25: 597.495976 | N25: 2207.496331 | O25: 659.329701 | P25: 1610.000355 | Q25: 4423.284112 | R25: 3472.613458 | S25: 597.495976 | T25: 2207.496331 | U25: 0
B26: 2022-04-19 | C26: S | D26: 119929.5042 | E26: 1.01010061 | F26: 1 | G26: 121140.8654 | H26: 0.013355 | J26: 1617.836257 | K26: 119523.0291 | L26: 1.00486755 | M26: 589.659219 | N26: 2207.495476 | O26: 1211.361149 | P26: 1617.836257 | Q26: 3472.613458 | R26: 3066.138351 | S26: 589.659219 | T26: 2207.495476 | U26: 0
B27: 2022-05-17 | C27: S | D27: 117617.5657 | E27: 1.0162005 | F27: 1 | G27: 119523.0291 | H27: 0.013601 | J27: 1625.632719 | K27: 117897.3964 | L27: 1.00486755 | M27: 581.78432 | N27: 2207.417039 | O27: 1905.463374 | P27: 1625.632719 | Q27: 3066.138351 | R27: 3345.969006 | S27: 581.78432 | T27: 2207.417039 | U27: 0
B28: 2022-06-20 | C28: S | D28: 116660.7712 | E28: 1.01060018 | F28: 1 | G28: 117897.3964 | H28: 0.013856 | J28: 1633.586324 | K28: 116263.8101 | L28: 1.00486755 | M28: 573.871471 | N28: 2207.457795 | O28: 1236.625174 | P28: 1633.586324 | Q28: 3345.969006 | R28: 2949.007855 | S28: 573.871471 | T28: 2207.457795 | U28: 0
B29: 2022-07-18 | C29: S | D29: 129295.2615 | E29: 1.00470007 | F29: 1.11731207 | G29: 129902.9582 | H29: 0.014119 | J29: 1834.099867 | K29: 128068.8584 | L29: 1.00486755 | M29: 632.309144 | N29: 2466.409011 | O29: 607.6967795 | P29: 789.9863347 | Q29: 2949.007855 | R29: 0 | S29: 632.309144 | T29: 1422.295479 | U29: 1044.113533
B30: 2022-08-17 | C30: S | D30: 127216.4357 | E30: 1.00670057 | F30: 1 | G30: 128068.8584 | H30: 0.014391 | J30: 1843.038941 | K30: 126225.8194 | L30: 1.00486755 | M30: 623.381571 | N30: 2466.420512 | O30: 852.4226328 | P30: 852.4226328 | Q30: 0 | R30: 0 | S30: 623.381571 | T30: 1475.804204 | U30: 990.616308
B31: 2022-09-19 | C31: S | D31: 127090.0368 | E31: 0.99319996 | F31: 1 | G31: 126225.8194 | H31: 0.014672 | J31: 1851.985223 | K31: 124373.8342 | L31: 1.00486755 | M31: 614.410487 | N31: 2466.39571 | O31: -864.2173336 | P31: 0 | Q31: 0 | R31: 0 | S31: 614.410487 | T31: 614.410487 | U31: 1851.985223
B32: 2022-10-18 | C32: S | D32: 124823.1388 | E32: 0.99640047 | F32: 1 | G32: 124373.8342 | H32: 0.014963 | J32: 1861.005681 | K32: 122512.8285 | L32: 1.00486755 | M32: 605.395856 | N32: 2466.401537 | O32: -449.304633 | P32: 0 | Q32: 0 | R32: 0 | S32: 605.395856 | T32: 605.395856 | U32: 1861.005681
B33: 2022-11-18 | C33: S | D33: 122869.1934 | E33: 0.99709964 | F33: 1 | G33: 122512.8285 | H33: 0.015264 | J33: 1870.035815 | K33: 120642.7927 | L33: 1.00486755 | M33: 596.337318 | N33: 2466.373133 | O33: -356.3648938 | P33: 0 | Q33: 0 | R33: 0 | S33: 596.337318 | T33: 596.337318 | U33: 1870.035815
B34: 2022-12-19 | C34: S | D34: 119935.0822 | E34: 1.00590078 | F34: 1 | G34: 120642.7927 | H34: 0.015576 | J34: 1879.132139 | K34: 118763.6606 | L34: 1.00486755 | M34: 587.234825 | N34: 2466.366964 | O34: 707.7105342 | P34: 707.7105342 | Q34: 0 | R34: 0 | S34: 587.234825 | T34: 1294.945359 | U34: 1171.421605
B35: 2023-01-17 | C35: S | D35: 118278.765 | E35: 1.0040996 | F35: 1 | G35: 118763.6606 | H35: 0.0159 | J35: 1888.342203 | K35: 116875.3184 | L35: 1.00486755 | M35: 578.088056 | N35: 2466.430259 | O35: 484.8956248 | P35: 484.8956248 | Q35: 0 | R35: 0 | S35: 578.088056 | T35: 1062.983681 | U35: 1403.446578
B36: 2023-02-17 | C36: S | D36: 116155.1933 | E36: 1.00619968 | F36: 1 | G36: 116875.3184 | H36: 0.016236 | J36: 1897.587669 | K36: 114977.7307 | L36: 1.00486755 | M36: 568.896455 | N36: 2466.484124 | O36: 720.1250291 | P36: 720.1250291 | Q36: 0 | R36: 0 | S36: 568.896455 | T36: 1289.021484 | U36: 1177.46264
B37: 2023-03-17 | C37: S | D37: 114371.6092 | E37: 1.00529958 | F37: 1 | G37: 114977.7307 | H37: 0.016584 | J37: 1906.790686 | K37: 113070.94 | L37: 1.00486755 | M37: 559.659853 | N37: 2466.450539 | O37: 606.1214927 | P37: 606.1214927 | Q37: 0 | R37: 0 | S37: 559.659853 | T37: 1165.781346 | U37: 1300.669193
B38: 2023-04-17 | C38: S | D38: 112129.066 | E38: 1.00839991 | F38: 1 | G38: 113070.94 | H38: 0.016946 | J38: 1916.10015 | K38: 111154.8399 | L38: 1.00486755 | M38: 550.378454 | N38: 2466.478604 | O38: 941.8740624 | P38: 941.8740624 | Q38: 0 | R38: 0 | S38: 550.378454 | T38: 1492.252516 | U38: 974.2260871
B39: 2023-05-17 | C39: S | D39: 110371.1682 | E39: 1.00710033 | F39: 1 | G39: 111154.8399 | H39: 0.017322 | J39: 1925.424136 | K39: 109229.4157 | L39: 1.00486755 | M39: 541.05174 | N39: 2466.475876 | O39: 783.6717164 | P39: 783.6717164 | Q39: 0 | R39: 0 | S39: 541.05174 | T39: 1324.723456 | U39: 1141.75242
B40: 2023-06-19 | C40: S | D40: 108567.1399 | E40: 1.00610015 | F40: 1 | G40: 109229.4157 | H40: 0.017713 | J40: 1934.780641 | K40: 107294.6351 | L40: 1.00486755 | M40: 531.679642 | N40: 2466.460283 | O40: 662.2758384 | P40: 662.2758384 | Q40: 0 | R40: 0 | S40: 531.679642 | T40: 1193.95548 | U40: 1272.504802
B41: 2023-07-17 | C41: S | D41: 111261.7441 | E41: 1.00229925 | F41: 1.039358236 | G41: 111517.5626 | H41: 0.01812 | J41: 2020.698235 | K41: 109496.8644 | L41: 1.00486755 | M41: 542.817311 | N41: 2563.515546 | O41: 255.818565 | P41: -542.817311 | Q41: -1536.16939 | R41: -993.3520785 | S41: 542.817311 | T41: 0 | U41: 3556.867624
B42: 2023-08-17 | C42: S | D42: 109584.4958 | E42: 0.99920033 | F42: 1 | G42: 109496.8644 | H42: 0.018544 | J42: 2030.509853 | K42: 107466.3545 | L42: 1.00486755 | M42: 532.981462 | N42: 2563.491315 | O42: -87.63143378 | P42: -532.981462 | Q42: -993.3520785 | R42: -548.0020503 | S42: 532.981462 | T42: 0 | U42: 2563.491315
B43: 2023-09-18 | C43: S | D43: 107337.5816 | E43: 1.0011997 | F43: 1 | G43: 107466.3545 | H43: 0.018987 | J43: 2040.463674 | K43: 105425.8909 | L43: 1.00486755 | M43: 523.097854 | N43: 2563.561528 | O43: 128.7728967 | P43: -419.2291536 | Q43: -548.0020503 | R43: 0 | S43: 523.097854 | T43: 103.8687004 | U43: 2459.692827
B44: 2023-10-18 | C44: S | D44: 105183.909 | E44: 1.00230056 | F44: 1 | G44: 105425.8909 | H44: 0.019448 | J44: 2050.322726 | K44: 103375.5681 | L44: 1.00486755 | M44: 513.165795 | N44: 2563.488521 | O44: 241.9818936 | P44: 241.9818936 | Q44: 0 | R44: 0 | S44: 513.165795 | T44: 755.1476886 | U44: 1808.340832
B45: 2023-11-20 | C45: S | D45: 103107.4362 | E45: 1.00260051 | F45: 1 | G45: 103375.5681 | H45: 0.019931 | J45: 2060.378449 | K45: 101315.1897 | L45: 1.00486755 | M45: 503.185746 | N45: 2563.564195 | O45: 268.131919 | P45: 268.131919 | Q45: 0 | S45: 503.185746 | T45: 771.317665 | U45: 1792.24653
B46: 2023-12-18 | C46: S | D46: 101072.6396 | E46: 1.00239976 | F46: 1 | G46: 101315.1897 | H46: 0.020435 | J46: 2070.375901 | K46: 99244.81379 | L46: 1.00486755 | M46: 493.156751 | N46: 2563.532652 | O46: 242.5500776 | P46: 242.5500776 | Q46: 0 | R46: 0 | S46: 493.156751 | T46: 735.7068286 | U46: 1827.825824
B47: 2024-01-17 | C47: S | D47: 98967.65882 | E47: 1.00280046 | F47: 1 | G47: 99244.81379 | H47: 0.020963 | J47: 2080.469032 | K47: 97164.34476 | L47: 1.00486755 | M47: 483.079093 | N47: 2563.548125 | O47: 277.1549698 | P47: 277.1549698 | Q47: 0 | R47: 0 | S47: 483.079093 | T47: 760.2340628 | U47: 1803.314062
B48: 2024-02-21 | C48: S | D48: 96623.24205 | E48: 1.00560013 | F48: 1 | G48: 97164.34476 | H48: 0.021516 | J48: 2090.588042 | K48: 95073.75672 | L48: 1.00486755 | M48: 472.952306 | N48: 2563.540348 | O48: 541.1027165 | P48: 541.1027165 | Q48: 0 | R48: 0 | S48: 472.952306 | T48: 1014.055022 | U48: 1549.485325
B49: 2024-03-18 | C49: S | D49: 94676.08592 | E49: 1.00420033 | F49: 1 | G49: 95073.75672 | H49: 0.022096 | J49: 2100.749728 | K49: 92973.00699 | L49: 1.00486755 | M49: 462.776264 | N49: 2563.525992 | O49: 397.670804 | P49: 397.670804 | Q49: 0 | R49: 0 | S49: 462.776264 | T49: 860.447068 | U49: 1703.078925
B50: 2024-04-17 | C50: S | D50: 92207.74083 | E50: 1.00829937 | F50: 1 | G50: 92973.00699 | H50: 0.022705 | J50: 2110.952124 | K50: 90862.05487 | L50: 1.00486755 | M50: 452.55076 | N50: 2563.502884 | O50: 765.266158 | P50: 765.266158 | Q50: 0 | R50: 0 | S50: 452.55076 | T50: 1217.816918 | U50: 1345.685966
B51: 2024-05-17 | C51: S | D51: 90716.94857 | E51: 1.00159955 | F51: 1 | G51: 90862.05487 | H51: 0.023346 | J51: 2121.265533 | K51: 88740.78934 | L51: 1.00486755 | M51: 442.275595 | N51: 2563.541128 | O51: 145.1062951 | P51: 145.1062951 | Q51: 0 | R51: 0 | S51: 442.275595 | T51: 587.3818901 | U51: 1976.159238
B52: 2024-06-17 | C52: S | D52: 88404.88613 | E52: 1.0037996 | F52: 1 | G52: 88740.78934 | H52: 0.02402 | J52: 2131.55376 | K52: 86609.23558 | L52: 1.00486755 | M52: 431.950229 | N52: 2563.503989 | O52: 335.9032053 | P52: 335.9032053 | Q52: 0 | R52: 0 | S52: 431.950229 | T52: 767.8534343 | U52: 1795.650554
B53: 2024-07-17 | C53: S | D53: 89597.35173 | E53: 1.00460027 | F53: 1.039260111 | G53: 90009.52374 | H53: 0.024731 | J53: 2226.025532 | K53: 87783.49821 | L53: 1.00486755 | M53: 438.125857 | N53: 2664.151389 | O53: 412.1720093 | P53: 1137.630744 | Q53: 0 | R53: 0 | S53: 438.125857 | T53: 1575.756601 | U53: 1088.394787
B54: 2024-08-19 | C54: S | D54: 87599.49722 | E54: 1.00210048 | F54: 1 | G54: 87783.49821 | H54: 0.025482 | J54: 2236.899101 | K54: 85546.59911 | L54: 1.00486755 | M54: 427.290566 | N54: 2664.189667 | O54: 184.0009919 | P54: 184.0009919 | Q54: 0 | R54: 0 | S54: 427.290566 | T54: 611.2915579 | U54: 2052.89811
B55: 2024-09-17 | C55: S | D55: 85222.72548 | E55: 1.00380032 | F55: 1 | G55: 85546.59911 | H55: 0.026276 | J55: 2247.822438 | K55: 83298.77667 | L55: 1.00486755 | M55: 416.402348 | N55: 2664.224786 | O55: 323.8736281 | P55: 323.8736281 | Q55: 0 | R55: 0 | S55: 416.402348 | T55: 740.2759761 | U55: 1923.94881
B56: 2024-10-17 | C56: S | D56: 83315.39726 | E56: 0.99980051 | F56: 1 | G56: 83298.77667 | H56: 0.027116 | J56: 2258.729628 | K56: 81040.04704 | L56: 1.00486755 | M56: 405.46096 | N56: 2664.190588 | O56: -16.6205886 | P56: -16.6205886 | Q56: 0 | R56: 0 | S56: 405.46096 | T56: 388.8403714 | U56: 2275.350217
B57: 2024-11-19 | C57: S | D57: 80685.06342 | E57: 1.00439962 | F57: 1 | G57: 81040.04704 | H57: 0.028007 | J57: 2269.688598 | K57: 78770.35845 | L57: 1.00486755 | M57: 394.46648 | N57: 2664.155078 | O57: 354.9836187 | P57: 354.9836187 | Q57: 0 | R57: 0 | S57: 394.46648 | T57: 749.4500987 | U57: 1914.704979
B58: 2024-12-17 | C58: S | D58: 78331.7461 | E58: 1.00559942 | F58: 1 | G58: 78770.35845 | H58: 0.028955 | J58: 2280.795729 | K58: 76489.56272 | L58: 1.00486755 | M58: 383.418658 | N58: 2664.214387 | O58: 438.6123457 | P58: 438.6123457 | Q58: 0 | R58: 0 | S58: 383.418658 | T58: 822.0310037 | U58: 1842.183383
B59: 2025-01-17 | C59: S | D59: 76192.43052 | E59: 1.00389976 | F59: 1 | G59: 76489.56272 | H59: 0.029963 | J59: 2291.856768 | K59: 74197.70595 | L59: 1.00486755 | M59: 372.316771 | N59: 2664.173539 | O59: 297.1321929 | P59: 297.1321929 | Q59: 0 | R59: 0 | S59: 372.316771 | T59: 669.4489639 | U59: 1994.724575
B60: 2025-02-17 | C60: S | D60: 73813.8907 | E60: 1.00519977 | F60: 1 | G60: 74197.70595 | H60: 0.031039 | J60: 2303.022595 | K60: 71894.68335 | L60: 1.00486755 | M60: 361.161043 | N60: 2664.183638 | O60: 383.8152544 | P60: 383.8152544 | Q60: 0 | R60: 0 | S60: 361.161043 | T60: 744.9762974 | U60: 1919.207341
B61: 2025-03-17 | C61: S | D61: 71779.84422 | E61: 1.00159988 | F61: 1 | G61: 71894.68335 | H61: 0.032189 | J61: 2314.217962 | K61: 69580.46539 | L61: 1.00486755 | M61: 349.950965 | N61: 2664.168927 | O61: 114.8391372 | P61: 114.8391372 | Q61: 0 | R61: 0 | S61: 349.950965 | T61: 464.7901022 | U61: 2199.378825
B62: 2025-04-17 | C62: S | D62: 68680.70353 | E62: 1.01310065 | F62: 1 | G62: 69580.46539 | H62: 0.033422 | J62: 2325.518314 | K62: 67254.94708 | L62: 1.00486755 | M62: 338.686394 | N62: 2664.204708 | O62: 899.7618587 | P62: 899.7618587 | Q62: 0 | R62: 0 | S62: 338.686394 | T62: 1238.448253 | U62: 1425.756456
B63: 2025-05-19 | C63: S | D63: 66880.40012 | E63: 1.00560025 | F63: 1 | G63: 67254.94708 | H63: 0.034746 | J63: 2336.840391 | K63: 64918.10669 | L63: 1.00486755 | M63: 327.366817 | N63: 2664.207208 | O63: 374.5469608 | P63: 374.5469608 | Q63: 0 | R63: 0 | S63: 327.366817 | T63: 701.9137778 | U63: 1962.29343
B64: 2025-06-17 | C64: S | D64: 64640.1109 | E64: 1.00430067 | F64: 1 | G64: 64918.10669 | H64: 0.036172 | J64: 2348.217755 | K64: 62569.88893 | L64: 1.00486755 | M64: 315.99213 | N64: 2664.209885 | O64: 277.9957857 | P64: 277.9957857 | Q64: 0 | R64: 0 | S64: 315.99213 | T64: 593.9879157 | U64: 2070.221969
B65: 2025-07-17 | C65: S | D65: 65727.57444 | E65: 1.00260013 | F65: 1.053197885 | G65: 65898.47468 | H65: 0.037712 | J65: 2485.163277 | K65: 63413.31141 | L65: 1.00486755 | M65: 320.76412 | N65: 2805.927397 | O65: 170.9002381 | P65: -304.3554342 | Q65: 0 | R65: 0 | S65: 320.76412 | T65: 16.40868577 | U65: 2789.518711
B66: 2025-08-18 | C66: S | D66: 63261.47627 | E66: 1.00240012 | F66: 1 | G66: 63413.31141 | H66: 0.039381 | J66: 2497.279616 | K66: 60916.03179 | L66: 1.00486755 | M66: 308.667463 | N66: 2805.947079 | O66: 151.8351344 | P66: 151.8351344 | Q66: 0 | R66: 0 | S66: 308.667463 | T66: 460.5025974 | U66: 2345.444482
B67: 2025-09-17 | C67: S | D67: 60758.09174 | E67: 1.00259949 | F67: 1 | G67: 60916.03179 | H67: 0.041195 | J67: 2509.43593 | K67: 58406.59586 | L67: 1.00486755 | M67: 296.51183 | N67: 2805.94776 | O67: 157.9400519 | P67: 157.9400519 | Q67: 0 | R67: 0 | S67: 296.51183 | T67: 454.4518819 | U67: 2351.495878
B68: 2025-10-17 | C68: S | D68: 58470.9525 | E68: 0.99889934 | F68: 1 | G68: 58406.59586 | H68: 0.043174 | J68: 2521.64637 | K68: 55884.94949 | L68: 1.00486755 | M68: 284.297025 | N68: 2805.943395 | O68: -64.35663858 | P68: -64.35663858 | Q68: 0 | R68: 0 | S68: 284.297025 | T68: 219.9403864 | U68: 2586.003008
B69: 2025-11-17 | C69: S | D69: 55618.0197 | E69: 1.00479934 | F69: 1 | G69: 55884.94949 | H69: 0.045342 | J69: 2533.93538 | K69: 53351.01411 | L69: 1.00486755 | M69: 272.022785 | N69: 2805.958165 | O69: 266.9297867 | P69: 266.9297867 | Q69: 0 | R69: 0 | S69: 272.022785 | T69: 538.9525717 | U69: 2267.005593
B70: 2025-12-17 | C70: S | D70: 53303.06427 | E70: 1.00089957 | F70: 1 | G70: 53351.01411 | H70: 0.047727 | J70: 2546.28385 | K70: 50804.73026 | L70: 1.00486755 | M70: 259.688728 | N70: 2805.972578 | O70: 47.94983753 | P70: 47.94983753 | Q70: 0 | R70: 0 | S70: 259.688728 | T70: 307.6385655 | U70: 2498.334013
B71: 2026-01-19 | C71: S | D71: 50713.43391 | E71: 1.00180024 | F71: 1 | G71: 50804.73026 | H71: 0.050363 | J71: 2558.67863 | K71: 48246.05163 | L71: 1.00486755 | M71: 247.294564 | N71: 2805.973194 | O71: 91.29635226 | P71: 91.29635226 | Q71: 0 | R71: 0 | S71: 247.294564 | T71: 338.5909163 | U71: 2467.382278
B72: 2026-02-19 | C72: S | D72: 48087.36669 | E72: 1.00329993 | F72: 1 | G72: 48246.05163 | H72: 0.053292 | J72: 2571.128583 | K72: 45674.92305 | L72: 1.00486755 | M72: 234.840068 | N72: 2805.968651 | O72: 158.6849439 | P72: 158.6849439 | Q72: 0 | R72: 0 | S72: 234.840068 | T72: 393.5250119 | U72: 2412.44364
B73: 2026-03-17 | C73: S | D73: 45524.69701 | E73: 1.00329988 | F73: 1 | G73: 45674.92305 | H73: 0.056566 | J73: 2583.647697 | K73: 43091.27535 | L73: 1.00486755 | M73: 222.324971 | N73: 2805.972668 | O73: 150.2260372 | P73: 150.2260372 | Q73: 0 | R73: 0 | S73: 222.324971 | T73: 372.5510082 | U73: 2433.42166
B74: 2026-04-17 | C74: S | D74: 42791.75659 | E74: 1.00699945 | F74: 1 | G74: 43091.27535 | H74: 0.060249 | J74: 2596.206249 | K74: 40495.0691 | L74: 1.00486755 | M74: 209.748937 | N74: 2805.955186 | O74: 299.5187607 | P74: 299.5187607 | Q74: 0 | R74: 0 | S74: 209.748937 | T74: 509.2676977 | U74: 2296.687488
B75: 2026-05-18 | C75: S | D75: 40141.82903 | E75: 1.0087998 | F75: 1 | G75: 40495.0691 | H75: 0.064424 | J75: 2608.854332 | K75: 37886.21477 | L75: 1.00486755 | M75: 197.111773 | N75: 2805.966105 | O75: 353.2400671 | P75: 353.2400671 | Q75: 0 | R75: 0 | S75: 197.111773 | T75: 550.3518401 | U75: 2255.614265
B76: 2026-06-17 | C76: S | D76: 37630.32854 | E76: 1.0068 | F76: 1 | G76: 37886.21477 | H76: 0.069196 | J76: 2621.574517 | K76: 35264.64025 | L76: 1.00486755 | M76: 184.413044 | N76: 2805.987561 | O76: 255.886234 | P76: 255.886234 | Q76: 0 | R76: 0 | S76: 184.413044 | T76: 440.299278 | U76: 2365.688283
B77: 2026-07-17 | C77: S | D77: 36721.44128 | E77: 1 | F77: 1.041310531 | G77: 36721.44128 | H77: 0.074701 | J77: 2743.128385 | K77: 33978.31289 | L77: 1.00486755 | M77: 178.743451 | N77: 2921.871836 | O77: 0 | P77: 0 | Q77: 0 | R77: 0 | S77: 178.743451 | T77: 178.743451 | U77: 2743.128385
B78: 2026-08-17 | C78: S | D78: 33978.31289 | E78: 1 | F78: 1 | G78: 33978.31289 | H78: 0.081125 | J78: 2756.490633 | K78: 31221.82226 | L78: 1.00486755 | M78: 165.391136 | N78: 2921.881769 | O78: 0 | P78: 0 | Q78: 0 | R78: 0 | S78: 165.391136 | T78: 165.391136 | U78: 2756.490633
B79: 2026-09-17 | C79: S | D79: 31221.82226 | E79: 1 | F79: 1 | G79: 31221.82226 | H79: 0.088718 | J79: 2769.937627 | K79: 28451.88463 | L79: 1.00486755 | M79: 151.97378 | N79: 2921.911407 | O79: 0 | P79: 0 | Q79: 0 | R79: 0 | S79: 151.97378 | T79: 151.97378 | U79: 2769.937627
B80: 2026-10-20 | C80: S | D80: 28451.88463 | E80: 1 | F80: 1 | G80: 28451.88463 | H80: 0.097829 | J80: 2783.419422 | K80: 25668.46521 | L80: 1.00486755 | M80: 138.490971 | N80: 2921.910393 | O80: 0 | P80: 0 | Q80: 0 | R80: 0 | S80: 138.490971 | T80: 138.490971 | U80: 2783.419422
B81: 2026-11-17 | C81: S | D81: 25668.46521 | E81: 1 | F81: 1 | G81: 25668.46521 | H81: 0.108965 | J81: 2796.964312 | K81: 22871.5009 | L81: 1.00486755 | M81: 124.942537 | N81: 2921.906849 | O81: 0 | P81: 0 | Q81: 0 | R81: 0 | S81: 124.942537 | T81: 124.942537 | U81: 2796.964312
B82: 2026-12-17 | C82: S | D82: 22871.5009 | E82: 1 | F82: 1 | G82: 22871.5009 | H82: 0.122885 | J82: 2810.564388 | K82: 20060.93651 | L82: 1.00486755 | M82: 111.328174 | N82: 2921.892562 | O82: 0 | P82: 0 | Q82: 0 | R82: 0 | S82: 111.328174 | T82: 111.328174 | U82: 2810.564388
B83: 2027-01-18 | C83: S | D83: 20060.93651 | E83: 1 | F83: 1 | G83: 20060.93651 | H83: 0.140784 | J83: 2824.258886 | K83: 17236.67762 | L83: 1.00486755 | M83: 97.647611 | N83: 2921.906497 | O83: 0 | P83: 0 | Q83: 0 | R83: 0 | S83: 97.647611 | T83: 97.647611 | U83: 2824.258886
B84: 2027-02-17 | C84: S | D84: 17236.67762 | E84: 1 | F84: 1 | G84: 17236.67762 | H84: 0.16465 | J84: 2838.018971 | K84: 14398.65865 | L84: 1.00486755 | M84: 83.90039 | N84: 2921.919361 | O84: 0 | P84: 0 | Q84: 0 | R84: 0 | S84: 83.90039 | T84: 83.90039 | U84: 2838.018971
